Workbook

Sheet SUIVI_REGION
G1: PARTS SOCIALES Du 01/06/2023 au 23/03/2023 | O1: EMPRUNT Du 01/06/2023 au 23/06/2023 | AB1: CA UC hors Emprunt | AD1: FAF | AI1: OG/GEDEL Mise à jour hebdo
C3: Au | D3: =TODAY()-1 -> 2023-06-01
C4: Saisonnalité : | E4: =LOOKUP(D3,'JOURS ECOULES'!A:A,'JOURS ECOULES'!E:E) -> 6.5%
C6: REGIONS | G6: OBJ | H6: Réalisation | I6: dont Réal. Portefeuilles Premium | J6: % REALISE | K6: Reste à faire | L6: Production attendue | M6: Ecart p/r à production attendue | O6: OBJ Assurance Vie | P6: Réal. | Q6: % Réal. | R6: Reste à faire | S6: Production attendue | T6: Ecart p/r à production attendue | U6: OBJ CTO | V6: Réal. | W6: % Réal. | X6: Reste à faire | Y6: Production attendue | Z6: Ecart p/r à production attendue | AB6: REALISATION EN MTT | AD6: REALISATION EN MTT | AE6: dont Avenir Durable | AF6: dont Alizé Vision | AG6: dont Coralium Transatlantic | AI6: REALISATION EN MTT | AJ6: dont OG | AK6: dont GEDEL
B7: Total AUBE HAUTE MARNE | C7: AUBE HAUTE MARNE | G7: =SUIVI_PDV!I71 -> 1,596,000 € | H7: =SUIVI_PDV!J71 -> 0 € | I7: =SUIVI_PDV!L71 -> 0 € | J7: =IFERROR(H7/G7," ") -> 0.0% | K7: =IF(H7>G7," ",G7-H7) -> 1,596,000 € | L7: =G7*$E$4 -> 102,968 € | M7: =H7-L7 -> -102,968 € | O7: =SUIVI_PDV!Q71 -> 6,900,000 € | P7: =SUIVI_PDV!R71 -> 131,999 € | Q7: =IFERROR(P7/O7," ") -> 1.9% | R7: =IF(P7>O7," ",O7-P7) -> 6,768,001 € | S7: =O7*$E$4 -> 445,161 € | T7: =P7-S7 -> -313,162 € | U7: =SUIVI_PDV!W71 -> 400,000 € | V7: =SUIVI_PDV!X71 -> 0 € | W7: =IFERROR(V7/U7," ") -> 0% | X7: =IF(V7>U7," ",U7-V7) -> 400,000 € | Y7: =U7*$E$4 -> 25,806 € | Z7: =V7-Y7 -> -25,806 € | AB7: =SUIVI_PDV!AD71 -> 0 € | AD7: =SUIVI_PDV!AF71 -> 35,400 € | AE7: =SUIVI_PDV!AG71 -> 35,400 € | AF7: =SUIVI_PDV!AH71 -> 0 € | AG7: =SUIVI_PDV!AI71 -> 0 € | AI7: =SUIVI_PDV!AK71 -> 0 € | AJ7: =SUIVI_PDV!AL71 -> 0 € | AK7: =SUIVI_PDV!AM71 -> 0 €
B8: Total BAS RHIN | C8: BAS RHIN | G8: =SUIVI_PDV!I267 -> 3,239,000 € | H8: =SUIVI_PDV!J267 -> 0 € | I8: =SUIVI_PDV!L267 -> 0 € | J8: 0.0% | K8: 3,239,000 € | L8: =G8*$E$4 -> 208,968 € | M8: -208,968 € | O8: =SUIVI_PDV!Q267 -> 14,000,000 € | P8: =SUIVI_PDV!R267 -> 693,005 € | Q8: =IFERROR(P8/O8," ") -> 5% | R8: 13,306,995 € | S8: =O8*$E$4 -> 903,226 € | T8: -210,221 € | U8: =SUIVI_PDV!W267 -> 900,000 € | V8: =SUIVI_PDV!X267 -> 110,000 € | W8: 12% | X8: 790,000 € | Y8: =U8*$E$4 -> 58,065 € | Z8: 51,935 € | AB8: =SUIVI_PDV!AD267 -> 0 € | AD8: =SUIVI_PDV!AF267 -> 73,436 € | AE8: =SUIVI_PDV!AG267 -> 12,598 € | AF8: =SUIVI_PDV!AH267 -> 25,000 € | AG8: =SUIVI_PDV!AI267 -> 35,838 € | AI8: =SUIVI_PDV!AK267 -> 0 € | AJ8: =SUIVI_PDV!AL267 -> 0 € | AK8: =SUIVI_PDV!AM267 -> 0 €
B9: Total HAUT RHIN | C9: HAUT RHIN | G9: =SUIVI_PDV!I306 -> 1,966,500 € | H9: =SUIVI_PDV!J306 -> 0 € | I9: =SUIVI_PDV!L306 -> 0 € | J9: 0.0% | K9: 1,966,500 € | L9: 126,871 € | M9: -126,871 € | O9: =SUIVI_PDV!Q306 -> 8,500,000 € | P9: =SUIVI_PDV!R306 -> 228,140 € | Q9: 2.7% | R9: 8,271,860 € | S9: 548,387 € | T9: -320,247 € | U9: =SUIVI_PDV!W306 -> 600,000 € | V9: =SUIVI_PDV!X306 -> 0 € | W9: 0% | X9: 600,000 € | Y9: 38,710 € | Z9: -38,710 € | AB9: =SUIVI_PDV!AD306 -> 0 € | AD9: =SUIVI_PDV!AF306 -> 349 € | AE9: =SUIVI_PDV!AG306 -> 349 € | AF9: =SUIVI_PDV!AH306 -> 0 € | AG9: =SUIVI_PDV!AI306 -> 0 € | AI9: =SUIVI_PDV!AK306 -> 0 € | AJ9: =SUIVI_PDV!AL306 -> 0 € | AK9: =SUIVI_PDV!AM306 -> 0 €
B10: Total MARNE ARDENNES | C10: MARNE ARDENNES | G10: =SUIVI_PDV!I44 -> 3,008,000 € | H10: =SUIVI_PDV!J44 -> 0 € | I10: =SUIVI_PDV!L44 -> 0 € | J10: 0.0% | K10: 3,008,000 € | L10: 194,065 € | M10: -194,065 € | O10: =SUIVI_PDV!Q44 -> 13,000,000 € | P10: =SUIVI_PDV!R44 -> 1,673,663 € | Q10: 12.9% | R10: 11,326,337 € | S10: 838,710 € | T10: 834,954 € | U10: =SUIVI_PDV!W44 -> 800,000 € | V10: =SUIVI_PDV!X44 -> 0 € | W10: 0% | X10: 800,000 € | Y10: 51,613 € | Z10: -51,613 € | AB10: =SUIVI_PDV!AD44 -> 0 € | AD10: =SUIVI_PDV!AF44 -> 498 € | AE10: =SUIVI_PDV!AG44 -> 498 € | AF10: =SUIVI_PDV!AH44 -> 0 € | AG10: =SUIVI_PDV!AI44 -> 0 € | AI10: =SUIVI_PDV!AK44 -> 0 € | AJ10: =SUIVI_PDV!AL44 -> 0 € | AK10: =SUIVI_PDV!AM44 -> 0 €
B11: Total MEURTHE ET MOSELLE MEUSE | C11: MEURTHE ET MOSELLE MEUSE | G11: =SUIVI_PDV!I148 -> 3,008,000 € | H11: =SUIVI_PDV!J148 -> 0 € | I11: =SUIVI_PDV!L148 -> 0 € | J11: 0.0% | K11: 3,008,000 € | L11: 194,065 € | M11: -194,065 € | O11: =SUIVI_PDV!Q148 -> 13,000,000 € | P11: =SUIVI_PDV!R148 -> 158,898 € | Q11: 1.2% | R11: 12,841,102 € | S11: 838,710 € | T11: -679,812 € | U11: =SUIVI_PDV!W148 -> 800,000 € | V11: =SUIVI_PDV!X148 -> 0 € | W11: 0% | X11: 800,000 € | Y11: 51,613 € | Z11: -51,613 € | AB11: =SUIVI_PDV!AD148 -> 0 € | AD11: =SUIVI_PDV!AF148 -> 5,000 € | AE11: =SUIVI_PDV!AG148 -> 5,000 € | AF11: =SUIVI_PDV!AH148 -> 0 € | AG11: =SUIVI_PDV!AI148 -> 0 € | AI11: =SUIVI_PDV!AK148 -> 0 € | AJ11: =SUIVI_PDV!AL148 -> 0 € | AK11: =SUIVI_PDV!AM148 -> 0 €
B12: Total MOSELLE | C12: MOSELLE | G12: =SUIVI_PDV!I208 -> 3,470,500 € | H12: =SUIVI_PDV!J208 -> 0 € | I12: =SUIVI_PDV!L208 -> 0 € | J12: 0.0% | K12: 3,470,500 € | L12: 223,903 € | M12: -223,903 € | O12: =SUIVI_PDV!Q208 -> 15,000,000 € | P12: =SUIVI_PDV!R208 -> 1,114,060 € | Q12: 7.4% | R12: =IF(P12>O12," ",O12-P12) -> 13,885,940 € | S12: =O12*$E$4 -> 967,742 € | T12: =P12-S12 -> 146,318 € | U12: =SUIVI_PDV!W208 -> 1,000,000 € | V12: =SUIVI_PDV!X208 -> 15,000 € | W12: 1.5% | X12: 985,000 € | Y12: 64,516 € | Z12: -49,516 € | AB12: =SUIVI_PDV!AD208 -> 0 € | AD12: =SUIVI_PDV!AF208 -> 32,417 € | AE12: =SUIVI_PDV!AG208 -> 14,061 € | AF12: =SUIVI_PDV!AH208 -> 0 € | AG12: =SUIVI_PDV!AI208 -> 18,356 € | AI12: =SUIVI_PDV!AK208 -> 0 € | AJ12: =SUIVI_PDV!AL208 -> 0 € | AK12: =SUIVI_PDV!AM208 -> 0 €
B13: Total VOSGES | C13: VOSGES | G13: =SUIVI_PDV!I99 -> 1,712,000 € | H13: =SUIVI_PDV!J99 -> 0 € | I13: =SUIVI_PDV!L99 -> 0 € | J13: 0% | K13: =IF(H13>G13," ",G13-H13) -> 1,712,000 € | L13: 110,452 € | M13: -110,452 € | O13: =SUIVI_PDV!Q99 -> 7,400,000 € | P13: =SUIVI_PDV!R99 -> 574,242 € | Q13: 7.8% | R13: 6,825,758 € | S13: 477,419 € | T13: 96,823 € | U13: =SUIVI_PDV!W99 -> 500,000 € | V13: =SUIVI_PDV!X99 -> 0 € | W13: 0% | X13: 500,000 € | Y13: 32,258 € | Z13: -32,258 € | AB13: =SUIVI_PDV!AD99 -> 0 € | AD13: =SUIVI_PDV!AF99 -> 16,074 € | AE13: =SUIVI_PDV!AG99 -> 7,664 € | AF13: =SUIVI_PDV!AH99 -> 0 € | AG13: =SUIVI_PDV!AI99 -> 8,410 € | AI13: =SUIVI_PDV!AK99 -> 0 € | AJ13: =SUIVI_PDV!AL99 -> 0 € | AK13: =SUIVI_PDV!AM99 -> 0 €
C14: BANQUE PRIVEE | U14: 5,000,000 € | V14: 0 €
C15: TOTAL BDD | G15: =SUM(G7:G13) -> 18,000,000 € | H15: =SUM(H7:H13) -> 0 € | I15: =SUM(I7:I13) -> 0 € | J15: 0.0% | K15: =IF(H15>G15," ",G15-H15) -> 18,000,000 € | L15: =G15*E4 -> 1,161,290 € | M15: =SUM(M7:M13) -> -1,161,290 € | O15: =SUM(O7:O13) -> 77,800,000 € | P15: =SUM(P7:P13) -> 4,574,008 € | Q15: 5.9% | R15: 73,225,992 € | S15: =O15*E4 -> 5,019,355 € | T15: =SUM(T7:T13) -> -445,347 € | U15: =SUM(U7:U13) -> 5,000,000 € | V15: =SUM(V7:V13) -> 125,000 € | W15: 2.5% | X15: 4,875,000 € | Y15: =U15*E4 -> 322,581 € | Z15: =SUM(Z7:Z13) -> -197,581 € | AB15: =SUM(AB7:AB13) -> 0 € | AD15: =SUM(AD7:AD13) -> 163,174 € | AE15: =SUM(AE7:AE13) -> 75,570 € | AF15: 25,000 € | AG15: 62,604 € | AI15: =SUM(AI7:AI13) -> 0 € | AJ15: =SUM(AJ7:AJ13) -> 0 € | AK15: 0 €
C18: TOTAL BDR | U18: 2,000,000 € | V18: 100,000 € | W18: =IFERROR(V18/U18," ") -> 5%

Sheet SUIVI_PDV
A1: N° REGION | B1: REGION | C1: TERRITOIRE | D1: ES Pilcot | E1: ES GEDEL | F1: EDS PDV | G1: Point de Vente | I1: PARTS SOCIALES | Q1: EMPRUNT | AD1: CA UC hors Emprunt | AF1: FAF | AK1: OG/GEDEL
I2: OBJ | J2: Réal. | K2: % Réal. | L2: dont Réal. Premium | M2: Reste à faire | N2: Production attendue | O2: Ecart p/r à production attendue | Q2: OBJ Assurance Vie | R2: Réal. | S2: % Réal. | T2: Reste à faire | U2: Production attendue | V2: Ecart p/r à production attendue | W2: OBJ CTO | X2: Réal. | Y2: % Réal. | Z2: Reste à faire | AA2: Production attendue | AB2: Ecart p/r à production attendue | AD2: Réal. | AF2: Réal. | AG2: dont Avenir Durable | AH2: dont Alizé Vision | AI2: dont Coralium Transatlantic | AK2: Réal. | AL2: dont OG | AM2: dont GEDEL
A3: 30 | B3: MARNE ARDENNES | C3: CHALONS EN CHAMPAGNE | D3: 201 | E3: =CONCATENATE(151350000,D3) -> 151350000201 | F3: 51101 | G3: =VLOOKUP(F3,Objectifs!D:E,2,FALSE) -> CHALONS VIVIERS | I3: =VLOOKUP(F3,Objectifs!D:M,10,FALSE) -> 194,400 | J3: =(SUMIFS(SOURCE_PARTS_SOC!G:G,SOURCE_PARTS_SOC!E:E,F3)) -> 0 | K3: =IFERROR(J3/I3," ") -> 0% | L3: =(SUMIFS(SOURCE_PARTS_SOC!H:H,SOURCE_PARTS_SOC!E:E,F3)) -> 0 | M3: =IF(J3>I3," ",I3-J3) -> 194,400 | N3: =I3*SUIVI_REGION!$E$4 -> 12,542 | O3: =J3-N3 -> -12,542 | Q3: =VLOOKUP(F3,Objectifs!D:K,8,0) -> 840,000 | R3: =(SUMIF(EMPRUNT_ASV!D:D,SUIVI_PDV!E3,EMPRUNT_ASV!J:J)) -> 42,000 | S3: =IFERROR(R3/Q3," ") -> 5% | T3: =IF(R3>Q3," ",Q3-R3) -> 798,000 | U3: =Q3*SUIVI_REGION!$E$4 -> 54,194 | V3: =R3-U3 -> -12,194 | W3: =VLOOKUP(F3,Objectifs!D:L,9,0) -> 51,700 | X3: =(SUMIF(EMPRUNT_CTO!H:H,SUIVI_PDV!D3,EMPRUNT_CTO!N:N)) -> 0 | Y3: =IFERROR(X3/W3," ") -> 0% | Z3: =IF(X3>W3," ",W3-X3) -> 51,700 | AA3: =W3*SUIVI_REGION!$E$4 -> 3,335 | AB3: =X3-AA3 -> -3,335 | AD3: =(SUMIF(EMPRUNT_ASV!D:D,E3,EMPRUNT_ASV!K:K)) -> 0 | AF3: =AG3+AH3+AI3 -> 0 | AG3: =(SUMIFS(PILCOT_AVEN_DUR!P:P,PILCOT_AVEN_DUR!H:H,D3))-(SUMIFS('FAF AU 31 MAI'!D:D,'FAF AU 31 MAI'!A:A,D3)) -> 0 | AH3: =(SUMIFS(PILCOT_ALIZE!P:P,PILCOT_ALIZE!H:H,D3))-(SUMIFS('FAF AU 31 MAI'!E:E,'FAF AU 31 MAI'!A:A,D3)) -> 0 | AI3: =(SUMIFS(PILCOT_CORALIUM!P:P,PILCOT_CORALIUM!H:H,D3))-(SUMIFS('FAF AU 31 MAI'!C:C,'FAF AU 31 MAI'!A:A,D3)) -> 0 | AK3: =AL3+AM3 -> 0 | AL3: =(SUMIF(GEDEL!F:F,E3,GEDEL!N:N)) -> 0 | AM3: =(SUMIF(GEDEL!F:F,E3,GEDEL!O:O)) -> 0
A4: 30 | B4: MARNE ARDENNES | C4: CHALONS EN CHAMPAGNE | D4: 203 | E4: =CONCATENATE(151350000,D4) -> 151350000203 | F4: 51103 | G4: =VLOOKUP(F4,Objectifs!D:E,2,FALSE) -> FAGNIERES LECLERC | I4: =VLOOKUP(F4,Objectifs!D:M,10,FALSE) -> 42,500 | J4: =(SUMIFS(SOURCE_PARTS_SOC!G:G,SOURCE_PARTS_SOC!E:E,F4)) -> 0 | K4: 0% | L4: =(SUMIFS(SOURCE_PARTS_SOC!H:H,SOURCE_PARTS_SOC!E:E,F4)) -> 0 | M4: 42,500 | N4: =I4*SUIVI_REGION!$E$4 -> 2,742 | O4: -2,742 | Q4: =VLOOKUP(F4,Objectifs!D:K,8,0) -> 183,700 | R4: =(SUMIF(EMPRUNT_ASV!D:D,SUIVI_PDV!E4,EMPRUNT_ASV!J:J)) -> 10,000 | S4: 5% | T4: 173,700 | U4: =Q4*SUIVI_REGION!$E$4 -> 11,852 | V4: -1,852 | W4: =VLOOKUP(F4,Objectifs!D:L,9,0) -> 11,300 | X4: =(SUMIF(EMPRUNT_CTO!H:H,SUIVI_PDV!D4,EMPRUNT_CTO!N:N)) -> 0 | Y4: =IFERROR(X4/W4," ") -> 0% | Z4: =IF(X4>W4," ",W4-X4) -> 11,300 | AA4: =W4*SUIVI_REGION!$E$4 -> 729 | AB4: =X4-AA4 -> -729 | AD4: =(SUMIF(EMPRUNT_ASV!D:D,E4,EMPRUNT_ASV!K:K)) -> 0 | AF4: =AG4+AH4+AI4 -> 0 | AG4: =(SUMIFS(PILCOT_AVEN_DUR!P:P,PILCOT_AVEN_DUR!H:H,D4))-(SUMIFS('FAF AU 31 MAI'!D:D,'FAF AU 31 MAI'!A:A,D4)) -> 0 | AH4: =(SUMIFS(PILCOT_ALIZE!P:P,PILCOT_ALIZE!H:H,D4))-(SUMIFS('FAF AU 31 MAI'!E:E,'FAF AU 31 MAI'!A:A,D4)) -> 0 | AI4: =(SUMIFS(PILCOT_CORALIUM!P:P,PILCOT_CORALIUM!H:H,D4))-(SUMIFS('FAF AU 31 MAI'!C:C,'FAF AU 31 MAI'!A:A,D4)) -> 0 | AK4: =AL4+AM4 -> 0 | AL4: =(SUMIF(GEDEL!F:F,E4,GEDEL!N:N)) -> 0 | AM4: =(SUMIF(GEDEL!F:F,E4,GEDEL!O:O)) -> 0
A5: 30 | B5: MARNE ARDENNES | C5: CHALONS EN CHAMPAGNE | D5: 210 | E5: 151350000210 | F5: 51110 | G5: =VLOOKUP(F5,Objectifs!D:E,2,FALSE) -> CHALONS ROOSEVELT | I5: =VLOOKUP(F5,Objectifs!D:M,10,FALSE) -> 82,200 | J5: =(SUMIFS(SOURCE_PARTS_SOC!G:G,SOURCE_PARTS_SOC!E:E,F5)) -> 0 | K5: 0% | L5: =(SUMIFS(SOURCE_PARTS_SOC!H:H,SOURCE_PARTS_SOC!E:E,F5)) -> 0 | M5: 82,200 | N5: =I5*SUIVI_REGION!$E$4 -> 5,303 | O5: -5,303 | Q5: =VLOOKUP(F5,Objectifs!D:K,8,0) -> 355,200 | R5: =(SUMIF(EMPRUNT_ASV!D:D,SUIVI_PDV!E5,EMPRUNT_ASV!J:J)) -> 57,000 | S5: 16% | T5: 298,200 | U5: =Q5*SUIVI_REGION!$E$4 -> 22,916 | V5: 34,084 | W5: =VLOOKUP(F5,Objectifs!D:L,9,0) -> 21,900 | X5: =(SUMIF(EMPRUNT_CTO!H:H,SUIVI_PDV!D5,EMPRUNT_CTO!N:N)) -> 0 | Y5: 0% | Z5: 21,900 | AA5: =W5*SUIVI_REGION!$E$4 -> 1,413 | AB5: -1,413 | AD5: =(SUMIF(EMPRUNT_ASV!D:D,E5,EMPRUNT_ASV!K:K)) -> 0 | AF5: 0 | AG5: =(SUMIFS(PILCOT_AVEN_DUR!P:P,PILCOT_AVEN_DUR!H:H,D5))-(SUMIFS('FAF AU 31 MAI'!D:D,'FAF AU 31 MAI'!A:A,D5)) -> 0 | AH5: =(SUMIFS(PILCOT_ALIZE!P:P,PILCOT_ALIZE!H:H,D5))-(SUMIFS('FAF AU 31 MAI'!E:E,'FAF AU 31 MAI'!A:A,D5)) -> 0 | AI5: =(SUMIFS(PILCOT_CORALIUM!P:P,PILCOT_CORALIUM!H:H,D5))-(SUMIFS('FAF AU 31 MAI'!C:C,'FAF AU 31 MAI'!A:A,D5)) -> 0 | AK5: 0 | AL5: =(SUMIF(GEDEL!F:F,E5,GEDEL!N:N)) -> 0 | AM5: =(SUMIF(GEDEL!F:F,E5,GEDEL!O:O)) -> 0
A6: 30 | B6: MARNE ARDENNES | C6: CHALONS EN CHAMPAGNE | D6: 215 | E6: 151350000215 | F6: 51115 | G6: =VLOOKUP(F6,Objectifs!D:E,2,FALSE) -> MOURMELON LE GRAND | I6: =VLOOKUP(F6,Objectifs!D:M,10,FALSE) -> 46,800 | J6: =(SUMIFS(SOURCE_PARTS_SOC!G:G,SOURCE_PARTS_SOC!E:E,F6)) -> 0 | K6: 0% | L6: =(SUMIFS(SOURCE_PARTS_SOC!H:H,SOURCE_PARTS_SOC!E:E,F6)) -> 0 | M6: 46,800 | N6: =I6*SUIVI_REGION!$E$4 -> 3,019 | O6: -3,019 | Q6: =VLOOKUP(F6,Objectifs!D:K,8,0) -> 202,400 | R6: =(SUMIF(EMPRUNT_ASV!D:D,SUIVI_PDV!E6,EMPRUNT_ASV!J:J)) -> 73,000 | S6: 36% | T6: 129,400 | U6: =Q6*SUIVI_REGION!$E$4 -> 13,058 | V6: 59,942 | W6: =VLOOKUP(F6,Objectifs!D:L,9,0) -> 12,500 | X6: =(SUMIF(EMPRUNT_CTO!H:H,SUIVI_PDV!D6,EMPRUNT_CTO!N:N)) -> 0 | Y6: 0% | Z6: 12,500 | AA6: =W6*SUIVI_REGION!$E$4 -> 806 | AB6: -806 | AD6: =(SUMIF(EMPRUNT_ASV!D:D,E6,EMPRUNT_ASV!K:K)) -> 0 | AF6: 0 | AG6: =(SUMIFS(PILCOT_AVEN_DUR!P:P,PILCOT_AVEN_DUR!H:H,D6))-(SUMIFS('FAF AU 31 MAI'!D:D,'FAF AU 31 MAI'!A:A,D6)) -> 0 | AH6: =(SUMIFS(PILCOT_ALIZE!P:P,PILCOT_ALIZE!H:H,D6))-(SUMIFS('FAF AU 31 MAI'!E:E,'FAF AU 31 MAI'!A:A,D6)) -> 0 | AI6: =(SUMIFS(PILCOT_CORALIUM!P:P,PILCOT_CORALIUM!H:H,D6))-(SUMIFS('FAF AU 31 MAI'!C:C,'FAF AU 31 MAI'!A:A,D6)) -> 0 | AK6: 0 | AL6: =(SUMIF(GEDEL!F:F,E6,GEDEL!N:N)) -> 0 | AM6: =(SUMIF(GEDEL!F:F,E6,GEDEL!O:O)) -> 0
A7: 30 | B7: MARNE ARDENNES | C7: CHALONS EN CHAMPAGNE | D7: 220 | E7: 151350000220 | F7: 51120 | G7: =VLOOKUP(F7,Objectifs!D:E,2,FALSE) -> SARRY | I7: =VLOOKUP(F7,Objectifs!D:M,10,FALSE) -> 32,000 | J7: =(SUMIFS(SOURCE_PARTS_SOC!G:G,SOURCE_PARTS_SOC!E:E,F7)) -> 0 | K7: 0% | L7: =(SUMIFS(SOURCE_PARTS_SOC!H:H,SOURCE_PARTS_SOC!E:E,F7)) -> 0 | M7: 32,000 | N7: =I7*SUIVI_REGION!$E$4 -> 2,065 | O7: -2,065 | Q7: =VLOOKUP(F7,Objectifs!D:K,8,0) -> 138,600 | R7: =(SUMIF(EMPRUNT_ASV!D:D,SUIVI_PDV!E7,EMPRUNT_ASV!J:J)) -> 47,000 | S7: 34% | T7: 91,600 | U7: =Q7*SUIVI_REGION!$E$4 -> 8,942 | V7: 38,058 | W7: =VLOOKUP(F7,Objectifs!D:L,9,0) -> 8,500 | X7: =(SUMIF(EMPRUNT_CTO!H:H,SUIVI_PDV!D7,EMPRUNT_CTO!N:N)) -> 0 | Y7: 0% | Z7: 8,500 | AA7: =W7*SUIVI_REGION!$E$4 -> 548 | AB7: -548 | AD7: =(SUMIF(EMPRUNT_ASV!D:D,E7,EMPRUNT_ASV!K:K)) -> 0 | AF7: 0 | AG7: =(SUMIFS(PILCOT_AVEN_DUR!P:P,PILCOT_AVEN_DUR!H:H,D7))-(SUMIFS('FAF AU 31 MAI'!D:D,'FAF AU 31 MAI'!A:A,D7)) -> 0 | AH7: =(SUMIFS(PILCOT_ALIZE!P:P,PILCOT_ALIZE!H:H,D7))-(SUMIFS('FAF AU 31 MAI'!E:E,'FAF AU 31 MAI'!A:A,D7)) -> 0 | AI7: =(SUMIFS(PILCOT_CORALIUM!P:P,PILCOT_CORALIUM!H:H,D7))-(SUMIFS('FAF AU 31 MAI'!C:C,'FAF AU 31 MAI'!A:A,D7)) -> 0 | AK7: 0 | AL7: =(SUMIF(GEDEL!F:F,E7,GEDEL!N:N)) -> 0 | AM7: =(SUMIF(GEDEL!F:F,E7,GEDEL!O:O)) -> 0
A8: 30 | B8: MARNE ARDENNES | C8: CHALONS EN CHAMPAGNE | D8: 330 | E8: 151350000330 | F8: 51330 | G8: =VLOOKUP(F8,Objectifs!D:E,2,FALSE) -> MONTMIRAIL | I8: =VLOOKUP(F8,Objectifs!D:M,10,FALSE) -> 46,300 | J8: =(SUMIFS(SOURCE_PARTS_SOC!G:G,SOURCE_PARTS_SOC!E:E,F8)) -> 0 | K8: 0% | L8: =(SUMIFS(SOURCE_PARTS_SOC!H:H,SOURCE_PARTS_SOC!E:E,F8)) -> 0 | M8: 46,300 | N8: =I8*SUIVI_REGION!$E$4 -> 2,987 | O8: -2,987 | Q8: =VLOOKUP(F8,Objectifs!D:K,8,0) -> 200,000 | R8: =(SUMIF(EMPRUNT_ASV!D:D,SUIVI_PDV!E8,EMPRUNT_ASV!J:J)) -> 0 | S8: 0% | T8: 200,000 | U8: =Q8*SUIVI_REGION!$E$4 -> 12,903 | V8: -12,903 | W8: =VLOOKUP(F8,Objectifs!D:L,9,0) -> 12,300 | X8: =(SUMIF(EMPRUNT_CTO!H:H,SUIVI_PDV!D8,EMPRUNT_CTO!N:N)) -> 0 | Y8: 0% | Z8: 12,300 | AA8: =W8*SUIVI_REGION!$E$4 -> 794 | AB8: -794 | AD8: =(SUMIF(EMPRUNT_ASV!D:D,E8,EMPRUNT_ASV!K:K)) -> 0 | AF8: 0 | AG8: =(SUMIFS(PILCOT_AVEN_DUR!P:P,PILCOT_AVEN_DUR!H:H,D8))-(SUMIFS('FAF AU 31 MAI'!D:D,'FAF AU 31 MAI'!A:A,D8)) -> 0 | AH8: =(SUMIFS(PILCOT_ALIZE!P:P,PILCOT_ALIZE!H:H,D8))-(SUMIFS('FAF AU 31 MAI'!E:E,'FAF AU 31 MAI'!A:A,D8)) -> 0 | AI8: =(SUMIFS(PILCOT_CORALIUM!P:P,PILCOT_CORALIUM!H:H,D8))-(SUMIFS('FAF AU 31 MAI'!C:C,'FAF AU 31 MAI'!A:A,D8)) -> 0 | AK8: 0 | AL8: =(SUMIF(GEDEL!F:F,E8,GEDEL!N:N)) -> 0 | AM8: =(SUMIF(GEDEL!F:F,E8,GEDEL!O:O)) -> 0
A9: 30 | B9: MARNE ARDENNES | C9: CHALONS EN CHAMPAGNE | D9: 354 | E9: 151350000354 | F9: 51354 | G9: =VLOOKUP(F9,Objectifs!D:E,2,FALSE) -> VERTUS | I9: =VLOOKUP(F9,Objectifs!D:M,10,FALSE) -> 38,500 | J9: =(SUMIFS(SOURCE_PARTS_SOC!G:G,SOURCE_PARTS_SOC!E:E,F9)) -> 0 | K9: 0% | L9: =(SUMIFS(SOURCE_PARTS_SOC!H:H,SOURCE_PARTS_SOC!E:E,F9)) -> 0 | M9: 38,500 | N9: =I9*SUIVI_REGION!$E$4 -> 2,484 | O9: -2,484 | Q9: =VLOOKUP(F9,Objectifs!D:K,8,0) -> 166,600 | R9: =(SUMIF(EMPRUNT_ASV!D:D,SUIVI_PDV!E9,EMPRUNT_ASV!J:J)) -> 0 | S9: 0% | T9: 166,600 | U9: =Q9*SUIVI_REGION!$E$4 -> 10,748 | V9: -10,748 | W9: =VLOOKUP(F9,Objectifs!D:L,9,0) -> 10,300 | X9: =(SUMIF(EMPRUNT_CTO!H:H,SUIVI_PDV!D9,EMPRUNT_CTO!N:N)) -> 0 | Y9: 0% | Z9: 10,300 | AA9: =W9*SUIVI_REGION!$E$4 -> 665 | AB9: -665 | AD9: =(SUMIF(EMPRUNT_ASV!D:D,E9,EMPRUNT_ASV!K:K)) -> 0 | AF9: 0 | AG9: =(SUMIFS(PILCOT_AVEN_DUR!P:P,PILCOT_AVEN_DUR!H:H,D9))-(SUMIFS('FAF AU 31 MAI'!D:D,'FAF AU 31 MAI'!A:A,D9)) -> 0 | AH9: =(SUMIFS(PILCOT_ALIZE!P:P,PILCOT_ALIZE!H:H,D9))-(SUMIFS('FAF AU 31 MAI'!E:E,'FAF AU 31 MAI'!A:A,D9)) -> 0 | AI9: =(SUMIFS(PILCOT_CORALIUM!P:P,PILCOT_CORALIUM!H:H,D9))-(SUMIFS('FAF AU 31 MAI'!C:C,'FAF AU 31 MAI'!A:A,D9)) -> 0 | AK9: 0 | AL9: =(SUMIF(GEDEL!F:F,E9,GEDEL!N:N)) -> 0 | AM9: =(SUMIF(GEDEL!F:F,E9,GEDEL!O:O)) -> 0
A10: 30 | B10: MARNE ARDENNES | C10: CHALONS EN CHAMPAGNE | D10: 381 | E10: 151350000381 | F10: 51381 | G10: =VLOOKUP(F10,Objectifs!D:E,2,FALSE) -> SEZANNE | I10: =VLOOKUP(F10,Objectifs!D:M,10,FALSE) -> 122,300 | J10: =(SUMIFS(SOURCE_PARTS_SOC!G:G,SOURCE_PARTS_SOC!E:E,F10)) -> 0 | K10: 0% | L10: =(SUMIFS(SOURCE_PARTS_SOC!H:H,SOURCE_PARTS_SOC!E:E,F10)) -> 0 | M10: 122,300 | N10: =I10*SUIVI_REGION!$E$4 -> 7,890 | O10: -7,890 | Q10: =VLOOKUP(F10,Objectifs!D:K,8,0) -> 527,900 | R10: =(SUMIF(EMPRUNT_ASV!D:D,SUIVI_PDV!E10,EMPRUNT_ASV!J:J)) -> 97,850 | S10: 19% | T10: 430,050 | U10: =Q10*SUIVI_REGION!$E$4 -> 34,058 | V10: 63,792 | W10: =VLOOKUP(F10,Objectifs!D:L,9,0) -> 32,500 | X10: =(SUMIF(EMPRUNT_CTO!H:H,SUIVI_PDV!D10,EMPRUNT_CTO!N:N)) -> 0 | Y10: 0% | Z10: 32,500 | AA10: =W10*SUIVI_REGION!$E$4 -> 2,097 | AB10: -2,097 | AD10: =(SUMIF(EMPRUNT_ASV!D:D,E10,EMPRUNT_ASV!K:K)) -> 0 | AF10: 0 | AG10: =(SUMIFS(PILCOT_AVEN_DUR!P:P,PILCOT_AVEN_DUR!H:H,D10))-(SUMIFS('FAF AU 31 MAI'!D:D,'FAF AU 31 MAI'!A:A,D10)) -> 0 | AH10: =(SUMIFS(PILCOT_ALIZE!P:P,PILCOT_ALIZE!H:H,D10))-(SUMIFS('FAF AU 31 MAI'!E:E,'FAF AU 31 MAI'!A:A,D10)) -> 0 | AI10: =(SUMIFS(PILCOT_CORALIUM!P:P,PILCOT_CORALIUM!H:H,D10))-(SUMIFS('FAF AU 31 MAI'!C:C,'FAF AU 31 MAI'!A:A,D10)) -> 0 | AK10: 0 | AL10: =(SUMIF(GEDEL!F:F,E10,GEDEL!N:N)) -> 0 | AM10: =(SUMIF(GEDEL!F:F,E10,GEDEL!O:O)) -> 0
A11: 30 | B11: MARNE ARDENNES | C11: CHALONS EN CHAMPAGNE | D11: 228 | E11: 151350000228 | F11: 51128 | G11: =VLOOKUP(F11,Objectifs!D:E,2,FALSE) -> SAINTE MENEHOULD | I11: =VLOOKUP(F11,Objectifs!D:M,10,FALSE) -> 57,300 | J11: =(SUMIFS(SOURCE_PARTS_SOC!G:G,SOURCE_PARTS_SOC!E:E,F11)) -> 0 | K11: 0% | L11: =(SUMIFS(SOURCE_PARTS_SOC!H:H,SOURCE_PARTS_SOC!E:E,F11)) -> 0 | M11: 57,300 | N11: =I11*SUIVI_REGION!$E$4 -> 3,697 | O11: -3,697 | Q11: =VLOOKUP(F11,Objectifs!D:K,8,0) -> 247,600 | R11: =(SUMIF(EMPRUNT_ASV!D:D,SUIVI_PDV!E11,EMPRUNT_ASV!J:J)) -> 143,800 | S11: 58% | T11: 103,800 | U11: =Q11*SUIVI_REGION!$E$4 -> 15,974 | V11: 127,826 | W11: =VLOOKUP(F11,Objectifs!D:L,9,0) -> 15,200 | X11: =(SUMIF(EMPRUNT_CTO!H:H,SUIVI_PDV!D11,EMPRUNT_CTO!N:N)) -> 0 | Y11: 0% | Z11: 15,200 | AA11: =W11*SUIVI_REGION!$E$4 -> 981 | AB11: -981 | AD11: =(SUMIF(EMPRUNT_ASV!D:D,E11,EMPRUNT_ASV!K:K)) -> 0 | AF11: 0 | AG11: =(SUMIFS(PILCOT_AVEN_DUR!P:P,PILCOT_AVEN_DUR!H:H,D11))-(SUMIFS('FAF AU 31 MAI'!D:D,'FAF AU 31 MAI'!A:A,D11)) -> 0 | AH11: =(SUMIFS(PILCOT_ALIZE!P:P,PILCOT_ALIZE!H:H,D11))-(SUMIFS('FAF AU 31 MAI'!E:E,'FAF AU 31 MAI'!A:A,D11)) -> 0 | AI11: =(SUMIFS(PILCOT_CORALIUM!P:P,PILCOT_CORALIUM!H:H,D11))-(SUMIFS('FAF AU 31 MAI'!C:C,'FAF AU 31 MAI'!A:A,D11)) -> 0 | AK11: 0 | AL11: =(SUMIF(GEDEL!F:F,E11,GEDEL!N:N)) -> 0 | AM11: =(SUMIF(GEDEL!F:F,E11,GEDEL!O:O)) -> 0
A12: 30 | B12: MARNE ARDENNES | C12: CHALONS EN CHAMPAGNE | D12: 266 | E12: 151350000266 | F12: 51166 | G12: =VLOOKUP(F12,Objectifs!D:E,2,FALSE) -> VITRY LE FRANCOIS | I12: =VLOOKUP(F12,Objectifs!D:M,10,FALSE) -> 96,700 | J12: =(SUMIFS(SOURCE_PARTS_SOC!G:G,SOURCE_PARTS_SOC!E:E,F12)) -> 0 | K12: 0% | L12: =(SUMIFS(SOURCE_PARTS_SOC!H:H,SOURCE_PARTS_SOC!E:E,F12)) -> 0 | M12: 96,700 | N12: =I12*SUIVI_REGION!$E$4 -> 6,239 | O12: -6,239 | Q12: =VLOOKUP(F12,Objectifs!D:K,8,0) -> 418,100 | R12: =(SUMIF(EMPRUNT_ASV!D:D,SUIVI_PDV!E12,EMPRUNT_ASV!J:J)) -> 41,100 | S12: 10% | T12: 377,000 | U12: =Q12*SUIVI_REGION!$E$4 -> 26,974 | V12: 14,126 | W12: =VLOOKUP(F12,Objectifs!D:L,9,0) -> 25,700 | X12: =(SUMIF(EMPRUNT_CTO!H:H,SUIVI_PDV!D12,EMPRUNT_CTO!N:N)) -> 0 | Y12: =IFERROR(X12/W12," ") -> 0% | Z12: =IF(X12>W12," ",W12-X12) -> 25,700 | AA12: =W12*SUIVI_REGION!$E$4 -> 1,658 | AB12: -1,658 | AD12: =(SUMIF(EMPRUNT_ASV!D:D,E12,EMPRUNT_ASV!K:K)) -> 0 | AF12: 0 | AG12: =(SUMIFS(PILCOT_AVEN_DUR!P:P,PILCOT_AVEN_DUR!H:H,D12))-(SUMIFS('FAF AU 31 MAI'!D:D,'FAF AU 31 MAI'!A:A,D12)) -> 0 | AH12: =(SUMIFS(PILCOT_ALIZE!P:P,PILCOT_ALIZE!H:H,D12))-(SUMIFS('FAF AU 31 MAI'!E:E,'FAF AU 31 MAI'!A:A,D12)) -> 0 | AI12: =(SUMIFS(PILCOT_CORALIUM!P:P,PILCOT_CORALIUM!H:H,D12))-(SUMIFS('FAF AU 31 MAI'!C:C,'FAF AU 31 MAI'!A:A,D12)) -> 0 | AK12: 0 | AL12: =(SUMIF(GEDEL!F:F,E12,GEDEL!N:N)) -> 0 | AM12: =(SUMIF(GEDEL!F:F,E12,GEDEL!O:O)) -> 0
A13: 30 | C13: Total Territoire CHALONS EN CHAMPAGNE | I13: =SUBTOTAL(9,I3:I12) -> 759,000 | J13: =SUBTOTAL(9,J3:J12) -> 0 | K13: 0% | L13: =SUBTOTAL(9,L3:L12) -> 0 | M13: 759,000 | N13: =I13*SUIVI_REGION!$E$4 -> 48,968 | O13: -48,968 | Q13: =SUBTOTAL(9,Q3:Q12) -> 3,280,100 | R13: =SUBTOTAL(9,R3:R12) -> 511,750 | S13: 16% | T13: 2,768,350 | U13: =SUBTOTAL(9,U3:U12) -> 211,619 | V13: =SUBTOTAL(9,V3:V12) -> 300,130 | W13: =SUBTOTAL(9,W3:W12) -> 201,900 | X13: =SUBTOTAL(9,X3:X12) -> 0 | Y13: =IFERROR(X13/W13," ") -> 0% | Z13: =IF(X13>W13," ",W13-X13) -> 201,900 | AA13: =SUBTOTAL(9,AA3:AA12) -> 13,026 | AB13: =SUBTOTAL(9,AB3:AB12) -> -13,026 | AD13: =SUBTOTAL(9,AD3:AD12) -> 0 | AF13: =SUBTOTAL(9,AF3:AF12) -> 0 | AG13: =SUBTOTAL(9,AG3:AG12) -> 0 | AH13: 0 | AI13: 0 | AK13: =SUBTOTAL(9,AK3:AK12) -> 0 | AL13: =SUBTOTAL(9,AL3:AL12) -> 0 | AM13: 0
A14: 30 | B14: MARNE ARDENNES | C14: CHARLEVILLE MEZIERES | D14: 120 | E14: =CONCATENATE(151350000,D14) -> 151350000120 | F14: 8820 | G14: =VLOOKUP(F14,Objectifs!D:E,2,FALSE) -> VOUZIERS | I14: =VLOOKUP(F14,Objectifs!D:M,10,FALSE) -> 43,400 | J14: =(SUMIFS(SOURCE_PARTS_SOC!G:G,SOURCE_PARTS_SOC!E:E,F14)) -> 0 | K14: 0% | L14: =(SUMIFS(SOURCE_PARTS_SOC!H:H,SOURCE_PARTS_SOC!E:E,F14)) -> 0 | M14: 43,400 | N14: =I14*SUIVI_REGION!$E$4 -> 2,800 | O14: -2,800 | Q14: =VLOOKUP(F14,Objectifs!D:K,8,0) -> 187,700 | R14: =(SUMIF(EMPRUNT_ASV!D:D,SUIVI_PDV!E14,EMPRUNT_ASV!J:J)) -> 0 | S14: 0% | T14: 187,700 | U14: =Q14*SUIVI_REGION!$E$4 -> 12,110 | V14: =R14-U14 -> -12,110 | W14: =VLOOKUP(F14,Objectifs!D:L,9,0) -> 11,600 | X14: =(SUMIF(EMPRUNT_CTO!H:H,SUIVI_PDV!D14,EMPRUNT_CTO!N:N)) -> 0 | Y14: =IFERROR(X14/W14," ") -> 0% | Z14: =IF(X14>W14," ",W14-X14) -> 11,600 | AA14: =W14*SUIVI_REGION!$E$4 -> 748 | AB14: =X14-AA14 -> -748 | AD14: =(SUMIF(EMPRUNT_ASV!D:D,E14,EMPRUNT_ASV!K:K)) -> 0 | AF14: =AG14+AH14+AI14 -> 0 | AG14: =(SUMIFS(PILCOT_AVEN_DUR!P:P,PILCOT_AVEN_DUR!H:H,D14))-(SUMIFS('FAF AU 31 MAI'!D:D,'FAF AU 31 MAI'!A:A,D14)) -> 0 | AH14: =(SUMIFS(PILCOT_ALIZE!P:P,PILCOT_ALIZE!H:H,D14))-(SUMIFS('FAF AU 31 MAI'!E:E,'FAF AU 31 MAI'!A:A,D14)) -> 0 | AI14: =(SUMIFS(PILCOT_CORALIUM!P:P,PILCOT_CORALIUM!H:H,D14))-(SUMIFS('FAF AU 31 MAI'!C:C,'FAF AU 31 MAI'!A:A,D14)) -> 0 | AK14: =AL14+AM14 -> 0 | AL14: =(SUMIF(GEDEL!F:F,E14,GEDEL!N:N)) -> 0 | AM14: =(SUMIF(GEDEL!F:F,E14,GEDEL!O:O)) -> 0
A15: 30 | B15: MARNE ARDENNES | C15: CHARLEVILLE MEZIERES | D15: 140 | E15: 151350000140 | F15: 8840 | G15: =VLOOKUP(F15,Objectifs!D:E,2,FALSE) -> RETHEL | I15: =VLOOKUP(F15,Objectifs!D:M,10,FALSE) -> 74,900 | J15: =(SUMIFS(SOURCE_PARTS_SOC!G:G,SOURCE_PARTS_SOC!E:E,F15)) -> 0 | K15: 0% | L15: =(SUMIFS(SOURCE_PARTS_SOC!H:H,SOURCE_PARTS_SOC!E:E,F15)) -> 0 | M15: 74,900 | N15: =I15*SUIVI_REGION!$E$4 -> 4,832 | O15: -4,832 | Q15: =VLOOKUP(F15,Objectifs!D:K,8,0) -> 323,800 | R15: =(SUMIF(EMPRUNT_ASV!D:D,SUIVI_PDV!E15,EMPRUNT_ASV!J:J)) -> 0 | S15: 0% | T15: 323,800 | U15: =Q15*SUIVI_REGION!$E$4 -> 20,890 | V15: -20,890 | W15: =VLOOKUP(F15,Objectifs!D:L,9,0) -> 19,900 | X15: =(SUMIF(EMPRUNT_CTO!H:H,SUIVI_PDV!D15,EMPRUNT_CTO!N:N)) -> 0 | Y15: =IFERROR(X15/W15," ") -> 0% | Z15: =IF(X15>W15," ",W15-X15) -> 19,900 | AA15: =W15*SUIVI_REGION!$E$4 -> 1,284 | AB15: =X15-AA15 -> -1,284 | AD15: =(SUMIF(EMPRUNT_ASV!D:D,E15,EMPRUNT_ASV!K:K)) -> 0 | AF15: =AG15+AH15+AI15 -> 0 | AG15: =(SUMIFS(PILCOT_AVEN_DUR!P:P,PILCOT_AVEN_DUR!H:H,D15))-(SUMIFS('FAF AU 31 MAI'!D:D,'FAF AU 31 MAI'!A:A,D15)) -> 0 | AH15: =(SUMIFS(PILCOT_ALIZE!P:P,PILCOT_ALIZE!H:H,D15))-(SUMIFS('FAF AU 31 MAI'!E:E,'FAF AU 31 MAI'!A:A,D15)) -> 0 | AI15: =(SUMIFS(PILCOT_CORALIUM!P:P,PILCOT_CORALIUM!H:H,D15))-(SUMIFS('FAF AU 31 MAI'!C:C,'FAF AU 31 MAI'!A:A,D15)) -> 0 | AK15: =AL15+AM15 -> 0 | AL15: =(SUMIF(GEDEL!F:F,E15,GEDEL!N:N)) -> 0 | AM15: =(SUMIF(GEDEL!F:F,E15,GEDEL!O:O)) -> 0
A16: 30 | B16: MARNE ARDENNES | C16: CHARLEVILLE MEZIERES | D16: 139 | E16: 151350000139 | F16: 8839 | G16: =VLOOKUP(F16,Objectifs!D:E,2,FALSE) -> GIVET | I16: =VLOOKUP(F16,Objectifs!D:M,10,FALSE) -> 43,100 | J16: =(SUMIFS(SOURCE_PARTS_SOC!G:G,SOURCE_PARTS_SOC!E:E,F16)) -> 0 | K16: 0% | L16: =(SUMIFS(SOURCE_PARTS_SOC!H:H,SOURCE_PARTS_SOC!E:E,F16)) -> 0 | M16: 43,100 | N16: =I16*SUIVI_REGION!$E$4 -> 2,781 | O16: -2,781 | Q16: =VLOOKUP(F16,Objectifs!D:K,8,0) -> 186,300 | R16: =(SUMIF(EMPRUNT_ASV!D:D,SUIVI_PDV!E16,EMPRUNT_ASV!J:J)) -> 62,352 | S16: 33% | T16: 123,948 | U16: =Q16*SUIVI_REGION!$E$4 -> 12,019 | V16: 50,333 | W16: =VLOOKUP(F16,Objectifs!D:L,9,0) -> 11,500 | X16: =(SUMIF(EMPRUNT_CTO!H:H,SUIVI_PDV!D16,EMPRUNT_CTO!N:N)) -> 0 | Y16: 0% | Z16: 11,500 | AA16: =W16*SUIVI_REGION!$E$4 -> 742 | AB16: -742 | AD16: =(SUMIF(EMPRUNT_ASV!D:D,E16,EMPRUNT_ASV!K:K)) -> 0 | AF16: 0 | AG16: =(SUMIFS(PILCOT_AVEN_DUR!P:P,PILCOT_AVEN_DUR!H:H,D16))-(SUMIFS('FAF AU 31 MAI'!D:D,'FAF AU 31 MAI'!A:A,D16)) -> 0 | AH16: =(SUMIFS(PILCOT_ALIZE!P:P,PILCOT_ALIZE!H:H,D16))-(SUMIFS('FAF AU 31 MAI'!E:E,'FAF AU 31 MAI'!A:A,D16)) -> 0 | AI16: =(SUMIFS(PILCOT_CORALIUM!P:P,PILCOT_CORALIUM!H:H,D16))-(SUMIFS('FAF AU 31 MAI'!C:C,'FAF AU 31 MAI'!A:A,D16)) -> 0 | AK16: 0 | AL16: =(SUMIF(GEDEL!F:F,E16,GEDEL!N:N)) -> 0 | AM16: =(SUMIF(GEDEL!F:F,E16,GEDEL!O:O)) -> 0
A17: 30 | B17: MARNE ARDENNES | C17: CHARLEVILLE MEZIERES | D17: 160 | E17: 151350000160 | F17: 8860 | G17: =VLOOKUP(F17,Objectifs!D:E,2,FALSE) -> ROCROI | I17: =VLOOKUP(F17,Objectifs!D:M,10,FALSE) -> 42,700 | J17: =(SUMIFS(SOURCE_PARTS_SOC!G:G,SOURCE_PARTS_SOC!E:E,F17)) -> 0 | K17: 0% | L17: =(SUMIFS(SOURCE_PARTS_SOC!H:H,SOURCE_PARTS_SOC!E:E,F17)) -> 0 | M17: 42,700 | N17: =I17*SUIVI_REGION!$E$4 -> 2,755 | O17: -2,755 | Q17: =VLOOKUP(F17,Objectifs!D:K,8,0) -> 184,700 | R17: =(SUMIF(EMPRUNT_ASV!D:D,SUIVI_PDV!E17,EMPRUNT_ASV!J:J)) -> 0 | S17: 0% | T17: 184,700 | U17: =Q17*SUIVI_REGION!$E$4 -> 11,916 | V17: -11,916 | W17: =VLOOKUP(F17,Objectifs!D:L,9,0) -> 11,400 | X17: =(SUMIF(EMPRUNT_CTO!H:H,SUIVI_PDV!D17,EMPRUNT_CTO!N:N)) -> 0 | Y17: 0% | Z17: 11,400 | AA17: =W17*SUIVI_REGION!$E$4 -> 735 | AB17: -735 | AD17: =(SUMIF(EMPRUNT_ASV!D:D,E17,EMPRUNT_ASV!K:K)) -> 0 | AF17: 0 | AG17: =(SUMIFS(PILCOT_AVEN_DUR!P:P,PILCOT_AVEN_DUR!H:H,D17))-(SUMIFS('FAF AU 31 MAI'!D:D,'FAF AU 31 MAI'!A:A,D17)) -> 0 | AH17: =(SUMIFS(PILCOT_ALIZE!P:P,PILCOT_ALIZE!H:H,D17))-(SUMIFS('FAF AU 31 MAI'!E:E,'FAF AU 31 MAI'!A:A,D17)) -> 0 | AI17: =(SUMIFS(PILCOT_CORALIUM!P:P,PILCOT_CORALIUM!H:H,D17))-(SUMIFS('FAF AU 31 MAI'!C:C,'FAF AU 31 MAI'!A:A,D17)) -> 0 | AK17: 0 | AL17: =(SUMIF(GEDEL!F:F,E17,GEDEL!N:N)) -> 0 | AM17: =(SUMIF(GEDEL!F:F,E17,GEDEL!O:O)) -> 0
A18: 30 | B18: MARNE ARDENNES | C18: CHARLEVILLE MEZIERES | D18: 162 | E18: 151350000162 | F18: 8862 | G18: =VLOOKUP(F18,Objectifs!D:E,2,FALSE) -> REVIN | I18: =VLOOKUP(F18,Objectifs!D:M,10,FALSE) -> 53,500 | J18: =(SUMIFS(SOURCE_PARTS_SOC!G:G,SOURCE_PARTS_SOC!E:E,F18)) -> 0 | K18: 0% | L18: =(SUMIFS(SOURCE_PARTS_SOC!H:H,SOURCE_PARTS_SOC!E:E,F18)) -> 0 | M18: 53,500 | N18: =I18*SUIVI_REGION!$E$4 -> 3,452 | O18: -3,452 | Q18: =VLOOKUP(F18,Objectifs!D:K,8,0) -> 231,100 | R18: =(SUMIF(EMPRUNT_ASV!D:D,SUIVI_PDV!E18,EMPRUNT_ASV!J:J)) -> 0 | S18: 0% | T18: 231,100 | U18: =Q18*SUIVI_REGION!$E$4 -> 14,910 | V18: -14,910 | W18: =VLOOKUP(F18,Objectifs!D:L,9,0) -> 14,200 | X18: =(SUMIF(EMPRUNT_CTO!H:H,SUIVI_PDV!D18,EMPRUNT_CTO!N:N)) -> 0 | Y18: 0% | Z18: 14,200 | AA18: =W18*SUIVI_REGION!$E$4 -> 916 | AB18: -916 | AD18: =(SUMIF(EMPRUNT_ASV!D:D,E18,EMPRUNT_ASV!K:K)) -> 0 | AF18: 0 | AG18: =(SUMIFS(PILCOT_AVEN_DUR!P:P,PILCOT_AVEN_DUR!H:H,D18))-(SUMIFS('FAF AU 31 MAI'!D:D,'FAF AU 31 MAI'!A:A,D18)) -> 0 | AH18: =(SUMIFS(PILCOT_ALIZE!P:P,PILCOT_ALIZE!H:H,D18))-(SUMIFS('FAF AU 31 MAI'!E:E,'FAF AU 31 MAI'!A:A,D18)) -> 0 | AI18: =(SUMIFS(PILCOT_CORALIUM!P:P,PILCOT_CORALIUM!H:H,D18))-(SUMIFS('FAF AU 31 MAI'!C:C,'FAF AU 31 MAI'!A:A,D18)) -> 0 | AK18: 0 | AL18: =(SUMIF(GEDEL!F:F,E18,GEDEL!N:N)) -> 0 | AM18: =(SUMIF(GEDEL!F:F,E18,GEDEL!O:O)) -> 0
A19: 30 | B19: MARNE ARDENNES | C19: CHARLEVILLE MEZIERES | D19: 106 | E19: 151350000106 | F19: 8806 | G19: =VLOOKUP(F19,Objectifs!D:E,2,FALSE) -> SEDAN | I19: =VLOOKUP(F19,Objectifs!D:M,10,FALSE) -> 158,100 | J19: =(SUMIFS(SOURCE_PARTS_SOC!G:G,SOURCE_PARTS_SOC!E:E,F19)) -> 0 | K19: 0% | L19: =(SUMIFS(SOURCE_PARTS_SOC!H:H,SOURCE_PARTS_SOC!E:E,F19)) -> 0 | M19: 158,100 | N19: =I19*SUIVI_REGION!$E$4 -> 10,200 | O19: -10,200 | Q19: =VLOOKUP(F19,Objectifs!D:K,8,0) -> 683,300 | R19: =(SUMIF(EMPRUNT_ASV!D:D,SUIVI_PDV!E19,EMPRUNT_ASV!J:J)) -> 230,094 | S19: 34% | T19: 453,206 | U19: =Q19*SUIVI_REGION!$E$4 -> 44,084 | V19: 186,010 | W19: =VLOOKUP(F19,Objectifs!D:L,9,0) -> 42,000 | X19: =(SUMIF(EMPRUNT_CTO!H:H,SUIVI_PDV!D19,EMPRUNT_CTO!N:N)) -> 0 | Y19: 0% | Z19: 42,000 | AA19: =W19*SUIVI_REGION!$E$4 -> 2,710 | AB19: -2,710 | AD19: =(SUMIF(EMPRUNT_ASV!D:D,E19,EMPRUNT_ASV!K:K)) -> 0 | AF19: 498 | AG19: =(SUMIFS(PILCOT_AVEN_DUR!P:P,PILCOT_AVEN_DUR!H:H,D19))-(SUMIFS('FAF AU 31 MAI'!D:D,'FAF AU 31 MAI'!A:A,D19)) -> 498 | AH19: =(SUMIFS(PILCOT_ALIZE!P:P,PILCOT_ALIZE!H:H,D19))-(SUMIFS('FAF AU 31 MAI'!E:E,'FAF AU 31 MAI'!A:A,D19)) -> 0 | AI19: =(SUMIFS(PILCOT_CORALIUM!P:P,PILCOT_CORALIUM!H:H,D19))-(SUMIFS('FAF AU 31 MAI'!C:C,'FAF AU 31 MAI'!A:A,D19)) -> 0 | AK19: 0 | AL19: =(SUMIF(GEDEL!F:F,E19,GEDEL!N:N)) -> 0 | AM19: =(SUMIF(GEDEL!F:F,E19,GEDEL!O:O)) -> 0
A20: 30 | B20: MARNE ARDENNES | C20: CHARLEVILLE MEZIERES | D20: 115 | E20: 151350000115 | F20: 8815 | G20: =VLOOKUP(F20,Objectifs!D:E,2,FALSE) -> CARIGNAN | I20: =VLOOKUP(F20,Objectifs!D:M,10,FALSE) -> 42,300 | J20: =(SUMIFS(SOURCE_PARTS_SOC!G:G,SOURCE_PARTS_SOC!E:E,F20)) -> 0 | K20: 0% | L20: =(SUMIFS(SOURCE_PARTS_SOC!H:H,SOURCE_PARTS_SOC!E:E,F20)) -> 0 | M20: 42,300 | N20: =I20*SUIVI_REGION!$E$4 -> 2,729 | O20: -2,729 | Q20: =VLOOKUP(F20,Objectifs!D:K,8,0) -> 183,100 | R20: =(SUMIF(EMPRUNT_ASV!D:D,SUIVI_PDV!E20,EMPRUNT_ASV!J:J)) -> 5,000 | S20: 3% | T20: 178,100 | U20: =Q20*SUIVI_REGION!$E$4 -> 11,813 | V20: -6,813 | W20: =VLOOKUP(F20,Objectifs!D:L,9,0) -> 11,300 | X20: =(SUMIF(EMPRUNT_CTO!H:H,SUIVI_PDV!D20,EMPRUNT_CTO!N:N)) -> 0 | Y20: 0% | Z20: 11,300 | AA20: =W20*SUIVI_REGION!$E$4 -> 729 | AB20: -729 | AD20: =(SUMIF(EMPRUNT_ASV!D:D,E20,EMPRUNT_ASV!K:K)) -> 0 | AF20: 0 | AG20: =(SUMIFS(PILCOT_AVEN_DUR!P:P,PILCOT_AVEN_DUR!H:H,D20))-(SUMIFS('FAF AU 31 MAI'!D:D,'FAF AU 31 MAI'!A:A,D20)) -> 0 | AH20: =(SUMIFS(PILCOT_ALIZE!P:P,PILCOT_ALIZE!H:H,D20))-(SUMIFS('FAF AU 31 MAI'!E:E,'FAF AU 31 MAI'!A:A,D20)) -> 0 | AI20: =(SUMIFS(PILCOT_CORALIUM!P:P,PILCOT_CORALIUM!H:H,D20))-(SUMIFS('FAF AU 31 MAI'!C:C,'FAF AU 31 MAI'!A:A,D20)) -> 0 | AK20: 0 | AL20: =(SUMIF(GEDEL!F:F,E20,GEDEL!N:N)) -> 0 | AM20: =(SUMIF(GEDEL!F:F,E20,GEDEL!O:O)) -> 0
A21: 30 | B21: MARNE ARDENNES | C21: CHARLEVILLE MEZIERES | D21: 119 | E21: 151350000119 | F21: 8819 | G21: =VLOOKUP(F21,Objectifs!D:E,2,FALSE) -> MOUZON | I21: =VLOOKUP(F21,Objectifs!D:M,10,FALSE) -> 28,500 | J21: =(SUMIFS(SOURCE_PARTS_SOC!G:G,SOURCE_PARTS_SOC!E:E,F21)) -> 0 | K21: 0% | L21: =(SUMIFS(SOURCE_PARTS_SOC!H:H,SOURCE_PARTS_SOC!E:E,F21)) -> 0 | M21: 28,500 | N21: =I21*SUIVI_REGION!$E$4 -> 1,839 | O21: -1,839 | Q21: =VLOOKUP(F21,Objectifs!D:K,8,0) -> 123,100 | R21: =(SUMIF(EMPRUNT_ASV!D:D,SUIVI_PDV!E21,EMPRUNT_ASV!J:J)) -> 0 | S21: 0% | T21: 123,100 | U21: =Q21*SUIVI_REGION!$E$4 -> 7,942 | V21: -7,942 | W21: =VLOOKUP(F21,Objectifs!D:L,9,0) -> 7,600 | X21: =(SUMIF(EMPRUNT_CTO!H:H,SUIVI_PDV!D21,EMPRUNT_CTO!N:N)) -> 0 | Y21: 0% | Z21: 7,600 | AA21: =W21*SUIVI_REGION!$E$4 -> 490 | AB21: -490 | AD21: =(SUMIF(EMPRUNT_ASV!D:D,E21,EMPRUNT_ASV!K:K)) -> 0 | AF21: 0 | AG21: =(SUMIFS(PILCOT_AVEN_DUR!P:P,PILCOT_AVEN_DUR!H:H,D21))-(SUMIFS('FAF AU 31 MAI'!D:D,'FAF AU 31 MAI'!A:A,D21)) -> 0 | AH21: =(SUMIFS(PILCOT_ALIZE!P:P,PILCOT_ALIZE!H:H,D21))-(SUMIFS('FAF AU 31 MAI'!E:E,'FAF AU 31 MAI'!A:A,D21)) -> 0 | AI21: =(SUMIFS(PILCOT_CORALIUM!P:P,PILCOT_CORALIUM!H:H,D21))-(SUMIFS('FAF AU 31 MAI'!C:C,'FAF AU 31 MAI'!A:A,D21)) -> 0 | AK21: 0 | AL21: =(SUMIF(GEDEL!F:F,E21,GEDEL!N:N)) -> 0 | AM21: =(SUMIF(GEDEL!F:F,E21,GEDEL!O:O)) -> 0
A22: 30 | B22: MARNE ARDENNES | C22: CHARLEVILLE MEZIERES | D22: 101 | E22: 151350000101 | F22: 8801 | G22: =VLOOKUP(F22,Objectifs!D:E,2,FALSE) -> CHARLEVILLE JEAN JAURES | I22: =VLOOKUP(F22,Objectifs!D:M,10,FALSE) -> 155,700 | J22: =(SUMIFS(SOURCE_PARTS_SOC!G:G,SOURCE_PARTS_SOC!E:E,F22)) -> 0 | K22: 0% | L22: =(SUMIFS(SOURCE_PARTS_SOC!H:H,SOURCE_PARTS_SOC!E:E,F22)) -> 0 | M22: 155,700 | N22: =I22*SUIVI_REGION!$E$4 -> 10,045 | O22: -10,045 | Q22: =VLOOKUP(F22,Objectifs!D:K,8,0) -> 673,300 | R22: =(SUMIF(EMPRUNT_ASV!D:D,SUIVI_PDV!E22,EMPRUNT_ASV!J:J)) -> 40,000 | S22: 6% | T22: 633,300 | U22: =Q22*SUIVI_REGION!$E$4 -> 43,439 | V22: -3,439 | W22: =VLOOKUP(F22,Objectifs!D:L,9,0) -> 41,400 | X22: =(SUMIF(EMPRUNT_CTO!H:H,SUIVI_PDV!D22,EMPRUNT_CTO!N:N)) -> 0 | Y22: 0% | Z22: 41,400 | AA22: =W22*SUIVI_REGION!$E$4 -> 2,671 | AB22: -2,671 | AD22: =(SUMIF(EMPRUNT_ASV!D:D,E22,EMPRUNT_ASV!K:K)) -> 0 | AF22: 0 | AG22: =(SUMIFS(PILCOT_AVEN_DUR!P:P,PILCOT_AVEN_DUR!H:H,D22))-(SUMIFS('FAF AU 31 MAI'!D:D,'FAF AU 31 MAI'!A:A,D22)) -> 0 | AH22: =(SUMIFS(PILCOT_ALIZE!P:P,PILCOT_ALIZE!H:H,D22))-(SUMIFS('FAF AU 31 MAI'!E:E,'FAF AU 31 MAI'!A:A,D22)) -> 0 | AI22: =(SUMIFS(PILCOT_CORALIUM!P:P,PILCOT_CORALIUM!H:H,D22))-(SUMIFS('FAF AU 31 MAI'!C:C,'FAF AU 31 MAI'!A:A,D22)) -> 0 | AK22: 0 | AL22: =(SUMIF(GEDEL!F:F,E22,GEDEL!N:N)) -> 0 | AM22: =(SUMIF(GEDEL!F:F,E22,GEDEL!O:O)) -> 0
A23: 30 | B23: MARNE ARDENNES | C23: CHARLEVILLE MEZIERES | D23: 102 | E23: 151350000102 | F23: 8802 | G23: =VLOOKUP(F23,Objectifs!D:E,2,FALSE) -> CHARLEVILLE NEVERS | I23: =VLOOKUP(F23,Objectifs!D:M,10,FALSE) -> 45,500 | J23: =(SUMIFS(SOURCE_PARTS_SOC!G:G,SOURCE_PARTS_SOC!E:E,F23)) -> 0 | K23: 0% | L23: =(SUMIFS(SOURCE_PARTS_SOC!H:H,SOURCE_PARTS_SOC!E:E,F23)) -> 0 | M23: 45,500 | N23: =I23*SUIVI_REGION!$E$4 -> 2,935 | O23: -2,935 | Q23: =VLOOKUP(F23,Objectifs!D:K,8,0) -> 196,700 | R23: =(SUMIF(EMPRUNT_ASV!D:D,SUIVI_PDV!E23,EMPRUNT_ASV!J:J)) -> 0 | S23: 0% | T23: 196,700 | U23: =Q23*SUIVI_REGION!$E$4 -> 12,690 | V23: -12,690 | W23: =VLOOKUP(F23,Objectifs!D:L,9,0) -> 12,100 | X23: =(SUMIF(EMPRUNT_CTO!H:H,SUIVI_PDV!D23,EMPRUNT_CTO!N:N)) -> 0 | Y23: 0% | Z23: 12,100 | AA23: =W23*SUIVI_REGION!$E$4 -> 781 | AB23: -781 | AD23: =(SUMIF(EMPRUNT_ASV!D:D,E23,EMPRUNT_ASV!K:K)) -> 0 | AF23: 0 | AG23: =(SUMIFS(PILCOT_AVEN_DUR!P:P,PILCOT_AVEN_DUR!H:H,D23))-(SUMIFS('FAF AU 31 MAI'!D:D,'FAF AU 31 MAI'!A:A,D23)) -> 0 | AH23: =(SUMIFS(PILCOT_ALIZE!P:P,PILCOT_ALIZE!H:H,D23))-(SUMIFS('FAF AU 31 MAI'!E:E,'FAF AU 31 MAI'!A:A,D23)) -> 0 | AI23: =(SUMIFS(PILCOT_CORALIUM!P:P,PILCOT_CORALIUM!H:H,D23))-(SUMIFS('FAF AU 31 MAI'!C:C,'FAF AU 31 MAI'!A:A,D23)) -> 0 | AK23: 0 | AL23: =(SUMIF(GEDEL!F:F,E23,GEDEL!N:N)) -> 0 | AM23: =(SUMIF(GEDEL!F:F,E23,GEDEL!O:O)) -> 0
A24: 30 | B24: MARNE ARDENNES | C24: CHARLEVILLE MEZIERES | D24: 122 | E24: 151350000122 | F24: 8822 | G24: =VLOOKUP(F24,Objectifs!D:E,2,FALSE) -> CHARLEVILLE MEZIERES | I24: =VLOOKUP(F24,Objectifs!D:M,10,FALSE) -> 86,300 | J24: =(SUMIFS(SOURCE_PARTS_SOC!G:G,SOURCE_PARTS_SOC!E:E,F24)) -> 0 | K24: 0% | L24: =(SUMIFS(SOURCE_PARTS_SOC!H:H,SOURCE_PARTS_SOC!E:E,F24)) -> 0 | M24: 86,300 | N24: =I24*SUIVI_REGION!$E$4 -> 5,568 | O24: -5,568 | Q24: =VLOOKUP(F24,Objectifs!D:K,8,0) -> 372,400 | R24: =(SUMIF(EMPRUNT_ASV!D:D,SUIVI_PDV!E24,EMPRUNT_ASV!J:J)) -> 18,704 | S24: 5% | T24: 353,696 | U24: =Q24*SUIVI_REGION!$E$4 -> 24,026 | V24: -5,322 | W24: =VLOOKUP(F24,Objectifs!D:L,9,0) -> 22,900 | X24: =(SUMIF(EMPRUNT_CTO!H:H,SUIVI_PDV!D24,EMPRUNT_CTO!N:N)) -> 0 | Y24: 0% | Z24: 22,900 | AA24: =W24*SUIVI_REGION!$E$4 -> 1,477 | AB24: -1,477 | AD24: =(SUMIF(EMPRUNT_ASV!D:D,E24,EMPRUNT_ASV!K:K)) -> 0 | AF24: 0 | AG24: =(SUMIFS(PILCOT_AVEN_DUR!P:P,PILCOT_AVEN_DUR!H:H,D24))-(SUMIFS('FAF AU 31 MAI'!D:D,'FAF AU 31 MAI'!A:A,D24)) -> 0 | AH24: =(SUMIFS(PILCOT_ALIZE!P:P,PILCOT_ALIZE!H:H,D24))-(SUMIFS('FAF AU 31 MAI'!E:E,'FAF AU 31 MAI'!A:A,D24)) -> 0 | AI24: =(SUMIFS(PILCOT_CORALIUM!P:P,PILCOT_CORALIUM!H:H,D24))-(SUMIFS('FAF AU 31 MAI'!C:C,'FAF AU 31 MAI'!A:A,D24)) -> 0 | AK24: 0 | AL24: =(SUMIF(GEDEL!F:F,E24,GEDEL!N:N)) -> 0 | AM24: =(SUMIF(GEDEL!F:F,E24,GEDEL!O:O)) -> 0
A25: 30 | B25: MARNE ARDENNES | C25: CHARLEVILLE MEZIERES | D25: 133 | E25: 151350000133 | F25: 8833 | G25: =VLOOKUP(F25,Objectifs!D:E,2,FALSE) -> VILLERS SEMEUSE CORA | I25: =VLOOKUP(F25,Objectifs!D:M,10,FALSE) -> 42,300 | J25: =(SUMIFS(SOURCE_PARTS_SOC!G:G,SOURCE_PARTS_SOC!E:E,F25)) -> 0 | K25: 0% | L25: =(SUMIFS(SOURCE_PARTS_SOC!H:H,SOURCE_PARTS_SOC!E:E,F25)) -> 0 | M25: 42,300 | N25: =I25*SUIVI_REGION!$E$4 -> 2,729 | O25: -2,729 | Q25: =VLOOKUP(F25,Objectifs!D:K,8,0) -> 183,100 | R25: =(SUMIF(EMPRUNT_ASV!D:D,SUIVI_PDV!E25,EMPRUNT_ASV!J:J)) -> 10,050 | S25: 5% | T25: 173,050 | U25: =Q25*SUIVI_REGION!$E$4 -> 11,813 | V25: -1,763 | W25: =VLOOKUP(F25,Objectifs!D:L,9,0) -> 11,300 | X25: =(SUMIF(EMPRUNT_CTO!H:H,SUIVI_PDV!D25,EMPRUNT_CTO!N:N)) -> 0 | Y25: 0% | Z25: 11,300 | AA25: =W25*SUIVI_REGION!$E$4 -> 729 | AB25: -729 | AD25: =(SUMIF(EMPRUNT_ASV!D:D,E25,EMPRUNT_ASV!K:K)) -> 0 | AF25: 0 | AG25: =(SUMIFS(PILCOT_AVEN_DUR!P:P,PILCOT_AVEN_DUR!H:H,D25))-(SUMIFS('FAF AU 31 MAI'!D:D,'FAF AU 31 MAI'!A:A,D25)) -> 0 | AH25: =(SUMIFS(PILCOT_ALIZE!P:P,PILCOT_ALIZE!H:H,D25))-(SUMIFS('FAF AU 31 MAI'!E:E,'FAF AU 31 MAI'!A:A,D25)) -> 0 | AI25: =(SUMIFS(PILCOT_CORALIUM!P:P,PILCOT_CORALIUM!H:H,D25))-(SUMIFS('FAF AU 31 MAI'!C:C,'FAF AU 31 MAI'!A:A,D25)) -> 0 | AK25: 0 | AL25: =(SUMIF(GEDEL!F:F,E25,GEDEL!N:N)) -> 0 | AM25: =(SUMIF(GEDEL!F:F,E25,GEDEL!O:O)) -> 0
A26: 30 | C26: Total Territoire CHARLEVILLE MEZIERES | I26: =SUBTOTAL(9,I14:I25) -> 816,300 | J26: =SUBTOTAL(9,J14:J25) -> 0 | K26: 0% | L26: =SUBTOTAL(9,L16:L25) -> 0 | M26: 816,300 | N26: =I26*SUIVI_REGION!$E$4 -> 52,665 | O26: -52,665 | Q26: =SUBTOTAL(9,Q14:Q25) -> 3,528,600 | R26: =SUBTOTAL(9,R14:R25) -> 366,199 | S26: 10% | T26: 3,162,401 | U26: =SUBTOTAL(9,U14:U25) -> 227,652 | V26: =SUBTOTAL(9,V14:V25) -> 138,548 | W26: =SUBTOTAL(9,W14:W25) -> 217,200 | X26: =SUBTOTAL(9,X14:X25) -> 0 | Y26: =IFERROR(X26/W26," ") -> 0% | Z26: =IF(X26>W26," ",W26-X26) -> 217,200 | AA26: =SUBTOTAL(9,AA14:AA25) -> 14,013 | AB26: =SUBTOTAL(9,AB14:AB25) -> -14,013 | AD26: =SUBTOTAL(9,AD14:AD25) -> 0 | AF26: =SUBTOTAL(9,AF14:AF25) -> 498 | AG26: =SUBTOTAL(9,AG14:AG25) -> 498 | AH26: 0 | AI26: 0 | AK26: =SUBTOTAL(9,AK14:AK25) -> 0 | AL26: =SUBTOTAL(9,AL14:AL25) -> 0 | AM26: 0
A27: 30 | B27: MARNE ARDENNES | C27: REIMS | D27: 318 | E27: =CONCATENATE(151350000,D27) -> 151350000318 | F27: 51318 | G27: =VLOOKUP(F27,Objectifs!D:E,2,FALSE) -> VERZY | I27: =VLOOKUP(F27,Objectifs!D:M,10,FALSE) -> 19,800 | J27: =(SUMIFS(SOURCE_PARTS_SOC!G:G,SOURCE_PARTS_SOC!E:E,F27)) -> 0 | K27: 0% | L27: =(SUMIFS(SOURCE_PARTS_SOC!H:H,SOURCE_PARTS_SOC!E:E,F27)) -> 0 | M27: 19,800 | N27: =I27*SUIVI_REGION!$E$4 -> 1,277 | O27: -1,277 | Q27: =VLOOKUP(F27,Objectifs!D:K,8,0) -> 85,400 | R27: =(SUMIF(EMPRUNT_ASV!D:D,SUIVI_PDV!E27,EMPRUNT_ASV!J:J)) -> 0 | S27: 0% | T27: 85,400 | U27: =Q27*SUIVI_REGION!$E$4 -> 5,510 | V27: =R27-U27 -> -5,510 | W27: =VLOOKUP(F27,Objectifs!D:L,9,0) -> 5,100 | X27: =(SUMIF(EMPRUNT_CTO!H:H,SUIVI_PDV!D27,EMPRUNT_CTO!N:N)) -> 0 | Y27: =IFERROR(X27/W27," ") -> 0% | Z27: =IF(X27>W27," ",W27-X27) -> 5,100 | AA27: =W27*SUIVI_REGION!$E$4 -> 329 | AB27: =X27-AA27 -> -329 | AD27: =(SUMIF(EMPRUNT_ASV!D:D,E27,EMPRUNT_ASV!K:K)) -> 0 | AF27: =AG27+AH27+AI27 -> 0 | AG27: =(SUMIFS(PILCOT_AVEN_DUR!P:P,PILCOT_AVEN_DUR!H:H,D27))-(SUMIFS('FAF AU 31 MAI'!D:D,'FAF AU 31 MAI'!A:A,D27)) -> 0 | AH27: =(SUMIFS(PILCOT_ALIZE!P:P,PILCOT_ALIZE!H:H,D27))-(SUMIFS('FAF AU 31 MAI'!E:E,'FAF AU 31 MAI'!A:A,D27)) -> 0 | AI27: =(SUMIFS(PILCOT_CORALIUM!P:P,PILCOT_CORALIUM!H:H,D27))-(SUMIFS('FAF AU 31 MAI'!C:C,'FAF AU 31 MAI'!A:A,D27)) -> 0 | AK27: =AL27+AM27 -> 0 | AL27: =(SUMIF(GEDEL!F:F,E27,GEDEL!N:N)) -> 0 | AM27: =(SUMIF(GEDEL!F:F,E27,GEDEL!O:O)) -> 0
A28: 30 | B28: MARNE ARDENNES | C28: REIMS | D28: 361 | E28: 151350000361 | F28: 51361 | G28: =VLOOKUP(F28,Objectifs!D:E,2,FALSE) -> PIERRY LECLERC | I28: =VLOOKUP(F28,Objectifs!D:M,10,FALSE) -> 37,400 | J28: =(SUMIFS(SOURCE_PARTS_SOC!G:G,SOURCE_PARTS_SOC!E:E,F28)) -> 0 | K28: 0% | L28: =(SUMIFS(SOURCE_PARTS_SOC!H:H,SOURCE_PARTS_SOC!E:E,F28)) -> 0 | M28: 37,400 | N28: =I28*SUIVI_REGION!$E$4 -> 2,413 | O28: -2,413 | Q28: =VLOOKUP(F28,Objectifs!D:K,8,0) -> 161,800 | R28: =(SUMIF(EMPRUNT_ASV!D:D,SUIVI_PDV!E28,EMPRUNT_ASV!J:J)) -> 0 | S28: 0% | T28: 161,800 | U28: =Q28*SUIVI_REGION!$E$4 -> 10,439 | V28: -10,439 | W28: =VLOOKUP(F28,Objectifs!D:L,9,0) -> 10,000 | X28: =(SUMIF(EMPRUNT_CTO!H:H,SUIVI_PDV!D28,EMPRUNT_CTO!N:N)) -> 0 | Y28: =IFERROR(X28/W28," ") -> 0% | Z28: =IF(X28>W28," ",W28-X28) -> 10,000 | AA28: =W28*SUIVI_REGION!$E$4 -> 645 | AB28: =X28-AA28 -> -645 | AD28: =(SUMIF(EMPRUNT_ASV!D:D,E28,EMPRUNT_ASV!K:K)) -> 0 | AF28: =AG28+AH28+AI28 -> 0 | AG28: =(SUMIFS(PILCOT_AVEN_DUR!P:P,PILCOT_AVEN_DUR!H:H,D28))-(SUMIFS('FAF AU 31 MAI'!D:D,'FAF AU 31 MAI'!A:A,D28)) -> 0 | AH28: =(SUMIFS(PILCOT_ALIZE!P:P,PILCOT_ALIZE!H:H,D28))-(SUMIFS('FAF AU 31 MAI'!E:E,'FAF AU 31 MAI'!A:A,D28)) -> 0 | AI28: =(SUMIFS(PILCOT_CORALIUM!P:P,PILCOT_CORALIUM!H:H,D28))-(SUMIFS('FAF AU 31 MAI'!C:C,'FAF AU 31 MAI'!A:A,D28)) -> 0 | AK28: =AL28+AM28 -> 0 | AL28: =(SUMIF(GEDEL!F:F,E28,GEDEL!N:N)) -> 0 | AM28: =(SUMIF(GEDEL!F:F,E28,GEDEL!O:O)) -> 0
A29: 30 | B29: MARNE ARDENNES | C29: REIMS | D29: 365 | E29: 151350000365 | F29: 51365 | G29: =VLOOKUP(F29,Objectifs!D:E,2,FALSE) -> DORMANS | I29: =VLOOKUP(F29,Objectifs!D:M,10,FALSE) -> 46,300 | J29: =(SUMIFS(SOURCE_PARTS_SOC!G:G,SOURCE_PARTS_SOC!E:E,F29)) -> 0 | K29: 0% | L29: =(SUMIFS(SOURCE_PARTS_SOC!H:H,SOURCE_PARTS_SOC!E:E,F29)) -> 0 | M29: 46,300 | N29: =I29*SUIVI_REGION!$E$4 -> 2,987 | O29: -2,987 | Q29: =VLOOKUP(F29,Objectifs!D:K,8,0) -> 199,900 | R29: =(SUMIF(EMPRUNT_ASV!D:D,SUIVI_PDV!E29,EMPRUNT_ASV!J:J)) -> 21,924 | S29: 11% | T29: 177,976 | U29: =Q29*SUIVI_REGION!$E$4 -> 12,897 | V29: 9,027 | W29: =VLOOKUP(F29,Objectifs!D:L,9,0) -> 12,300 | X29: =(SUMIF(EMPRUNT_CTO!H:H,SUIVI_PDV!D29,EMPRUNT_CTO!N:N)) -> 0 | Y29: 0% | Z29: 12,300 | AA29: =W29*SUIVI_REGION!$E$4 -> 794 | AB29: -794 | AD29: =(SUMIF(EMPRUNT_ASV!D:D,E29,EMPRUNT_ASV!K:K)) -> 0 | AF29: 0 | AG29: =(SUMIFS(PILCOT_AVEN_DUR!P:P,PILCOT_AVEN_DUR!H:H,D29))-(SUMIFS('FAF AU 31 MAI'!D:D,'FAF AU 31 MAI'!A:A,D29)) -> 0 | AH29: =(SUMIFS(PILCOT_ALIZE!P:P,PILCOT_ALIZE!H:H,D29))-(SUMIFS('FAF AU 31 MAI'!E:E,'FAF AU 31 MAI'!A:A,D29)) -> 0 | AI29: =(SUMIFS(PILCOT_CORALIUM!P:P,PILCOT_CORALIUM!H:H,D29))-(SUMIFS('FAF AU 31 MAI'!C:C,'FAF AU 31 MAI'!A:A,D29)) -> 0 | AK29: 0 | AL29: =(SUMIF(GEDEL!F:F,E29,GEDEL!N:N)) -> 0 | AM29: =(SUMIF(GEDEL!F:F,E29,GEDEL!O:O)) -> 0
A30: 30 | B30: MARNE ARDENNES | C30: REIMS | D30: 367 | E30: 151350000367 | F30: 51367 | G30: =VLOOKUP(F30,Objectifs!D:E,2,FALSE) -> AY CHAMPAGNE | I30: =VLOOKUP(F30,Objectifs!D:M,10,FALSE) -> 52,200 | J30: =(SUMIFS(SOURCE_PARTS_SOC!G:G,SOURCE_PARTS_SOC!E:E,F30)) -> 0 | K30: 0% | L30: =(SUMIFS(SOURCE_PARTS_SOC!H:H,SOURCE_PARTS_SOC!E:E,F30)) -> 0 | M30: 52,200 | N30: =I30*SUIVI_REGION!$E$4 -> 3,368 | O30: -3,368 | Q30: =VLOOKUP(F30,Objectifs!D:K,8,0) -> 225,500 | R30: =(SUMIF(EMPRUNT_ASV!D:D,SUIVI_PDV!E30,EMPRUNT_ASV!J:J)) -> 30,349 | S30: 13% | T30: 195,151 | U30: =Q30*SUIVI_REGION!$E$4 -> 14,548 | V30: 15,801 | W30: =VLOOKUP(F30,Objectifs!D:L,9,0) -> 13,900 | X30: =(SUMIF(EMPRUNT_CTO!H:H,SUIVI_PDV!D30,EMPRUNT_CTO!N:N)) -> 0 | Y30: 0% | Z30: 13,900 | AA30: =W30*SUIVI_REGION!$E$4 -> 897 | AB30: -897 | AD30: =(SUMIF(EMPRUNT_ASV!D:D,E30,EMPRUNT_ASV!K:K)) -> 0 | AF30: 0 | AG30: =(SUMIFS(PILCOT_AVEN_DUR!P:P,PILCOT_AVEN_DUR!H:H,D30))-(SUMIFS('FAF AU 31 MAI'!D:D,'FAF AU 31 MAI'!A:A,D30)) -> 0 | AH30: =(SUMIFS(PILCOT_ALIZE!P:P,PILCOT_ALIZE!H:H,D30))-(SUMIFS('FAF AU 31 MAI'!E:E,'FAF AU 31 MAI'!A:A,D30)) -> 0 | AI30: =(SUMIFS(PILCOT_CORALIUM!P:P,PILCOT_CORALIUM!H:H,D30))-(SUMIFS('FAF AU 31 MAI'!C:C,'FAF AU 31 MAI'!A:A,D30)) -> 0 | AK30: 0 | AL30: =(SUMIF(GEDEL!F:F,E30,GEDEL!N:N)) -> 0 | AM30: =(SUMIF(GEDEL!F:F,E30,GEDEL!O:O)) -> 0
A31: 30 | B31: MARNE ARDENNES | C31: REIMS | D31: 369 | E31: 151350000369 | F31: 51369 | G31: =VLOOKUP(F31,Objectifs!D:E,2,FALSE) -> DAMERY | I31: =VLOOKUP(F31,Objectifs!D:M,10,FALSE) -> 39,600 | J31: =(SUMIFS(SOURCE_PARTS_SOC!G:G,SOURCE_PARTS_SOC!E:E,F31)) -> 0 | K31: 0% | L31: =(SUMIFS(SOURCE_PARTS_SOC!H:H,SOURCE_PARTS_SOC!E:E,F31)) -> 0 | M31: 39,600 | N31: =I31*SUIVI_REGION!$E$4 -> 2,555 | O31: -2,555 | Q31: =VLOOKUP(F31,Objectifs!D:K,8,0) -> 170,900 | R31: =(SUMIF(EMPRUNT_ASV!D:D,SUIVI_PDV!E31,EMPRUNT_ASV!J:J)) -> 0 | S31: 0% | T31: 170,900 | U31: =Q31*SUIVI_REGION!$E$4 -> 11,026 | V31: -11,026 | W31: =VLOOKUP(F31,Objectifs!D:L,9,0) -> 10,500 | X31: =(SUMIF(EMPRUNT_CTO!H:H,SUIVI_PDV!D31,EMPRUNT_CTO!N:N)) -> 0 | Y31: 0% | Z31: 10,500 | AA31: =W31*SUIVI_REGION!$E$4 -> 677 | AB31: -677 | AD31: =(SUMIF(EMPRUNT_ASV!D:D,E31,EMPRUNT_ASV!K:K)) -> 0 | AF31: 0 | AG31: =(SUMIFS(PILCOT_AVEN_DUR!P:P,PILCOT_AVEN_DUR!H:H,D31))-(SUMIFS('FAF AU 31 MAI'!D:D,'FAF AU 31 MAI'!A:A,D31)) -> 0 | AH31: =(SUMIFS(PILCOT_ALIZE!P:P,PILCOT_ALIZE!H:H,D31))-(SUMIFS('FAF AU 31 MAI'!E:E,'FAF AU 31 MAI'!A:A,D31)) -> 0 | AI31: =(SUMIFS(PILCOT_CORALIUM!P:P,PILCOT_CORALIUM!H:H,D31))-(SUMIFS('FAF AU 31 MAI'!C:C,'FAF AU 31 MAI'!A:A,D31)) -> 0 | AK31: 0 | AL31: =(SUMIF(GEDEL!F:F,E31,GEDEL!N:N)) -> 0 | AM31: =(SUMIF(GEDEL!F:F,E31,GEDEL!O:O)) -> 0
A32: 30 | B32: MARNE ARDENNES | C32: REIMS | D32: 370 | E32: 151350000370 | F32: 51370 | G32: =VLOOKUP(F32,Objectifs!D:E,2,FALSE) -> EPERNAY | I32: =VLOOKUP(F32,Objectifs!D:M,10,FALSE) -> 182,700 | J32: =(SUMIFS(SOURCE_PARTS_SOC!G:G,SOURCE_PARTS_SOC!E:E,F32)) -> 0 | K32: 0% | L32: =(SUMIFS(SOURCE_PARTS_SOC!H:H,SOURCE_PARTS_SOC!E:E,F32)) -> 0 | M32: 182,700 | N32: =I32*SUIVI_REGION!$E$4 -> 11,787 | O32: -11,787 | Q32: =VLOOKUP(F32,Objectifs!D:K,8,0) -> 789,300 | R32: =(SUMIF(EMPRUNT_ASV!D:D,SUIVI_PDV!E32,EMPRUNT_ASV!J:J)) -> 277,775 | S32: 35% | T32: 511,525 | U32: =Q32*SUIVI_REGION!$E$4 -> 50,923 | V32: 226,852 | W32: =VLOOKUP(F32,Objectifs!D:L,9,0) -> 48,600 | X32: =(SUMIF(EMPRUNT_CTO!H:H,SUIVI_PDV!D32,EMPRUNT_CTO!N:N)) -> 0 | Y32: 0% | Z32: 48,600 | AA32: =W32*SUIVI_REGION!$E$4 -> 3,135 | AB32: -3,135 | AD32: =(SUMIF(EMPRUNT_ASV!D:D,E32,EMPRUNT_ASV!K:K)) -> 0 | AF32: 0 | AG32: =(SUMIFS(PILCOT_AVEN_DUR!P:P,PILCOT_AVEN_DUR!H:H,D32))-(SUMIFS('FAF AU 31 MAI'!D:D,'FAF AU 31 MAI'!A:A,D32)) -> 0 | AH32: =(SUMIFS(PILCOT_ALIZE!P:P,PILCOT_ALIZE!H:H,D32))-(SUMIFS('FAF AU 31 MAI'!E:E,'FAF AU 31 MAI'!A:A,D32)) -> 0 | AI32: =(SUMIFS(PILCOT_CORALIUM!P:P,PILCOT_CORALIUM!H:H,D32))-(SUMIFS('FAF AU 31 MAI'!C:C,'FAF AU 31 MAI'!A:A,D32)) -> 0 | AK32: 0 | AL32: =(SUMIF(GEDEL!F:F,E32,GEDEL!N:N)) -> 0 | AM32: =(SUMIF(GEDEL!F:F,E32,GEDEL!O:O)) -> 0
A33: 30 | B33: MARNE ARDENNES | C33: REIMS | D33: 310 | E33: 151350000310 | F33: 51310 | G33: =VLOOKUP(F33,Objectifs!D:E,2,FALSE) -> REIMS CHATILLONS | I33: =VLOOKUP(F33,Objectifs!D:M,10,FALSE) -> 80,700 | J33: =(SUMIFS(SOURCE_PARTS_SOC!G:G,SOURCE_PARTS_SOC!E:E,F33)) -> 0 | K33: 0% | L33: =(SUMIFS(SOURCE_PARTS_SOC!H:H,SOURCE_PARTS_SOC!E:E,F33)) -> 0 | M33: 80,700 | N33: =I33*SUIVI_REGION!$E$4 -> 5,206 | O33: -5,206 | Q33: =VLOOKUP(F33,Objectifs!D:K,8,0) -> 348,700 | R33: =(SUMIF(EMPRUNT_ASV!D:D,SUIVI_PDV!E33,EMPRUNT_ASV!J:J)) -> 13,000 | S33: 4% | T33: 335,700 | U33: =Q33*SUIVI_REGION!$E$4 -> 22,497 | V33: -9,497 | W33: =VLOOKUP(F33,Objectifs!D:L,9,0) -> 21,500 | X33: =(SUMIF(EMPRUNT_CTO!H:H,SUIVI_PDV!D33,EMPRUNT_CTO!N:N)) -> 0 | Y33: 0% | Z33: 21,500 | AA33: =W33*SUIVI_REGION!$E$4 -> 1,387 | AB33: -1,387 | AD33: =(SUMIF(EMPRUNT_ASV!D:D,E33,EMPRUNT_ASV!K:K)) -> 0 | AF33: 0 | AG33: =(SUMIFS(PILCOT_AVEN_DUR!P:P,PILCOT_AVEN_DUR!H:H,D33))-(SUMIFS('FAF AU 31 MAI'!D:D,'FAF AU 31 MAI'!A:A,D33)) -> 0 | AH33: =(SUMIFS(PILCOT_ALIZE!P:P,PILCOT_ALIZE!H:H,D33))-(SUMIFS('FAF AU 31 MAI'!E:E,'FAF AU 31 MAI'!A:A,D33)) -> 0 | AI33: =(SUMIFS(PILCOT_CORALIUM!P:P,PILCOT_CORALIUM!H:H,D33))-(SUMIFS('FAF AU 31 MAI'!C:C,'FAF AU 31 MAI'!A:A,D33)) -> 0 | AK33: 0 | AL33: =(SUMIF(GEDEL!F:F,E33,GEDEL!N:N)) -> 0 | AM33: =(SUMIF(GEDEL!F:F,E33,GEDEL!O:O)) -> 0
A34: 30 | B34: MARNE ARDENNES | C34: REIMS | D34: 349 | E34: 151350000349 | F34: 51349 | G34: =VLOOKUP(F34,Objectifs!D:E,2,FALSE) -> REIMS SAINT REMI | I34: =VLOOKUP(F34,Objectifs!D:M,10,FALSE) -> 54,200 | J34: =(SUMIFS(SOURCE_PARTS_SOC!G:G,SOURCE_PARTS_SOC!E:E,F34)) -> 0 | K34: 0% | L34: =(SUMIFS(SOURCE_PARTS_SOC!H:H,SOURCE_PARTS_SOC!E:E,F34)) -> 0 | M34: 54,200 | N34: =I34*SUIVI_REGION!$E$4 -> 3,497 | O34: -3,497 | Q34: =VLOOKUP(F34,Objectifs!D:K,8,0) -> 234,200 | R34: =(SUMIF(EMPRUNT_ASV!D:D,SUIVI_PDV!E34,EMPRUNT_ASV!J:J)) -> 32,075 | S34: 14% | T34: 202,125 | U34: =Q34*SUIVI_REGION!$E$4 -> 15,110 | V34: 16,965 | W34: =VLOOKUP(F34,Objectifs!D:L,9,0) -> 14,400 | X34: =(SUMIF(EMPRUNT_CTO!H:H,SUIVI_PDV!D34,EMPRUNT_CTO!N:N)) -> 0 | Y34: 0% | Z34: 14,400 | AA34: =W34*SUIVI_REGION!$E$4 -> 929 | AB34: -929 | AD34: =(SUMIF(EMPRUNT_ASV!D:D,E34,EMPRUNT_ASV!K:K)) -> 0 | AF34: 0 | AG34: =(SUMIFS(PILCOT_AVEN_DUR!P:P,PILCOT_AVEN_DUR!H:H,D34))-(SUMIFS('FAF AU 31 MAI'!D:D,'FAF AU 31 MAI'!A:A,D34)) -> 0 | AH34: =(SUMIFS(PILCOT_ALIZE!P:P,PILCOT_ALIZE!H:H,D34))-(SUMIFS('FAF AU 31 MAI'!E:E,'FAF AU 31 MAI'!A:A,D34)) -> 0 | AI34: =(SUMIFS(PILCOT_CORALIUM!P:P,PILCOT_CORALIUM!H:H,D34))-(SUMIFS('FAF AU 31 MAI'!C:C,'FAF AU 31 MAI'!A:A,D34)) -> 0 | AK34: 0 | AL34: =(SUMIF(GEDEL!F:F,E34,GEDEL!N:N)) -> 0 | AM34: =(SUMIF(GEDEL!F:F,E34,GEDEL!O:O)) -> 0
A35: 30 | B35: MARNE ARDENNES | C35: REIMS | D35: 350 | E35: 151350000350 | F35: 51350 | G35: =VLOOKUP(F35,Objectifs!D:E,2,FALSE) -> REIMS CENTRE VILLE | I35: =VLOOKUP(F35,Objectifs!D:M,10,FALSE) -> 149,400 | J35: =(SUMIFS(SOURCE_PARTS_SOC!G:G,SOURCE_PARTS_SOC!E:E,F35)) -> 0 | K35: 0% | L35: =(SUMIFS(SOURCE_PARTS_SOC!H:H,SOURCE_PARTS_SOC!E:E,F35)) -> 0 | M35: 149,400 | N35: =I35*SUIVI_REGION!$E$4 -> 9,639 | O35: -9,639 | Q35: =VLOOKUP(F35,Objectifs!D:K,8,0) -> 645,600 | R35: =(SUMIF(EMPRUNT_ASV!D:D,SUIVI_PDV!E35,EMPRUNT_ASV!J:J)) -> 108,000 | S35: 17% | T35: 537,600 | U35: =Q35*SUIVI_REGION!$E$4 -> 41,652 | V35: 66,348 | W35: =VLOOKUP(F35,Objectifs!D:L,9,0) -> 39,700 | X35: =(SUMIF(EMPRUNT_CTO!H:H,SUIVI_PDV!D35,EMPRUNT_CTO!N:N)) -> 0 | Y35: 0% | Z35: 39,700 | AA35: =W35*SUIVI_REGION!$E$4 -> 2,561 | AB35: -2,561 | AD35: =(SUMIF(EMPRUNT_ASV!D:D,E35,EMPRUNT_ASV!K:K)) -> 0 | AF35: 0 | AG35: =(SUMIFS(PILCOT_AVEN_DUR!P:P,PILCOT_AVEN_DUR!H:H,D35))-(SUMIFS('FAF AU 31 MAI'!D:D,'FAF AU 31 MAI'!A:A,D35)) -> 0 | AH35: =(SUMIFS(PILCOT_ALIZE!P:P,PILCOT_ALIZE!H:H,D35))-(SUMIFS('FAF AU 31 MAI'!E:E,'FAF AU 31 MAI'!A:A,D35)) -> 0 | AI35: =(SUMIFS(PILCOT_CORALIUM!P:P,PILCOT_CORALIUM!H:H,D35))-(SUMIFS('FAF AU 31 MAI'!C:C,'FAF AU 31 MAI'!A:A,D35)) -> 0 | AK35: 0 | AL35: =(SUMIF(GEDEL!F:F,E35,GEDEL!N:N)) -> 0 | AM35: =(SUMIF(GEDEL!F:F,E35,GEDEL!O:O)) -> 0
A36: 30 | B36: MARNE ARDENNES | C36: REIMS | D36: 301 | E36: 151350000301 | F36: 51301 | G36: =VLOOKUP(F36,Objectifs!D:E,2,FALSE) -> REIMS HOTEL DE VILLE | I36: =VLOOKUP(F36,Objectifs!D:M,10,FALSE) -> 143,700 | J36: =(SUMIFS(SOURCE_PARTS_SOC!G:G,SOURCE_PARTS_SOC!E:E,F36)) -> 0 | K36: 0% | L36: =(SUMIFS(SOURCE_PARTS_SOC!H:H,SOURCE_PARTS_SOC!E:E,F36)) -> 0 | M36: 143,700 | N36: =I36*SUIVI_REGION!$E$4 -> 9,271 | O36: -9,271 | Q36: =VLOOKUP(F36,Objectifs!D:K,8,0) -> 621,000 | R36: =(SUMIF(EMPRUNT_ASV!D:D,SUIVI_PDV!E36,EMPRUNT_ASV!J:J)) -> 62,000 | S36: 10% | T36: 559,000 | U36: =Q36*SUIVI_REGION!$E$4 -> 40,065 | V36: 21,935 | W36: =VLOOKUP(F36,Objectifs!D:L,9,0) -> 38,200 | X36: =(SUMIF(EMPRUNT_CTO!H:H,SUIVI_PDV!D36,EMPRUNT_CTO!N:N)) -> 0 | Y36: 0% | Z36: 38,200 | AA36: =W36*SUIVI_REGION!$E$4 -> 2,465 | AB36: -2,465 | AD36: =(SUMIF(EMPRUNT_ASV!D:D,E36,EMPRUNT_ASV!K:K)) -> 0 | AF36: 0 | AG36: =(SUMIFS(PILCOT_AVEN_DUR!P:P,PILCOT_AVEN_DUR!H:H,D36))-(SUMIFS('FAF AU 31 MAI'!D:D,'FAF AU 31 MAI'!A:A,D36)) -> 0 | AH36: =(SUMIFS(PILCOT_ALIZE!P:P,PILCOT_ALIZE!H:H,D36))-(SUMIFS('FAF AU 31 MAI'!E:E,'FAF AU 31 MAI'!A:A,D36)) -> 0 | AI36: =(SUMIFS(PILCOT_CORALIUM!P:P,PILCOT_CORALIUM!H:H,D36))-(SUMIFS('FAF AU 31 MAI'!C:C,'FAF AU 31 MAI'!A:A,D36)) -> 0 | AK36: 0 | AL36: =(SUMIF(GEDEL!F:F,E36,GEDEL!N:N)) -> 0 | AM36: =(SUMIF(GEDEL!F:F,E36,GEDEL!O:O)) -> 0
A37: 30 | B37: MARNE ARDENNES | C37: REIMS | D37: 341 | E37: 151350000341 | F37: 51341 | G37: =VLOOKUP(F37,Objectifs!D:E,2,FALSE) -> REIMS JEAN JAURES | I37: =VLOOKUP(F37,Objectifs!D:M,10,FALSE) -> 190,400 | J37: =(SUMIFS(SOURCE_PARTS_SOC!G:G,SOURCE_PARTS_SOC!E:E,F37)) -> 0 | K37: 0% | L37: =(SUMIFS(SOURCE_PARTS_SOC!H:H,SOURCE_PARTS_SOC!E:E,F37)) -> 0 | M37: 190,400 | N37: =I37*SUIVI_REGION!$E$4 -> 12,284 | O37: -12,284 | Q37: =VLOOKUP(F37,Objectifs!D:K,8,0) -> 822,500 | R37: =(SUMIF(EMPRUNT_ASV!D:D,SUIVI_PDV!E37,EMPRUNT_ASV!J:J)) -> 8,000 | S37: 1% | T37: 814,500 | U37: =Q37*SUIVI_REGION!$E$4 -> 53,065 | V37: -45,065 | W37: =VLOOKUP(F37,Objectifs!D:L,9,0) -> 50,600 | X37: =(SUMIF(EMPRUNT_CTO!H:H,SUIVI_PDV!D37,EMPRUNT_CTO!N:N)) -> 0 | Y37: 0% | Z37: 50,600 | AA37: =W37*SUIVI_REGION!$E$4 -> 3,265 | AB37: -3,265 | AD37: =(SUMIF(EMPRUNT_ASV!D:D,E37,EMPRUNT_ASV!K:K)) -> 0 | AF37: 0 | AG37: =(SUMIFS(PILCOT_AVEN_DUR!P:P,PILCOT_AVEN_DUR!H:H,D37))-(SUMIFS('FAF AU 31 MAI'!D:D,'FAF AU 31 MAI'!A:A,D37)) -> 0 | AH37: =(SUMIFS(PILCOT_ALIZE!P:P,PILCOT_ALIZE!H:H,D37))-(SUMIFS('FAF AU 31 MAI'!E:E,'FAF AU 31 MAI'!A:A,D37)) -> 0 | AI37: =(SUMIFS(PILCOT_CORALIUM!P:P,PILCOT_CORALIUM!H:H,D37))-(SUMIFS('FAF AU 31 MAI'!C:C,'FAF AU 31 MAI'!A:A,D37)) -> 0 | AK37: 0 | AL37: =(SUMIF(GEDEL!F:F,E37,GEDEL!N:N)) -> 0 | AM37: =(SUMIF(GEDEL!F:F,E37,GEDEL!O:O)) -> 0
A38: 30 | B38: MARNE ARDENNES | C38: REIMS | D38: 308 | E38: 151350000308 | F38: 51308 | G38: =VLOOKUP(F38,Objectifs!D:E,2,FALSE) -> REIMS SAINT THOMAS | I38: =VLOOKUP(F38,Objectifs!D:M,10,FALSE) -> 146,900 | J38: =(SUMIFS(SOURCE_PARTS_SOC!G:G,SOURCE_PARTS_SOC!E:E,F38)) -> 0 | K38: 0% | L38: =(SUMIFS(SOURCE_PARTS_SOC!H:H,SOURCE_PARTS_SOC!E:E,F38)) -> 0 | M38: 146,900 | N38: =I38*SUIVI_REGION!$E$4 -> 9,477 | O38: -9,477 | Q38: =VLOOKUP(F38,Objectifs!D:K,8,0) -> 635,000 | R38: =(SUMIF(EMPRUNT_ASV!D:D,SUIVI_PDV!E38,EMPRUNT_ASV!J:J)) -> 59,388 | S38: 9% | T38: 575,612 | U38: =Q38*SUIVI_REGION!$E$4 -> 40,968 | V38: 18,420 | W38: =VLOOKUP(F38,Objectifs!D:L,9,0) -> 39,100 | X38: =(SUMIF(EMPRUNT_CTO!H:H,SUIVI_PDV!D38,EMPRUNT_CTO!N:N)) -> 0 | Y38: 0% | Z38: 39,100 | AA38: =W38*SUIVI_REGION!$E$4 -> 2,523 | AB38: -2,523 | AD38: =(SUMIF(EMPRUNT_ASV!D:D,E38,EMPRUNT_ASV!K:K)) -> 0 | AF38: 0 | AG38: =(SUMIFS(PILCOT_AVEN_DUR!P:P,PILCOT_AVEN_DUR!H:H,D38))-(SUMIFS('FAF AU 31 MAI'!D:D,'FAF AU 31 MAI'!A:A,D38)) -> 0 | AH38: =(SUMIFS(PILCOT_ALIZE!P:P,PILCOT_ALIZE!H:H,D38))-(SUMIFS('FAF AU 31 MAI'!E:E,'FAF AU 31 MAI'!A:A,D38)) -> 0 | AI38: =(SUMIFS(PILCOT_CORALIUM!P:P,PILCOT_CORALIUM!H:H,D38))-(SUMIFS('FAF AU 31 MAI'!C:C,'FAF AU 31 MAI'!A:A,D38)) -> 0 | AK38: 0 | AL38: =(SUMIF(GEDEL!F:F,E38,GEDEL!N:N)) -> 0 | AM38: =(SUMIF(GEDEL!F:F,E38,GEDEL!O:O)) -> 0
A39: 30 | B39: MARNE ARDENNES | C39: REIMS | D39: 340 | E39: 151350000340 | F39: 51340 | G39: =VLOOKUP(F39,Objectifs!D:E,2,FALSE) -> BETHENY | I39: =VLOOKUP(F39,Objectifs!D:M,10,FALSE) -> 43,200 | J39: =(SUMIFS(SOURCE_PARTS_SOC!G:G,SOURCE_PARTS_SOC!E:E,F39)) -> 0 | K39: 0% | L39: =(SUMIFS(SOURCE_PARTS_SOC!H:H,SOURCE_PARTS_SOC!E:E,F39)) -> 0 | M39: 43,200 | N39: =I39*SUIVI_REGION!$E$4 -> 2,787 | O39: -2,787 | Q39: =VLOOKUP(F39,Objectifs!D:K,8,0) -> 187,000 | R39: =(SUMIF(EMPRUNT_ASV!D:D,SUIVI_PDV!E39,EMPRUNT_ASV!J:J)) -> 18,368 | S39: 10% | T39: 168,632 | U39: =Q39*SUIVI_REGION!$E$4 -> 12,065 | V39: 6,304 | W39: =VLOOKUP(F39,Objectifs!D:L,9,0) -> 11,500 | X39: =(SUMIF(EMPRUNT_CTO!H:H,SUIVI_PDV!D39,EMPRUNT_CTO!N:N)) -> 0 | Y39: 0% | Z39: 11,500 | AA39: =W39*SUIVI_REGION!$E$4 -> 742 | AB39: -742 | AD39: =(SUMIF(EMPRUNT_ASV!D:D,E39,EMPRUNT_ASV!K:K)) -> 0 | AF39: 0 | AG39: =(SUMIFS(PILCOT_AVEN_DUR!P:P,PILCOT_AVEN_DUR!H:H,D39))-(SUMIFS('FAF AU 31 MAI'!D:D,'FAF AU 31 MAI'!A:A,D39)) -> 0 | AH39: =(SUMIFS(PILCOT_ALIZE!P:P,PILCOT_ALIZE!H:H,D39))-(SUMIFS('FAF AU 31 MAI'!E:E,'FAF AU 31 MAI'!A:A,D39)) -> 0 | AI39: =(SUMIFS(PILCOT_CORALIUM!P:P,PILCOT_CORALIUM!H:H,D39))-(SUMIFS('FAF AU 31 MAI'!C:C,'FAF AU 31 MAI'!A:A,D39)) -> 0 | AK39: 0 | AL39: =(SUMIF(GEDEL!F:F,E39,GEDEL!N:N)) -> 0 | AM39: =(SUMIF(GEDEL!F:F,E39,GEDEL!O:O)) -> 0
A40: 30 | B40: MARNE ARDENNES | C40: REIMS | D40: 305 | E40: 151350000305 | F40: 51305 | G40: =VLOOKUP(F40,Objectifs!D:E,2,FALSE) -> REIMS HIPPODROME | I40: =VLOOKUP(F40,Objectifs!D:M,10,FALSE) -> 88,400 | J40: =(SUMIFS(SOURCE_PARTS_SOC!G:G,SOURCE_PARTS_SOC!E:E,F40)) -> 0 | K40: 0% | L40: =(SUMIFS(SOURCE_PARTS_SOC!H:H,SOURCE_PARTS_SOC!E:E,F40)) -> 0 | M40: 88,400 | N40: =I40*SUIVI_REGION!$E$4 -> 5,703 | O40: -5,703 | Q40: =VLOOKUP(F40,Objectifs!D:K,8,0) -> 382,300 | R40: =(SUMIF(EMPRUNT_ASV!D:D,SUIVI_PDV!E40,EMPRUNT_ASV!J:J)) -> 144,835 | S40: 38% | T40: 237,465 | U40: =Q40*SUIVI_REGION!$E$4 -> 24,665 | V40: 120,170 | W40: =VLOOKUP(F40,Objectifs!D:L,9,0) -> 23,500 | X40: =(SUMIF(EMPRUNT_CTO!H:H,SUIVI_PDV!D40,EMPRUNT_CTO!N:N)) -> 0 | Y40: 0% | Z40: 23,500 | AA40: =W40*SUIVI_REGION!$E$4 -> 1,516 | AB40: -1,516 | AD40: =(SUMIF(EMPRUNT_ASV!D:D,E40,EMPRUNT_ASV!K:K)) -> 0 | AF40: 0 | AG40: =(SUMIFS(PILCOT_AVEN_DUR!P:P,PILCOT_AVEN_DUR!H:H,D40))-(SUMIFS('FAF AU 31 MAI'!D:D,'FAF AU 31 MAI'!A:A,D40)) -> 0 | AH40: =(SUMIFS(PILCOT_ALIZE!P:P,PILCOT_ALIZE!H:H,D40))-(SUMIFS('FAF AU 31 MAI'!E:E,'FAF AU 31 MAI'!A:A,D40)) -> 0 | AI40: =(SUMIFS(PILCOT_CORALIUM!P:P,PILCOT_CORALIUM!H:H,D40))-(SUMIFS('FAF AU 31 MAI'!C:C,'FAF AU 31 MAI'!A:A,D40)) -> 0 | AK40: 0 | AL40: =(SUMIF(GEDEL!F:F,E40,GEDEL!N:N)) -> 0 | AM40: =(SUMIF(GEDEL!F:F,E40,GEDEL!O:O)) -> 0
A41: 30 | B41: MARNE ARDENNES | C41: REIMS | D41: 314 | E41: 151350000314 | F41: 51314 | G41: =VLOOKUP(F41,Objectifs!D:E,2,FALSE) -> FISMES | I41: =VLOOKUP(F41,Objectifs!D:M,10,FALSE) -> 44,200 | J41: =(SUMIFS(SOURCE_PARTS_SOC!G:G,SOURCE_PARTS_SOC!E:E,F41)) -> 0 | K41: 0% | L41: =(SUMIFS(SOURCE_PARTS_SOC!H:H,SOURCE_PARTS_SOC!E:E,F41)) -> 0 | M41: 44,200 | N41: =I41*SUIVI_REGION!$E$4 -> 2,852 | O41: -2,852 | Q41: =VLOOKUP(F41,Objectifs!D:K,8,0) -> 191,000 | R41: =(SUMIF(EMPRUNT_ASV!D:D,SUIVI_PDV!E41,EMPRUNT_ASV!J:J)) -> 20,000 | S41: 10% | T41: 171,000 | U41: =Q41*SUIVI_REGION!$E$4 -> 12,323 | V41: 7,677 | W41: =VLOOKUP(F41,Objectifs!D:L,9,0) -> 11,800 | X41: =(SUMIF(EMPRUNT_CTO!H:H,SUIVI_PDV!D41,EMPRUNT_CTO!N:N)) -> 0 | Y41: 0% | Z41: 11,800 | AA41: =W41*SUIVI_REGION!$E$4 -> 761 | AB41: -761 | AD41: =(SUMIF(EMPRUNT_ASV!D:D,E41,EMPRUNT_ASV!K:K)) -> 0 | AF41: 0 | AG41: =(SUMIFS(PILCOT_AVEN_DUR!P:P,PILCOT_AVEN_DUR!H:H,D41))-(SUMIFS('FAF AU 31 MAI'!D:D,'FAF AU 31 MAI'!A:A,D41)) -> 0 | AH41: =(SUMIFS(PILCOT_ALIZE!P:P,PILCOT_ALIZE!H:H,D41))-(SUMIFS('FAF AU 31 MAI'!E:E,'FAF AU 31 MAI'!A:A,D41)) -> 0 | AI41: =(SUMIFS(PILCOT_CORALIUM!P:P,PILCOT_CORALIUM!H:H,D41))-(SUMIFS('FAF AU 31 MAI'!C:C,'FAF AU 31 MAI'!A:A,D41)) -> 0 | AK41: 0 | AL41: =(SUMIF(GEDEL!F:F,E41,GEDEL!N:N)) -> 0 | AM41: =(SUMIF(GEDEL!F:F,E41,GEDEL!O:O)) -> 0
A42: 30 | B42: MARNE ARDENNES | C42: REIMS | D42: 336 | E42: 151350000336 | F42: 51336 | G42: =VLOOKUP(F42,Objectifs!D:E,2,FALSE) -> TINQUEUX | I42: =VLOOKUP(F42,Objectifs!D:M,10,FALSE) -> 113,600 | J42: =(SUMIFS(SOURCE_PARTS_SOC!G:G,SOURCE_PARTS_SOC!E:E,F42)) -> 0 | K42: 0% | L42: =(SUMIFS(SOURCE_PARTS_SOC!H:H,SOURCE_PARTS_SOC!E:E,F42)) -> 0 | M42: 113,600 | N42: =I42*SUIVI_REGION!$E$4 -> 7,329 | O42: -7,329 | Q42: =VLOOKUP(F42,Objectifs!D:K,8,0) -> 491,200 | R42: =(SUMIF(EMPRUNT_ASV!D:D,SUIVI_PDV!E42,EMPRUNT_ASV!J:J)) -> 0 | S42: 0% | T42: 491,200 | U42: =Q42*SUIVI_REGION!$E$4 -> 31,690 | V42: -31,690 | W42: =VLOOKUP(F42,Objectifs!D:L,9,0) -> 30,200 | X42: =(SUMIF(EMPRUNT_CTO!H:H,SUIVI_PDV!D42,EMPRUNT_CTO!N:N)) -> 0 | Y42: 0% | Z42: 30,200 | AA42: =W42*SUIVI_REGION!$E$4 -> 1,948 | AB42: -1,948 | AD42: =(SUMIF(EMPRUNT_ASV!D:D,E42,EMPRUNT_ASV!K:K)) -> 0 | AF42: 0 | AG42: =(SUMIFS(PILCOT_AVEN_DUR!P:P,PILCOT_AVEN_DUR!H:H,D42))-(SUMIFS('FAF AU 31 MAI'!D:D,'FAF AU 31 MAI'!A:A,D42)) -> 0 | AH42: =(SUMIFS(PILCOT_ALIZE!P:P,PILCOT_ALIZE!H:H,D42))-(SUMIFS('FAF AU 31 MAI'!E:E,'FAF AU 31 MAI'!A:A,D42)) -> 0 | AI42: =(SUMIFS(PILCOT_CORALIUM!P:P,PILCOT_CORALIUM!H:H,D42))-(SUMIFS('FAF AU 31 MAI'!C:C,'FAF AU 31 MAI'!A:A,D42)) -> 0 | AK42: 0 | AL42: =(SUMIF(GEDEL!F:F,E42,GEDEL!N:N)) -> 0 | AM42: =(SUMIF(GEDEL!F:F,E42,GEDEL!O:O)) -> 0
A43: 30 | C43: Total Territoire REIMS | I43: =SUBTOTAL(9,I27:I42) -> 1,432,700 | J43: =SUBTOTAL(9,J27:J42) -> 0 | K43: 0% | L43: =SUBTOTAL(9,L33:L42) -> 0 | M43: 1,432,700 | N43: =I43*SUIVI_REGION!$E$4 -> 92,432 | O43: -92,432 | Q43: =SUBTOTAL(9,Q27:Q42) -> 6,191,300 | R43: =SUBTOTAL(9,R27:R42) -> 795,714 | S43: 13% | T43: 5,395,586 | U43: =SUBTOTAL(9,U27:U42) -> 399,439 | V43: =SUBTOTAL(9,V27:V42) -> 396,276 | W43: =SUBTOTAL(9,W27:W42) -> 380,900 | X43: =SUBTOTAL(9,X27:X42) -> 0 | Y43: =IFERROR(X43/W43," ") -> 0% | Z43: =IF(X43>W43," ",W43-X43) -> 380,900 | AA43: =SUBTOTAL(9,AA27:AA42) -> 24,574 | AB43: =SUBTOTAL(9,AB27:AB42) -> -24,574 | AD43: =SUBTOTAL(9,AD27:AD42) -> 0 | AF43: =SUBTOTAL(9,AF27:AF42) -> 0 | AG43: =SUBTOTAL(9,AG27:AG42) -> 0 | AH43: 0 | AI43: 0 | AK43: =SUBTOTAL(9,AK27:AK42) -> 0 | AL43: =SUBTOTAL(9,AL27:AL42) -> 0 | AM43: 0
A44: 30 | B44: Total MARNE ARDENNES | I44: =SUBTOTAL(9,I3:I43) -> 3,008,000 | J44: =SUBTOTAL(9,J3:J43) -> 0 | K44: 0% | L44: =SUBTOTAL(9,L3:L43) -> 0 | M44: 3,008,000 | N44: =I44*SUIVI_REGION!$E$4 -> 194,065 | O44: -194,065 | Q44: =SUBTOTAL(9,Q3:Q43) -> 13,000,000 | R44: =SUBTOTAL(9,R3:R43) -> 1,673,663 | S44: 13% | T44: 11,326,337 | U44: =SUBTOTAL(9,U3:U43) -> 838,710 | V44: =SUBTOTAL(9,V3:V43) -> 834,954 | W44: =SUBTOTAL(9,W3:W43) -> 800,000 | X44: =SUBTOTAL(9,X3:X43) -> 0 | Y44: =IFERROR(X44/W44," ") -> 0% | Z44: =IF(X44>W44," ",W44-X44) -> 800,000 | AA44: =SUBTOTAL(9,AA3:AA43) -> 51,613 | AB44: =X44-AA44 -> -51,613 | AD44: =SUBTOTAL(9,AD3:AD43) -> 0 | AF44: =SUBTOTAL(9,AF3:AF43) -> 498 | AG44: =SUBTOTAL(9,AG3:AG43) -> 498 | AH44: 0 | AI44: 0 | AK44: =SUBTOTAL(9,AK3:AK43) -> 0 | AL44: =SUBTOTAL(9,AL3:AL43) -> 0 | AM44: 0
A45: 50 | B45: AUBE HAUTE MARNE | C45: CHAUMONT | D45: 466 | E45: =CONCATENATE(151350000,D45) -> 151350000466 | F45: 10566 | G45: =VLOOKUP(F45,Objectifs!D:E,2,FALSE) -> CHAUMONT HOTEL DE VILLE | I45: =VLOOKUP(F45,Objectifs!D:M,10,FALSE) -> 125,400 | J45: =(SUMIFS(SOURCE_PARTS_SOC!G:G,SOURCE_PARTS_SOC!E:E,F45)) -> 0 | K45: 0% | L45: =(SUMIFS(SOURCE_PARTS_SOC!H:H,SOURCE_PARTS_SOC!E:E,F45)) -> 0 | M45: 125,400 | N45: =I45*SUIVI_REGION!$E$4 -> 8,090 | O45: -8,090 | Q45: =VLOOKUP(F45,Objectifs!D:K,8,0) -> 541,900 | R45: =(SUMIF(EMPRUNT_ASV!D:D,SUIVI_PDV!E45,EMPRUNT_ASV!J:J)) -> 0 | S45: 0% | T45: 541,900 | U45: =Q45*SUIVI_REGION!$E$4 -> 34,961 | V45: =R45-U45 -> -34,961 | W45: =VLOOKUP(F45,Objectifs!D:L,9,0) -> 31,400 | X45: =(SUMIF(EMPRUNT_CTO!H:H,SUIVI_PDV!D45,EMPRUNT_CTO!N:N)) -> 0 | Y45: =IFERROR(X45/W45," ") -> 0% | Z45: =IF(X45>W45," ",W45-X45) -> 31,400 | AA45: =W45*SUIVI_REGION!$E$4 -> 2,026 | AB45: =X45-AA45 -> -2,026 | AD45: =(SUMIF(EMPRUNT_ASV!D:D,E45,EMPRUNT_ASV!K:K)) -> 0 | AF45: =AG45+AH45+AI45 -> 0 | AG45: =(SUMIFS(PILCOT_AVEN_DUR!P:P,PILCOT_AVEN_DUR!H:H,D45))-(SUMIFS('FAF AU 31 MAI'!D:D,'FAF AU 31 MAI'!A:A,D45)) -> 0 | AH45: =(SUMIFS(PILCOT_ALIZE!P:P,PILCOT_ALIZE!H:H,D45))-(SUMIFS('FAF AU 31 MAI'!E:E,'FAF AU 31 MAI'!A:A,D45)) -> 0 | AI45: =(SUMIFS(PILCOT_CORALIUM!P:P,PILCOT_CORALIUM!H:H,D45))-(SUMIFS('FAF AU 31 MAI'!C:C,'FAF AU 31 MAI'!A:A,D45)) -> 0 | AK45: =AL45+AM45 -> 0 | AL45: =(SUMIF(GEDEL!F:F,E45,GEDEL!N:N)) -> 0 | AM45: =(SUMIF(GEDEL!F:F,E45,GEDEL!O:O)) -> 0
A46: 50 | B46: AUBE HAUTE MARNE | C46: CHAUMONT | D46: 490 | E46: 151350000490 | F46: 10590 | G46: =VLOOKUP(F46,Objectifs!D:E,2,FALSE) -> CHAUMONT REPUBLIQUE | I46: =VLOOKUP(F46,Objectifs!D:M,10,FALSE) -> 45,500 | J46: =(SUMIFS(SOURCE_PARTS_SOC!G:G,SOURCE_PARTS_SOC!E:E,F46)) -> 0 | K46: 0% | L46: =(SUMIFS(SOURCE_PARTS_SOC!H:H,SOURCE_PARTS_SOC!E:E,F46)) -> 0 | M46: 45,500 | N46: =I46*SUIVI_REGION!$E$4 -> 2,935 | O46: -2,935 | Q46: =VLOOKUP(F46,Objectifs!D:K,8,0) -> 196,600 | R46: =(SUMIF(EMPRUNT_ASV!D:D,SUIVI_PDV!E46,EMPRUNT_ASV!J:J)) -> 0 | S46: 0% | T46: 196,600 | U46: =Q46*SUIVI_REGION!$E$4 -> 12,684 | V46: -12,684 | W46: =VLOOKUP(F46,Objectifs!D:L,9,0) -> 11,400 | X46: =(SUMIF(EMPRUNT_CTO!H:H,SUIVI_PDV!D46,EMPRUNT_CTO!N:N)) -> 0 | Y46: =IFERROR(X46/W46," ") -> 0% | Z46: =IF(X46>W46," ",W46-X46) -> 11,400 | AA46: =W46*SUIVI_REGION!$E$4 -> 735 | AB46: =X46-AA46 -> -735 | AD46: =(SUMIF(EMPRUNT_ASV!D:D,E46,EMPRUNT_ASV!K:K)) -> 0 | AF46: =AG46+AH46+AI46 -> 0 | AG46: =(SUMIFS(PILCOT_AVEN_DUR!P:P,PILCOT_AVEN_DUR!H:H,D46))-(SUMIFS('FAF AU 31 MAI'!D:D,'FAF AU 31 MAI'!A:A,D46)) -> 0 | AH46: =(SUMIFS(PILCOT_ALIZE!P:P,PILCOT_ALIZE!H:H,D46))-(SUMIFS('FAF AU 31 MAI'!E:E,'FAF AU 31 MAI'!A:A,D46)) -> 0 | AI46: =(SUMIFS(PILCOT_CORALIUM!P:P,PILCOT_CORALIUM!H:H,D46))-(SUMIFS('FAF AU 31 MAI'!C:C,'FAF AU 31 MAI'!A:A,D46)) -> 0 | AK46: =AL46+AM46 -> 0 | AL46: =(SUMIF(GEDEL!F:F,E46,GEDEL!N:N)) -> 0 | AM46: =(SUMIF(GEDEL!F:F,E46,GEDEL!O:O)) -> 0
A47: 50 | B47: AUBE HAUTE MARNE | C47: CHAUMONT | D47: 251 | E47: 151350000251 | F47: 51151 | G47: =VLOOKUP(F47,Objectifs!D:E,2,FALSE) -> WASSY | I47: =VLOOKUP(F47,Objectifs!D:M,10,FALSE) -> 29,700 | J47: =(SUMIFS(SOURCE_PARTS_SOC!G:G,SOURCE_PARTS_SOC!E:E,F47)) -> 0 | K47: 0% | L47: =(SUMIFS(SOURCE_PARTS_SOC!H:H,SOURCE_PARTS_SOC!E:E,F47)) -> 0 | M47: 29,700 | N47: =I47*SUIVI_REGION!$E$4 -> 1,916 | O47: -1,916 | Q47: =VLOOKUP(F47,Objectifs!D:K,8,0) -> 128,400 | R47: =(SUMIF(EMPRUNT_ASV!D:D,SUIVI_PDV!E47,EMPRUNT_ASV!J:J)) -> 0 | S47: 0% | T47: 128,400 | U47: =Q47*SUIVI_REGION!$E$4 -> 8,284 | V47: -8,284 | W47: =VLOOKUP(F47,Objectifs!D:L,9,0) -> 7,400 | X47: =(SUMIF(EMPRUNT_CTO!H:H,SUIVI_PDV!D47,EMPRUNT_CTO!N:N)) -> 0 | Y47: 0% | Z47: 7,400 | AA47: =W47*SUIVI_REGION!$E$4 -> 477 | AB47: -477 | AD47: =(SUMIF(EMPRUNT_ASV!D:D,E47,EMPRUNT_ASV!K:K)) -> 0 | AF47: 0 | AG47: =(SUMIFS(PILCOT_AVEN_DUR!P:P,PILCOT_AVEN_DUR!H:H,D47))-(SUMIFS('FAF AU 31 MAI'!D:D,'FAF AU 31 MAI'!A:A,D47)) -> 0 | AH47: =(SUMIFS(PILCOT_ALIZE!P:P,PILCOT_ALIZE!H:H,D47))-(SUMIFS('FAF AU 31 MAI'!E:E,'FAF AU 31 MAI'!A:A,D47)) -> 0 | AI47: =(SUMIFS(PILCOT_CORALIUM!P:P,PILCOT_CORALIUM!H:H,D47))-(SUMIFS('FAF AU 31 MAI'!C:C,'FAF AU 31 MAI'!A:A,D47)) -> 0 | AK47: 0 | AL47: =(SUMIF(GEDEL!F:F,E47,GEDEL!N:N)) -> 0 | AM47: =(SUMIF(GEDEL!F:F,E47,GEDEL!O:O)) -> 0
A48: 50 | B48: AUBE HAUTE MARNE | C48: CHAUMONT | D48: 254 | E48: 151350000254 | F48: 51154 | G48: =VLOOKUP(F48,Objectifs!D:E,2,FALSE) -> JOINVILLE | I48: =VLOOKUP(F48,Objectifs!D:M,10,FALSE) -> 27,000 | J48: =(SUMIFS(SOURCE_PARTS_SOC!G:G,SOURCE_PARTS_SOC!E:E,F48)) -> 0 | K48: 0% | L48: =(SUMIFS(SOURCE_PARTS_SOC!H:H,SOURCE_PARTS_SOC!E:E,F48)) -> 0 | M48: 27,000 | N48: =I48*SUIVI_REGION!$E$4 -> 1,742 | O48: -1,742 | Q48: =VLOOKUP(F48,Objectifs!D:K,8,0) -> 116,800 | R48: =(SUMIF(EMPRUNT_ASV!D:D,SUIVI_PDV!E48,EMPRUNT_ASV!J:J)) -> 7,500 | S48: 6% | T48: 109,300 | U48: =Q48*SUIVI_REGION!$E$4 -> 7,535 | V48: -35 | W48: =VLOOKUP(F48,Objectifs!D:L,9,0) -> 6,800 | X48: =(SUMIF(EMPRUNT_CTO!H:H,SUIVI_PDV!D48,EMPRUNT_CTO!N:N)) -> 0 | Y48: 0% | Z48: 6,800 | AA48: =W48*SUIVI_REGION!$E$4 -> 439 | AB48: -439 | AD48: =(SUMIF(EMPRUNT_ASV!D:D,E48,EMPRUNT_ASV!K:K)) -> 0 | AF48: 0 | AG48: =(SUMIFS(PILCOT_AVEN_DUR!P:P,PILCOT_AVEN_DUR!H:H,D48))-(SUMIFS('FAF AU 31 MAI'!D:D,'FAF AU 31 MAI'!A:A,D48)) -> 0 | AH48: =(SUMIFS(PILCOT_ALIZE!P:P,PILCOT_ALIZE!H:H,D48))-(SUMIFS('FAF AU 31 MAI'!E:E,'FAF AU 31 MAI'!A:A,D48)) -> 0 | AI48: =(SUMIFS(PILCOT_CORALIUM!P:P,PILCOT_CORALIUM!H:H,D48))-(SUMIFS('FAF AU 31 MAI'!C:C,'FAF AU 31 MAI'!A:A,D48)) -> 0 | AK48: 0 | AL48: =(SUMIF(GEDEL!F:F,E48,GEDEL!N:N)) -> 0 | AM48: =(SUMIF(GEDEL!F:F,E48,GEDEL!O:O)) -> 0
A49: 50 | B49: AUBE HAUTE MARNE | C49: CHAUMONT | D49: 441 | E49: 151350000441 | F49: 10541 | G49: =VLOOKUP(F49,Objectifs!D:E,2,FALSE) -> LANGRES | I49: =VLOOKUP(F49,Objectifs!D:M,10,FALSE) -> 69,100 | J49: =(SUMIFS(SOURCE_PARTS_SOC!G:G,SOURCE_PARTS_SOC!E:E,F49)) -> 0 | K49: 0% | L49: =(SUMIFS(SOURCE_PARTS_SOC!H:H,SOURCE_PARTS_SOC!E:E,F49)) -> 0 | M49: 69,100 | N49: =I49*SUIVI_REGION!$E$4 -> 4,458 | O49: -4,458 | Q49: =VLOOKUP(F49,Objectifs!D:K,8,0) -> 298,500 | R49: =(SUMIF(EMPRUNT_ASV!D:D,SUIVI_PDV!E49,EMPRUNT_ASV!J:J)) -> 0 | S49: 0% | T49: 298,500 | U49: =Q49*SUIVI_REGION!$E$4 -> 19,258 | V49: -19,258 | W49: =VLOOKUP(F49,Objectifs!D:L,9,0) -> 17,300 | X49: =(SUMIF(EMPRUNT_CTO!H:H,SUIVI_PDV!D49,EMPRUNT_CTO!N:N)) -> 0 | Y49: 0% | Z49: 17,300 | AA49: =W49*SUIVI_REGION!$E$4 -> 1,116 | AB49: -1,116 | AD49: =(SUMIF(EMPRUNT_ASV!D:D,E49,EMPRUNT_ASV!K:K)) -> 0 | AF49: 0 | AG49: =(SUMIFS(PILCOT_AVEN_DUR!P:P,PILCOT_AVEN_DUR!H:H,D49))-(SUMIFS('FAF AU 31 MAI'!D:D,'FAF AU 31 MAI'!A:A,D49)) -> 0 | AH49: =(SUMIFS(PILCOT_ALIZE!P:P,PILCOT_ALIZE!H:H,D49))-(SUMIFS('FAF AU 31 MAI'!E:E,'FAF AU 31 MAI'!A:A,D49)) -> 0 | AI49: =(SUMIFS(PILCOT_CORALIUM!P:P,PILCOT_CORALIUM!H:H,D49))-(SUMIFS('FAF AU 31 MAI'!C:C,'FAF AU 31 MAI'!A:A,D49)) -> 0 | AK49: 0 | AL49: =(SUMIF(GEDEL!F:F,E49,GEDEL!N:N)) -> 0 | AM49: =(SUMIF(GEDEL!F:F,E49,GEDEL!O:O)) -> 0
A50: 50 | B50: AUBE HAUTE MARNE | C50: CHAUMONT | D50: 458 | E50: 151350000458 | F50: 10558 | G50: =VLOOKUP(F50,Objectifs!D:E,2,FALSE) -> CHALINDREY | I50: =VLOOKUP(F50,Objectifs!D:M,10,FALSE) -> 30,600 | J50: =(SUMIFS(SOURCE_PARTS_SOC!G:G,SOURCE_PARTS_SOC!E:E,F50)) -> 0 | K50: 0% | L50: =(SUMIFS(SOURCE_PARTS_SOC!H:H,SOURCE_PARTS_SOC!E:E,F50)) -> 0 | M50: 30,600 | N50: =I50*SUIVI_REGION!$E$4 -> 1,974 | O50: -1,974 | Q50: =VLOOKUP(F50,Objectifs!D:K,8,0) -> 132,300 | R50: =(SUMIF(EMPRUNT_ASV!D:D,SUIVI_PDV!E50,EMPRUNT_ASV!J:J)) -> 0 | S50: 0% | T50: 132,300 | U50: =Q50*SUIVI_REGION!$E$4 -> 8,535 | V50: -8,535 | W50: =VLOOKUP(F50,Objectifs!D:L,9,0) -> 7,700 | X50: =(SUMIF(EMPRUNT_CTO!H:H,SUIVI_PDV!D50,EMPRUNT_CTO!N:N)) -> 0 | Y50: 0% | Z50: 7,700 | AA50: =W50*SUIVI_REGION!$E$4 -> 497 | AB50: -497 | AD50: =(SUMIF(EMPRUNT_ASV!D:D,E50,EMPRUNT_ASV!K:K)) -> 0 | AF50: 0 | AG50: =(SUMIFS(PILCOT_AVEN_DUR!P:P,PILCOT_AVEN_DUR!H:H,D50))-(SUMIFS('FAF AU 31 MAI'!D:D,'FAF AU 31 MAI'!A:A,D50)) -> 0 | AH50: =(SUMIFS(PILCOT_ALIZE!P:P,PILCOT_ALIZE!H:H,D50))-(SUMIFS('FAF AU 31 MAI'!E:E,'FAF AU 31 MAI'!A:A,D50)) -> 0 | AI50: =(SUMIFS(PILCOT_CORALIUM!P:P,PILCOT_CORALIUM!H:H,D50))-(SUMIFS('FAF AU 31 MAI'!C:C,'FAF AU 31 MAI'!A:A,D50)) -> 0 | AK50: 0 | AL50: =(SUMIF(GEDEL!F:F,E50,GEDEL!N:N)) -> 0 | AM50: =(SUMIF(GEDEL!F:F,E50,GEDEL!O:O)) -> 0
A51: 50 | B51: AUBE HAUTE MARNE | C51: CHAUMONT | D51: 460 | E51: 151350000460 | F51: 10560 | G51: =VLOOKUP(F51,Objectifs!D:E,2,FALSE) -> BOURBONNE LES BAINS | I51: =VLOOKUP(F51,Objectifs!D:M,10,FALSE) -> 30,600 | J51: =(SUMIFS(SOURCE_PARTS_SOC!G:G,SOURCE_PARTS_SOC!E:E,F51)) -> 0 | K51: 0% | L51: =(SUMIFS(SOURCE_PARTS_SOC!H:H,SOURCE_PARTS_SOC!E:E,F51)) -> 0 | M51: 30,600 | N51: =I51*SUIVI_REGION!$E$4 -> 1,974 | O51: -1,974 | Q51: =VLOOKUP(F51,Objectifs!D:K,8,0) -> 132,300 | R51: =(SUMIF(EMPRUNT_ASV!D:D,SUIVI_PDV!E51,EMPRUNT_ASV!J:J)) -> 0 | S51: 0% | T51: 132,300 | U51: =Q51*SUIVI_REGION!$E$4 -> 8,535 | V51: -8,535 | W51: =VLOOKUP(F51,Objectifs!D:L,9,0) -> 7,700 | X51: =(SUMIF(EMPRUNT_CTO!H:H,SUIVI_PDV!D51,EMPRUNT_CTO!N:N)) -> 0 | Y51: 0% | Z51: 7,700 | AA51: =W51*SUIVI_REGION!$E$4 -> 497 | AB51: -497 | AD51: =(SUMIF(EMPRUNT_ASV!D:D,E51,EMPRUNT_ASV!K:K)) -> 0 | AF51: 0 | AG51: =(SUMIFS(PILCOT_AVEN_DUR!P:P,PILCOT_AVEN_DUR!H:H,D51))-(SUMIFS('FAF AU 31 MAI'!D:D,'FAF AU 31 MAI'!A:A,D51)) -> 0 | AH51: =(SUMIFS(PILCOT_ALIZE!P:P,PILCOT_ALIZE!H:H,D51))-(SUMIFS('FAF AU 31 MAI'!E:E,'FAF AU 31 MAI'!A:A,D51)) -> 0 | AI51: =(SUMIFS(PILCOT_CORALIUM!P:P,PILCOT_CORALIUM!H:H,D51))-(SUMIFS('FAF AU 31 MAI'!C:C,'FAF AU 31 MAI'!A:A,D51)) -> 0 | AK51: 0 | AL51: =(SUMIF(GEDEL!F:F,E51,GEDEL!N:N)) -> 0 | AM51: =(SUMIF(GEDEL!F:F,E51,GEDEL!O:O)) -> 0
A52: 50 | B52: AUBE HAUTE MARNE | C52: CHAUMONT | D52: 482 | E52: 151350000482 | F52: 10582 | G52: =VLOOKUP(F52,Objectifs!D:E,2,FALSE) -> NOGENT | I52: =VLOOKUP(F52,Objectifs!D:M,10,FALSE) -> 22,100 | J52: =(SUMIFS(SOURCE_PARTS_SOC!G:G,SOURCE_PARTS_SOC!E:E,F52)) -> 0 | K52: 0% | L52: =(SUMIFS(SOURCE_PARTS_SOC!H:H,SOURCE_PARTS_SOC!E:E,F52)) -> 0 | M52: 22,100 | N52: =I52*SUIVI_REGION!$E$4 -> 1,426 | O52: -1,426 | Q52: =VLOOKUP(F52,Objectifs!D:K,8,0) -> 95,600 | R52: =(SUMIF(EMPRUNT_ASV!D:D,SUIVI_PDV!E52,EMPRUNT_ASV!J:J)) -> 0 | S52: 0% | T52: 95,600 | U52: =Q52*SUIVI_REGION!$E$4 -> 6,168 | V52: -6,168 | W52: =VLOOKUP(F52,Objectifs!D:L,9,0) -> 5,500 | X52: =(SUMIF(EMPRUNT_CTO!H:H,SUIVI_PDV!D52,EMPRUNT_CTO!N:N)) -> 0 | Y52: 0% | Z52: 5,500 | AA52: =W52*SUIVI_REGION!$E$4 -> 355 | AB52: -355 | AD52: =(SUMIF(EMPRUNT_ASV!D:D,E52,EMPRUNT_ASV!K:K)) -> 0 | AF52: 0 | AG52: =(SUMIFS(PILCOT_AVEN_DUR!P:P,PILCOT_AVEN_DUR!H:H,D52))-(SUMIFS('FAF AU 31 MAI'!D:D,'FAF AU 31 MAI'!A:A,D52)) -> 0 | AH52: =(SUMIFS(PILCOT_ALIZE!P:P,PILCOT_ALIZE!H:H,D52))-(SUMIFS('FAF AU 31 MAI'!E:E,'FAF AU 31 MAI'!A:A,D52)) -> 0 | AI52: =(SUMIFS(PILCOT_CORALIUM!P:P,PILCOT_CORALIUM!H:H,D52))-(SUMIFS('FAF AU 31 MAI'!C:C,'FAF AU 31 MAI'!A:A,D52)) -> 0 | AK52: 0 | AL52: =(SUMIF(GEDEL!F:F,E52,GEDEL!N:N)) -> 0 | AM52: =(SUMIF(GEDEL!F:F,E52,GEDEL!O:O)) -> 0
A53: 50 | B53: AUBE HAUTE MARNE | C53: CHAUMONT | D53: 256 | E53: 151350000256 | F53: 51156 | G53: =VLOOKUP(F53,Objectifs!D:E,2,FALSE) -> SAINT DIZIER CENTRE | I53: =VLOOKUP(F53,Objectifs!D:M,10,FALSE) -> 98,800 | J53: =(SUMIFS(SOURCE_PARTS_SOC!G:G,SOURCE_PARTS_SOC!E:E,F53)) -> 0 | K53: 0% | L53: =(SUMIFS(SOURCE_PARTS_SOC!H:H,SOURCE_PARTS_SOC!E:E,F53)) -> 0 | M53: 98,800 | N53: =I53*SUIVI_REGION!$E$4 -> 6,374 | O53: -6,374 | Q53: =VLOOKUP(F53,Objectifs!D:K,8,0) -> 426,900 | R53: =(SUMIF(EMPRUNT_ASV!D:D,SUIVI_PDV!E53,EMPRUNT_ASV!J:J)) -> 0 | S53: 0% | T53: 426,900 | U53: =Q53*SUIVI_REGION!$E$4 -> 27,542 | V53: -27,542 | W53: =VLOOKUP(F53,Objectifs!D:L,9,0) -> 24,700 | X53: =(SUMIF(EMPRUNT_CTO!H:H,SUIVI_PDV!D53,EMPRUNT_CTO!N:N)) -> 0 | Y53: 0% | Z53: 24,700 | AA53: =W53*SUIVI_REGION!$E$4 -> 1,594 | AB53: -1,594 | AD53: =(SUMIF(EMPRUNT_ASV!D:D,E53,EMPRUNT_ASV!K:K)) -> 0 | AF53: 0 | AG53: =(SUMIFS(PILCOT_AVEN_DUR!P:P,PILCOT_AVEN_DUR!H:H,D53))-(SUMIFS('FAF AU 31 MAI'!D:D,'FAF AU 31 MAI'!A:A,D53)) -> 0 | AH53: =(SUMIFS(PILCOT_ALIZE!P:P,PILCOT_ALIZE!H:H,D53))-(SUMIFS('FAF AU 31 MAI'!E:E,'FAF AU 31 MAI'!A:A,D53)) -> 0 | AI53: =(SUMIFS(PILCOT_CORALIUM!P:P,PILCOT_CORALIUM!H:H,D53))-(SUMIFS('FAF AU 31 MAI'!C:C,'FAF AU 31 MAI'!A:A,D53)) -> 0 | AK53: 0 | AL53: =(SUMIF(GEDEL!F:F,E53,GEDEL!N:N)) -> 0 | AM53: =(SUMIF(GEDEL!F:F,E53,GEDEL!O:O)) -> 0
A54: 50 | B54: AUBE HAUTE MARNE | C54: CHAUMONT | D54: 257 | E54: 151350000257 | F54: 51157 | G54: =VLOOKUP(F54,Objectifs!D:E,2,FALSE) -> SAINT DIZIER EUROPE | I54: =VLOOKUP(F54,Objectifs!D:M,10,FALSE) -> 40,600 | J54: =(SUMIFS(SOURCE_PARTS_SOC!G:G,SOURCE_PARTS_SOC!E:E,F54)) -> 0 | K54: 0% | L54: =(SUMIFS(SOURCE_PARTS_SOC!H:H,SOURCE_PARTS_SOC!E:E,F54)) -> 0 | M54: 40,600 | N54: =I54*SUIVI_REGION!$E$4 -> 2,619 | O54: -2,619 | Q54: =VLOOKUP(F54,Objectifs!D:K,8,0) -> 176,000 | R54: =(SUMIF(EMPRUNT_ASV!D:D,SUIVI_PDV!E54,EMPRUNT_ASV!J:J)) -> 0 | S54: 0% | T54: 176,000 | U54: =Q54*SUIVI_REGION!$E$4 -> 11,355 | V54: -11,355 | W54: =VLOOKUP(F54,Objectifs!D:L,9,0) -> 10,200 | X54: =(SUMIF(EMPRUNT_CTO!H:H,SUIVI_PDV!D54,EMPRUNT_CTO!N:N)) -> 0 | Y54: 0% | Z54: 10,200 | AA54: =W54*SUIVI_REGION!$E$4 -> 658 | AB54: -658 | AD54: =(SUMIF(EMPRUNT_ASV!D:D,E54,EMPRUNT_ASV!K:K)) -> 0 | AF54: 0 | AG54: =(SUMIFS(PILCOT_AVEN_DUR!P:P,PILCOT_AVEN_DUR!H:H,D54))-(SUMIFS('FAF AU 31 MAI'!D:D,'FAF AU 31 MAI'!A:A,D54)) -> 0 | AH54: =(SUMIFS(PILCOT_ALIZE!P:P,PILCOT_ALIZE!H:H,D54))-(SUMIFS('FAF AU 31 MAI'!E:E,'FAF AU 31 MAI'!A:A,D54)) -> 0 | AI54: =(SUMIFS(PILCOT_CORALIUM!P:P,PILCOT_CORALIUM!H:H,D54))-(SUMIFS('FAF AU 31 MAI'!C:C,'FAF AU 31 MAI'!A:A,D54)) -> 0 | AK54: 0 | AL54: =(SUMIF(GEDEL!F:F,E54,GEDEL!N:N)) -> 0 | AM54: =(SUMIF(GEDEL!F:F,E54,GEDEL!O:O)) -> 0
A55: 50 | C55: Total Territoire CHAUMONT | I55: =SUBTOTAL(9,I45:I54) -> 519,400 | J55: =SUBTOTAL(9,J45:J54) -> 0 | K55: 0% | L55: =SUBTOTAL(9,L45:L54) -> 0 | M55: 519,400 | N55: =I55*SUIVI_REGION!$E$4 -> 33,510 | O55: -33,510 | Q55: =SUBTOTAL(9,Q45:Q54) -> 2,245,300 | R55: =SUBTOTAL(9,R45:R54) -> 7,500 | S55: 0% | T55: 2,237,800 | U55: =SUBTOTAL(9,U45:U54) -> 144,858 | V55: =SUBTOTAL(9,V45:V54) -> -137,358 | W55: =SUBTOTAL(9,W45:W54) -> 130,100 | X55: =SUBTOTAL(9,X45:X54) -> 0 | Y55: =IFERROR(X55/W55," ") -> 0% | Z55: =IF(X55>W55," ",W55-X55) -> 130,100 | AA55: =SUBTOTAL(9,AA45:AA54) -> 8,394 | AB55: =SUBTOTAL(9,AB45:AB54) -> -8,394 | AD55: =SUBTOTAL(9,AD45:AD54) -> 0 | AF55: =SUBTOTAL(9,AF45:AF54) -> 0 | AG55: =SUBTOTAL(9,AG45:AG54) -> 0 | AH55: 0 | AI55: 0 | AK55: =SUBTOTAL(9,AK45:AK54) -> 0 | AL55: =SUBTOTAL(9,AL45:AL54) -> 0 | AM55: 0
A56: 50 | B56: AUBE HAUTE MARNE | C56: TROYES | D56: 450 | E56: =CONCATENATE(151350000,D56) -> 151350000450 | F56: 10550 | G56: =VLOOKUP(F56,Objectifs!D:E,2,FALSE) -> BAR SUR AUBE | I56: =VLOOKUP(F56,Objectifs!D:M,10,FALSE) -> 59,900 | J56: =(SUMIFS(SOURCE_PARTS_SOC!G:G,SOURCE_PARTS_SOC!E:E,F56)) -> 0 | K56: 0% | L56: =(SUMIFS(SOURCE_PARTS_SOC!H:H,SOURCE_PARTS_SOC!E:E,F56)) -> 0 | M56: 59,900 | N56: =I56*SUIVI_REGION!$E$4 -> 3,865 | O56: -3,865 | Q56: =VLOOKUP(F56,Objectifs!D:K,8,0) -> 258,700 | R56: =(SUMIF(EMPRUNT_ASV!D:D,SUIVI_PDV!E56,EMPRUNT_ASV!J:J)) -> 0 | S56: 0% | T56: 258,700 | U56: =Q56*SUIVI_REGION!$E$4 -> 16,690 | V56: =R56-U56 -> -16,690 | W56: =VLOOKUP(F56,Objectifs!D:L,9,0) -> 15,000 | X56: =(SUMIF(EMPRUNT_CTO!H:H,SUIVI_PDV!D56,EMPRUNT_CTO!N:N)) -> 0 | Y56: =IFERROR(X56/W56," ") -> 0% | Z56: =IF(X56>W56," ",W56-X56) -> 15,000 | AA56: =W56*SUIVI_REGION!$E$4 -> 968 | AB56: =X56-AA56 -> -968 | AD56: =(SUMIF(EMPRUNT_ASV!D:D,E56,EMPRUNT_ASV!K:K)) -> 0 | AF56: =AG56+AH56+AI56 -> 0 | AG56: =(SUMIFS(PILCOT_AVEN_DUR!P:P,PILCOT_AVEN_DUR!H:H,D56))-(SUMIFS('FAF AU 31 MAI'!D:D,'FAF AU 31 MAI'!A:A,D56)) -> 0 | AH56: =(SUMIFS(PILCOT_ALIZE!P:P,PILCOT_ALIZE!H:H,D56))-(SUMIFS('FAF AU 31 MAI'!E:E,'FAF AU 31 MAI'!A:A,D56)) -> 0 | AI56: =(SUMIFS(PILCOT_CORALIUM!P:P,PILCOT_CORALIUM!H:H,D56))-(SUMIFS('FAF AU 31 MAI'!C:C,'FAF AU 31 MAI'!A:A,D56)) -> 0 | AK56: =AL56+AM56 -> 0 | AL56: =(SUMIF(GEDEL!F:F,E56,GEDEL!N:N)) -> 0 | AM56: =(SUMIF(GEDEL!F:F,E56,GEDEL!O:O)) -> 0
A57: 50 | B57: AUBE HAUTE MARNE | C57: TROYES | D57: 451 | E57: 151350000451 | F57: 10551 | G57: =VLOOKUP(F57,Objectifs!D:E,2,FALSE) -> BRIENNE LE CHATEAU | I57: =VLOOKUP(F57,Objectifs!D:M,10,FALSE) -> 30,300 | J57: =(SUMIFS(SOURCE_PARTS_SOC!G:G,SOURCE_PARTS_SOC!E:E,F57)) -> 0 | K57: 0% | L57: =(SUMIFS(SOURCE_PARTS_SOC!H:H,SOURCE_PARTS_SOC!E:E,F57)) -> 0 | M57: 30,300 | N57: =I57*SUIVI_REGION!$E$4 -> 1,955 | O57: -1,955 | Q57: =VLOOKUP(F57,Objectifs!D:K,8,0) -> 131,000 | R57: =(SUMIF(EMPRUNT_ASV!D:D,SUIVI_PDV!E57,EMPRUNT_ASV!J:J)) -> 0 | S57: 0% | T57: 131,000 | U57: =Q57*SUIVI_REGION!$E$4 -> 8,452 | V57: -8,452 | W57: =VLOOKUP(F57,Objectifs!D:L,9,0) -> 7,600 | X57: =(SUMIF(EMPRUNT_CTO!H:H,SUIVI_PDV!D57,EMPRUNT_CTO!N:N)) -> 0 | Y57: =IFERROR(X57/W57," ") -> 0% | Z57: =IF(X57>W57," ",W57-X57) -> 7,600 | AA57: =W57*SUIVI_REGION!$E$4 -> 490 | AB57: =X57-AA57 -> -490 | AD57: =(SUMIF(EMPRUNT_ASV!D:D,E57,EMPRUNT_ASV!K:K)) -> 0 | AF57: =AG57+AH57+AI57 -> 0 | AG57: =(SUMIFS(PILCOT_AVEN_DUR!P:P,PILCOT_AVEN_DUR!H:H,D57))-(SUMIFS('FAF AU 31 MAI'!D:D,'FAF AU 31 MAI'!A:A,D57)) -> 0 | AH57: =(SUMIFS(PILCOT_ALIZE!P:P,PILCOT_ALIZE!H:H,D57))-(SUMIFS('FAF AU 31 MAI'!E:E,'FAF AU 31 MAI'!A:A,D57)) -> 0 | AI57: =(SUMIFS(PILCOT_CORALIUM!P:P,PILCOT_CORALIUM!H:H,D57))-(SUMIFS('FAF AU 31 MAI'!C:C,'FAF AU 31 MAI'!A:A,D57)) -> 0 | AK57: =AL57+AM57 -> 0 | AL57: =(SUMIF(GEDEL!F:F,E57,GEDEL!N:N)) -> 0 | AM57: =(SUMIF(GEDEL!F:F,E57,GEDEL!O:O)) -> 0
A58: 50 | B58: AUBE HAUTE MARNE | C58: TROYES | D58: 456 | E58: 151350000456 | F58: 10556 | G58: =VLOOKUP(F58,Objectifs!D:E,2,FALSE) -> BAR SUR SEINE | I58: =VLOOKUP(F58,Objectifs!D:M,10,FALSE) -> 65,300 | J58: =(SUMIFS(SOURCE_PARTS_SOC!G:G,SOURCE_PARTS_SOC!E:E,F58)) -> 0 | K58: 0% | L58: =(SUMIFS(SOURCE_PARTS_SOC!H:H,SOURCE_PARTS_SOC!E:E,F58)) -> 0 | M58: 65,300 | N58: =I58*SUIVI_REGION!$E$4 -> 4,213 | O58: -4,213 | Q58: =VLOOKUP(F58,Objectifs!D:K,8,0) -> 282,400 | R58: =(SUMIF(EMPRUNT_ASV!D:D,SUIVI_PDV!E58,EMPRUNT_ASV!J:J)) -> 0 | S58: 0% | T58: 282,400 | U58: =Q58*SUIVI_REGION!$E$4 -> 18,219 | V58: -18,219 | W58: =VLOOKUP(F58,Objectifs!D:L,9,0) -> 16,400 | X58: =(SUMIF(EMPRUNT_CTO!H:H,SUIVI_PDV!D58,EMPRUNT_CTO!N:N)) -> 0 | Y58: 0% | Z58: 16,400 | AA58: =W58*SUIVI_REGION!$E$4 -> 1,058 | AB58: -1,058 | AD58: =(SUMIF(EMPRUNT_ASV!D:D,E58,EMPRUNT_ASV!K:K)) -> 0 | AF58: 0 | AG58: =(SUMIFS(PILCOT_AVEN_DUR!P:P,PILCOT_AVEN_DUR!H:H,D58))-(SUMIFS('FAF AU 31 MAI'!D:D,'FAF AU 31 MAI'!A:A,D58)) -> 0 | AH58: =(SUMIFS(PILCOT_ALIZE!P:P,PILCOT_ALIZE!H:H,D58))-(SUMIFS('FAF AU 31 MAI'!E:E,'FAF AU 31 MAI'!A:A,D58)) -> 0 | AI58: =(SUMIFS(PILCOT_CORALIUM!P:P,PILCOT_CORALIUM!H:H,D58))-(SUMIFS('FAF AU 31 MAI'!C:C,'FAF AU 31 MAI'!A:A,D58)) -> 0 | AK58: 0 | AL58: =(SUMIF(GEDEL!F:F,E58,GEDEL!N:N)) -> 0 | AM58: =(SUMIF(GEDEL!F:F,E58,GEDEL!O:O)) -> 0
A59: 50 | B59: AUBE HAUTE MARNE | C59: TROYES | D59: 430 | E59: 151350000430 | F59: 10530 | G59: =VLOOKUP(F59,Objectifs!D:E,2,FALSE) -> ARCIS SUR AUBE | I59: =VLOOKUP(F59,Objectifs!D:M,10,FALSE) -> 63,100 | J59: =(SUMIFS(SOURCE_PARTS_SOC!G:G,SOURCE_PARTS_SOC!E:E,F59)) -> 0 | K59: 0% | L59: =(SUMIFS(SOURCE_PARTS_SOC!H:H,SOURCE_PARTS_SOC!E:E,F59)) -> 0 | M59: 63,100 | N59: =I59*SUIVI_REGION!$E$4 -> 4,071 | O59: -4,071 | Q59: =VLOOKUP(F59,Objectifs!D:K,8,0) -> 273,100 | R59: =(SUMIF(EMPRUNT_ASV!D:D,SUIVI_PDV!E59,EMPRUNT_ASV!J:J)) -> 49,000 | S59: 18% | T59: 224,100 | U59: =Q59*SUIVI_REGION!$E$4 -> 17,619 | V59: 31,381 | W59: =VLOOKUP(F59,Objectifs!D:L,9,0) -> 15,800 | X59: =(SUMIF(EMPRUNT_CTO!H:H,SUIVI_PDV!D59,EMPRUNT_CTO!N:N)) -> 0 | Y59: 0% | Z59: 15,800 | AA59: =W59*SUIVI_REGION!$E$4 -> 1,019 | AB59: -1,019 | AD59: =(SUMIF(EMPRUNT_ASV!D:D,E59,EMPRUNT_ASV!K:K)) -> 0 | AF59: 0 | AG59: =(SUMIFS(PILCOT_AVEN_DUR!P:P,PILCOT_AVEN_DUR!H:H,D59))-(SUMIFS('FAF AU 31 MAI'!D:D,'FAF AU 31 MAI'!A:A,D59)) -> 0 | AH59: =(SUMIFS(PILCOT_ALIZE!P:P,PILCOT_ALIZE!H:H,D59))-(SUMIFS('FAF AU 31 MAI'!E:E,'FAF AU 31 MAI'!A:A,D59)) -> 0 | AI59: =(SUMIFS(PILCOT_CORALIUM!P:P,PILCOT_CORALIUM!H:H,D59))-(SUMIFS('FAF AU 31 MAI'!C:C,'FAF AU 31 MAI'!A:A,D59)) -> 0 | AK59: 0 | AL59: =(SUMIF(GEDEL!F:F,E59,GEDEL!N:N)) -> 0 | AM59: =(SUMIF(GEDEL!F:F,E59,GEDEL!O:O)) -> 0
A60: 50 | B60: AUBE HAUTE MARNE | C60: TROYES | D60: 470 | E60: 151350000470 | F60: 10570 | G60: =VLOOKUP(F60,Objectifs!D:E,2,FALSE) -> NOGENT SUR SEINE | I60: =VLOOKUP(F60,Objectifs!D:M,10,FALSE) -> 80,600 | J60: =(SUMIFS(SOURCE_PARTS_SOC!G:G,SOURCE_PARTS_SOC!E:E,F60)) -> 0 | K60: 0% | L60: =(SUMIFS(SOURCE_PARTS_SOC!H:H,SOURCE_PARTS_SOC!E:E,F60)) -> 0 | M60: 80,600 | N60: =I60*SUIVI_REGION!$E$4 -> 5,200 | O60: -5,200 | Q60: =VLOOKUP(F60,Objectifs!D:K,8,0) -> 348,300 | R60: =(SUMIF(EMPRUNT_ASV!D:D,SUIVI_PDV!E60,EMPRUNT_ASV!J:J)) -> 0 | S60: 0% | T60: 348,300 | U60: =Q60*SUIVI_REGION!$E$4 -> 22,471 | V60: -22,471 | W60: =VLOOKUP(F60,Objectifs!D:L,9,0) -> 20,200 | X60: =(SUMIF(EMPRUNT_CTO!H:H,SUIVI_PDV!D60,EMPRUNT_CTO!N:N)) -> 0 | Y60: 0% | Z60: 20,200 | AA60: =W60*SUIVI_REGION!$E$4 -> 1,303 | AB60: -1,303 | AD60: =(SUMIF(EMPRUNT_ASV!D:D,E60,EMPRUNT_ASV!K:K)) -> 0 | AF60: 12,000 | AG60: =(SUMIFS(PILCOT_AVEN_DUR!P:P,PILCOT_AVEN_DUR!H:H,D60))-(SUMIFS('FAF AU 31 MAI'!D:D,'FAF AU 31 MAI'!A:A,D60)) -> 12,000 | AH60: =(SUMIFS(PILCOT_ALIZE!P:P,PILCOT_ALIZE!H:H,D60))-(SUMIFS('FAF AU 31 MAI'!E:E,'FAF AU 31 MAI'!A:A,D60)) -> 0 | AI60: =(SUMIFS(PILCOT_CORALIUM!P:P,PILCOT_CORALIUM!H:H,D60))-(SUMIFS('FAF AU 31 MAI'!C:C,'FAF AU 31 MAI'!A:A,D60)) -> 0 | AK60: 0 | AL60: =(SUMIF(GEDEL!F:F,E60,GEDEL!N:N)) -> 0 | AM60: =(SUMIF(GEDEL!F:F,E60,GEDEL!O:O)) -> 0
A61: 50 | B61: AUBE HAUTE MARNE | C61: TROYES | D61: 471 | E61: 151350000471 | F61: 10571 | G61: =VLOOKUP(F61,Objectifs!D:E,2,FALSE) -> ROMILLY SUR SEINE | I61: =VLOOKUP(F61,Objectifs!D:M,10,FALSE) -> 78,700 | J61: =(SUMIFS(SOURCE_PARTS_SOC!G:G,SOURCE_PARTS_SOC!E:E,F61)) -> 0 | K61: 0% | L61: =(SUMIFS(SOURCE_PARTS_SOC!H:H,SOURCE_PARTS_SOC!E:E,F61)) -> 0 | M61: 78,700 | N61: =I61*SUIVI_REGION!$E$4 -> 5,077 | O61: -5,077 | Q61: =VLOOKUP(F61,Objectifs!D:K,8,0) -> 340,300 | R61: =(SUMIF(EMPRUNT_ASV!D:D,SUIVI_PDV!E61,EMPRUNT_ASV!J:J)) -> 5,000 | S61: 1% | T61: 335,300 | U61: =Q61*SUIVI_REGION!$E$4 -> 21,955 | V61: -16,955 | W61: =VLOOKUP(F61,Objectifs!D:L,9,0) -> 19,700 | X61: =(SUMIF(EMPRUNT_CTO!H:H,SUIVI_PDV!D61,EMPRUNT_CTO!N:N)) -> 0 | Y61: 0% | Z61: 19,700 | AA61: =W61*SUIVI_REGION!$E$4 -> 1,271 | AB61: -1,271 | AD61: =(SUMIF(EMPRUNT_ASV!D:D,E61,EMPRUNT_ASV!K:K)) -> 0 | AF61: 13,400 | AG61: =(SUMIFS(PILCOT_AVEN_DUR!P:P,PILCOT_AVEN_DUR!H:H,D61))-(SUMIFS('FAF AU 31 MAI'!D:D,'FAF AU 31 MAI'!A:A,D61)) -> 13,400 | AH61: =(SUMIFS(PILCOT_ALIZE!P:P,PILCOT_ALIZE!H:H,D61))-(SUMIFS('FAF AU 31 MAI'!E:E,'FAF AU 31 MAI'!A:A,D61)) -> 0 | AI61: =(SUMIFS(PILCOT_CORALIUM!P:P,PILCOT_CORALIUM!H:H,D61))-(SUMIFS('FAF AU 31 MAI'!C:C,'FAF AU 31 MAI'!A:A,D61)) -> 0 | AK61: 0 | AL61: =(SUMIF(GEDEL!F:F,E61,GEDEL!N:N)) -> 0 | AM61: =(SUMIF(GEDEL!F:F,E61,GEDEL!O:O)) -> 0
A62: 50 | B62: AUBE HAUTE MARNE | C62: TROYES | D62: 420 | E62: 151350000420 | F62: 10520 | G62: =VLOOKUP(F62,Objectifs!D:E,2,FALSE) -> SAINT ANDRE LES VERGERS | I62: =VLOOKUP(F62,Objectifs!D:M,10,FALSE) -> 82,600 | J62: =(SUMIFS(SOURCE_PARTS_SOC!G:G,SOURCE_PARTS_SOC!E:E,F62)) -> 0 | K62: 0% | L62: =(SUMIFS(SOURCE_PARTS_SOC!H:H,SOURCE_PARTS_SOC!E:E,F62)) -> 0 | M62: 82,600 | N62: =I62*SUIVI_REGION!$E$4 -> 5,329 | O62: -5,329 | Q62: =VLOOKUP(F62,Objectifs!D:K,8,0) -> 357,400 | R62: =(SUMIF(EMPRUNT_ASV!D:D,SUIVI_PDV!E62,EMPRUNT_ASV!J:J)) -> 0 | S62: 0% | T62: 357,400 | U62: =Q62*SUIVI_REGION!$E$4 -> 23,058 | V62: -23,058 | W62: =VLOOKUP(F62,Objectifs!D:L,9,0) -> 20,700 | X62: =(SUMIF(EMPRUNT_CTO!H:H,SUIVI_PDV!D62,EMPRUNT_CTO!N:N)) -> 0 | Y62: 0% | Z62: 20,700 | AA62: =W62*SUIVI_REGION!$E$4 -> 1,335 | AB62: -1,335 | AD62: =(SUMIF(EMPRUNT_ASV!D:D,E62,EMPRUNT_ASV!K:K)) -> 0 | AF62: 0 | AG62: =(SUMIFS(PILCOT_AVEN_DUR!P:P,PILCOT_AVEN_DUR!H:H,D62))-(SUMIFS('FAF AU 31 MAI'!D:D,'FAF AU 31 MAI'!A:A,D62)) -> 0 | AH62: =(SUMIFS(PILCOT_ALIZE!P:P,PILCOT_ALIZE!H:H,D62))-(SUMIFS('FAF AU 31 MAI'!E:E,'FAF AU 31 MAI'!A:A,D62)) -> 0 | AI62: =(SUMIFS(PILCOT_CORALIUM!P:P,PILCOT_CORALIUM!H:H,D62))-(SUMIFS('FAF AU 31 MAI'!C:C,'FAF AU 31 MAI'!A:A,D62)) -> 0 | AK62: 0 | AL62: =(SUMIF(GEDEL!F:F,E62,GEDEL!N:N)) -> 0 | AM62: =(SUMIF(GEDEL!F:F,E62,GEDEL!O:O)) -> 0
A63: 50 | B63: AUBE HAUTE MARNE | C63: TROYES | D63: 424 | E63: 151350000424 | F63: 10524 | G63: =VLOOKUP(F63,Objectifs!D:E,2,FALSE) -> SAINT JULIEN LES VILLAS | I63: =VLOOKUP(F63,Objectifs!D:M,10,FALSE) -> 101,500 | J63: =(SUMIFS(SOURCE_PARTS_SOC!G:G,SOURCE_PARTS_SOC!E:E,F63)) -> 0 | K63: 0% | L63: =(SUMIFS(SOURCE_PARTS_SOC!H:H,SOURCE_PARTS_SOC!E:E,F63)) -> 0 | M63: 101,500 | N63: =I63*SUIVI_REGION!$E$4 -> 6,548 | O63: -6,548 | Q63: =VLOOKUP(F63,Objectifs!D:K,8,0) -> 438,700 | R63: =(SUMIF(EMPRUNT_ASV!D:D,SUIVI_PDV!E63,EMPRUNT_ASV!J:J)) -> 40,000 | S63: 9% | T63: 398,700 | U63: =Q63*SUIVI_REGION!$E$4 -> 28,303 | V63: 11,697 | W63: =VLOOKUP(F63,Objectifs!D:L,9,0) -> 25,400 | X63: =(SUMIF(EMPRUNT_CTO!H:H,SUIVI_PDV!D63,EMPRUNT_CTO!N:N)) -> 0 | Y63: 0% | Z63: 25,400 | AA63: =W63*SUIVI_REGION!$E$4 -> 1,639 | AB63: -1,639 | AD63: =(SUMIF(EMPRUNT_ASV!D:D,E63,EMPRUNT_ASV!K:K)) -> 0 | AF63: 10,000 | AG63: =(SUMIFS(PILCOT_AVEN_DUR!P:P,PILCOT_AVEN_DUR!H:H,D63))-(SUMIFS('FAF AU 31 MAI'!D:D,'FAF AU 31 MAI'!A:A,D63)) -> 10,000 | AH63: =(SUMIFS(PILCOT_ALIZE!P:P,PILCOT_ALIZE!H:H,D63))-(SUMIFS('FAF AU 31 MAI'!E:E,'FAF AU 31 MAI'!A:A,D63)) -> 0 | AI63: =(SUMIFS(PILCOT_CORALIUM!P:P,PILCOT_CORALIUM!H:H,D63))-(SUMIFS('FAF AU 31 MAI'!C:C,'FAF AU 31 MAI'!A:A,D63)) -> 0 | AK63: 0 | AL63: =(SUMIF(GEDEL!F:F,E63,GEDEL!N:N)) -> 0 | AM63: =(SUMIF(GEDEL!F:F,E63,GEDEL!O:O)) -> 0
A64: 50 | B64: AUBE HAUTE MARNE | C64: TROYES | D64: 421 | E64: 151350000421 | F64: 10521 | G64: =VLOOKUP(F64,Objectifs!D:E,2,FALSE) -> SAINTE SAVINE | I64: =VLOOKUP(F64,Objectifs!D:M,10,FALSE) -> 85,600 | J64: =(SUMIFS(SOURCE_PARTS_SOC!G:G,SOURCE_PARTS_SOC!E:E,F64)) -> 0 | K64: 0% | L64: =(SUMIFS(SOURCE_PARTS_SOC!H:H,SOURCE_PARTS_SOC!E:E,F64)) -> 0 | M64: 85,600 | N64: =I64*SUIVI_REGION!$E$4 -> 5,523 | O64: -5,523 | Q64: =VLOOKUP(F64,Objectifs!D:K,8,0) -> 370,000 | R64: =(SUMIF(EMPRUNT_ASV!D:D,SUIVI_PDV!E64,EMPRUNT_ASV!J:J)) -> 0 | S64: 0% | T64: 370,000 | U64: =Q64*SUIVI_REGION!$E$4 -> 23,871 | V64: -23,871 | W64: =VLOOKUP(F64,Objectifs!D:L,9,0) -> 21,400 | X64: =(SUMIF(EMPRUNT_CTO!H:H,SUIVI_PDV!D64,EMPRUNT_CTO!N:N)) -> 0 | Y64: 0% | Z64: 21,400 | AA64: =W64*SUIVI_REGION!$E$4 -> 1,381 | AB64: -1,381 | AD64: =(SUMIF(EMPRUNT_ASV!D:D,E64,EMPRUNT_ASV!K:K)) -> 0 | AF64: 0 | AG64: =(SUMIFS(PILCOT_AVEN_DUR!P:P,PILCOT_AVEN_DUR!H:H,D64))-(SUMIFS('FAF AU 31 MAI'!D:D,'FAF AU 31 MAI'!A:A,D64)) -> 0 | AH64: =(SUMIFS(PILCOT_ALIZE!P:P,PILCOT_ALIZE!H:H,D64))-(SUMIFS('FAF AU 31 MAI'!E:E,'FAF AU 31 MAI'!A:A,D64)) -> 0 | AI64: =(SUMIFS(PILCOT_CORALIUM!P:P,PILCOT_CORALIUM!H:H,D64))-(SUMIFS('FAF AU 31 MAI'!C:C,'FAF AU 31 MAI'!A:A,D64)) -> 0 | AK64: 0 | AL64: =(SUMIF(GEDEL!F:F,E64,GEDEL!N:N)) -> 0 | AM64: =(SUMIF(GEDEL!F:F,E64,GEDEL!O:O)) -> 0
A65: 50 | B65: AUBE HAUTE MARNE | C65: TROYES | D65: 483 | E65: 151350000483 | F65: 10583 | G65: =VLOOKUP(F65,Objectifs!D:E,2,FALSE) -> AIX EN OTHE | I65: =VLOOKUP(F65,Objectifs!D:M,10,FALSE) -> 27,700 | J65: =(SUMIFS(SOURCE_PARTS_SOC!G:G,SOURCE_PARTS_SOC!E:E,F65)) -> 0 | K65: 0% | L65: =(SUMIFS(SOURCE_PARTS_SOC!H:H,SOURCE_PARTS_SOC!E:E,F65)) -> 0 | M65: 27,700 | N65: =I65*SUIVI_REGION!$E$4 -> 1,787 | O65: -1,787 | Q65: =VLOOKUP(F65,Objectifs!D:K,8,0) -> 119,700 | R65: =(SUMIF(EMPRUNT_ASV!D:D,SUIVI_PDV!E65,EMPRUNT_ASV!J:J)) -> 0 | S65: 0% | T65: 119,700 | U65: =Q65*SUIVI_REGION!$E$4 -> 7,723 | V65: -7,723 | W65: =VLOOKUP(F65,Objectifs!D:L,9,0) -> 6,900 | X65: =(SUMIF(EMPRUNT_CTO!H:H,SUIVI_PDV!D65,EMPRUNT_CTO!N:N)) -> 0 | Y65: 0% | Z65: 6,900 | AA65: =W65*SUIVI_REGION!$E$4 -> 445 | AB65: -445 | AD65: =(SUMIF(EMPRUNT_ASV!D:D,E65,EMPRUNT_ASV!K:K)) -> 0 | AF65: 0 | AG65: =(SUMIFS(PILCOT_AVEN_DUR!P:P,PILCOT_AVEN_DUR!H:H,D65))-(SUMIFS('FAF AU 31 MAI'!D:D,'FAF AU 31 MAI'!A:A,D65)) -> 0 | AH65: =(SUMIFS(PILCOT_ALIZE!P:P,PILCOT_ALIZE!H:H,D65))-(SUMIFS('FAF AU 31 MAI'!E:E,'FAF AU 31 MAI'!A:A,D65)) -> 0 | AI65: =(SUMIFS(PILCOT_CORALIUM!P:P,PILCOT_CORALIUM!H:H,D65))-(SUMIFS('FAF AU 31 MAI'!C:C,'FAF AU 31 MAI'!A:A,D65)) -> 0 | AK65: 0 | AL65: =(SUMIF(GEDEL!F:F,E65,GEDEL!N:N)) -> 0 | AM65: =(SUMIF(GEDEL!F:F,E65,GEDEL!O:O)) -> 0
A66: 50 | B66: AUBE HAUTE MARNE | C66: TROYES | D66: 410 | E66: 151350000410 | F66: 10510 | G66: =VLOOKUP(F66,Objectifs!D:E,2,FALSE) -> TROYES GAMBETTA | I66: =VLOOKUP(F66,Objectifs!D:M,10,FALSE) -> 175,600 | J66: =(SUMIFS(SOURCE_PARTS_SOC!G:G,SOURCE_PARTS_SOC!E:E,F66)) -> 0 | K66: 0% | L66: =(SUMIFS(SOURCE_PARTS_SOC!H:H,SOURCE_PARTS_SOC!E:E,F66)) -> 0 | M66: 175,600 | N66: =I66*SUIVI_REGION!$E$4 -> 11,329 | O66: -11,329 | Q66: =VLOOKUP(F66,Objectifs!D:K,8,0) -> 759,700 | R66: =(SUMIF(EMPRUNT_ASV!D:D,SUIVI_PDV!E66,EMPRUNT_ASV!J:J)) -> 30,499 | S66: 4% | T66: 729,201 | U66: =Q66*SUIVI_REGION!$E$4 -> 49,013 | V66: -18,514 | W66: =VLOOKUP(F66,Objectifs!D:L,9,0) -> 44,300 | X66: =(SUMIF(EMPRUNT_CTO!H:H,SUIVI_PDV!D66,EMPRUNT_CTO!N:N)) -> 0 | Y66: 0% | Z66: 44,300 | AA66: =W66*SUIVI_REGION!$E$4 -> 2,858 | AB66: -2,858 | AD66: =(SUMIF(EMPRUNT_ASV!D:D,E66,EMPRUNT_ASV!K:K)) -> 0 | AF66: 0 | AG66: =(SUMIFS(PILCOT_AVEN_DUR!P:P,PILCOT_AVEN_DUR!H:H,D66))-(SUMIFS('FAF AU 31 MAI'!D:D,'FAF AU 31 MAI'!A:A,D66)) -> 0 | AH66: =(SUMIFS(PILCOT_ALIZE!P:P,PILCOT_ALIZE!H:H,D66))-(SUMIFS('FAF AU 31 MAI'!E:E,'FAF AU 31 MAI'!A:A,D66)) -> 0 | AI66: =(SUMIFS(PILCOT_CORALIUM!P:P,PILCOT_CORALIUM!H:H,D66))-(SUMIFS('FAF AU 31 MAI'!C:C,'FAF AU 31 MAI'!A:A,D66)) -> 0 | AK66: 0 | AL66: =(SUMIF(GEDEL!F:F,E66,GEDEL!N:N)) -> 0 | AM66: =(SUMIF(GEDEL!F:F,E66,GEDEL!O:O)) -> 0
A67: 50 | B67: AUBE HAUTE MARNE | C67: TROYES | D67: 413 | E67: 151350000413 | F67: 10513 | G67: =VLOOKUP(F67,Objectifs!D:E,2,FALSE) -> SAINT PARRES AUX TERTRES | I67: =VLOOKUP(F67,Objectifs!D:M,10,FALSE) -> 64,400 | J67: =(SUMIFS(SOURCE_PARTS_SOC!G:G,SOURCE_PARTS_SOC!E:E,F67)) -> 0 | K67: =IFERROR(J67/I67," ") -> 0% | L67: =(SUMIFS(SOURCE_PARTS_SOC!H:H,SOURCE_PARTS_SOC!E:E,F67)) -> 0 | M67: =IF(J67>I67," ",I67-J67) -> 64,400 | N67: =I67*SUIVI_REGION!$E$4 -> 4,155 | O67: =J67-N67 -> -4,155 | Q67: =VLOOKUP(F67,Objectifs!D:K,8,0) -> 278,200 | R67: =(SUMIF(EMPRUNT_ASV!D:D,SUIVI_PDV!E67,EMPRUNT_ASV!J:J)) -> 0 | S67: =IFERROR(R67/Q67," ") -> 0% | T67: =IF(R67>Q67," ",Q67-R67) -> 278,200 | U67: =Q67*SUIVI_REGION!$E$4 -> 17,948 | V67: -17,948 | W67: =VLOOKUP(F67,Objectifs!D:L,9,0) -> 16,100 | X67: =(SUMIF(EMPRUNT_CTO!H:H,SUIVI_PDV!D67,EMPRUNT_CTO!N:N)) -> 0 | Y67: 0% | Z67: 16,100 | AA67: =W67*SUIVI_REGION!$E$4 -> 1,039 | AB67: -1,039 | AD67: =(SUMIF(EMPRUNT_ASV!D:D,E67,EMPRUNT_ASV!K:K)) -> 0 | AF67: 0 | AG67: =(SUMIFS(PILCOT_AVEN_DUR!P:P,PILCOT_AVEN_DUR!H:H,D67))-(SUMIFS('FAF AU 31 MAI'!D:D,'FAF AU 31 MAI'!A:A,D67)) -> 0 | AH67: =(SUMIFS(PILCOT_ALIZE!P:P,PILCOT_ALIZE!H:H,D67))-(SUMIFS('FAF AU 31 MAI'!E:E,'FAF AU 31 MAI'!A:A,D67)) -> 0 | AI67: =(SUMIFS(PILCOT_CORALIUM!P:P,PILCOT_CORALIUM!H:H,D67))-(SUMIFS('FAF AU 31 MAI'!C:C,'FAF AU 31 MAI'!A:A,D67)) -> 0 | AK67: 0 | AL67: =(SUMIF(GEDEL!F:F,E67,GEDEL!N:N)) -> 0 | AM67: =(SUMIF(GEDEL!F:F,E67,GEDEL!O:O)) -> 0
A68: 50 | B68: AUBE HAUTE MARNE | C68: TROYES | D68: 423 | E68: 151350000423 | F68: 10523 | G68: =VLOOKUP(F68,Objectifs!D:E,2,FALSE) -> LA CHAPELLE ST LUC | I68: =VLOOKUP(F68,Objectifs!D:M,10,FALSE) -> 54,700 | J68: =(SUMIFS(SOURCE_PARTS_SOC!G:G,SOURCE_PARTS_SOC!E:E,F68)) -> 0 | K68: 0% | L68: =(SUMIFS(SOURCE_PARTS_SOC!H:H,SOURCE_PARTS_SOC!E:E,F68)) -> 0 | M68: 54,700 | N68: =I68*SUIVI_REGION!$E$4 -> 3,529 | O68: -3,529 | Q68: =VLOOKUP(F68,Objectifs!D:K,8,0) -> 236,300 | R68: =(SUMIF(EMPRUNT_ASV!D:D,SUIVI_PDV!E68,EMPRUNT_ASV!J:J)) -> 0 | S68: 0% | T68: 236,300 | U68: =Q68*SUIVI_REGION!$E$4 -> 15,245 | V68: -15,245 | W68: =VLOOKUP(F68,Objectifs!D:L,9,0) -> 13,700 | X68: =(SUMIF(EMPRUNT_CTO!H:H,SUIVI_PDV!D68,EMPRUNT_CTO!N:N)) -> 0 | Y68: 0% | Z68: 13,700 | AA68: =W68*SUIVI_REGION!$E$4 -> 884 | AB68: -884 | AD68: =(SUMIF(EMPRUNT_ASV!D:D,E68,EMPRUNT_ASV!K:K)) -> 0 | AF68: 0 | AG68: =(SUMIFS(PILCOT_AVEN_DUR!P:P,PILCOT_AVEN_DUR!H:H,D68))-(SUMIFS('FAF AU 31 MAI'!D:D,'FAF AU 31 MAI'!A:A,D68)) -> 0 | AH68: =(SUMIFS(PILCOT_ALIZE!P:P,PILCOT_ALIZE!H:H,D68))-(SUMIFS('FAF AU 31 MAI'!E:E,'FAF AU 31 MAI'!A:A,D68)) -> 0 | AI68: =(SUMIFS(PILCOT_CORALIUM!P:P,PILCOT_CORALIUM!H:H,D68))-(SUMIFS('FAF AU 31 MAI'!C:C,'FAF AU 31 MAI'!A:A,D68)) -> 0 | AK68: 0 | AL68: =(SUMIF(GEDEL!F:F,E68,GEDEL!N:N)) -> 0 | AM68: =(SUMIF(GEDEL!F:F,E68,GEDEL!O:O)) -> 0
A69: 50 | B69: AUBE HAUTE MARNE | C69: TROYES | D69: 412 | E69: 151350000412 | F69: 10512 | G69: =VLOOKUP(F69,Objectifs!D:E,2,FALSE) -> TROYES ZOLA | I69: =VLOOKUP(F69,Objectifs!D:M,10,FALSE) -> 106,600 | J69: =(SUMIFS(SOURCE_PARTS_SOC!G:G,SOURCE_PARTS_SOC!E:E,F69)) -> 0 | K69: 0% | L69: =(SUMIFS(SOURCE_PARTS_SOC!H:H,SOURCE_PARTS_SOC!E:E,F69)) -> 0 | M69: 106,600 | N69: =I69*SUIVI_REGION!$E$4 -> 6,877 | O69: -6,877 | Q69: =VLOOKUP(F69,Objectifs!D:K,8,0) -> 460,900 | R69: =(SUMIF(EMPRUNT_ASV!D:D,SUIVI_PDV!E69,EMPRUNT_ASV!J:J)) -> 0 | S69: 0% | T69: 460,900 | U69: =Q69*SUIVI_REGION!$E$4 -> 29,735 | V69: -29,735 | W69: =VLOOKUP(F69,Objectifs!D:L,9,0) -> 26,700 | X69: =(SUMIF(EMPRUNT_CTO!H:H,SUIVI_PDV!D69,EMPRUNT_CTO!N:N)) -> 0 | Y69: 0% | Z69: 26,700 | AA69: =W69*SUIVI_REGION!$E$4 -> 1,723 | AB69: -1,723 | AD69: =(SUMIF(EMPRUNT_ASV!D:D,E69,EMPRUNT_ASV!K:K)) -> 0 | AF69: 0 | AG69: =(SUMIFS(PILCOT_AVEN_DUR!P:P,PILCOT_AVEN_DUR!H:H,D69))-(SUMIFS('FAF AU 31 MAI'!D:D,'FAF AU 31 MAI'!A:A,D69)) -> 0 | AH69: =(SUMIFS(PILCOT_ALIZE!P:P,PILCOT_ALIZE!H:H,D69))-(SUMIFS('FAF AU 31 MAI'!E:E,'FAF AU 31 MAI'!A:A,D69)) -> 0 | AI69: =(SUMIFS(PILCOT_CORALIUM!P:P,PILCOT_CORALIUM!H:H,D69))-(SUMIFS('FAF AU 31 MAI'!C:C,'FAF AU 31 MAI'!A:A,D69)) -> 0 | AK69: 0 | AL69: =(SUMIF(GEDEL!F:F,E69,GEDEL!N:N)) -> 0 | AM69: =(SUMIF(GEDEL!F:F,E69,GEDEL!O:O)) -> 0
A70: 50 | C70: Total Territoire TROYES | I70: =SUBTOTAL(9,I56:I69) -> 1,076,600 | J70: =SUBTOTAL(9,J56:J69) -> 0 | K70: 0% | L70: =SUBTOTAL(9,L60:L69) -> 0 | M70: 1,076,600 | N70: =I70*SUIVI_REGION!$E$4 -> 69,458 | O70: -69,458 | Q70: =SUBTOTAL(9,Q56:Q69) -> 4,654,700 | R70: =SUBTOTAL(9,R56:R69) -> 124,499 | S70: 3% | T70: 4,530,201 | U70: =SUBTOTAL(9,U56:U69) -> 300,303 | V70: =SUBTOTAL(9,V56:V69) -> -175,804 | W70: =SUBTOTAL(9,W56:W69) -> 269,900 | X70: =SUBTOTAL(9,X56:X69) -> 0 | Y70: =IFERROR(X70/W70," ") -> 0% | Z70: =IF(X70>W70," ",W70-X70) -> 269,900 | AA70: =SUBTOTAL(9,AA56:AA69) -> 17,413 | AB70: =SUBTOTAL(9,AB56:AB69) -> -17,413 | AD70: =SUBTOTAL(9,AD56:AD69) -> 0 | AF70: =SUBTOTAL(9,AF56:AF69) -> 35,400 | AG70: =SUBTOTAL(9,AG56:AG69) -> 35,400 | AH70: 0 | AI70: 0 | AK70: =SUBTOTAL(9,AK56:AK69) -> 0 | AL70: =SUBTOTAL(9,AL56:AL69) -> 0 | AM70: =SUBTOTAL(9,AM56:AM69) -> 0
A71: 50 | B71: Total AUBE HAUTE MARNE | I71: =SUBTOTAL(9,I45:I70) -> 1,596,000 | J71: =SUBTOTAL(9,J45:J70) -> 0 | K71: 0% | L71: =SUBTOTAL(9,L45:L70) -> 0 | M71: 1,596,000 | N71: =I71*SUIVI_REGION!$E$4 -> 102,968 | O71: -102,968 | Q71: =SUBTOTAL(9,Q45:Q70) -> 6,900,000 | R71: =SUBTOTAL(9,R45:R70) -> 131,999 | S71: 2% | T71: 6,768,001 | U71: =SUBTOTAL(9,U45:U70) -> 445,161 | V71: =SUBTOTAL(9,V45:V70) -> -313,162 | W71: =SUBTOTAL(9,W45:W70) -> 400,000 | X71: =SUBTOTAL(9,X45:X70) -> 0 | Y71: =IFERROR(X71/W71," ") -> 0% | Z71: =IF(X71>W71," ",W71-X71) -> 400,000 | AA71: =SUBTOTAL(9,AA45:AA70) -> 25,806 | AB71: =X71-AA71 -> -25,806 | AD71: =SUBTOTAL(9,AD45:AD70) -> 0 | AF71: =SUBTOTAL(9,AF45:AF70) -> 35,400 | AG71: =SUBTOTAL(9,AG45:AG70) -> 35,400 | AH71: 0 | AI71: 0 | AK71: =SUBTOTAL(9,AK45:AK70) -> 0 | AL71: =SUBTOTAL(9,AL45:AL70) -> 0 | AM71: =SUBTOTAL(9,AM45:AM70) -> 0
A72: 80 | B72: VOSGES | C72: EPINAL | D72: 523 | E72: =CONCATENATE(151350000,D72) -> 151350000523 | F72: 88201 | G72: =VLOOKUP(F72,Objectifs!D:E,2,FALSE) -> CHANTRAINE | I72: =VLOOKUP(F72,Objectifs!D:M,10,FALSE) -> 67,700 | J72: =(SUMIFS(SOURCE_PARTS_SOC!G:G,SOURCE_PARTS_SOC!E:E,F72)) -> 0 | K72: 0% | L72: =(SUMIFS(SOURCE_PARTS_SOC!H:H,SOURCE_PARTS_SOC!E:E,F72)) -> 0 | M72: 67,700 | N72: =I72*SUIVI_REGION!$E$4 -> 4,368 | O72: -4,368 | Q72: =VLOOKUP(F72,Objectifs!D:K,8,0) -> 292,300 | R72: =(SUMIF(EMPRUNT_ASV!D:D,SUIVI_PDV!E72,EMPRUNT_ASV!J:J)) -> 0 | S72: 0% | T72: 292,300 | U72: =Q72*SUIVI_REGION!$E$4 -> 18,858 | V72: =R72-U72 -> -18,858 | W72: =VLOOKUP(F72,Objectifs!D:L,9,0) -> 19,700 | X72: =(SUMIF(EMPRUNT_CTO!H:H,SUIVI_PDV!D72,EMPRUNT_CTO!N:N)) -> 0 | Y72: =IFERROR(X72/W72," ") -> 0% | Z72: =IF(X72>W72," ",W72-X72) -> 19,700 | AA72: =W72*SUIVI_REGION!$E$4 -> 1,271 | AB72: =X72-AA72 -> -1,271 | AD72: =(SUMIF(EMPRUNT_ASV!D:D,E72,EMPRUNT_ASV!K:K)) -> 0 | AF72: =AG72+AH72+AI72 -> 0 | AG72: =(SUMIFS(PILCOT_AVEN_DUR!P:P,PILCOT_AVEN_DUR!H:H,D72))-(SUMIFS('FAF AU 31 MAI'!D:D,'FAF AU 31 MAI'!A:A,D72)) -> 0 | AH72: =(SUMIFS(PILCOT_ALIZE!P:P,PILCOT_ALIZE!H:H,D72))-(SUMIFS('FAF AU 31 MAI'!E:E,'FAF AU 31 MAI'!A:A,D72)) -> 0 | AI72: =(SUMIFS(PILCOT_CORALIUM!P:P,PILCOT_CORALIUM!H:H,D72))-(SUMIFS('FAF AU 31 MAI'!C:C,'FAF AU 31 MAI'!A:A,D72)) -> 0 | AK72: =AL72+AM72 -> 0 | AL72: =(SUMIF(GEDEL!F:F,E72,GEDEL!N:N)) -> 0 | AM72: =(SUMIF(GEDEL!F:F,E72,GEDEL!O:O)) -> 0
A73: 80 | B73: VOSGES | C73: EPINAL | D73: 539 | E73: 151350000539 | F73: 88286 | G73: =VLOOKUP(F73,Objectifs!D:E,2,FALSE) -> EPINAL ARISTIDE BRIAND | I73: =VLOOKUP(F73,Objectifs!D:M,10,FALSE) -> 161,500 | J73: =(SUMIFS(SOURCE_PARTS_SOC!G:G,SOURCE_PARTS_SOC!E:E,F73)) -> 0 | K73: 0% | L73: =(SUMIFS(SOURCE_PARTS_SOC!H:H,SOURCE_PARTS_SOC!E:E,F73)) -> 0 | M73: 161,500 | N73: =I73*SUIVI_REGION!$E$4 -> 10,419 | O73: -10,419 | Q73: =VLOOKUP(F73,Objectifs!D:K,8,0) -> 698,000 | R73: =(SUMIF(EMPRUNT_ASV!D:D,SUIVI_PDV!E73,EMPRUNT_ASV!J:J)) -> 0 | S73: 0% | T73: 698,000 | U73: =Q73*SUIVI_REGION!$E$4 -> 45,032 | V73: -45,032 | W73: =VLOOKUP(F73,Objectifs!D:L,9,0) -> 47,200 | X73: =(SUMIF(EMPRUNT_CTO!H:H,SUIVI_PDV!D73,EMPRUNT_CTO!N:N)) -> 0 | Y73: =IFERROR(X73/W73," ") -> 0% | Z73: =IF(X73>W73," ",W73-X73) -> 47,200 | AA73: =W73*SUIVI_REGION!$E$4 -> 3,045 | AB73: =X73-AA73 -> -3,045 | AD73: =(SUMIF(EMPRUNT_ASV!D:D,E73,EMPRUNT_ASV!K:K)) -> 0 | AF73: =AG73+AH73+AI73 -> 0 | AG73: =(SUMIFS(PILCOT_AVEN_DUR!P:P,PILCOT_AVEN_DUR!H:H,D73))-(SUMIFS('FAF AU 31 MAI'!D:D,'FAF AU 31 MAI'!A:A,D73)) -> 0 | AH73: =(SUMIFS(PILCOT_ALIZE!P:P,PILCOT_ALIZE!H:H,D73))-(SUMIFS('FAF AU 31 MAI'!E:E,'FAF AU 31 MAI'!A:A,D73)) -> 0 | AI73: =(SUMIFS(PILCOT_CORALIUM!P:P,PILCOT_CORALIUM!H:H,D73))-(SUMIFS('FAF AU 31 MAI'!C:C,'FAF AU 31 MAI'!A:A,D73)) -> 0 | AK73: =AL73+AM73 -> 0 | AL73: =(SUMIF(GEDEL!F:F,E73,GEDEL!N:N)) -> 0 | AM73: =(SUMIF(GEDEL!F:F,E73,GEDEL!O:O)) -> 0
A74: 80 | B74: VOSGES | C74: EPINAL | D74: 541 | E74: 151350000541 | F74: 88288 | G74: =VLOOKUP(F74,Objectifs!D:E,2,FALSE) -> EPINAL LEOPOLD BOURG | I74: =VLOOKUP(F74,Objectifs!D:M,10,FALSE) -> 32,400 | J74: =(SUMIFS(SOURCE_PARTS_SOC!G:G,SOURCE_PARTS_SOC!E:E,F74)) -> 0 | K74: 0% | L74: =(SUMIFS(SOURCE_PARTS_SOC!H:H,SOURCE_PARTS_SOC!E:E,F74)) -> 0 | M74: 32,400 | N74: =I74*SUIVI_REGION!$E$4 -> 2,090 | O74: -2,090 | Q74: =VLOOKUP(F74,Objectifs!D:K,8,0) -> 139,900 | R74: =(SUMIF(EMPRUNT_ASV!D:D,SUIVI_PDV!E74,EMPRUNT_ASV!J:J)) -> 9,000 | S74: 6% | T74: 130,900 | U74: =Q74*SUIVI_REGION!$E$4 -> 9,026 | V74: -26 | W74: =VLOOKUP(F74,Objectifs!D:L,9,0) -> 9,500 | X74: =(SUMIF(EMPRUNT_CTO!H:H,SUIVI_PDV!D74,EMPRUNT_CTO!N:N)) -> 0 | Y74: 0% | Z74: 9,500 | AA74: =W74*SUIVI_REGION!$E$4 -> 613 | AB74: -613 | AD74: =(SUMIF(EMPRUNT_ASV!D:D,E74,EMPRUNT_ASV!K:K)) -> 0 | AF74: 0 | AG74: =(SUMIFS(PILCOT_AVEN_DUR!P:P,PILCOT_AVEN_DUR!H:H,D74))-(SUMIFS('FAF AU 31 MAI'!D:D,'FAF AU 31 MAI'!A:A,D74)) -> 0 | AH74: =(SUMIFS(PILCOT_ALIZE!P:P,PILCOT_ALIZE!H:H,D74))-(SUMIFS('FAF AU 31 MAI'!E:E,'FAF AU 31 MAI'!A:A,D74)) -> 0 | AI74: =(SUMIFS(PILCOT_CORALIUM!P:P,PILCOT_CORALIUM!H:H,D74))-(SUMIFS('FAF AU 31 MAI'!C:C,'FAF AU 31 MAI'!A:A,D74)) -> 0 | AK74: 0 | AL74: =(SUMIF(GEDEL!F:F,E74,GEDEL!N:N)) -> 0 | AM74: =(SUMIF(GEDEL!F:F,E74,GEDEL!O:O)) -> 0
A75: 80 | B75: VOSGES | C75: EPINAL | D75: 555 | E75: 151350000555 | F75: 88336 | G75: =VLOOKUP(F75,Objectifs!D:E,2,FALSE) -> GOLBEY | I75: =VLOOKUP(F75,Objectifs!D:M,10,FALSE) -> 44,600 | J75: =(SUMIFS(SOURCE_PARTS_SOC!G:G,SOURCE_PARTS_SOC!E:E,F75)) -> 0 | K75: 0% | L75: =(SUMIFS(SOURCE_PARTS_SOC!H:H,SOURCE_PARTS_SOC!E:E,F75)) -> 0 | M75: 44,600 | N75: =I75*SUIVI_REGION!$E$4 -> 2,877 | O75: -2,877 | Q75: =VLOOKUP(F75,Objectifs!D:K,8,0) -> 192,700 | R75: =(SUMIF(EMPRUNT_ASV!D:D,SUIVI_PDV!E75,EMPRUNT_ASV!J:J)) -> 12,000 | S75: 6% | T75: 180,700 | U75: =Q75*SUIVI_REGION!$E$4 -> 12,432 | V75: -432 | W75: =VLOOKUP(F75,Objectifs!D:L,9,0) -> 13,000 | X75: =(SUMIF(EMPRUNT_CTO!H:H,SUIVI_PDV!D75,EMPRUNT_CTO!N:N)) -> 0 | Y75: 0% | Z75: 13,000 | AA75: =W75*SUIVI_REGION!$E$4 -> 839 | AB75: -839 | AD75: =(SUMIF(EMPRUNT_ASV!D:D,E75,EMPRUNT_ASV!K:K)) -> 0 | AF75: 0 | AG75: =(SUMIFS(PILCOT_AVEN_DUR!P:P,PILCOT_AVEN_DUR!H:H,D75))-(SUMIFS('FAF AU 31 MAI'!D:D,'FAF AU 31 MAI'!A:A,D75)) -> 0 | AH75: =(SUMIFS(PILCOT_ALIZE!P:P,PILCOT_ALIZE!H:H,D75))-(SUMIFS('FAF AU 31 MAI'!E:E,'FAF AU 31 MAI'!A:A,D75)) -> 0 | AI75: =(SUMIFS(PILCOT_CORALIUM!P:P,PILCOT_CORALIUM!H:H,D75))-(SUMIFS('FAF AU 31 MAI'!C:C,'FAF AU 31 MAI'!A:A,D75)) -> 0 | AK75: 0 | AL75: =(SUMIF(GEDEL!F:F,E75,GEDEL!N:N)) -> 0 | AM75: =(SUMIF(GEDEL!F:F,E75,GEDEL!O:O)) -> 0
A76: 80 | B76: VOSGES | C76: EPINAL | D76: 524 | E76: 151350000524 | F76: 88206 | G76: =VLOOKUP(F76,Objectifs!D:E,2,FALSE) -> CHARMES | I76: =VLOOKUP(F76,Objectifs!D:M,10,FALSE) -> 55,800 | J76: =(SUMIFS(SOURCE_PARTS_SOC!G:G,SOURCE_PARTS_SOC!E:E,F76)) -> 0 | K76: 0% | L76: =(SUMIFS(SOURCE_PARTS_SOC!H:H,SOURCE_PARTS_SOC!E:E,F76)) -> 0 | M76: 55,800 | N76: =I76*SUIVI_REGION!$E$4 -> 3,600 | O76: -3,600 | Q76: =VLOOKUP(F76,Objectifs!D:K,8,0) -> 240,900 | R76: =(SUMIF(EMPRUNT_ASV!D:D,SUIVI_PDV!E76,EMPRUNT_ASV!J:J)) -> 0 | S76: 0% | T76: 240,900 | U76: =Q76*SUIVI_REGION!$E$4 -> 15,542 | V76: -15,542 | W76: =VLOOKUP(F76,Objectifs!D:L,9,0) -> 16,300 | X76: =(SUMIF(EMPRUNT_CTO!H:H,SUIVI_PDV!D76,EMPRUNT_CTO!N:N)) -> 0 | Y76: 0% | Z76: 16,300 | AA76: =W76*SUIVI_REGION!$E$4 -> 1,052 | AB76: -1,052 | AD76: =(SUMIF(EMPRUNT_ASV!D:D,E76,EMPRUNT_ASV!K:K)) -> 0 | AF76: 0 | AG76: =(SUMIFS(PILCOT_AVEN_DUR!P:P,PILCOT_AVEN_DUR!H:H,D76))-(SUMIFS('FAF AU 31 MAI'!D:D,'FAF AU 31 MAI'!A:A,D76)) -> 0 | AH76: =(SUMIFS(PILCOT_ALIZE!P:P,PILCOT_ALIZE!H:H,D76))-(SUMIFS('FAF AU 31 MAI'!E:E,'FAF AU 31 MAI'!A:A,D76)) -> 0 | AI76: =(SUMIFS(PILCOT_CORALIUM!P:P,PILCOT_CORALIUM!H:H,D76))-(SUMIFS('FAF AU 31 MAI'!C:C,'FAF AU 31 MAI'!A:A,D76)) -> 0 | AK76: 0 | AL76: =(SUMIF(GEDEL!F:F,E76,GEDEL!N:N)) -> 0 | AM76: =(SUMIF(GEDEL!F:F,E76,GEDEL!O:O)) -> 0
A77: 80 | B77: VOSGES | C77: EPINAL | D77: 600 | E77: 151350000600 | F77: 88451 | G77: =VLOOKUP(F77,Objectifs!D:E,2,FALSE) -> MIRECOURT | I77: =VLOOKUP(F77,Objectifs!D:M,10,FALSE) -> 84,400 | J77: =(SUMIFS(SOURCE_PARTS_SOC!G:G,SOURCE_PARTS_SOC!E:E,F77)) -> 0 | K77: 0% | L77: =(SUMIFS(SOURCE_PARTS_SOC!H:H,SOURCE_PARTS_SOC!E:E,F77)) -> 0 | M77: 84,400 | N77: =I77*SUIVI_REGION!$E$4 -> 5,445 | O77: -5,445 | Q77: =VLOOKUP(F77,Objectifs!D:K,8,0) -> 364,700 | R77: =(SUMIF(EMPRUNT_ASV!D:D,SUIVI_PDV!E77,EMPRUNT_ASV!J:J)) -> 50,000 | S77: 14% | T77: 314,700 | U77: =Q77*SUIVI_REGION!$E$4 -> 23,529 | V77: 26,471 | W77: =VLOOKUP(F77,Objectifs!D:L,9,0) -> 24,600 | X77: =(SUMIF(EMPRUNT_CTO!H:H,SUIVI_PDV!D77,EMPRUNT_CTO!N:N)) -> 0 | Y77: 0% | Z77: 24,600 | AA77: =W77*SUIVI_REGION!$E$4 -> 1,587 | AB77: -1,587 | AD77: =(SUMIF(EMPRUNT_ASV!D:D,E77,EMPRUNT_ASV!K:K)) -> 0 | AF77: 0 | AG77: =(SUMIFS(PILCOT_AVEN_DUR!P:P,PILCOT_AVEN_DUR!H:H,D77))-(SUMIFS('FAF AU 31 MAI'!D:D,'FAF AU 31 MAI'!A:A,D77)) -> 0 | AH77: =(SUMIFS(PILCOT_ALIZE!P:P,PILCOT_ALIZE!H:H,D77))-(SUMIFS('FAF AU 31 MAI'!E:E,'FAF AU 31 MAI'!A:A,D77)) -> 0 | AI77: =(SUMIFS(PILCOT_CORALIUM!P:P,PILCOT_CORALIUM!H:H,D77))-(SUMIFS('FAF AU 31 MAI'!C:C,'FAF AU 31 MAI'!A:A,D77)) -> 0 | AK77: 0 | AL77: =(SUMIF(GEDEL!F:F,E77,GEDEL!N:N)) -> 0 | AM77: =(SUMIF(GEDEL!F:F,E77,GEDEL!O:O)) -> 0
A78: 80 | B78: VOSGES | C78: EPINAL | D78: 620 | E78: 151350000620 | F78: 88511 | G78: =VLOOKUP(F78,Objectifs!D:E,2,FALSE) -> NOMEXY | I78: =VLOOKUP(F78,Objectifs!D:M,10,FALSE) -> 29,700 | J78: =(SUMIFS(SOURCE_PARTS_SOC!G:G,SOURCE_PARTS_SOC!E:E,F78)) -> 0 | K78: 0% | L78: =(SUMIFS(SOURCE_PARTS_SOC!H:H,SOURCE_PARTS_SOC!E:E,F78)) -> 0 | M78: 29,700 | N78: =I78*SUIVI_REGION!$E$4 -> 1,916 | O78: -1,916 | Q78: =VLOOKUP(F78,Objectifs!D:K,8,0) -> 128,600 | R78: =(SUMIF(EMPRUNT_ASV!D:D,SUIVI_PDV!E78,EMPRUNT_ASV!J:J)) -> 0 | S78: 0% | T78: 128,600 | U78: =Q78*SUIVI_REGION!$E$4 -> 8,297 | V78: -8,297 | W78: =VLOOKUP(F78,Objectifs!D:L,9,0) -> 8,700 | X78: =(SUMIF(EMPRUNT_CTO!H:H,SUIVI_PDV!D78,EMPRUNT_CTO!N:N)) -> 0 | Y78: 0% | Z78: 8,700 | AA78: =W78*SUIVI_REGION!$E$4 -> 561 | AB78: -561 | AD78: =(SUMIF(EMPRUNT_ASV!D:D,E78,EMPRUNT_ASV!K:K)) -> 0 | AF78: 0 | AG78: =(SUMIFS(PILCOT_AVEN_DUR!P:P,PILCOT_AVEN_DUR!H:H,D78))-(SUMIFS('FAF AU 31 MAI'!D:D,'FAF AU 31 MAI'!A:A,D78)) -> 0 | AH78: =(SUMIFS(PILCOT_ALIZE!P:P,PILCOT_ALIZE!H:H,D78))-(SUMIFS('FAF AU 31 MAI'!E:E,'FAF AU 31 MAI'!A:A,D78)) -> 0 | AI78: =(SUMIFS(PILCOT_CORALIUM!P:P,PILCOT_CORALIUM!H:H,D78))-(SUMIFS('FAF AU 31 MAI'!C:C,'FAF AU 31 MAI'!A:A,D78)) -> 0 | AK78: 0 | AL78: =(SUMIF(GEDEL!F:F,E78,GEDEL!N:N)) -> 0 | AM78: =(SUMIF(GEDEL!F:F,E78,GEDEL!O:O)) -> 0
A79: 80 | B79: VOSGES | C79: EPINAL | D79: 655 | E79: 151350000655 | F79: 88631 | G79: =VLOOKUP(F79,Objectifs!D:E,2,FALSE) -> THAON LES VOSGES | I79: =VLOOKUP(F79,Objectifs!D:M,10,FALSE) -> 52,800 | J79: =(SUMIFS(SOURCE_PARTS_SOC!G:G,SOURCE_PARTS_SOC!E:E,F79)) -> 0 | K79: 0% | L79: =(SUMIFS(SOURCE_PARTS_SOC!H:H,SOURCE_PARTS_SOC!E:E,F79)) -> 0 | M79: 52,800 | N79: =I79*SUIVI_REGION!$E$4 -> 3,406 | O79: -3,406 | Q79: =VLOOKUP(F79,Objectifs!D:K,8,0) -> 228,200 | R79: =(SUMIF(EMPRUNT_ASV!D:D,SUIVI_PDV!E79,EMPRUNT_ASV!J:J)) -> 57,975 | S79: 25% | T79: 170,225 | U79: =Q79*SUIVI_REGION!$E$4 -> 14,723 | V79: 43,252 | W79: =VLOOKUP(F79,Objectifs!D:L,9,0) -> 15,400 | X79: =(SUMIF(EMPRUNT_CTO!H:H,SUIVI_PDV!D79,EMPRUNT_CTO!N:N)) -> 0 | Y79: 0% | Z79: 15,400 | AA79: =W79*SUIVI_REGION!$E$4 -> 994 | AB79: -994 | AD79: =(SUMIF(EMPRUNT_ASV!D:D,E79,EMPRUNT_ASV!K:K)) -> 0 | AF79: 0 | AG79: =(SUMIFS(PILCOT_AVEN_DUR!P:P,PILCOT_AVEN_DUR!H:H,D79))-(SUMIFS('FAF AU 31 MAI'!D:D,'FAF AU 31 MAI'!A:A,D79)) -> 0 | AH79: =(SUMIFS(PILCOT_ALIZE!P:P,PILCOT_ALIZE!H:H,D79))-(SUMIFS('FAF AU 31 MAI'!E:E,'FAF AU 31 MAI'!A:A,D79)) -> 0 | AI79: =(SUMIFS(PILCOT_CORALIUM!P:P,PILCOT_CORALIUM!H:H,D79))-(SUMIFS('FAF AU 31 MAI'!C:C,'FAF AU 31 MAI'!A:A,D79)) -> 0 | AK79: 0 | AL79: =(SUMIF(GEDEL!F:F,E79,GEDEL!N:N)) -> 0 | AM79: =(SUMIF(GEDEL!F:F,E79,GEDEL!O:O)) -> 0
A80: 80 | B80: VOSGES | C80: EPINAL | D80: 538 | E80: 151350000538 | F80: 88281 | G80: =VLOOKUP(F80,Objectifs!D:E,2,FALSE) -> ELOYES | I80: =VLOOKUP(F80,Objectifs!D:M,10,FALSE) -> 58,300 | J80: =(SUMIFS(SOURCE_PARTS_SOC!G:G,SOURCE_PARTS_SOC!E:E,F80)) -> 0 | K80: 0% | L80: =(SUMIFS(SOURCE_PARTS_SOC!H:H,SOURCE_PARTS_SOC!E:E,F80)) -> 0 | M80: 58,300 | N80: =I80*SUIVI_REGION!$E$4 -> 3,761 | O80: -3,761 | Q80: =VLOOKUP(F80,Objectifs!D:K,8,0) -> 251,900 | R80: =(SUMIF(EMPRUNT_ASV!D:D,SUIVI_PDV!E80,EMPRUNT_ASV!J:J)) -> 73,730 | S80: 29% | T80: 178,170 | U80: =Q80*SUIVI_REGION!$E$4 -> 16,252 | V80: 57,478 | W80: =VLOOKUP(F80,Objectifs!D:L,9,0) -> 17,000 | X80: =(SUMIF(EMPRUNT_CTO!H:H,SUIVI_PDV!D80,EMPRUNT_CTO!N:N)) -> 0 | Y80: 0% | Z80: 17,000 | AA80: =W80*SUIVI_REGION!$E$4 -> 1,097 | AB80: -1,097 | AD80: =(SUMIF(EMPRUNT_ASV!D:D,E80,EMPRUNT_ASV!K:K)) -> 0 | AF80: 8,410 | AG80: =(SUMIFS(PILCOT_AVEN_DUR!P:P,PILCOT_AVEN_DUR!H:H,D80))-(SUMIFS('FAF AU 31 MAI'!D:D,'FAF AU 31 MAI'!A:A,D80)) -> 0 | AH80: =(SUMIFS(PILCOT_ALIZE!P:P,PILCOT_ALIZE!H:H,D80))-(SUMIFS('FAF AU 31 MAI'!E:E,'FAF AU 31 MAI'!A:A,D80)) -> 0 | AI80: =(SUMIFS(PILCOT_CORALIUM!P:P,PILCOT_CORALIUM!H:H,D80))-(SUMIFS('FAF AU 31 MAI'!C:C,'FAF AU 31 MAI'!A:A,D80)) -> 8,410 | AK80: 0 | AL80: =(SUMIF(GEDEL!F:F,E80,GEDEL!N:N)) -> 0 | AM80: =(SUMIF(GEDEL!F:F,E80,GEDEL!O:O)) -> 0
A81: 80 | B81: VOSGES | C81: EPINAL | D81: 575 | E81: 151350000575 | F81: 88396 | G81: =VLOOKUP(F81,Objectifs!D:E,2,FALSE) -> LE VAL D AJOL | I81: =VLOOKUP(F81,Objectifs!D:M,10,FALSE) -> 50,400 | J81: =(SUMIFS(SOURCE_PARTS_SOC!G:G,SOURCE_PARTS_SOC!E:E,F81)) -> 0 | K81: 0% | L81: =(SUMIFS(SOURCE_PARTS_SOC!H:H,SOURCE_PARTS_SOC!E:E,F81)) -> 0 | M81: 50,400 | N81: =I81*SUIVI_REGION!$E$4 -> 3,252 | O81: -3,252 | Q81: =VLOOKUP(F81,Objectifs!D:K,8,0) -> 218,100 | R81: =(SUMIF(EMPRUNT_ASV!D:D,SUIVI_PDV!E81,EMPRUNT_ASV!J:J)) -> 0 | S81: 0% | T81: 218,100 | U81: =Q81*SUIVI_REGION!$E$4 -> 14,071 | V81: -14,071 | W81: =VLOOKUP(F81,Objectifs!D:L,9,0) -> 14,700 | X81: =(SUMIF(EMPRUNT_CTO!H:H,SUIVI_PDV!D81,EMPRUNT_CTO!N:N)) -> 0 | Y81: 0% | Z81: 14,700 | AA81: =W81*SUIVI_REGION!$E$4 -> 948 | AB81: -948 | AD81: =(SUMIF(EMPRUNT_ASV!D:D,E81,EMPRUNT_ASV!K:K)) -> 0 | AF81: 0 | AG81: =(SUMIFS(PILCOT_AVEN_DUR!P:P,PILCOT_AVEN_DUR!H:H,D81))-(SUMIFS('FAF AU 31 MAI'!D:D,'FAF AU 31 MAI'!A:A,D81)) -> 0 | AH81: =(SUMIFS(PILCOT_ALIZE!P:P,PILCOT_ALIZE!H:H,D81))-(SUMIFS('FAF AU 31 MAI'!E:E,'FAF AU 31 MAI'!A:A,D81)) -> 0 | AI81: =(SUMIFS(PILCOT_CORALIUM!P:P,PILCOT_CORALIUM!H:H,D81))-(SUMIFS('FAF AU 31 MAI'!C:C,'FAF AU 31 MAI'!A:A,D81)) -> 0 | AK81: 0 | AL81: =(SUMIF(GEDEL!F:F,E81,GEDEL!N:N)) -> 0 | AM81: =(SUMIF(GEDEL!F:F,E81,GEDEL!O:O)) -> 0
A82: 80 | B82: VOSGES | C82: EPINAL | D82: 633 | E82: 151350000633 | F82: 88561 | G82: =VLOOKUP(F82,Objectifs!D:E,2,FALSE) -> REMIREMONT | I82: =VLOOKUP(F82,Objectifs!D:M,10,FALSE) -> 112,300 | J82: =(SUMIFS(SOURCE_PARTS_SOC!G:G,SOURCE_PARTS_SOC!E:E,F82)) -> 0 | K82: 0% | L82: =(SUMIFS(SOURCE_PARTS_SOC!H:H,SOURCE_PARTS_SOC!E:E,F82)) -> 0 | M82: 112,300 | N82: =I82*SUIVI_REGION!$E$4 -> 7,245 | O82: -7,245 | Q82: =VLOOKUP(F82,Objectifs!D:K,8,0) -> 485,300 | R82: =(SUMIF(EMPRUNT_ASV!D:D,SUIVI_PDV!E82,EMPRUNT_ASV!J:J)) -> 8,784 | S82: 2% | T82: 476,516 | U82: =Q82*SUIVI_REGION!$E$4 -> 31,310 | V82: -22,525 | W82: =VLOOKUP(F82,Objectifs!D:L,9,0) -> 32,800 | X82: =(SUMIF(EMPRUNT_CTO!H:H,SUIVI_PDV!D82,EMPRUNT_CTO!N:N)) -> 0 | Y82: 0% | Z82: 32,800 | AA82: =W82*SUIVI_REGION!$E$4 -> 2,116 | AB82: -2,116 | AD82: =(SUMIF(EMPRUNT_ASV!D:D,E82,EMPRUNT_ASV!K:K)) -> 0 | AF82: 0 | AG82: =(SUMIFS(PILCOT_AVEN_DUR!P:P,PILCOT_AVEN_DUR!H:H,D82))-(SUMIFS('FAF AU 31 MAI'!D:D,'FAF AU 31 MAI'!A:A,D82)) -> 0 | AH82: =(SUMIFS(PILCOT_ALIZE!P:P,PILCOT_ALIZE!H:H,D82))-(SUMIFS('FAF AU 31 MAI'!E:E,'FAF AU 31 MAI'!A:A,D82)) -> 0 | AI82: =(SUMIFS(PILCOT_CORALIUM!P:P,PILCOT_CORALIUM!H:H,D82))-(SUMIFS('FAF AU 31 MAI'!C:C,'FAF AU 31 MAI'!A:A,D82)) -> 0 | AK82: 0 | AL82: =(SUMIF(GEDEL!F:F,E82,GEDEL!N:N)) -> 0 | AM82: =(SUMIF(GEDEL!F:F,E82,GEDEL!O:O)) -> 0
A83: 80 | B83: VOSGES | C83: EPINAL | D83: 676 | E83: 151350000676 | F83: 88716 | G83: =VLOOKUP(F83,Objectifs!D:E,2,FALSE) -> XERTIGNY | I83: =VLOOKUP(F83,Objectifs!D:M,10,FALSE) -> 42,600 | J83: =(SUMIFS(SOURCE_PARTS_SOC!G:G,SOURCE_PARTS_SOC!E:E,F83)) -> 0 | K83: 0% | L83: =(SUMIFS(SOURCE_PARTS_SOC!H:H,SOURCE_PARTS_SOC!E:E,F83)) -> 0 | M83: 42,600 | N83: =I83*SUIVI_REGION!$E$4 -> 2,748 | O83: -2,748 | Q83: =VLOOKUP(F83,Objectifs!D:K,8,0) -> 184,200 | R83: =(SUMIF(EMPRUNT_ASV!D:D,SUIVI_PDV!E83,EMPRUNT_ASV!J:J)) -> 0 | S83: 0% | T83: 184,200 | U83: =Q83*SUIVI_REGION!$E$4 -> 11,884 | V83: -11,884 | W83: =VLOOKUP(F83,Objectifs!D:L,9,0) -> 12,400 | X83: =(SUMIF(EMPRUNT_CTO!H:H,SUIVI_PDV!D83,EMPRUNT_CTO!N:N)) -> 0 | Y83: 0% | Z83: 12,400 | AA83: =W83*SUIVI_REGION!$E$4 -> 800 | AB83: -800 | AD83: =(SUMIF(EMPRUNT_ASV!D:D,E83,EMPRUNT_ASV!K:K)) -> 0 | AF83: 0 | AG83: =(SUMIFS(PILCOT_AVEN_DUR!P:P,PILCOT_AVEN_DUR!H:H,D83))-(SUMIFS('FAF AU 31 MAI'!D:D,'FAF AU 31 MAI'!A:A,D83)) -> 0 | AH83: =(SUMIFS(PILCOT_ALIZE!P:P,PILCOT_ALIZE!H:H,D83))-(SUMIFS('FAF AU 31 MAI'!E:E,'FAF AU 31 MAI'!A:A,D83)) -> 0 | AI83: =(SUMIFS(PILCOT_CORALIUM!P:P,PILCOT_CORALIUM!H:H,D83))-(SUMIFS('FAF AU 31 MAI'!C:C,'FAF AU 31 MAI'!A:A,D83)) -> 0 | AK83: 0 | AL83: =(SUMIF(GEDEL!F:F,E83,GEDEL!N:N)) -> 0 | AM83: =(SUMIF(GEDEL!F:F,E83,GEDEL!O:O)) -> 0
A84: 80 | B84: VOSGES | C84: EPINAL | D84: 533 | E84: 151350000533 | F84: 88256 | G84: =VLOOKUP(F84,Objectifs!D:E,2,FALSE) -> DARNEY | I84: =VLOOKUP(F84,Objectifs!D:M,10,FALSE) -> 27,500 | J84: =(SUMIFS(SOURCE_PARTS_SOC!G:G,SOURCE_PARTS_SOC!E:E,F84)) -> 0 | K84: 0% | L84: =(SUMIFS(SOURCE_PARTS_SOC!H:H,SOURCE_PARTS_SOC!E:E,F84)) -> 0 | M84: 27,500 | N84: =I84*SUIVI_REGION!$E$4 -> 1,774 | O84: -1,774 | Q84: =VLOOKUP(F84,Objectifs!D:K,8,0) -> 118,600 | R84: =(SUMIF(EMPRUNT_ASV!D:D,SUIVI_PDV!E84,EMPRUNT_ASV!J:J)) -> 0 | S84: 0% | T84: 118,600 | U84: =Q84*SUIVI_REGION!$E$4 -> 7,652 | V84: -7,652 | W84: =VLOOKUP(F84,Objectifs!D:L,9,0) -> 8,000 | X84: =(SUMIF(EMPRUNT_CTO!H:H,SUIVI_PDV!D84,EMPRUNT_CTO!N:N)) -> 0 | Y84: 0% | Z84: 8,000 | AA84: =W84*SUIVI_REGION!$E$4 -> 516 | AB84: -516 | AD84: =(SUMIF(EMPRUNT_ASV!D:D,E84,EMPRUNT_ASV!K:K)) -> 0 | AF84: 0 | AG84: =(SUMIFS(PILCOT_AVEN_DUR!P:P,PILCOT_AVEN_DUR!H:H,D84))-(SUMIFS('FAF AU 31 MAI'!D:D,'FAF AU 31 MAI'!A:A,D84)) -> 0 | AH84: =(SUMIFS(PILCOT_ALIZE!P:P,PILCOT_ALIZE!H:H,D84))-(SUMIFS('FAF AU 31 MAI'!E:E,'FAF AU 31 MAI'!A:A,D84)) -> 0 | AI84: =(SUMIFS(PILCOT_CORALIUM!P:P,PILCOT_CORALIUM!H:H,D84))-(SUMIFS('FAF AU 31 MAI'!C:C,'FAF AU 31 MAI'!A:A,D84)) -> 0 | AK84: 0 | AL84: =(SUMIF(GEDEL!F:F,E84,GEDEL!N:N)) -> 0 | AM84: =(SUMIF(GEDEL!F:F,E84,GEDEL!O:O)) -> 0
A85: 80 | B85: VOSGES | C85: EPINAL | D85: 616 | E85: 151350000616 | F85: 88501 | G85: =VLOOKUP(F85,Objectifs!D:E,2,FALSE) -> NEUFCHATEAU | I85: =VLOOKUP(F85,Objectifs!D:M,10,FALSE) -> 67,900 | J85: =(SUMIFS(SOURCE_PARTS_SOC!G:G,SOURCE_PARTS_SOC!E:E,F85)) -> 0 | K85: 0% | L85: =(SUMIFS(SOURCE_PARTS_SOC!H:H,SOURCE_PARTS_SOC!E:E,F85)) -> 0 | M85: 67,900 | N85: =I85*SUIVI_REGION!$E$4 -> 4,381 | O85: -4,381 | Q85: =VLOOKUP(F85,Objectifs!D:K,8,0) -> 293,600 | R85: =(SUMIF(EMPRUNT_ASV!D:D,SUIVI_PDV!E85,EMPRUNT_ASV!J:J)) -> 0 | S85: 0% | T85: 293,600 | U85: =Q85*SUIVI_REGION!$E$4 -> 18,942 | V85: -18,942 | W85: =VLOOKUP(F85,Objectifs!D:L,9,0) -> 19,800 | X85: =(SUMIF(EMPRUNT_CTO!H:H,SUIVI_PDV!D85,EMPRUNT_CTO!N:N)) -> 0 | Y85: 0% | Z85: 19,800 | AA85: =W85*SUIVI_REGION!$E$4 -> 1,277 | AB85: -1,277 | AD85: =(SUMIF(EMPRUNT_ASV!D:D,E85,EMPRUNT_ASV!K:K)) -> 0 | AF85: 0 | AG85: =(SUMIFS(PILCOT_AVEN_DUR!P:P,PILCOT_AVEN_DUR!H:H,D85))-(SUMIFS('FAF AU 31 MAI'!D:D,'FAF AU 31 MAI'!A:A,D85)) -> 0 | AH85: =(SUMIFS(PILCOT_ALIZE!P:P,PILCOT_ALIZE!H:H,D85))-(SUMIFS('FAF AU 31 MAI'!E:E,'FAF AU 31 MAI'!A:A,D85)) -> 0 | AI85: =(SUMIFS(PILCOT_CORALIUM!P:P,PILCOT_CORALIUM!H:H,D85))-(SUMIFS('FAF AU 31 MAI'!C:C,'FAF AU 31 MAI'!A:A,D85)) -> 0 | AK85: 0 | AL85: =(SUMIF(GEDEL!F:F,E85,GEDEL!N:N)) -> 0 | AM85: =(SUMIF(GEDEL!F:F,E85,GEDEL!O:O)) -> 0
A86: 80 | B86: VOSGES | C86: EPINAL | D86: 673 | E86: 151350000673 | F86: 88706 | G86: =VLOOKUP(F86,Objectifs!D:E,2,FALSE) -> VITTEL | I86: =VLOOKUP(F86,Objectifs!D:M,10,FALSE) -> 63,900 | J86: =(SUMIFS(SOURCE_PARTS_SOC!G:G,SOURCE_PARTS_SOC!E:E,F86)) -> 0 | K86: 0% | L86: =(SUMIFS(SOURCE_PARTS_SOC!H:H,SOURCE_PARTS_SOC!E:E,F86)) -> 0 | M86: 63,900 | N86: =I86*SUIVI_REGION!$E$4 -> 4,123 | O86: -4,123 | Q86: =VLOOKUP(F86,Objectifs!D:K,8,0) -> 276,000 | R86: =(SUMIF(EMPRUNT_ASV!D:D,SUIVI_PDV!E86,EMPRUNT_ASV!J:J)) -> 101,102 | S86: 37% | T86: 174,898 | U86: =Q86*SUIVI_REGION!$E$4 -> 17,806 | V86: 83,296 | W86: =VLOOKUP(F86,Objectifs!D:L,9,0) -> 18,700 | X86: =(SUMIF(EMPRUNT_CTO!H:H,SUIVI_PDV!D86,EMPRUNT_CTO!N:N)) -> 0 | Y86: 0% | Z86: 18,700 | AA86: =W86*SUIVI_REGION!$E$4 -> 1,206 | AB86: -1,206 | AD86: =(SUMIF(EMPRUNT_ASV!D:D,E86,EMPRUNT_ASV!K:K)) -> 0 | AF86: 0 | AG86: =(SUMIFS(PILCOT_AVEN_DUR!P:P,PILCOT_AVEN_DUR!H:H,D86))-(SUMIFS('FAF AU 31 MAI'!D:D,'FAF AU 31 MAI'!A:A,D86)) -> 0 | AH86: =(SUMIFS(PILCOT_ALIZE!P:P,PILCOT_ALIZE!H:H,D86))-(SUMIFS('FAF AU 31 MAI'!E:E,'FAF AU 31 MAI'!A:A,D86)) -> 0 | AI86: =(SUMIFS(PILCOT_CORALIUM!P:P,PILCOT_CORALIUM!H:H,D86))-(SUMIFS('FAF AU 31 MAI'!C:C,'FAF AU 31 MAI'!A:A,D86)) -> 0 | AK86: 0 | AL86: =(SUMIF(GEDEL!F:F,E86,GEDEL!N:N)) -> 0 | AM86: =(SUMIF(GEDEL!F:F,E86,GEDEL!O:O)) -> 0
A87: 80 | C87: Total Territoire EPINAL | I87: =SUBTOTAL(9,I72:I86) -> 951,800 | J87: =SUBTOTAL(9,J72:J86) -> 0 | K87: 0% | L87: =SUBTOTAL(9,L77:L86) -> 0 | M87: 951,800 | N87: =I87*SUIVI_REGION!$E$4 -> 61,406 | O87: -61,406 | Q87: =SUBTOTAL(9,Q72:Q86) -> 4,113,000 | R87: =SUBTOTAL(9,R72:R86) -> 312,591 | S87: 8% | T87: 3,800,409 | U87: =SUBTOTAL(9,U72:U86) -> 265,355 | V87: =SUBTOTAL(9,V72:V86) -> 47,237 | W87: =SUBTOTAL(9,W72:W86) -> 277,800 | X87: =SUBTOTAL(9,X72:X86) -> 0 | Y87: =IFERROR(X87/W87," ") -> 0% | Z87: =IF(X87>W87," ",W87-X87) -> 277,800 | AA87: =SUBTOTAL(9,AA72:AA86) -> 17,923 | AB87: =SUBTOTAL(9,AB72:AB86) -> -17,923 | AD87: =SUBTOTAL(9,AD72:AD86) -> 0 | AF87: =SUBTOTAL(9,AF72:AF86) -> 8,410 | AG87: =SUBTOTAL(9,AG72:AG86) -> 0 | AH87: 0 | AI87: 8,410 | AK87: =SUBTOTAL(9,AK72:AK86) -> 0 | AL87: =SUBTOTAL(9,AL72:AL86) -> 0 | AM87: 0
A88: 80 | B88: VOSGES | C88: SAINT DIE | D88: 520 | E88: =CONCATENATE(151350000,D88) -> 151350000520 | F88: 88186 | G88: =VLOOKUP(F88,Objectifs!D:E,2,FALSE) -> BRUYERES | I88: =VLOOKUP(F88,Objectifs!D:M,10,FALSE) -> 52,300 | J88: =(SUMIFS(SOURCE_PARTS_SOC!G:G,SOURCE_PARTS_SOC!E:E,F88)) -> 0 | K88: 0% | L88: =(SUMIFS(SOURCE_PARTS_SOC!H:H,SOURCE_PARTS_SOC!E:E,F88)) -> 0 | M88: 52,300 | N88: =I88*SUIVI_REGION!$E$4 -> 3,374 | O88: -3,374 | Q88: =VLOOKUP(F88,Objectifs!D:K,8,0) -> 226,300 | R88: =(SUMIF(EMPRUNT_ASV!D:D,SUIVI_PDV!E88,EMPRUNT_ASV!J:J)) -> 0 | S88: 0% | T88: 226,300 | U88: =Q88*SUIVI_REGION!$E$4 -> 14,600 | V88: =R88-U88 -> -14,600 | W88: =VLOOKUP(F88,Objectifs!D:L,9,0) -> 15,300 | X88: =(SUMIF(EMPRUNT_CTO!H:H,SUIVI_PDV!D88,EMPRUNT_CTO!N:N)) -> 0 | Y88: =IFERROR(X88/W88," ") -> 0% | Z88: =IF(X88>W88," ",W88-X88) -> 15,300 | AA88: =W88*SUIVI_REGION!$E$4 -> 987 | AB88: =X88-AA88 -> -987 | AD88: =(SUMIF(EMPRUNT_ASV!D:D,E88,EMPRUNT_ASV!K:K)) -> 0 | AF88: =AG88+AH88+AI88 -> 0 | AG88: =(SUMIFS(PILCOT_AVEN_DUR!P:P,PILCOT_AVEN_DUR!H:H,D88))-(SUMIFS('FAF AU 31 MAI'!D:D,'FAF AU 31 MAI'!A:A,D88)) -> 0 | AH88: =(SUMIFS(PILCOT_ALIZE!P:P,PILCOT_ALIZE!H:H,D88))-(SUMIFS('FAF AU 31 MAI'!E:E,'FAF AU 31 MAI'!A:A,D88)) -> 0 | AI88: =(SUMIFS(PILCOT_CORALIUM!P:P,PILCOT_CORALIUM!H:H,D88))-(SUMIFS('FAF AU 31 MAI'!C:C,'FAF AU 31 MAI'!A:A,D88)) -> 0 | AK88: =AL88+AM88 -> 0 | AL88: =(SUMIF(GEDEL!F:F,E88,GEDEL!N:N)) -> 0 | AM88: =(SUMIF(GEDEL!F:F,E88,GEDEL!O:O)) -> 0
A89: 80 | B89: VOSGES | C89: SAINT DIE | D89: 530 | E89: 151350000530 | F89: 88246 | G89: =VLOOKUP(F89,Objectifs!D:E,2,FALSE) -> CORNIMONT LA BRESSE | I89: =VLOOKUP(F89,Objectifs!D:M,10,FALSE) -> 47,700 | J89: =(SUMIFS(SOURCE_PARTS_SOC!G:G,SOURCE_PARTS_SOC!E:E,F89)) -> 0 | K89: 0% | L89: =(SUMIFS(SOURCE_PARTS_SOC!H:H,SOURCE_PARTS_SOC!E:E,F89)) -> 0 | M89: 47,700 | N89: =I89*SUIVI_REGION!$E$4 -> 3,077 | O89: -3,077 | Q89: =VLOOKUP(F89,Objectifs!D:K,8,0) -> 206,300 | R89: =(SUMIF(EMPRUNT_ASV!D:D,SUIVI_PDV!E89,EMPRUNT_ASV!J:J)) -> 0 | S89: 0% | T89: 206,300 | U89: =Q89*SUIVI_REGION!$E$4 -> 13,310 | V89: -13,310 | W89: =VLOOKUP(F89,Objectifs!D:L,9,0) -> 13,900 | X89: =(SUMIF(EMPRUNT_CTO!H:H,SUIVI_PDV!D89,EMPRUNT_CTO!N:N)) -> 0 | Y89: =IFERROR(X89/W89," ") -> 0% | Z89: =IF(X89>W89," ",W89-X89) -> 13,900 | AA89: =W89*SUIVI_REGION!$E$4 -> 897 | AB89: =X89-AA89 -> -897 | AD89: =(SUMIF(EMPRUNT_ASV!D:D,E89,EMPRUNT_ASV!K:K)) -> 0 | AF89: =AG89+AH89+AI89 -> 0 | AG89: =(SUMIFS(PILCOT_AVEN_DUR!P:P,PILCOT_AVEN_DUR!H:H,D89))-(SUMIFS('FAF AU 31 MAI'!D:D,'FAF AU 31 MAI'!A:A,D89)) -> 0 | AH89: =(SUMIFS(PILCOT_ALIZE!P:P,PILCOT_ALIZE!H:H,D89))-(SUMIFS('FAF AU 31 MAI'!E:E,'FAF AU 31 MAI'!A:A,D89)) -> 0 | AI89: =(SUMIFS(PILCOT_CORALIUM!P:P,PILCOT_CORALIUM!H:H,D89))-(SUMIFS('FAF AU 31 MAI'!C:C,'FAF AU 31 MAI'!A:A,D89)) -> 0 | AK89: =AL89+AM89 -> 0 | AL89: =(SUMIF(GEDEL!F:F,E89,GEDEL!N:N)) -> 0 | AM89: =(SUMIF(GEDEL!F:F,E89,GEDEL!O:O)) -> 0
A90: 80 | B90: VOSGES | C90: SAINT DIE | D90: 554 | E90: 151350000554 | F90: 88326 | G90: =VLOOKUP(F90,Objectifs!D:E,2,FALSE) -> GERARDMER | I90: =VLOOKUP(F90,Objectifs!D:M,10,FALSE) -> 89,600 | J90: =(SUMIFS(SOURCE_PARTS_SOC!G:G,SOURCE_PARTS_SOC!E:E,F90)) -> 0 | K90: 0% | L90: =(SUMIFS(SOURCE_PARTS_SOC!H:H,SOURCE_PARTS_SOC!E:E,F90)) -> 0 | M90: 89,600 | N90: =I90*SUIVI_REGION!$E$4 -> 5,781 | O90: -5,781 | Q90: =VLOOKUP(F90,Objectifs!D:K,8,0) -> 387,500 | R90: =(SUMIF(EMPRUNT_ASV!D:D,SUIVI_PDV!E90,EMPRUNT_ASV!J:J)) -> 0 | S90: 0% | T90: 387,500 | U90: =Q90*SUIVI_REGION!$E$4 -> 25,000 | V90: -25,000 | W90: =VLOOKUP(F90,Objectifs!D:L,9,0) -> 26,200 | X90: =(SUMIF(EMPRUNT_CTO!H:H,SUIVI_PDV!D90,EMPRUNT_CTO!N:N)) -> 0 | Y90: 0% | Z90: 26,200 | AA90: =W90*SUIVI_REGION!$E$4 -> 1,690 | AB90: -1,690 | AD90: =(SUMIF(EMPRUNT_ASV!D:D,E90,EMPRUNT_ASV!K:K)) -> 0 | AF90: 1,000 | AG90: =(SUMIFS(PILCOT_AVEN_DUR!P:P,PILCOT_AVEN_DUR!H:H,D90))-(SUMIFS('FAF AU 31 MAI'!D:D,'FAF AU 31 MAI'!A:A,D90)) -> 1,000 | AH90: =(SUMIFS(PILCOT_ALIZE!P:P,PILCOT_ALIZE!H:H,D90))-(SUMIFS('FAF AU 31 MAI'!E:E,'FAF AU 31 MAI'!A:A,D90)) -> 0 | AI90: =(SUMIFS(PILCOT_CORALIUM!P:P,PILCOT_CORALIUM!H:H,D90))-(SUMIFS('FAF AU 31 MAI'!C:C,'FAF AU 31 MAI'!A:A,D90)) -> 0 | AK90: 0 | AL90: =(SUMIF(GEDEL!F:F,E90,GEDEL!N:N)) -> 0 | AM90: =(SUMIF(GEDEL!F:F,E90,GEDEL!O:O)) -> 0
A91: 80 | B91: VOSGES | C91: SAINT DIE | D91: 574 | E91: 151350000574 | F91: 88386 | G91: =VLOOKUP(F91,Objectifs!D:E,2,FALSE) -> LE THILLOT | I91: =VLOOKUP(F91,Objectifs!D:M,10,FALSE) -> 43,800 | J91: =(SUMIFS(SOURCE_PARTS_SOC!G:G,SOURCE_PARTS_SOC!E:E,F91)) -> 0 | K91: 0% | L91: =(SUMIFS(SOURCE_PARTS_SOC!H:H,SOURCE_PARTS_SOC!E:E,F91)) -> 0 | M91: 43,800 | N91: =I91*SUIVI_REGION!$E$4 -> 2,826 | O91: -2,826 | Q91: =VLOOKUP(F91,Objectifs!D:K,8,0) -> 189,500 | R91: =(SUMIF(EMPRUNT_ASV!D:D,SUIVI_PDV!E91,EMPRUNT_ASV!J:J)) -> 12,940 | S91: 7% | T91: 176,560 | U91: =Q91*SUIVI_REGION!$E$4 -> 12,226 | V91: 714 | W91: =VLOOKUP(F91,Objectifs!D:L,9,0) -> 12,800 | X91: =(SUMIF(EMPRUNT_CTO!H:H,SUIVI_PDV!D91,EMPRUNT_CTO!N:N)) -> 0 | Y91: 0% | Z91: 12,800 | AA91: =W91*SUIVI_REGION!$E$4 -> 826 | AB91: -826 | AD91: =(SUMIF(EMPRUNT_ASV!D:D,E91,EMPRUNT_ASV!K:K)) -> 0 | AF91: 0 | AG91: =(SUMIFS(PILCOT_AVEN_DUR!P:P,PILCOT_AVEN_DUR!H:H,D91))-(SUMIFS('FAF AU 31 MAI'!D:D,'FAF AU 31 MAI'!A:A,D91)) -> 0 | AH91: =(SUMIFS(PILCOT_ALIZE!P:P,PILCOT_ALIZE!H:H,D91))-(SUMIFS('FAF AU 31 MAI'!E:E,'FAF AU 31 MAI'!A:A,D91)) -> 0 | AI91: =(SUMIFS(PILCOT_CORALIUM!P:P,PILCOT_CORALIUM!H:H,D91))-(SUMIFS('FAF AU 31 MAI'!C:C,'FAF AU 31 MAI'!A:A,D91)) -> 0 | AK91: 0 | AL91: =(SUMIF(GEDEL!F:F,E91,GEDEL!N:N)) -> 0 | AM91: =(SUMIF(GEDEL!F:F,E91,GEDEL!O:O)) -> 0
A92: 80 | B92: VOSGES | C92: SAINT DIE | D92: 663 | E92: 151350000663 | F92: 88666 | G92: =VLOOKUP(F92,Objectifs!D:E,2,FALSE) -> VAGNEY | I92: =VLOOKUP(F92,Objectifs!D:M,10,FALSE) -> 50,400 | J92: =(SUMIFS(SOURCE_PARTS_SOC!G:G,SOURCE_PARTS_SOC!E:E,F92)) -> 0 | K92: 0% | L92: =(SUMIFS(SOURCE_PARTS_SOC!H:H,SOURCE_PARTS_SOC!E:E,F92)) -> 0 | M92: 50,400 | N92: =I92*SUIVI_REGION!$E$4 -> 3,252 | O92: -3,252 | Q92: =VLOOKUP(F92,Objectifs!D:K,8,0) -> 217,800 | R92: =(SUMIF(EMPRUNT_ASV!D:D,SUIVI_PDV!E92,EMPRUNT_ASV!J:J)) -> 0 | S92: 0% | T92: 217,800 | U92: =Q92*SUIVI_REGION!$E$4 -> 14,052 | V92: -14,052 | W92: =VLOOKUP(F92,Objectifs!D:L,9,0) -> 14,700 | X92: =(SUMIF(EMPRUNT_CTO!H:H,SUIVI_PDV!D92,EMPRUNT_CTO!N:N)) -> 0 | Y92: 0% | Z92: 14,700 | AA92: =W92*SUIVI_REGION!$E$4 -> 948 | AB92: -948 | AD92: =(SUMIF(EMPRUNT_ASV!D:D,E92,EMPRUNT_ASV!K:K)) -> 0 | AF92: 2,078 | AG92: =(SUMIFS(PILCOT_AVEN_DUR!P:P,PILCOT_AVEN_DUR!H:H,D92))-(SUMIFS('FAF AU 31 MAI'!D:D,'FAF AU 31 MAI'!A:A,D92)) -> 2,078 | AH92: =(SUMIFS(PILCOT_ALIZE!P:P,PILCOT_ALIZE!H:H,D92))-(SUMIFS('FAF AU 31 MAI'!E:E,'FAF AU 31 MAI'!A:A,D92)) -> 0 | AI92: =(SUMIFS(PILCOT_CORALIUM!P:P,PILCOT_CORALIUM!H:H,D92))-(SUMIFS('FAF AU 31 MAI'!C:C,'FAF AU 31 MAI'!A:A,D92)) -> 0 | AK92: 0 | AL92: =(SUMIF(GEDEL!F:F,E92,GEDEL!N:N)) -> 0 | AM92: =(SUMIF(GEDEL!F:F,E92,GEDEL!O:O)) -> 0
A93: 80 | B93: VOSGES | C93: SAINT DIE | D93: 606 | E93: 151350000606 | F93: 88461 | G93: =VLOOKUP(F93,Objectifs!D:E,2,FALSE) -> MOYENMOUTIER | I93: =VLOOKUP(F93,Objectifs!D:M,10,FALSE) -> 53,300 | J93: =(SUMIFS(SOURCE_PARTS_SOC!G:G,SOURCE_PARTS_SOC!E:E,F93)) -> 0 | K93: 0% | L93: =(SUMIFS(SOURCE_PARTS_SOC!H:H,SOURCE_PARTS_SOC!E:E,F93)) -> 0 | M93: 53,300 | N93: =I93*SUIVI_REGION!$E$4 -> 3,439 | O93: -3,439 | Q93: =VLOOKUP(F93,Objectifs!D:K,8,0) -> 230,700 | R93: =(SUMIF(EMPRUNT_ASV!D:D,SUIVI_PDV!E93,EMPRUNT_ASV!J:J)) -> 51,289 | S93: 22% | T93: 179,411 | U93: =Q93*SUIVI_REGION!$E$4 -> 14,884 | V93: 36,405 | W93: =VLOOKUP(F93,Objectifs!D:L,9,0) -> 15,600 | X93: =(SUMIF(EMPRUNT_CTO!H:H,SUIVI_PDV!D93,EMPRUNT_CTO!N:N)) -> 0 | Y93: 0% | Z93: 15,600 | AA93: =W93*SUIVI_REGION!$E$4 -> 1,006 | AB93: -1,006 | AD93: =(SUMIF(EMPRUNT_ASV!D:D,E93,EMPRUNT_ASV!K:K)) -> 0 | AF93: 0 | AG93: =(SUMIFS(PILCOT_AVEN_DUR!P:P,PILCOT_AVEN_DUR!H:H,D93))-(SUMIFS('FAF AU 31 MAI'!D:D,'FAF AU 31 MAI'!A:A,D93)) -> 0 | AH93: =(SUMIFS(PILCOT_ALIZE!P:P,PILCOT_ALIZE!H:H,D93))-(SUMIFS('FAF AU 31 MAI'!E:E,'FAF AU 31 MAI'!A:A,D93)) -> 0 | AI93: =(SUMIFS(PILCOT_CORALIUM!P:P,PILCOT_CORALIUM!H:H,D93))-(SUMIFS('FAF AU 31 MAI'!C:C,'FAF AU 31 MAI'!A:A,D93)) -> 0 | AK93: 0 | AL93: =(SUMIF(GEDEL!F:F,E93,GEDEL!N:N)) -> 0 | AM93: =(SUMIF(GEDEL!F:F,E93,GEDEL!O:O)) -> 0
A94: 80 | B94: VOSGES | C94: SAINT DIE | D94: 630 | E94: 151350000630 | F94: 88551 | G94: =VLOOKUP(F94,Objectifs!D:E,2,FALSE) -> RAMBERVILLERS | I94: =VLOOKUP(F94,Objectifs!D:M,10,FALSE) -> 62,100 | J94: =(SUMIFS(SOURCE_PARTS_SOC!G:G,SOURCE_PARTS_SOC!E:E,F94)) -> 0 | K94: 0% | L94: =(SUMIFS(SOURCE_PARTS_SOC!H:H,SOURCE_PARTS_SOC!E:E,F94)) -> 0 | M94: 62,100 | N94: =I94*SUIVI_REGION!$E$4 -> 4,006 | O94: -4,006 | Q94: =VLOOKUP(F94,Objectifs!D:K,8,0) -> 268,500 | R94: =(SUMIF(EMPRUNT_ASV!D:D,SUIVI_PDV!E94,EMPRUNT_ASV!J:J)) -> 0 | S94: 0% | T94: 268,500 | U94: =Q94*SUIVI_REGION!$E$4 -> 17,323 | V94: -17,323 | W94: =VLOOKUP(F94,Objectifs!D:L,9,0) -> 18,100 | X94: =(SUMIF(EMPRUNT_CTO!H:H,SUIVI_PDV!D94,EMPRUNT_CTO!N:N)) -> 0 | Y94: 0% | Z94: 18,100 | AA94: =W94*SUIVI_REGION!$E$4 -> 1,168 | AB94: -1,168 | AD94: =(SUMIF(EMPRUNT_ASV!D:D,E94,EMPRUNT_ASV!K:K)) -> 0 | AF94: 0 | AG94: =(SUMIFS(PILCOT_AVEN_DUR!P:P,PILCOT_AVEN_DUR!H:H,D94))-(SUMIFS('FAF AU 31 MAI'!D:D,'FAF AU 31 MAI'!A:A,D94)) -> 0 | AH94: =(SUMIFS(PILCOT_ALIZE!P:P,PILCOT_ALIZE!H:H,D94))-(SUMIFS('FAF AU 31 MAI'!E:E,'FAF AU 31 MAI'!A:A,D94)) -> 0 | AI94: =(SUMIFS(PILCOT_CORALIUM!P:P,PILCOT_CORALIUM!H:H,D94))-(SUMIFS('FAF AU 31 MAI'!C:C,'FAF AU 31 MAI'!A:A,D94)) -> 0 | AK94: 0 | AL94: =(SUMIF(GEDEL!F:F,E94,GEDEL!N:N)) -> 0 | AM94: =(SUMIF(GEDEL!F:F,E94,GEDEL!O:O)) -> 0
A95: 80 | B95: VOSGES | C95: SAINT DIE | D95: 631 | E95: 151350000631 | F95: 88556 | G95: =VLOOKUP(F95,Objectifs!D:E,2,FALSE) -> RAON L ETAPE | I95: =VLOOKUP(F95,Objectifs!D:M,10,FALSE) -> 59,000 | J95: =(SUMIFS(SOURCE_PARTS_SOC!G:G,SOURCE_PARTS_SOC!E:E,F95)) -> 0 | K95: 0% | L95: =(SUMIFS(SOURCE_PARTS_SOC!H:H,SOURCE_PARTS_SOC!E:E,F95)) -> 0 | M95: 59,000 | N95: =I95*SUIVI_REGION!$E$4 -> 3,806 | O95: -3,806 | Q95: =VLOOKUP(F95,Objectifs!D:K,8,0) -> 255,200 | R95: =(SUMIF(EMPRUNT_ASV!D:D,SUIVI_PDV!E95,EMPRUNT_ASV!J:J)) -> 0 | S95: 0% | T95: 255,200 | U95: =Q95*SUIVI_REGION!$E$4 -> 16,465 | V95: -16,465 | W95: =VLOOKUP(F95,Objectifs!D:L,9,0) -> 17,200 | X95: =(SUMIF(EMPRUNT_CTO!H:H,SUIVI_PDV!D95,EMPRUNT_CTO!N:N)) -> 0 | Y95: 0% | Z95: 17,200 | AA95: =W95*SUIVI_REGION!$E$4 -> 1,110 | AB95: -1,110 | AD95: =(SUMIF(EMPRUNT_ASV!D:D,E95,EMPRUNT_ASV!K:K)) -> 0 | AF95: 0 | AG95: =(SUMIFS(PILCOT_AVEN_DUR!P:P,PILCOT_AVEN_DUR!H:H,D95))-(SUMIFS('FAF AU 31 MAI'!D:D,'FAF AU 31 MAI'!A:A,D95)) -> 0 | AH95: =(SUMIFS(PILCOT_ALIZE!P:P,PILCOT_ALIZE!H:H,D95))-(SUMIFS('FAF AU 31 MAI'!E:E,'FAF AU 31 MAI'!A:A,D95)) -> 0 | AI95: =(SUMIFS(PILCOT_CORALIUM!P:P,PILCOT_CORALIUM!H:H,D95))-(SUMIFS('FAF AU 31 MAI'!C:C,'FAF AU 31 MAI'!A:A,D95)) -> 0 | AK95: 0 | AL95: =(SUMIF(GEDEL!F:F,E95,GEDEL!N:N)) -> 0 | AM95: =(SUMIF(GEDEL!F:F,E95,GEDEL!O:O)) -> 0
A96: 80 | B96: VOSGES | C96: SAINT DIE | D96: 551 | E96: 151350000551 | F96: 88316 | G96: =VLOOKUP(F96,Objectifs!D:E,2,FALSE) -> FRAIZE | I96: =VLOOKUP(F96,Objectifs!D:M,10,FALSE) -> 56,900 | J96: =(SUMIFS(SOURCE_PARTS_SOC!G:G,SOURCE_PARTS_SOC!E:E,F96)) -> 0 | K96: 0% | L96: =(SUMIFS(SOURCE_PARTS_SOC!H:H,SOURCE_PARTS_SOC!E:E,F96)) -> 0 | M96: 56,900 | N96: =I96*SUIVI_REGION!$E$4 -> 3,671 | O96: -3,671 | Q96: =VLOOKUP(F96,Objectifs!D:K,8,0) -> 245,900 | R96: =(SUMIF(EMPRUNT_ASV!D:D,SUIVI_PDV!E96,EMPRUNT_ASV!J:J)) -> 11,710 | S96: 5% | T96: 234,190 | U96: =Q96*SUIVI_REGION!$E$4 -> 15,865 | V96: -4,155 | W96: =VLOOKUP(F96,Objectifs!D:L,9,0) -> 16,600 | X96: =(SUMIF(EMPRUNT_CTO!H:H,SUIVI_PDV!D96,EMPRUNT_CTO!N:N)) -> 0 | Y96: 0% | Z96: 16,600 | AA96: =W96*SUIVI_REGION!$E$4 -> 1,071 | AB96: -1,071 | AD96: =(SUMIF(EMPRUNT_ASV!D:D,E96,EMPRUNT_ASV!K:K)) -> 0 | AF96: 0 | AG96: =(SUMIFS(PILCOT_AVEN_DUR!P:P,PILCOT_AVEN_DUR!H:H,D96))-(SUMIFS('FAF AU 31 MAI'!D:D,'FAF AU 31 MAI'!A:A,D96)) -> 0 | AH96: =(SUMIFS(PILCOT_ALIZE!P:P,PILCOT_ALIZE!H:H,D96))-(SUMIFS('FAF AU 31 MAI'!E:E,'FAF AU 31 MAI'!A:A,D96)) -> 0 | AI96: =(SUMIFS(PILCOT_CORALIUM!P:P,PILCOT_CORALIUM!H:H,D96))-(SUMIFS('FAF AU 31 MAI'!C:C,'FAF AU 31 MAI'!A:A,D96)) -> 0 | AK96: 0 | AL96: =(SUMIF(GEDEL!F:F,E96,GEDEL!N:N)) -> 0 | AM96: =(SUMIF(GEDEL!F:F,E96,GEDEL!O:O)) -> 0
A97: 80 | B97: VOSGES | C97: SAINT DIE | D97: 638 | E97: 151350000638 | F97: 88586 | G97: =VLOOKUP(F97,Objectifs!D:E,2,FALSE) -> SAINT DIE | I97: =VLOOKUP(F97,Objectifs!D:M,10,FALSE) -> 245,100 | J97: =(SUMIFS(SOURCE_PARTS_SOC!G:G,SOURCE_PARTS_SOC!E:E,F97)) -> 0 | K97: 0% | L97: =(SUMIFS(SOURCE_PARTS_SOC!H:H,SOURCE_PARTS_SOC!E:E,F97)) -> 0 | M97: 245,100 | N97: =I97*SUIVI_REGION!$E$4 -> 15,813 | O97: -15,813 | Q97: =VLOOKUP(F97,Objectifs!D:K,8,0) -> 1,059,300 | R97: =(SUMIF(EMPRUNT_ASV!D:D,SUIVI_PDV!E97,EMPRUNT_ASV!J:J)) -> 185,712 | S97: 18% | T97: 873,588 | U97: =Q97*SUIVI_REGION!$E$4 -> 68,342 | V97: 117,370 | W97: =VLOOKUP(F97,Objectifs!D:L,9,0) -> 71,800 | X97: =(SUMIF(EMPRUNT_CTO!H:H,SUIVI_PDV!D97,EMPRUNT_CTO!N:N)) -> 0 | Y97: 0% | Z97: 71,800 | AA97: =W97*SUIVI_REGION!$E$4 -> 4,632 | AB97: -4,632 | AD97: =(SUMIF(EMPRUNT_ASV!D:D,E97,EMPRUNT_ASV!K:K)) -> 0 | AF97: 4,587 | AG97: =(SUMIFS(PILCOT_AVEN_DUR!P:P,PILCOT_AVEN_DUR!H:H,D97))-(SUMIFS('FAF AU 31 MAI'!D:D,'FAF AU 31 MAI'!A:A,D97)) -> 4,587 | AH97: =(SUMIFS(PILCOT_ALIZE!P:P,PILCOT_ALIZE!H:H,D97))-(SUMIFS('FAF AU 31 MAI'!E:E,'FAF AU 31 MAI'!A:A,D97)) -> 0 | AI97: =(SUMIFS(PILCOT_CORALIUM!P:P,PILCOT_CORALIUM!H:H,D97))-(SUMIFS('FAF AU 31 MAI'!C:C,'FAF AU 31 MAI'!A:A,D97)) -> 0 | AK97: 0 | AL97: =(SUMIF(GEDEL!F:F,E97,GEDEL!N:N)) -> 0 | AM97: =(SUMIF(GEDEL!F:F,E97,GEDEL!O:O)) -> 0
A98: 80 | C98: Total Territoire SAINT DIE | I98: =SUBTOTAL(9,I88:I97) -> 760,200 | J98: =SUBTOTAL(9,J88:J97) -> 0 | K98: 0% | L98: =SUBTOTAL(9,L88:L97) -> 0 | M98: 760,200 | N98: =I98*SUIVI_REGION!$E$4 -> 49,045 | O98: -49,045 | Q98: =SUBTOTAL(9,Q88:Q97) -> 3,287,000 | R98: =SUBTOTAL(9,R88:R97) -> 261,651 | S98: 8% | T98: 3,025,349 | U98: =SUBTOTAL(9,U88:U97) -> 212,065 | V98: =SUBTOTAL(9,V88:V97) -> 49,586 | W98: =SUBTOTAL(9,W88:W97) -> 222,200 | X98: =SUBTOTAL(9,X88:X97) -> 0 | Y98: =IFERROR(X98/W98," ") -> 0% | Z98: =IF(X98>W98," ",W98-X98) -> 222,200 | AA98: =SUBTOTAL(9,AA88:AA97) -> 14,335 | AB98: =SUBTOTAL(9,AB88:AB97) -> -14,335 | AD98: =SUBTOTAL(9,AD88:AD97) -> 0 | AF98: =SUBTOTAL(9,AF88:AF97) -> 7,664 | AG98: =SUBTOTAL(9,AG88:AG97) -> 7,664 | AH98: =SUBTOTAL(9,AH88:AH97) -> 0 | AI98: =SUBTOTAL(9,AI88:AI97) -> 0 | AK98: =SUBTOTAL(9,AK88:AK97) -> 0 | AL98: =SUBTOTAL(9,AL88:AL97) -> 0 | AM98: 0
A99: 80 | B99: Total VOSGES | I99: =SUBTOTAL(9,I72:I98) -> 1,712,000 | J99: =SUBTOTAL(9,J72:J98) -> 0 | K99: 0% | L99: =SUBTOTAL(9,L72:L98) -> 0 | M99: 1,712,000 | N99: =I99*SUIVI_REGION!$E$4 -> 110,452 | O99: -110,452 | Q99: =SUBTOTAL(9,Q72:Q98) -> 7,400,000 | R99: =SUBTOTAL(9,R72:R98) -> 574,242 | S99: 8% | T99: 6,825,758 | U99: =SUBTOTAL(9,U72:U98) -> 477,419 | V99: =SUBTOTAL(9,V72:V98) -> 96,823 | W99: =SUBTOTAL(9,W72:W98) -> 500,000 | X99: =SUBTOTAL(9,X72:X98) -> 0 | Y99: =IFERROR(X99/W99," ") -> 0% | Z99: =IF(X99>W99," ",W99-X99) -> 500,000 | AA99: =SUBTOTAL(9,AA72:AA98) -> 32,258 | AB99: =X99-AA99 -> -32,258 | AD99: =SUBTOTAL(9,AD72:AD98) -> 0 | AF99: =SUBTOTAL(9,AF72:AF98) -> 16,074 | AG99: =SUBTOTAL(9,AG72:AG98) -> 7,664 | AH99: =SUBTOTAL(9,AH72:AH98) -> 0 | AI99: =SUBTOTAL(9,AI72:AI98) -> 8,410 | AK99: =SUBTOTAL(9,AK72:AK98) -> 0 | AL99: =SUBTOTAL(9,AL72:AL98) -> 0 | AM99: 0
A100: 110 | B100: MEURTHE ET MOSELLE MEUSE | C100: NANCY | D100: 507 | E100: =CONCATENATE(151350000,D100) -> 151350000507 | F100: 54116 | G100: =VLOOKUP(F100,Objectifs!D:E,2,FALSE) -> BACCARAT | I100: =VLOOKUP(F100,Objectifs!D:M,10,FALSE) -> 51,100 | J100: =(SUMIFS(SOURCE_PARTS_SOC!G:G,SOURCE_PARTS_SOC!E:E,F100)) -> 0 | K100: 0% | L100: =(SUMIFS(SOURCE_PARTS_SOC!H:H,SOURCE_PARTS_SOC!E:E,F100)) -> 0 | M100: 51,100 | N100: =I100*SUIVI_REGION!$E$4 -> 3,297 | O100: -3,297 | Q100: =VLOOKUP(F100,Objectifs!D:K,8,0) -> 220,800 | R100: =(SUMIF(EMPRUNT_ASV!D:D,SUIVI_PDV!E100,EMPRUNT_ASV!J:J)) -> 0 | S100: 0% | T100: 220,800 | U100: =Q100*SUIVI_REGION!$E$4 -> 14,245 | V100: =R100-U100 -> -14,245 | W100: =VLOOKUP(F100,Objectifs!D:L,9,0) -> 13,600 | X100: =(SUMIF(EMPRUNT_CTO!H:H,SUIVI_PDV!D100,EMPRUNT_CTO!N:N)) -> 0 | Y100: =IFERROR(X100/W100," ") -> 0% | Z100: =IF(X100>W100," ",W100-X100) -> 13,600 | AA100: =W100*SUIVI_REGION!$E$4 -> 877 | AB100: =X100-AA100 -> -877 | AD100: =(SUMIF(EMPRUNT_ASV!D:D,E100,EMPRUNT_ASV!K:K)) -> 0 | AF100: =AG100+AH100+AI100 -> 0 | AG100: =(SUMIFS(PILCOT_AVEN_DUR!P:P,PILCOT_AVEN_DUR!H:H,D100))-(SUMIFS('FAF AU 31 MAI'!D:D,'FAF AU 31 MAI'!A:A,D100)) -> 0 | AH100: =(SUMIFS(PILCOT_ALIZE!P:P,PILCOT_ALIZE!H:H,D100))-(SUMIFS('FAF AU 31 MAI'!E:E,'FAF AU 31 MAI'!A:A,D100)) -> 0 | AI100: =(SUMIFS(PILCOT_CORALIUM!P:P,PILCOT_CORALIUM!H:H,D100))-(SUMIFS('FAF AU 31 MAI'!C:C,'FAF AU 31 MAI'!A:A,D100)) -> 0 | AK100: =AL100+AM100 -> 0 | AL100: =(SUMIF(GEDEL!F:F,E100,GEDEL!N:N)) -> 0 | AM100: =(SUMIF(GEDEL!F:F,E100,GEDEL!O:O)) -> 0
A101: 110 | B101: MEURTHE ET MOSELLE MEUSE | C101: NANCY | D101: 513 | E101: 151350000513 | F101: 54166 | G101: =VLOOKUP(F101,Objectifs!D:E,2,FALSE) -> BLAINVILLE | I101: =VLOOKUP(F101,Objectifs!D:M,10,FALSE) -> 59,200 | J101: =(SUMIFS(SOURCE_PARTS_SOC!G:G,SOURCE_PARTS_SOC!E:E,F101)) -> 0 | K101: 0% | L101: =(SUMIFS(SOURCE_PARTS_SOC!H:H,SOURCE_PARTS_SOC!E:E,F101)) -> 0 | M101: 59,200 | N101: =I101*SUIVI_REGION!$E$4 -> 3,819 | O101: -3,819 | Q101: =VLOOKUP(F101,Objectifs!D:K,8,0) -> 256,100 | R101: =(SUMIF(EMPRUNT_ASV!D:D,SUIVI_PDV!E101,EMPRUNT_ASV!J:J)) -> 0 | S101: 0% | T101: 256,100 | U101: =Q101*SUIVI_REGION!$E$4 -> 16,523 | V101: -16,523 | W101: =VLOOKUP(F101,Objectifs!D:L,9,0) -> 15,800 | X101: =(SUMIF(EMPRUNT_CTO!H:H,SUIVI_PDV!D101,EMPRUNT_CTO!N:N)) -> 0 | Y101: =IFERROR(X101/W101," ") -> 0% | Z101: =IF(X101>W101," ",W101-X101) -> 15,800 | AA101: =W101*SUIVI_REGION!$E$4 -> 1,019 | AB101: =X101-AA101 -> -1,019 | AD101: =(SUMIF(EMPRUNT_ASV!D:D,E101,EMPRUNT_ASV!K:K)) -> 0 | AF101: =AG101+AH101+AI101 -> 0 | AG101: =(SUMIFS(PILCOT_AVEN_DUR!P:P,PILCOT_AVEN_DUR!H:H,D101))-(SUMIFS('FAF AU 31 MAI'!D:D,'FAF AU 31 MAI'!A:A,D101)) -> 0 | AH101: =(SUMIFS(PILCOT_ALIZE!P:P,PILCOT_ALIZE!H:H,D101))-(SUMIFS('FAF AU 31 MAI'!E:E,'FAF AU 31 MAI'!A:A,D101)) -> 0 | AI101: =(SUMIFS(PILCOT_CORALIUM!P:P,PILCOT_CORALIUM!H:H,D101))-(SUMIFS('FAF AU 31 MAI'!C:C,'FAF AU 31 MAI'!A:A,D101)) -> 0 | AK101: =AL101+AM101 -> 0 | AL101: =(SUMIF(GEDEL!F:F,E101,GEDEL!N:N)) -> 0 | AM101: =(SUMIF(GEDEL!F:F,E101,GEDEL!O:O)) -> 0
A102: 110 | B102: MEURTHE ET MOSELLE MEUSE | C102: NANCY | D102: 514 | E102: 151350000514 | F102: 54171 | G102: =VLOOKUP(F102,Objectifs!D:E,2,FALSE) -> BLAMONT | I102: =VLOOKUP(F102,Objectifs!D:M,10,FALSE) -> 26,200 | J102: =(SUMIFS(SOURCE_PARTS_SOC!G:G,SOURCE_PARTS_SOC!E:E,F102)) -> 0 | K102: 0% | L102: =(SUMIFS(SOURCE_PARTS_SOC!H:H,SOURCE_PARTS_SOC!E:E,F102)) -> 0 | M102: 26,200 | N102: =I102*SUIVI_REGION!$E$4 -> 1,690 | O102: -1,690 | Q102: =VLOOKUP(F102,Objectifs!D:K,8,0) -> 113,200 | R102: =(SUMIF(EMPRUNT_ASV!D:D,SUIVI_PDV!E102,EMPRUNT_ASV!J:J)) -> 0 | S102: 0% | T102: 113,200 | U102: =Q102*SUIVI_REGION!$E$4 -> 7,303 | V102: -7,303 | W102: =VLOOKUP(F102,Objectifs!D:L,9,0) -> 7,000 | X102: =(SUMIF(EMPRUNT_CTO!H:H,SUIVI_PDV!D102,EMPRUNT_CTO!N:N)) -> 0 | Y102: 0% | Z102: 7,000 | AA102: =W102*SUIVI_REGION!$E$4 -> 452 | AB102: -452 | AD102: =(SUMIF(EMPRUNT_ASV!D:D,E102,EMPRUNT_ASV!K:K)) -> 0 | AF102: 0 | AG102: =(SUMIFS(PILCOT_AVEN_DUR!P:P,PILCOT_AVEN_DUR!H:H,D102))-(SUMIFS('FAF AU 31 MAI'!D:D,'FAF AU 31 MAI'!A:A,D102)) -> 0 | AH102: =(SUMIFS(PILCOT_ALIZE!P:P,PILCOT_ALIZE!H:H,D102))-(SUMIFS('FAF AU 31 MAI'!E:E,'FAF AU 31 MAI'!A:A,D102)) -> 0 | AI102: =(SUMIFS(PILCOT_CORALIUM!P:P,PILCOT_CORALIUM!H:H,D102))-(SUMIFS('FAF AU 31 MAI'!C:C,'FAF AU 31 MAI'!A:A,D102)) -> 0 | AK102: 0 | AL102: =(SUMIF(GEDEL!F:F,E102,GEDEL!N:N)) -> 0 | AM102: =(SUMIF(GEDEL!F:F,E102,GEDEL!O:O)) -> 0
A103: 110 | B103: MEURTHE ET MOSELLE MEUSE | C103: NANCY | D103: 581 | E103: 151350000581 | F103: 54426 | G103: =VLOOKUP(F103,Objectifs!D:E,2,FALSE) -> LUNEVILLE CARNOT | I103: =VLOOKUP(F103,Objectifs!D:M,10,FALSE) -> 171,700 | J103: =(SUMIFS(SOURCE_PARTS_SOC!G:G,SOURCE_PARTS_SOC!E:E,F103)) -> 0 | K103: 0% | L103: =(SUMIFS(SOURCE_PARTS_SOC!H:H,SOURCE_PARTS_SOC!E:E,F103)) -> 0 | M103: 171,700 | N103: =I103*SUIVI_REGION!$E$4 -> 11,077 | O103: -11,077 | Q103: =VLOOKUP(F103,Objectifs!D:K,8,0) -> 742,400 | R103: =(SUMIF(EMPRUNT_ASV!D:D,SUIVI_PDV!E103,EMPRUNT_ASV!J:J)) -> 0 | S103: 0% | T103: 742,400 | U103: =Q103*SUIVI_REGION!$E$4 -> 47,897 | V103: -47,897 | W103: =VLOOKUP(F103,Objectifs!D:L,9,0) -> 45,700 | X103: =(SUMIF(EMPRUNT_CTO!H:H,SUIVI_PDV!D103,EMPRUNT_CTO!N:N)) -> 0 | Y103: 0% | Z103: 45,700 | AA103: =W103*SUIVI_REGION!$E$4 -> 2,948 | AB103: -2,948 | AD103: =(SUMIF(EMPRUNT_ASV!D:D,E103,EMPRUNT_ASV!K:K)) -> 0 | AF103: 0 | AG103: =(SUMIFS(PILCOT_AVEN_DUR!P:P,PILCOT_AVEN_DUR!H:H,D103))-(SUMIFS('FAF AU 31 MAI'!D:D,'FAF AU 31 MAI'!A:A,D103)) -> 0 | AH103: =(SUMIFS(PILCOT_ALIZE!P:P,PILCOT_ALIZE!H:H,D103))-(SUMIFS('FAF AU 31 MAI'!E:E,'FAF AU 31 MAI'!A:A,D103)) -> 0 | AI103: =(SUMIFS(PILCOT_CORALIUM!P:P,PILCOT_CORALIUM!H:H,D103))-(SUMIFS('FAF AU 31 MAI'!C:C,'FAF AU 31 MAI'!A:A,D103)) -> 0 | AK103: 0 | AL103: =(SUMIF(GEDEL!F:F,E103,GEDEL!N:N)) -> 0 | AM103: =(SUMIF(GEDEL!F:F,E103,GEDEL!O:O)) -> 0
A104: 110 | B104: MEURTHE ET MOSELLE MEUSE | C104: NANCY | D104: 542 | E104: 151350000542 | F104: 54296 | G104: =VLOOKUP(F104,Objectifs!D:E,2,FALSE) -> ESSEY LES NANCY | I104: =VLOOKUP(F104,Objectifs!D:M,10,FALSE) -> 71,100 | J104: =(SUMIFS(SOURCE_PARTS_SOC!G:G,SOURCE_PARTS_SOC!E:E,F104)) -> 0 | K104: 0% | L104: =(SUMIFS(SOURCE_PARTS_SOC!H:H,SOURCE_PARTS_SOC!E:E,F104)) -> 0 | M104: 71,100 | N104: =I104*SUIVI_REGION!$E$4 -> 4,587 | O104: -4,587 | Q104: =VLOOKUP(F104,Objectifs!D:K,8,0) -> 307,200 | R104: =(SUMIF(EMPRUNT_ASV!D:D,SUIVI_PDV!E104,EMPRUNT_ASV!J:J)) -> 0 | S104: 0% | T104: 307,200 | U104: =Q104*SUIVI_REGION!$E$4 -> 19,819 | V104: -19,819 | W104: =VLOOKUP(F104,Objectifs!D:L,9,0) -> 18,900 | X104: =(SUMIF(EMPRUNT_CTO!H:H,SUIVI_PDV!D104,EMPRUNT_CTO!N:N)) -> 0 | Y104: 0% | Z104: 18,900 | AA104: =W104*SUIVI_REGION!$E$4 -> 1,219 | AB104: -1,219 | AD104: =(SUMIF(EMPRUNT_ASV!D:D,E104,EMPRUNT_ASV!K:K)) -> 0 | AF104: 0 | AG104: =(SUMIFS(PILCOT_AVEN_DUR!P:P,PILCOT_AVEN_DUR!H:H,D104))-(SUMIFS('FAF AU 31 MAI'!D:D,'FAF AU 31 MAI'!A:A,D104)) -> 0 | AH104: =(SUMIFS(PILCOT_ALIZE!P:P,PILCOT_ALIZE!H:H,D104))-(SUMIFS('FAF AU 31 MAI'!E:E,'FAF AU 31 MAI'!A:A,D104)) -> 0 | AI104: =(SUMIFS(PILCOT_CORALIUM!P:P,PILCOT_CORALIUM!H:H,D104))-(SUMIFS('FAF AU 31 MAI'!C:C,'FAF AU 31 MAI'!A:A,D104)) -> 0 | AK104: 0 | AL104: =(SUMIF(GEDEL!F:F,E104,GEDEL!N:N)) -> 0 | AM104: =(SUMIF(GEDEL!F:F,E104,GEDEL!O:O)) -> 0
A105: 110 | B105: MEURTHE ET MOSELLE MEUSE | C105: NANCY | D105: 640 | E105: 151350000640 | F105: 54601 | G105: =VLOOKUP(F105,Objectifs!D:E,2,FALSE) -> SAINT MAX | I105: =VLOOKUP(F105,Objectifs!D:M,10,FALSE) -> 72,700 | J105: =(SUMIFS(SOURCE_PARTS_SOC!G:G,SOURCE_PARTS_SOC!E:E,F105)) -> 0 | K105: 0% | L105: =(SUMIFS(SOURCE_PARTS_SOC!H:H,SOURCE_PARTS_SOC!E:E,F105)) -> 0 | M105: 72,700 | N105: =I105*SUIVI_REGION!$E$4 -> 4,690 | O105: -4,690 | Q105: =VLOOKUP(F105,Objectifs!D:K,8,0) -> 314,400 | R105: =(SUMIF(EMPRUNT_ASV!D:D,SUIVI_PDV!E105,EMPRUNT_ASV!J:J)) -> 50,000 | S105: 16% | T105: 264,400 | U105: =Q105*SUIVI_REGION!$E$4 -> 20,284 | V105: 29,716 | W105: =VLOOKUP(F105,Objectifs!D:L,9,0) -> 19,300 | X105: =(SUMIF(EMPRUNT_CTO!H:H,SUIVI_PDV!D105,EMPRUNT_CTO!N:N)) -> 0 | Y105: 0% | Z105: 19,300 | AA105: =W105*SUIVI_REGION!$E$4 -> 1,245 | AB105: -1,245 | AD105: =(SUMIF(EMPRUNT_ASV!D:D,E105,EMPRUNT_ASV!K:K)) -> 0 | AF105: 0 | AG105: =(SUMIFS(PILCOT_AVEN_DUR!P:P,PILCOT_AVEN_DUR!H:H,D105))-(SUMIFS('FAF AU 31 MAI'!D:D,'FAF AU 31 MAI'!A:A,D105)) -> 0 | AH105: =(SUMIFS(PILCOT_ALIZE!P:P,PILCOT_ALIZE!H:H,D105))-(SUMIFS('FAF AU 31 MAI'!E:E,'FAF AU 31 MAI'!A:A,D105)) -> 0 | AI105: =(SUMIFS(PILCOT_CORALIUM!P:P,PILCOT_CORALIUM!H:H,D105))-(SUMIFS('FAF AU 31 MAI'!C:C,'FAF AU 31 MAI'!A:A,D105)) -> 0 | AK105: 0 | AL105: =(SUMIF(GEDEL!F:F,E105,GEDEL!N:N)) -> 0 | AM105: =(SUMIF(GEDEL!F:F,E105,GEDEL!O:O)) -> 0
A106: 110 | B106: MEURTHE ET MOSELLE MEUSE | C106: NANCY | D106: 660 | E106: 151350000660 | F106: 54636 | G106: =VLOOKUP(F106,Objectifs!D:E,2,FALSE) -> TOMBLAINE | I106: =VLOOKUP(F106,Objectifs!D:M,10,FALSE) -> 47,900 | J106: =(SUMIFS(SOURCE_PARTS_SOC!G:G,SOURCE_PARTS_SOC!E:E,F106)) -> 0 | K106: 0% | L106: =(SUMIFS(SOURCE_PARTS_SOC!H:H,SOURCE_PARTS_SOC!E:E,F106)) -> 0 | M106: 47,900 | N106: =I106*SUIVI_REGION!$E$4 -> 3,090 | O106: -3,090 | Q106: =VLOOKUP(F106,Objectifs!D:K,8,0) -> 207,300 | R106: =(SUMIF(EMPRUNT_ASV!D:D,SUIVI_PDV!E106,EMPRUNT_ASV!J:J)) -> 0 | S106: 0% | T106: 207,300 | U106: =Q106*SUIVI_REGION!$E$4 -> 13,374 | V106: -13,374 | W106: =VLOOKUP(F106,Objectifs!D:L,9,0) -> 12,800 | X106: =(SUMIF(EMPRUNT_CTO!H:H,SUIVI_PDV!D106,EMPRUNT_CTO!N:N)) -> 0 | Y106: 0% | Z106: 12,800 | AA106: =W106*SUIVI_REGION!$E$4 -> 826 | AB106: -826 | AD106: =(SUMIF(EMPRUNT_ASV!D:D,E106,EMPRUNT_ASV!K:K)) -> 0 | AF106: 0 | AG106: =(SUMIFS(PILCOT_AVEN_DUR!P:P,PILCOT_AVEN_DUR!H:H,D106))-(SUMIFS('FAF AU 31 MAI'!D:D,'FAF AU 31 MAI'!A:A,D106)) -> 0 | AH106: =(SUMIFS(PILCOT_ALIZE!P:P,PILCOT_ALIZE!H:H,D106))-(SUMIFS('FAF AU 31 MAI'!E:E,'FAF AU 31 MAI'!A:A,D106)) -> 0 | AI106: =(SUMIFS(PILCOT_CORALIUM!P:P,PILCOT_CORALIUM!H:H,D106))-(SUMIFS('FAF AU 31 MAI'!C:C,'FAF AU 31 MAI'!A:A,D106)) -> 0 | AK106: 0 | AL106: =(SUMIF(GEDEL!F:F,E106,GEDEL!N:N)) -> 0 | AM106: =(SUMIF(GEDEL!F:F,E106,GEDEL!O:O)) -> 0
A107: 110 | B107: MEURTHE ET MOSELLE MEUSE | C107: NANCY | D107: 612 | E107: 151350000612 | F107: 54481 | G107: =VLOOKUP(F107,Objectifs!D:E,2,FALSE) -> NANCY PLACE DOMBASLE | I107: =VLOOKUP(F107,Objectifs!D:M,10,FALSE) -> 184,500 | J107: =(SUMIFS(SOURCE_PARTS_SOC!G:G,SOURCE_PARTS_SOC!E:E,F107)) -> 0 | K107: 0% | L107: =(SUMIFS(SOURCE_PARTS_SOC!H:H,SOURCE_PARTS_SOC!E:E,F107)) -> 0 | M107: 184,500 | N107: =I107*SUIVI_REGION!$E$4 -> 11,903 | O107: -11,903 | Q107: =VLOOKUP(F107,Objectifs!D:K,8,0) -> 797,400 | R107: =(SUMIF(EMPRUNT_ASV!D:D,SUIVI_PDV!E107,EMPRUNT_ASV!J:J)) -> 0 | S107: 0% | T107: 797,400 | U107: =Q107*SUIVI_REGION!$E$4 -> 51,445 | V107: -51,445 | W107: =VLOOKUP(F107,Objectifs!D:L,9,0) -> 49,100 | X107: =(SUMIF(EMPRUNT_CTO!H:H,SUIVI_PDV!D107,EMPRUNT_CTO!N:N)) -> 0 | Y107: 0% | Z107: 49,100 | AA107: =W107*SUIVI_REGION!$E$4 -> 3,168 | AB107: -3,168 | AD107: =(SUMIF(EMPRUNT_ASV!D:D,E107,EMPRUNT_ASV!K:K)) -> 0 | AF107: 0 | AG107: =(SUMIFS(PILCOT_AVEN_DUR!P:P,PILCOT_AVEN_DUR!H:H,D107))-(SUMIFS('FAF AU 31 MAI'!D:D,'FAF AU 31 MAI'!A:A,D107)) -> 0 | AH107: =(SUMIFS(PILCOT_ALIZE!P:P,PILCOT_ALIZE!H:H,D107))-(SUMIFS('FAF AU 31 MAI'!E:E,'FAF AU 31 MAI'!A:A,D107)) -> 0 | AI107: =(SUMIFS(PILCOT_CORALIUM!P:P,PILCOT_CORALIUM!H:H,D107))-(SUMIFS('FAF AU 31 MAI'!C:C,'FAF AU 31 MAI'!A:A,D107)) -> 0 | AK107: 0 | AL107: =(SUMIF(GEDEL!F:F,E107,GEDEL!N:N)) -> 0 | AM107: =(SUMIF(GEDEL!F:F,E107,GEDEL!O:O)) -> 0
A108: 110 | B108: MEURTHE ET MOSELLE MEUSE | C108: NANCY | D108: 613 | E108: 151350000613 | F108: 54486 | G108: =VLOOKUP(F108,Objectifs!D:E,2,FALSE) -> NANCY POINT CENTRAL | I108: =VLOOKUP(F108,Objectifs!D:M,10,FALSE) -> 137,500 | J108: =(SUMIFS(SOURCE_PARTS_SOC!G:G,SOURCE_PARTS_SOC!E:E,F108)) -> 0 | K108: 0% | L108: =(SUMIFS(SOURCE_PARTS_SOC!H:H,SOURCE_PARTS_SOC!E:E,F108)) -> 0 | M108: 137,500 | N108: =I108*SUIVI_REGION!$E$4 -> 8,871 | O108: -8,871 | Q108: =VLOOKUP(F108,Objectifs!D:K,8,0) -> 594,400 | R108: =(SUMIF(EMPRUNT_ASV!D:D,SUIVI_PDV!E108,EMPRUNT_ASV!J:J)) -> 0 | S108: 0% | T108: 594,400 | U108: =Q108*SUIVI_REGION!$E$4 -> 38,348 | V108: -38,348 | W108: =VLOOKUP(F108,Objectifs!D:L,9,0) -> 36,600 | X108: =(SUMIF(EMPRUNT_CTO!H:H,SUIVI_PDV!D108,EMPRUNT_CTO!N:N)) -> 0 | Y108: 0% | Z108: 36,600 | AA108: =W108*SUIVI_REGION!$E$4 -> 2,361 | AB108: -2,361 | AD108: =(SUMIF(EMPRUNT_ASV!D:D,E108,EMPRUNT_ASV!K:K)) -> 0 | AF108: 0 | AG108: =(SUMIFS(PILCOT_AVEN_DUR!P:P,PILCOT_AVEN_DUR!H:H,D108))-(SUMIFS('FAF AU 31 MAI'!D:D,'FAF AU 31 MAI'!A:A,D108)) -> 0 | AH108: =(SUMIFS(PILCOT_ALIZE!P:P,PILCOT_ALIZE!H:H,D108))-(SUMIFS('FAF AU 31 MAI'!E:E,'FAF AU 31 MAI'!A:A,D108)) -> 0 | AI108: =(SUMIFS(PILCOT_CORALIUM!P:P,PILCOT_CORALIUM!H:H,D108))-(SUMIFS('FAF AU 31 MAI'!C:C,'FAF AU 31 MAI'!A:A,D108)) -> 0 | AK108: 0 | AL108: =(SUMIF(GEDEL!F:F,E108,GEDEL!N:N)) -> 0 | AM108: =(SUMIF(GEDEL!F:F,E108,GEDEL!O:O)) -> 0
A109: 110 | B109: MEURTHE ET MOSELLE MEUSE | C109: NANCY | D109: 537 | E109: 151350000537 | F109: 54266 | G109: =VLOOKUP(F109,Objectifs!D:E,2,FALSE) -> DOMBASLE SUR MEURTHE | I109: =VLOOKUP(F109,Objectifs!D:M,10,FALSE) -> 66,100 | J109: =(SUMIFS(SOURCE_PARTS_SOC!G:G,SOURCE_PARTS_SOC!E:E,F109)) -> 0 | K109: 0% | L109: =(SUMIFS(SOURCE_PARTS_SOC!H:H,SOURCE_PARTS_SOC!E:E,F109)) -> 0 | M109: 66,100 | N109: =I109*SUIVI_REGION!$E$4 -> 4,265 | O109: -4,265 | Q109: =VLOOKUP(F109,Objectifs!D:K,8,0) -> 285,600 | R109: =(SUMIF(EMPRUNT_ASV!D:D,SUIVI_PDV!E109,EMPRUNT_ASV!J:J)) -> 0 | S109: 0% | T109: 285,600 | U109: =Q109*SUIVI_REGION!$E$4 -> 18,426 | V109: -18,426 | W109: =VLOOKUP(F109,Objectifs!D:L,9,0) -> 17,600 | X109: =(SUMIF(EMPRUNT_CTO!H:H,SUIVI_PDV!D109,EMPRUNT_CTO!N:N)) -> 0 | Y109: 0% | Z109: 17,600 | AA109: =W109*SUIVI_REGION!$E$4 -> 1,135 | AB109: -1,135 | AD109: =(SUMIF(EMPRUNT_ASV!D:D,E109,EMPRUNT_ASV!K:K)) -> 0 | AF109: 0 | AG109: =(SUMIFS(PILCOT_AVEN_DUR!P:P,PILCOT_AVEN_DUR!H:H,D109))-(SUMIFS('FAF AU 31 MAI'!D:D,'FAF AU 31 MAI'!A:A,D109)) -> 0 | AH109: =(SUMIFS(PILCOT_ALIZE!P:P,PILCOT_ALIZE!H:H,D109))-(SUMIFS('FAF AU 31 MAI'!E:E,'FAF AU 31 MAI'!A:A,D109)) -> 0 | AI109: =(SUMIFS(PILCOT_CORALIUM!P:P,PILCOT_CORALIUM!H:H,D109))-(SUMIFS('FAF AU 31 MAI'!C:C,'FAF AU 31 MAI'!A:A,D109)) -> 0 | AK109: 0 | AL109: =(SUMIF(GEDEL!F:F,E109,GEDEL!N:N)) -> 0 | AM109: =(SUMIF(GEDEL!F:F,E109,GEDEL!O:O)) -> 0
A110: 110 | B110: MEURTHE ET MOSELLE MEUSE | C110: NANCY | D110: 567 | E110: 151350000567 | F110: 54356 | G110: =VLOOKUP(F110,Objectifs!D:E,2,FALSE) -> JARVILLE LA MALGRANGE | I110: =VLOOKUP(F110,Objectifs!D:M,10,FALSE) -> 68,800 | J110: =(SUMIFS(SOURCE_PARTS_SOC!G:G,SOURCE_PARTS_SOC!E:E,F110)) -> 0 | K110: 0% | L110: =(SUMIFS(SOURCE_PARTS_SOC!H:H,SOURCE_PARTS_SOC!E:E,F110)) -> 0 | M110: 68,800 | N110: =I110*SUIVI_REGION!$E$4 -> 4,439 | O110: -4,439 | Q110: =VLOOKUP(F110,Objectifs!D:K,8,0) -> 297,200 | R110: =(SUMIF(EMPRUNT_ASV!D:D,SUIVI_PDV!E110,EMPRUNT_ASV!J:J)) -> 9,000 | S110: 3% | T110: 288,200 | U110: =Q110*SUIVI_REGION!$E$4 -> 19,174 | V110: -10,174 | W110: =VLOOKUP(F110,Objectifs!D:L,9,0) -> 18,300 | X110: =(SUMIF(EMPRUNT_CTO!H:H,SUIVI_PDV!D110,EMPRUNT_CTO!N:N)) -> 0 | Y110: 0% | Z110: 18,300 | AA110: =W110*SUIVI_REGION!$E$4 -> 1,181 | AB110: -1,181 | AD110: =(SUMIF(EMPRUNT_ASV!D:D,E110,EMPRUNT_ASV!K:K)) -> 0 | AF110: 0 | AG110: =(SUMIFS(PILCOT_AVEN_DUR!P:P,PILCOT_AVEN_DUR!H:H,D110))-(SUMIFS('FAF AU 31 MAI'!D:D,'FAF AU 31 MAI'!A:A,D110)) -> 0 | AH110: =(SUMIFS(PILCOT_ALIZE!P:P,PILCOT_ALIZE!H:H,D110))-(SUMIFS('FAF AU 31 MAI'!E:E,'FAF AU 31 MAI'!A:A,D110)) -> 0 | AI110: =(SUMIFS(PILCOT_CORALIUM!P:P,PILCOT_CORALIUM!H:H,D110))-(SUMIFS('FAF AU 31 MAI'!C:C,'FAF AU 31 MAI'!A:A,D110)) -> 0 | AK110: 0 | AL110: =(SUMIF(GEDEL!F:F,E110,GEDEL!N:N)) -> 0 | AM110: =(SUMIF(GEDEL!F:F,E110,GEDEL!O:O)) -> 0
A111: 110 | B111: MEURTHE ET MOSELLE MEUSE | C111: NANCY | D111: 610 | E111: 151350000610 | F111: 54476 | G111: =VLOOKUP(F111,Objectifs!D:E,2,FALSE) -> NANCY ARTEM | I111: =VLOOKUP(F111,Objectifs!D:M,10,FALSE) -> 54,400 | J111: =(SUMIFS(SOURCE_PARTS_SOC!G:G,SOURCE_PARTS_SOC!E:E,F111)) -> 0 | K111: 0% | L111: =(SUMIFS(SOURCE_PARTS_SOC!H:H,SOURCE_PARTS_SOC!E:E,F111)) -> 0 | M111: 54,400 | N111: =I111*SUIVI_REGION!$E$4 -> 3,510 | O111: -3,510 | Q111: =VLOOKUP(F111,Objectifs!D:K,8,0) -> 235,200 | R111: =(SUMIF(EMPRUNT_ASV!D:D,SUIVI_PDV!E111,EMPRUNT_ASV!J:J)) -> 0 | S111: 0% | T111: 235,200 | U111: =Q111*SUIVI_REGION!$E$4 -> 15,174 | V111: -15,174 | W111: =VLOOKUP(F111,Objectifs!D:L,9,0) -> 14,500 | X111: =(SUMIF(EMPRUNT_CTO!H:H,SUIVI_PDV!D111,EMPRUNT_CTO!N:N)) -> 0 | Y111: 0% | Z111: 14,500 | AA111: =W111*SUIVI_REGION!$E$4 -> 935 | AB111: -935 | AD111: =(SUMIF(EMPRUNT_ASV!D:D,E111,EMPRUNT_ASV!K:K)) -> 0 | AF111: 0 | AG111: =(SUMIFS(PILCOT_AVEN_DUR!P:P,PILCOT_AVEN_DUR!H:H,D111))-(SUMIFS('FAF AU 31 MAI'!D:D,'FAF AU 31 MAI'!A:A,D111)) -> 0 | AH111: =(SUMIFS(PILCOT_ALIZE!P:P,PILCOT_ALIZE!H:H,D111))-(SUMIFS('FAF AU 31 MAI'!E:E,'FAF AU 31 MAI'!A:A,D111)) -> 0 | AI111: =(SUMIFS(PILCOT_CORALIUM!P:P,PILCOT_CORALIUM!H:H,D111))-(SUMIFS('FAF AU 31 MAI'!C:C,'FAF AU 31 MAI'!A:A,D111)) -> 0 | AK111: 0 | AL111: =(SUMIF(GEDEL!F:F,E111,GEDEL!N:N)) -> 0 | AM111: =(SUMIF(GEDEL!F:F,E111,GEDEL!O:O)) -> 0
A112: 110 | B112: MEURTHE ET MOSELLE MEUSE | C112: NANCY | D112: 642 | E112: 151350000642 | F112: 54611 | G112: =VLOOKUP(F112,Objectifs!D:E,2,FALSE) -> SAINT NICOLAS DE PORT | I112: =VLOOKUP(F112,Objectifs!D:M,10,FALSE) -> 51,100 | J112: =(SUMIFS(SOURCE_PARTS_SOC!G:G,SOURCE_PARTS_SOC!E:E,F112)) -> 0 | K112: 0% | L112: =(SUMIFS(SOURCE_PARTS_SOC!H:H,SOURCE_PARTS_SOC!E:E,F112)) -> 0 | M112: 51,100 | N112: =I112*SUIVI_REGION!$E$4 -> 3,297 | O112: -3,297 | Q112: =VLOOKUP(F112,Objectifs!D:K,8,0) -> 220,700 | R112: =(SUMIF(EMPRUNT_ASV!D:D,SUIVI_PDV!E112,EMPRUNT_ASV!J:J)) -> 0 | S112: 0% | T112: 220,700 | U112: =Q112*SUIVI_REGION!$E$4 -> 14,239 | V112: -14,239 | W112: =VLOOKUP(F112,Objectifs!D:L,9,0) -> 13,600 | X112: =(SUMIF(EMPRUNT_CTO!H:H,SUIVI_PDV!D112,EMPRUNT_CTO!N:N)) -> 0 | Y112: 0% | Z112: 13,600 | AA112: =W112*SUIVI_REGION!$E$4 -> 877 | AB112: -877 | AD112: =(SUMIF(EMPRUNT_ASV!D:D,E112,EMPRUNT_ASV!K:K)) -> 0 | AF112: 0 | AG112: =(SUMIFS(PILCOT_AVEN_DUR!P:P,PILCOT_AVEN_DUR!H:H,D112))-(SUMIFS('FAF AU 31 MAI'!D:D,'FAF AU 31 MAI'!A:A,D112)) -> 0 | AH112: =(SUMIFS(PILCOT_ALIZE!P:P,PILCOT_ALIZE!H:H,D112))-(SUMIFS('FAF AU 31 MAI'!E:E,'FAF AU 31 MAI'!A:A,D112)) -> 0 | AI112: =(SUMIFS(PILCOT_CORALIUM!P:P,PILCOT_CORALIUM!H:H,D112))-(SUMIFS('FAF AU 31 MAI'!C:C,'FAF AU 31 MAI'!A:A,D112)) -> 0 | AK112: 0 | AL112: =(SUMIF(GEDEL!F:F,E112,GEDEL!N:N)) -> 0 | AM112: =(SUMIF(GEDEL!F:F,E112,GEDEL!O:O)) -> 0
A113: 110 | B113: MEURTHE ET MOSELLE MEUSE | C113: NANCY | D113: 665 | E113: 151350000665 | F113: 54671 | G113: =VLOOKUP(F113,Objectifs!D:E,2,FALSE) -> VANDOEUVRE LES NANCY | I113: =VLOOKUP(F113,Objectifs!D:M,10,FALSE) -> 86,600 | J113: =(SUMIFS(SOURCE_PARTS_SOC!G:G,SOURCE_PARTS_SOC!E:E,F113)) -> 0 | K113: 0% | L113: =(SUMIFS(SOURCE_PARTS_SOC!H:H,SOURCE_PARTS_SOC!E:E,F113)) -> 0 | M113: 86,600 | N113: =I113*SUIVI_REGION!$E$4 -> 5,587 | O113: -5,587 | Q113: =VLOOKUP(F113,Objectifs!D:K,8,0) -> 373,900 | R113: =(SUMIF(EMPRUNT_ASV!D:D,SUIVI_PDV!E113,EMPRUNT_ASV!J:J)) -> 0 | S113: 0% | T113: 373,900 | U113: =Q113*SUIVI_REGION!$E$4 -> 24,123 | V113: -24,123 | W113: =VLOOKUP(F113,Objectifs!D:L,9,0) -> 23,000 | X113: =(SUMIF(EMPRUNT_CTO!H:H,SUIVI_PDV!D113,EMPRUNT_CTO!N:N)) -> 0 | Y113: 0% | Z113: 23,000 | AA113: =W113*SUIVI_REGION!$E$4 -> 1,484 | AB113: -1,484 | AD113: =(SUMIF(EMPRUNT_ASV!D:D,E113,EMPRUNT_ASV!K:K)) -> 0 | AF113: 0 | AG113: =(SUMIFS(PILCOT_AVEN_DUR!P:P,PILCOT_AVEN_DUR!H:H,D113))-(SUMIFS('FAF AU 31 MAI'!D:D,'FAF AU 31 MAI'!A:A,D113)) -> 0 | AH113: =(SUMIFS(PILCOT_ALIZE!P:P,PILCOT_ALIZE!H:H,D113))-(SUMIFS('FAF AU 31 MAI'!E:E,'FAF AU 31 MAI'!A:A,D113)) -> 0 | AI113: =(SUMIFS(PILCOT_CORALIUM!P:P,PILCOT_CORALIUM!H:H,D113))-(SUMIFS('FAF AU 31 MAI'!C:C,'FAF AU 31 MAI'!A:A,D113)) -> 0 | AK113: 0 | AL113: =(SUMIF(GEDEL!F:F,E113,GEDEL!N:N)) -> 0 | AM113: =(SUMIF(GEDEL!F:F,E113,GEDEL!O:O)) -> 0
A114: 110 | C114: Total Territoire NANCY | I114: =SUBTOTAL(9,I100:I113) -> 1,148,900 | J114: =SUBTOTAL(9,J100:J113) -> 0 | K114: 0% | L114: =SUBTOTAL(9,L104:L113) -> 0 | M114: 1,148,900 | N114: =I114*SUIVI_REGION!$E$4 -> 74,123 | O114: -74,123 | Q114: =SUBTOTAL(9,Q100:Q113) -> 4,965,800 | R114: =SUBTOTAL(9,R100:R113) -> 59,000 | S114: 1% | T114: 4,906,800 | U114: =SUBTOTAL(9,U100:U113) -> 320,374 | V114: =SUBTOTAL(9,V100:V113) -> -261,374 | W114: =SUBTOTAL(9,W100:W113) -> 305,800 | X114: =SUBTOTAL(9,X100:X113) -> 0 | Y114: =IFERROR(X114/W114," ") -> 0% | Z114: =IF(X114>W114," ",W114-X114) -> 305,800 | AA114: =SUBTOTAL(9,AA100:AA113) -> 19,729 | AB114: =SUBTOTAL(9,AB100:AB113) -> -19,729 | AD114: =SUBTOTAL(9,AD100:AD113) -> 0 | AF114: =SUBTOTAL(9,AF100:AF113) -> 0 | AG114: =SUBTOTAL(9,AG100:AG113) -> 0 | AH114: =SUBTOTAL(9,AH100:AH113) -> 0 | AI114: =SUBTOTAL(9,AI100:AI113) -> 0 | AK114: =SUBTOTAL(9,AK100:AK113) -> 0 | AL114: =SUBTOTAL(9,AL100:AL113) -> 0 | AM114: 0
A115: 110 | B115: MEURTHE ET MOSELLE MEUSE | C115: PONT A MOUSSON | D115: 519 | E115: =CONCATENATE(151350000,D115) -> 151350000519 | F115: 54184 | G115: =VLOOKUP(F115,Objectifs!D:E,2,FALSE) -> BRIEY | I115: =VLOOKUP(F115,Objectifs!D:M,10,FALSE) -> 66,300 | J115: =(SUMIFS(SOURCE_PARTS_SOC!G:G,SOURCE_PARTS_SOC!E:E,F115)) -> 0 | K115: 0% | L115: =(SUMIFS(SOURCE_PARTS_SOC!H:H,SOURCE_PARTS_SOC!E:E,F115)) -> 0 | M115: 66,300 | N115: =I115*SUIVI_REGION!$E$4 -> 4,277 | O115: -4,277 | Q115: =VLOOKUP(F115,Objectifs!D:K,8,0) -> 286,400 | R115: =(SUMIF(EMPRUNT_ASV!D:D,SUIVI_PDV!E115,EMPRUNT_ASV!J:J)) -> 0 | S115: 0% | T115: 286,400 | U115: =Q115*SUIVI_REGION!$E$4 -> 18,477 | V115: =R115-U115 -> -18,477 | W115: =VLOOKUP(F115,Objectifs!D:L,9,0) -> 17,600 | X115: =(SUMIF(EMPRUNT_CTO!H:H,SUIVI_PDV!D115,EMPRUNT_CTO!N:N)) -> 0 | Y115: =IFERROR(X115/W115," ") -> 0% | Z115: =IF(X115>W115," ",W115-X115) -> 17,600 | AA115: =W115*SUIVI_REGION!$E$4 -> 1,135 | AB115: =X115-AA115 -> -1,135 | AD115: =(SUMIF(EMPRUNT_ASV!D:D,E115,EMPRUNT_ASV!K:K)) -> 0 | AF115: =AG115+AH115+AI115 -> 0 | AG115: =(SUMIFS(PILCOT_AVEN_DUR!P:P,PILCOT_AVEN_DUR!H:H,D115))-(SUMIFS('FAF AU 31 MAI'!D:D,'FAF AU 31 MAI'!A:A,D115)) -> 0 | AH115: =(SUMIFS(PILCOT_ALIZE!P:P,PILCOT_ALIZE!H:H,D115))-(SUMIFS('FAF AU 31 MAI'!E:E,'FAF AU 31 MAI'!A:A,D115)) -> 0 | AI115: =(SUMIFS(PILCOT_CORALIUM!P:P,PILCOT_CORALIUM!H:H,D115))-(SUMIFS('FAF AU 31 MAI'!C:C,'FAF AU 31 MAI'!A:A,D115)) -> 0 | AK115: =AL115+AM115 -> 0 | AL115: =(SUMIF(GEDEL!F:F,E115,GEDEL!N:N)) -> 0 | AM115: =(SUMIF(GEDEL!F:F,E115,GEDEL!O:O)) -> 0
A116: 110 | B116: MEURTHE ET MOSELLE MEUSE | C116: PONT A MOUSSON | D116: 566 | E116: 151350000566 | F116: 54355 | G116: =VLOOKUP(F116,Objectifs!D:E,2,FALSE) -> JARNY | I116: =VLOOKUP(F116,Objectifs!D:M,10,FALSE) -> 77,000 | J116: =(SUMIFS(SOURCE_PARTS_SOC!G:G,SOURCE_PARTS_SOC!E:E,F116)) -> 0 | K116: 0% | L116: =(SUMIFS(SOURCE_PARTS_SOC!H:H,SOURCE_PARTS_SOC!E:E,F116)) -> 0 | M116: 77,000 | N116: =I116*SUIVI_REGION!$E$4 -> 4,968 | O116: -4,968 | Q116: =VLOOKUP(F116,Objectifs!D:K,8,0) -> 332,700 | R116: =(SUMIF(EMPRUNT_ASV!D:D,SUIVI_PDV!E116,EMPRUNT_ASV!J:J)) -> 0 | S116: 0% | T116: 332,700 | U116: =Q116*SUIVI_REGION!$E$4 -> 21,465 | V116: -21,465 | W116: =VLOOKUP(F116,Objectifs!D:L,9,0) -> 20,500 | X116: =(SUMIF(EMPRUNT_CTO!H:H,SUIVI_PDV!D116,EMPRUNT_CTO!N:N)) -> 0 | Y116: =IFERROR(X116/W116," ") -> 0% | Z116: =IF(X116>W116," ",W116-X116) -> 20,500 | AA116: =W116*SUIVI_REGION!$E$4 -> 1,323 | AB116: =X116-AA116 -> -1,323 | AD116: =(SUMIF(EMPRUNT_ASV!D:D,E116,EMPRUNT_ASV!K:K)) -> 0 | AF116: =AG116+AH116+AI116 -> 0 | AG116: =(SUMIFS(PILCOT_AVEN_DUR!P:P,PILCOT_AVEN_DUR!H:H,D116))-(SUMIFS('FAF AU 31 MAI'!D:D,'FAF AU 31 MAI'!A:A,D116)) -> 0 | AH116: =(SUMIFS(PILCOT_ALIZE!P:P,PILCOT_ALIZE!H:H,D116))-(SUMIFS('FAF AU 31 MAI'!E:E,'FAF AU 31 MAI'!A:A,D116)) -> 0 | AI116: =(SUMIFS(PILCOT_CORALIUM!P:P,PILCOT_CORALIUM!H:H,D116))-(SUMIFS('FAF AU 31 MAI'!C:C,'FAF AU 31 MAI'!A:A,D116)) -> 0 | AK116: =AL116+AM116 -> 0 | AL116: =(SUMIF(GEDEL!F:F,E116,GEDEL!N:N)) -> 0 | AM116: =(SUMIF(GEDEL!F:F,E116,GEDEL!O:O)) -> 0
A117: 110 | B117: MEURTHE ET MOSELLE MEUSE | C117: PONT A MOUSSON | D117: 568 | E117: 151350000568 | F117: 54357 | G117: =VLOOKUP(F117,Objectifs!D:E,2,FALSE) -> JOEUF | I117: =VLOOKUP(F117,Objectifs!D:M,10,FALSE) -> 46,300 | J117: =(SUMIFS(SOURCE_PARTS_SOC!G:G,SOURCE_PARTS_SOC!E:E,F117)) -> 0 | K117: 0% | L117: =(SUMIFS(SOURCE_PARTS_SOC!H:H,SOURCE_PARTS_SOC!E:E,F117)) -> 0 | M117: 46,300 | N117: =I117*SUIVI_REGION!$E$4 -> 2,987 | O117: -2,987 | Q117: =VLOOKUP(F117,Objectifs!D:K,8,0) -> 200,100 | R117: =(SUMIF(EMPRUNT_ASV!D:D,SUIVI_PDV!E117,EMPRUNT_ASV!J:J)) -> 0 | S117: 0% | T117: 200,100 | U117: =Q117*SUIVI_REGION!$E$4 -> 12,910 | V117: -12,910 | W117: =VLOOKUP(F117,Objectifs!D:L,9,0) -> 12,300 | X117: =(SUMIF(EMPRUNT_CTO!H:H,SUIVI_PDV!D117,EMPRUNT_CTO!N:N)) -> 0 | Y117: 0% | Z117: 12,300 | AA117: =W117*SUIVI_REGION!$E$4 -> 794 | AB117: -794 | AD117: =(SUMIF(EMPRUNT_ASV!D:D,E117,EMPRUNT_ASV!K:K)) -> 0 | AF117: 0 | AG117: =(SUMIFS(PILCOT_AVEN_DUR!P:P,PILCOT_AVEN_DUR!H:H,D117))-(SUMIFS('FAF AU 31 MAI'!D:D,'FAF AU 31 MAI'!A:A,D117)) -> 0 | AH117: =(SUMIFS(PILCOT_ALIZE!P:P,PILCOT_ALIZE!H:H,D117))-(SUMIFS('FAF AU 31 MAI'!E:E,'FAF AU 31 MAI'!A:A,D117)) -> 0 | AI117: =(SUMIFS(PILCOT_CORALIUM!P:P,PILCOT_CORALIUM!H:H,D117))-(SUMIFS('FAF AU 31 MAI'!C:C,'FAF AU 31 MAI'!A:A,D117)) -> 0 | AK117: 0 | AL117: =(SUMIF(GEDEL!F:F,E117,GEDEL!N:N)) -> 0 | AM117: =(SUMIF(GEDEL!F:F,E117,GEDEL!O:O)) -> 0
A118: 110 | B118: MEURTHE ET MOSELLE MEUSE | C118: PONT A MOUSSON | D118: 534 | E118: 151350000534 | F118: 54257 | G118: =VLOOKUP(F118,Objectifs!D:E,2,FALSE) -> DIEULOUARD | I118: =VLOOKUP(F118,Objectifs!D:M,10,FALSE) -> 45,400 | J118: =(SUMIFS(SOURCE_PARTS_SOC!G:G,SOURCE_PARTS_SOC!E:E,F118)) -> 0 | K118: 0% | L118: =(SUMIFS(SOURCE_PARTS_SOC!H:H,SOURCE_PARTS_SOC!E:E,F118)) -> 0 | M118: 45,400 | N118: =I118*SUIVI_REGION!$E$4 -> 2,929 | O118: -2,929 | Q118: =VLOOKUP(F118,Objectifs!D:K,8,0) -> 196,200 | R118: =(SUMIF(EMPRUNT_ASV!D:D,SUIVI_PDV!E118,EMPRUNT_ASV!J:J)) -> 0 | S118: 0% | T118: 196,200 | U118: =Q118*SUIVI_REGION!$E$4 -> 12,658 | V118: -12,658 | W118: =VLOOKUP(F118,Objectifs!D:L,9,0) -> 12,100 | X118: =(SUMIF(EMPRUNT_CTO!H:H,SUIVI_PDV!D118,EMPRUNT_CTO!N:N)) -> 0 | Y118: 0% | Z118: 12,100 | AA118: =W118*SUIVI_REGION!$E$4 -> 781 | AB118: -781 | AD118: =(SUMIF(EMPRUNT_ASV!D:D,E118,EMPRUNT_ASV!K:K)) -> 0 | AF118: 0 | AG118: =(SUMIFS(PILCOT_AVEN_DUR!P:P,PILCOT_AVEN_DUR!H:H,D118))-(SUMIFS('FAF AU 31 MAI'!D:D,'FAF AU 31 MAI'!A:A,D118)) -> 0 | AH118: =(SUMIFS(PILCOT_ALIZE!P:P,PILCOT_ALIZE!H:H,D118))-(SUMIFS('FAF AU 31 MAI'!E:E,'FAF AU 31 MAI'!A:A,D118)) -> 0 | AI118: =(SUMIFS(PILCOT_CORALIUM!P:P,PILCOT_CORALIUM!H:H,D118))-(SUMIFS('FAF AU 31 MAI'!C:C,'FAF AU 31 MAI'!A:A,D118)) -> 0 | AK118: 0 | AL118: =(SUMIF(GEDEL!F:F,E118,GEDEL!N:N)) -> 0 | AM118: =(SUMIF(GEDEL!F:F,E118,GEDEL!O:O)) -> 0
A119: 110 | B119: MEURTHE ET MOSELLE MEUSE | C119: PONT A MOUSSON | D119: 622 | E119: 151350000622 | F119: 54516 | G119: =VLOOKUP(F119,Objectifs!D:E,2,FALSE) -> PAGNY SUR MOSELLE | I119: =VLOOKUP(F119,Objectifs!D:M,10,FALSE) -> 45,900 | J119: =(SUMIFS(SOURCE_PARTS_SOC!G:G,SOURCE_PARTS_SOC!E:E,F119)) -> 0 | K119: 0% | L119: =(SUMIFS(SOURCE_PARTS_SOC!H:H,SOURCE_PARTS_SOC!E:E,F119)) -> 0 | M119: 45,900 | N119: =I119*SUIVI_REGION!$E$4 -> 2,961 | O119: -2,961 | Q119: =VLOOKUP(F119,Objectifs!D:K,8,0) -> 198,700 | R119: =(SUMIF(EMPRUNT_ASV!D:D,SUIVI_PDV!E119,EMPRUNT_ASV!J:J)) -> 0 | S119: 0% | T119: 198,700 | U119: =Q119*SUIVI_REGION!$E$4 -> 12,819 | V119: -12,819 | W119: =VLOOKUP(F119,Objectifs!D:L,9,0) -> 12,200 | X119: =(SUMIF(EMPRUNT_CTO!H:H,SUIVI_PDV!D119,EMPRUNT_CTO!N:N)) -> 0 | Y119: 0% | Z119: 12,200 | AA119: =W119*SUIVI_REGION!$E$4 -> 787 | AB119: -787 | AD119: =(SUMIF(EMPRUNT_ASV!D:D,E119,EMPRUNT_ASV!K:K)) -> 0 | AF119: 0 | AG119: =(SUMIFS(PILCOT_AVEN_DUR!P:P,PILCOT_AVEN_DUR!H:H,D119))-(SUMIFS('FAF AU 31 MAI'!D:D,'FAF AU 31 MAI'!A:A,D119)) -> 0 | AH119: =(SUMIFS(PILCOT_ALIZE!P:P,PILCOT_ALIZE!H:H,D119))-(SUMIFS('FAF AU 31 MAI'!E:E,'FAF AU 31 MAI'!A:A,D119)) -> 0 | AI119: =(SUMIFS(PILCOT_CORALIUM!P:P,PILCOT_CORALIUM!H:H,D119))-(SUMIFS('FAF AU 31 MAI'!C:C,'FAF AU 31 MAI'!A:A,D119)) -> 0 | AK119: 0 | AL119: =(SUMIF(GEDEL!F:F,E119,GEDEL!N:N)) -> 0 | AM119: =(SUMIF(GEDEL!F:F,E119,GEDEL!O:O)) -> 0
A120: 110 | B120: MEURTHE ET MOSELLE MEUSE | C120: PONT A MOUSSON | D120: 626 | E120: 151350000626 | F120: 54531 | G120: =VLOOKUP(F120,Objectifs!D:E,2,FALSE) -> POMPEY | I120: =VLOOKUP(F120,Objectifs!D:M,10,FALSE) -> 52,300 | J120: =(SUMIFS(SOURCE_PARTS_SOC!G:G,SOURCE_PARTS_SOC!E:E,F120)) -> 0 | K120: 0% | L120: =(SUMIFS(SOURCE_PARTS_SOC!H:H,SOURCE_PARTS_SOC!E:E,F120)) -> 0 | M120: 52,300 | N120: =I120*SUIVI_REGION!$E$4 -> 3,374 | O120: -3,374 | Q120: =VLOOKUP(F120,Objectifs!D:K,8,0) -> 226,000 | R120: =(SUMIF(EMPRUNT_ASV!D:D,SUIVI_PDV!E120,EMPRUNT_ASV!J:J)) -> 0 | S120: 0% | T120: 226,000 | U120: =Q120*SUIVI_REGION!$E$4 -> 14,581 | V120: -14,581 | W120: =VLOOKUP(F120,Objectifs!D:L,9,0) -> 13,900 | X120: =(SUMIF(EMPRUNT_CTO!H:H,SUIVI_PDV!D120,EMPRUNT_CTO!N:N)) -> 0 | Y120: 0% | Z120: 13,900 | AA120: =W120*SUIVI_REGION!$E$4 -> 897 | AB120: -897 | AD120: =(SUMIF(EMPRUNT_ASV!D:D,E120,EMPRUNT_ASV!K:K)) -> 0 | AF120: 0 | AG120: =(SUMIFS(PILCOT_AVEN_DUR!P:P,PILCOT_AVEN_DUR!H:H,D120))-(SUMIFS('FAF AU 31 MAI'!D:D,'FAF AU 31 MAI'!A:A,D120)) -> 0 | AH120: =(SUMIFS(PILCOT_ALIZE!P:P,PILCOT_ALIZE!H:H,D120))-(SUMIFS('FAF AU 31 MAI'!E:E,'FAF AU 31 MAI'!A:A,D120)) -> 0 | AI120: =(SUMIFS(PILCOT_CORALIUM!P:P,PILCOT_CORALIUM!H:H,D120))-(SUMIFS('FAF AU 31 MAI'!C:C,'FAF AU 31 MAI'!A:A,D120)) -> 0 | AK120: 0 | AL120: =(SUMIF(GEDEL!F:F,E120,GEDEL!N:N)) -> 0 | AM120: =(SUMIF(GEDEL!F:F,E120,GEDEL!O:O)) -> 0
A121: 110 | B121: MEURTHE ET MOSELLE MEUSE | C121: PONT A MOUSSON | D121: 628 | E121: 151350000628 | F121: 54535 | G121: =VLOOKUP(F121,Objectifs!D:E,2,FALSE) -> PONT A MOUSSON CENTRALE | I121: =VLOOKUP(F121,Objectifs!D:M,10,FALSE) -> 130,400 | J121: =(SUMIFS(SOURCE_PARTS_SOC!G:G,SOURCE_PARTS_SOC!E:E,F121)) -> 0 | K121: 0% | L121: =(SUMIFS(SOURCE_PARTS_SOC!H:H,SOURCE_PARTS_SOC!E:E,F121)) -> 0 | M121: 130,400 | N121: =I121*SUIVI_REGION!$E$4 -> 8,413 | O121: -8,413 | Q121: =VLOOKUP(F121,Objectifs!D:K,8,0) -> 563,500 | R121: =(SUMIF(EMPRUNT_ASV!D:D,SUIVI_PDV!E121,EMPRUNT_ASV!J:J)) -> 0 | S121: 0% | T121: 563,500 | U121: =Q121*SUIVI_REGION!$E$4 -> 36,355 | V121: -36,355 | W121: =VLOOKUP(F121,Objectifs!D:L,9,0) -> 34,700 | X121: =(SUMIF(EMPRUNT_CTO!H:H,SUIVI_PDV!D121,EMPRUNT_CTO!N:N)) -> 0 | Y121: 0% | Z121: 34,700 | AA121: =W121*SUIVI_REGION!$E$4 -> 2,239 | AB121: -2,239 | AD121: =(SUMIF(EMPRUNT_ASV!D:D,E121,EMPRUNT_ASV!K:K)) -> 0 | AF121: 0 | AG121: =(SUMIFS(PILCOT_AVEN_DUR!P:P,PILCOT_AVEN_DUR!H:H,D121))-(SUMIFS('FAF AU 31 MAI'!D:D,'FAF AU 31 MAI'!A:A,D121)) -> 0 | AH121: =(SUMIFS(PILCOT_ALIZE!P:P,PILCOT_ALIZE!H:H,D121))-(SUMIFS('FAF AU 31 MAI'!E:E,'FAF AU 31 MAI'!A:A,D121)) -> 0 | AI121: =(SUMIFS(PILCOT_CORALIUM!P:P,PILCOT_CORALIUM!H:H,D121))-(SUMIFS('FAF AU 31 MAI'!C:C,'FAF AU 31 MAI'!A:A,D121)) -> 0 | AK121: 0 | AL121: =(SUMIF(GEDEL!F:F,E121,GEDEL!N:N)) -> 0 | AM121: =(SUMIF(GEDEL!F:F,E121,GEDEL!O:O)) -> 0
A122: 110 | B122: MEURTHE ET MOSELLE MEUSE | C122: PONT A MOUSSON | D122: 580 | E122: 151350000580 | F122: 54416 | G122: =VLOOKUP(F122,Objectifs!D:E,2,FALSE) -> LUDRES | I122: =VLOOKUP(F122,Objectifs!D:M,10,FALSE) -> 68,400 | J122: =(SUMIFS(SOURCE_PARTS_SOC!G:G,SOURCE_PARTS_SOC!E:E,F122)) -> 0 | K122: 0% | L122: =(SUMIFS(SOURCE_PARTS_SOC!H:H,SOURCE_PARTS_SOC!E:E,F122)) -> 0 | M122: 68,400 | N122: =I122*SUIVI_REGION!$E$4 -> 4,413 | O122: -4,413 | Q122: =VLOOKUP(F122,Objectifs!D:K,8,0) -> 296,000 | R122: =(SUMIF(EMPRUNT_ASV!D:D,SUIVI_PDV!E122,EMPRUNT_ASV!J:J)) -> 0 | S122: 0% | T122: 296,000 | U122: =Q122*SUIVI_REGION!$E$4 -> 19,097 | V122: -19,097 | W122: =VLOOKUP(F122,Objectifs!D:L,9,0) -> 18,200 | X122: =(SUMIF(EMPRUNT_CTO!H:H,SUIVI_PDV!D122,EMPRUNT_CTO!N:N)) -> 0 | Y122: 0% | Z122: 18,200 | AA122: =W122*SUIVI_REGION!$E$4 -> 1,174 | AB122: -1,174 | AD122: =(SUMIF(EMPRUNT_ASV!D:D,E122,EMPRUNT_ASV!K:K)) -> 0 | AF122: 0 | AG122: =(SUMIFS(PILCOT_AVEN_DUR!P:P,PILCOT_AVEN_DUR!H:H,D122))-(SUMIFS('FAF AU 31 MAI'!D:D,'FAF AU 31 MAI'!A:A,D122)) -> 0 | AH122: =(SUMIFS(PILCOT_ALIZE!P:P,PILCOT_ALIZE!H:H,D122))-(SUMIFS('FAF AU 31 MAI'!E:E,'FAF AU 31 MAI'!A:A,D122)) -> 0 | AI122: =(SUMIFS(PILCOT_CORALIUM!P:P,PILCOT_CORALIUM!H:H,D122))-(SUMIFS('FAF AU 31 MAI'!C:C,'FAF AU 31 MAI'!A:A,D122)) -> 0 | AK122: 0 | AL122: =(SUMIF(GEDEL!F:F,E122,GEDEL!N:N)) -> 0 | AM122: =(SUMIF(GEDEL!F:F,E122,GEDEL!O:O)) -> 0
A123: 110 | B123: MEURTHE ET MOSELLE MEUSE | C123: PONT A MOUSSON | D123: 618 | E123: 151350000618 | F123: 54506 | G123: =VLOOKUP(F123,Objectifs!D:E,2,FALSE) -> CHALIGNY NEUVES MAISONS | I123: =VLOOKUP(F123,Objectifs!D:M,10,FALSE) -> 59,700 | J123: =(SUMIFS(SOURCE_PARTS_SOC!G:G,SOURCE_PARTS_SOC!E:E,F123)) -> 0 | K123: 0% | L123: =(SUMIFS(SOURCE_PARTS_SOC!H:H,SOURCE_PARTS_SOC!E:E,F123)) -> 0 | M123: 59,700 | N123: =I123*SUIVI_REGION!$E$4 -> 3,852 | O123: -3,852 | Q123: =VLOOKUP(F123,Objectifs!D:K,8,0) -> 258,000 | R123: =(SUMIF(EMPRUNT_ASV!D:D,SUIVI_PDV!E123,EMPRUNT_ASV!J:J)) -> 1,600 | S123: 1% | T123: 256,400 | U123: =Q123*SUIVI_REGION!$E$4 -> 16,645 | V123: -15,045 | W123: =VLOOKUP(F123,Objectifs!D:L,9,0) -> 15,900 | X123: =(SUMIF(EMPRUNT_CTO!H:H,SUIVI_PDV!D123,EMPRUNT_CTO!N:N)) -> 0 | Y123: 0% | Z123: 15,900 | AA123: =W123*SUIVI_REGION!$E$4 -> 1,026 | AB123: -1,026 | AD123: =(SUMIF(EMPRUNT_ASV!D:D,E123,EMPRUNT_ASV!K:K)) -> 0 | AF123: 0 | AG123: =(SUMIFS(PILCOT_AVEN_DUR!P:P,PILCOT_AVEN_DUR!H:H,D123))-(SUMIFS('FAF AU 31 MAI'!D:D,'FAF AU 31 MAI'!A:A,D123)) -> 0 | AH123: =(SUMIFS(PILCOT_ALIZE!P:P,PILCOT_ALIZE!H:H,D123))-(SUMIFS('FAF AU 31 MAI'!E:E,'FAF AU 31 MAI'!A:A,D123)) -> 0 | AI123: =(SUMIFS(PILCOT_CORALIUM!P:P,PILCOT_CORALIUM!H:H,D123))-(SUMIFS('FAF AU 31 MAI'!C:C,'FAF AU 31 MAI'!A:A,D123)) -> 0 | AK123: 0 | AL123: =(SUMIF(GEDEL!F:F,E123,GEDEL!N:N)) -> 0 | AM123: =(SUMIF(GEDEL!F:F,E123,GEDEL!O:O)) -> 0
A124: 110 | B124: MEURTHE ET MOSELLE MEUSE | C124: PONT A MOUSSON | D124: 661 | E124: 151350000661 | F124: 54651 | G124: =VLOOKUP(F124,Objectifs!D:E,2,FALSE) -> TOUL | I124: =VLOOKUP(F124,Objectifs!D:M,10,FALSE) -> 151,600 | J124: =(SUMIFS(SOURCE_PARTS_SOC!G:G,SOURCE_PARTS_SOC!E:E,F124)) -> 0 | K124: 0% | L124: =(SUMIFS(SOURCE_PARTS_SOC!H:H,SOURCE_PARTS_SOC!E:E,F124)) -> 0 | M124: 151,600 | N124: =I124*SUIVI_REGION!$E$4 -> 9,781 | O124: -9,781 | Q124: =VLOOKUP(F124,Objectifs!D:K,8,0) -> 654,900 | R124: =(SUMIF(EMPRUNT_ASV!D:D,SUIVI_PDV!E124,EMPRUNT_ASV!J:J)) -> 66,798 | S124: 10% | T124: 588,102 | U124: =Q124*SUIVI_REGION!$E$4 -> 42,252 | V124: 24,546 | W124: =VLOOKUP(F124,Objectifs!D:L,9,0) -> 40,300 | X124: =(SUMIF(EMPRUNT_CTO!H:H,SUIVI_PDV!D124,EMPRUNT_CTO!N:N)) -> 0 | Y124: 0% | Z124: 40,300 | AA124: =W124*SUIVI_REGION!$E$4 -> 2,600 | AB124: -2,600 | AD124: =(SUMIF(EMPRUNT_ASV!D:D,E124,EMPRUNT_ASV!K:K)) -> 0 | AF124: 0 | AG124: =(SUMIFS(PILCOT_AVEN_DUR!P:P,PILCOT_AVEN_DUR!H:H,D124))-(SUMIFS('FAF AU 31 MAI'!D:D,'FAF AU 31 MAI'!A:A,D124)) -> 0 | AH124: =(SUMIFS(PILCOT_ALIZE!P:P,PILCOT_ALIZE!H:H,D124))-(SUMIFS('FAF AU 31 MAI'!E:E,'FAF AU 31 MAI'!A:A,D124)) -> 0 | AI124: =(SUMIFS(PILCOT_CORALIUM!P:P,PILCOT_CORALIUM!H:H,D124))-(SUMIFS('FAF AU 31 MAI'!C:C,'FAF AU 31 MAI'!A:A,D124)) -> 0 | AK124: 0 | AL124: =(SUMIF(GEDEL!F:F,E124,GEDEL!N:N)) -> 0 | AM124: =(SUMIF(GEDEL!F:F,E124,GEDEL!O:O)) -> 0
A125: 110 | B125: MEURTHE ET MOSELLE MEUSE | C125: PONT A MOUSSON | D125: 669 | E125: 151350000669 | F125: 54686 | G125: =VLOOKUP(F125,Objectifs!D:E,2,FALSE) -> VEZELISE | I125: =VLOOKUP(F125,Objectifs!D:M,10,FALSE) -> 15,800 | J125: =(SUMIFS(SOURCE_PARTS_SOC!G:G,SOURCE_PARTS_SOC!E:E,F125)) -> 0 | K125: 0% | L125: =(SUMIFS(SOURCE_PARTS_SOC!H:H,SOURCE_PARTS_SOC!E:E,F125)) -> 0 | M125: 15,800 | N125: =I125*SUIVI_REGION!$E$4 -> 1,019 | O125: -1,019 | Q125: =VLOOKUP(F125,Objectifs!D:K,8,0) -> 68,300 | R125: =(SUMIF(EMPRUNT_ASV!D:D,SUIVI_PDV!E125,EMPRUNT_ASV!J:J)) -> 0 | S125: 0% | T125: 68,300 | U125: =Q125*SUIVI_REGION!$E$4 -> 4,406 | V125: -4,406 | W125: =VLOOKUP(F125,Objectifs!D:L,9,0) -> 4,200 | X125: =(SUMIF(EMPRUNT_CTO!H:H,SUIVI_PDV!D125,EMPRUNT_CTO!N:N)) -> 0 | Y125: 0% | Z125: 4,200 | AA125: =W125*SUIVI_REGION!$E$4 -> 271 | AB125: -271 | AD125: =(SUMIF(EMPRUNT_ASV!D:D,E125,EMPRUNT_ASV!K:K)) -> 0 | AF125: 0 | AG125: =(SUMIFS(PILCOT_AVEN_DUR!P:P,PILCOT_AVEN_DUR!H:H,D125))-(SUMIFS('FAF AU 31 MAI'!D:D,'FAF AU 31 MAI'!A:A,D125)) -> 0 | AH125: =(SUMIFS(PILCOT_ALIZE!P:P,PILCOT_ALIZE!H:H,D125))-(SUMIFS('FAF AU 31 MAI'!E:E,'FAF AU 31 MAI'!A:A,D125)) -> 0 | AI125: =(SUMIFS(PILCOT_CORALIUM!P:P,PILCOT_CORALIUM!H:H,D125))-(SUMIFS('FAF AU 31 MAI'!C:C,'FAF AU 31 MAI'!A:A,D125)) -> 0 | AK125: 0 | AL125: =(SUMIF(GEDEL!F:F,E125,GEDEL!N:N)) -> 0 | AM125: =(SUMIF(GEDEL!F:F,E125,GEDEL!O:O)) -> 0
A126: 110 | B126: MEURTHE ET MOSELLE MEUSE | C126: PONT A MOUSSON | D126: 522 | E126: 151350000522 | F126: 54196 | G126: =VLOOKUP(F126,Objectifs!D:E,2,FALSE) -> CHAMPIGNEULLES | I126: =VLOOKUP(F126,Objectifs!D:M,10,FALSE) -> 44,900 | J126: =(SUMIFS(SOURCE_PARTS_SOC!G:G,SOURCE_PARTS_SOC!E:E,F126)) -> 0 | K126: 0% | L126: =(SUMIFS(SOURCE_PARTS_SOC!H:H,SOURCE_PARTS_SOC!E:E,F126)) -> 0 | M126: 44,900 | N126: =I126*SUIVI_REGION!$E$4 -> 2,897 | O126: -2,897 | Q126: =VLOOKUP(F126,Objectifs!D:K,8,0) -> 194,100 | R126: =(SUMIF(EMPRUNT_ASV!D:D,SUIVI_PDV!E126,EMPRUNT_ASV!J:J)) -> 0 | S126: 0% | T126: 194,100 | U126: =Q126*SUIVI_REGION!$E$4 -> 12,523 | V126: -12,523 | W126: =VLOOKUP(F126,Objectifs!D:L,9,0) -> 11,900 | X126: =(SUMIF(EMPRUNT_CTO!H:H,SUIVI_PDV!D126,EMPRUNT_CTO!N:N)) -> 0 | Y126: 0% | Z126: 11,900 | AA126: =W126*SUIVI_REGION!$E$4 -> 768 | AB126: -768 | AD126: =(SUMIF(EMPRUNT_ASV!D:D,E126,EMPRUNT_ASV!K:K)) -> 0 | AF126: 0 | AG126: =(SUMIFS(PILCOT_AVEN_DUR!P:P,PILCOT_AVEN_DUR!H:H,D126))-(SUMIFS('FAF AU 31 MAI'!D:D,'FAF AU 31 MAI'!A:A,D126)) -> 0 | AH126: =(SUMIFS(PILCOT_ALIZE!P:P,PILCOT_ALIZE!H:H,D126))-(SUMIFS('FAF AU 31 MAI'!E:E,'FAF AU 31 MAI'!A:A,D126)) -> 0 | AI126: =(SUMIFS(PILCOT_CORALIUM!P:P,PILCOT_CORALIUM!H:H,D126))-(SUMIFS('FAF AU 31 MAI'!C:C,'FAF AU 31 MAI'!A:A,D126)) -> 0 | AK126: 0 | AL126: =(SUMIF(GEDEL!F:F,E126,GEDEL!N:N)) -> 0 | AM126: =(SUMIF(GEDEL!F:F,E126,GEDEL!O:O)) -> 0
A127: 110 | B127: MEURTHE ET MOSELLE MEUSE | C127: PONT A MOUSSON | D127: 573 | E127: 151350000573 | F127: 54376 | G127: =VLOOKUP(F127,Objectifs!D:E,2,FALSE) -> LAXOU BOUFFLERS | I127: =VLOOKUP(F127,Objectifs!D:M,10,FALSE) -> 41,400 | J127: =(SUMIFS(SOURCE_PARTS_SOC!G:G,SOURCE_PARTS_SOC!E:E,F127)) -> 0 | K127: 0% | L127: =(SUMIFS(SOURCE_PARTS_SOC!H:H,SOURCE_PARTS_SOC!E:E,F127)) -> 0 | M127: 41,400 | N127: =I127*SUIVI_REGION!$E$4 -> 2,671 | O127: -2,671 | Q127: =VLOOKUP(F127,Objectifs!D:K,8,0) -> 178,700 | R127: =(SUMIF(EMPRUNT_ASV!D:D,SUIVI_PDV!E127,EMPRUNT_ASV!J:J)) -> 0 | S127: 0% | T127: 178,700 | U127: =Q127*SUIVI_REGION!$E$4 -> 11,529 | V127: -11,529 | W127: =VLOOKUP(F127,Objectifs!D:L,9,0) -> 11,000 | X127: =(SUMIF(EMPRUNT_CTO!H:H,SUIVI_PDV!D127,EMPRUNT_CTO!N:N)) -> 0 | Y127: 0% | Z127: 11,000 | AA127: =W127*SUIVI_REGION!$E$4 -> 710 | AB127: -710 | AD127: =(SUMIF(EMPRUNT_ASV!D:D,E127,EMPRUNT_ASV!K:K)) -> 0 | AF127: 0 | AG127: =(SUMIFS(PILCOT_AVEN_DUR!P:P,PILCOT_AVEN_DUR!H:H,D127))-(SUMIFS('FAF AU 31 MAI'!D:D,'FAF AU 31 MAI'!A:A,D127)) -> 0 | AH127: =(SUMIFS(PILCOT_ALIZE!P:P,PILCOT_ALIZE!H:H,D127))-(SUMIFS('FAF AU 31 MAI'!E:E,'FAF AU 31 MAI'!A:A,D127)) -> 0 | AI127: =(SUMIFS(PILCOT_CORALIUM!P:P,PILCOT_CORALIUM!H:H,D127))-(SUMIFS('FAF AU 31 MAI'!C:C,'FAF AU 31 MAI'!A:A,D127)) -> 0 | AK127: 0 | AL127: =(SUMIF(GEDEL!F:F,E127,GEDEL!N:N)) -> 0 | AM127: =(SUMIF(GEDEL!F:F,E127,GEDEL!O:O)) -> 0
A128: 110 | B128: MEURTHE ET MOSELLE MEUSE | C128: PONT A MOUSSON | D128: 572 | E128: 151350000572 | F128: 54381 | G128: =VLOOKUP(F128,Objectifs!D:E,2,FALSE) -> LAXOU ARISTIDE BRIAND | I128: =VLOOKUP(F128,Objectifs!D:M,10,FALSE) -> 43,200 | J128: =(SUMIFS(SOURCE_PARTS_SOC!G:G,SOURCE_PARTS_SOC!E:E,F128)) -> 0 | K128: 0% | L128: =(SUMIFS(SOURCE_PARTS_SOC!H:H,SOURCE_PARTS_SOC!E:E,F128)) -> 0 | M128: 43,200 | N128: =I128*SUIVI_REGION!$E$4 -> 2,787 | O128: -2,787 | Q128: =VLOOKUP(F128,Objectifs!D:K,8,0) -> 186,400 | R128: =(SUMIF(EMPRUNT_ASV!D:D,SUIVI_PDV!E128,EMPRUNT_ASV!J:J)) -> 0 | S128: 0% | T128: 186,400 | U128: =Q128*SUIVI_REGION!$E$4 -> 12,026 | V128: -12,026 | W128: =VLOOKUP(F128,Objectifs!D:L,9,0) -> 11,500 | X128: =(SUMIF(EMPRUNT_CTO!H:H,SUIVI_PDV!D128,EMPRUNT_CTO!N:N)) -> 0 | Y128: 0% | Z128: 11,500 | AA128: =W128*SUIVI_REGION!$E$4 -> 742 | AB128: -742 | AD128: =(SUMIF(EMPRUNT_ASV!D:D,E128,EMPRUNT_ASV!K:K)) -> 0 | AF128: 0 | AG128: =(SUMIFS(PILCOT_AVEN_DUR!P:P,PILCOT_AVEN_DUR!H:H,D128))-(SUMIFS('FAF AU 31 MAI'!D:D,'FAF AU 31 MAI'!A:A,D128)) -> 0 | AH128: =(SUMIFS(PILCOT_ALIZE!P:P,PILCOT_ALIZE!H:H,D128))-(SUMIFS('FAF AU 31 MAI'!E:E,'FAF AU 31 MAI'!A:A,D128)) -> 0 | AI128: =(SUMIFS(PILCOT_CORALIUM!P:P,PILCOT_CORALIUM!H:H,D128))-(SUMIFS('FAF AU 31 MAI'!C:C,'FAF AU 31 MAI'!A:A,D128)) -> 0 | AK128: 0 | AL128: =(SUMIF(GEDEL!F:F,E128,GEDEL!N:N)) -> 0 | AM128: =(SUMIF(GEDEL!F:F,E128,GEDEL!O:O)) -> 0
A129: 110 | B129: MEURTHE ET MOSELLE MEUSE | C129: PONT A MOUSSON | D129: 615 | E129: 151350000615 | F129: 54496 | G129: =VLOOKUP(F129,Objectifs!D:E,2,FALSE) -> NANCY TROIS MAISONS | I129: =VLOOKUP(F129,Objectifs!D:M,10,FALSE) -> 45,700 | J129: =(SUMIFS(SOURCE_PARTS_SOC!G:G,SOURCE_PARTS_SOC!E:E,F129)) -> 0 | K129: 0% | L129: =(SUMIFS(SOURCE_PARTS_SOC!H:H,SOURCE_PARTS_SOC!E:E,F129)) -> 0 | M129: 45,700 | N129: =I129*SUIVI_REGION!$E$4 -> 2,948 | O129: -2,948 | Q129: =VLOOKUP(F129,Objectifs!D:K,8,0) -> 197,300 | R129: =(SUMIF(EMPRUNT_ASV!D:D,SUIVI_PDV!E129,EMPRUNT_ASV!J:J)) -> 0 | S129: 0% | T129: 197,300 | U129: =Q129*SUIVI_REGION!$E$4 -> 12,729 | V129: -12,729 | W129: =VLOOKUP(F129,Objectifs!D:L,9,0) -> 12,100 | X129: =(SUMIF(EMPRUNT_CTO!H:H,SUIVI_PDV!D129,EMPRUNT_CTO!N:N)) -> 0 | Y129: 0% | Z129: 12,100 | AA129: =W129*SUIVI_REGION!$E$4 -> 781 | AB129: -781 | AD129: =(SUMIF(EMPRUNT_ASV!D:D,E129,EMPRUNT_ASV!K:K)) -> 0 | AF129: 0 | AG129: =(SUMIFS(PILCOT_AVEN_DUR!P:P,PILCOT_AVEN_DUR!H:H,D129))-(SUMIFS('FAF AU 31 MAI'!D:D,'FAF AU 31 MAI'!A:A,D129)) -> 0 | AH129: =(SUMIFS(PILCOT_ALIZE!P:P,PILCOT_ALIZE!H:H,D129))-(SUMIFS('FAF AU 31 MAI'!E:E,'FAF AU 31 MAI'!A:A,D129)) -> 0 | AI129: =(SUMIFS(PILCOT_CORALIUM!P:P,PILCOT_CORALIUM!H:H,D129))-(SUMIFS('FAF AU 31 MAI'!C:C,'FAF AU 31 MAI'!A:A,D129)) -> 0 | AK129: 0 | AL129: =(SUMIF(GEDEL!F:F,E129,GEDEL!N:N)) -> 0 | AM129: =(SUMIF(GEDEL!F:F,E129,GEDEL!O:O)) -> 0
A130: 110 | B130: MEURTHE ET MOSELLE MEUSE | C130: PONT A MOUSSON | D130: 671 | E130: 151350000671 | F130: 54696 | G130: =VLOOKUP(F130,Objectifs!D:E,2,FALSE) -> VILLERS GENERAL LECLERC | I130: =VLOOKUP(F130,Objectifs!D:M,10,FALSE) -> 74,200 | J130: =(SUMIFS(SOURCE_PARTS_SOC!G:G,SOURCE_PARTS_SOC!E:E,F130)) -> 0 | K130: 0% | L130: =(SUMIFS(SOURCE_PARTS_SOC!H:H,SOURCE_PARTS_SOC!E:E,F130)) -> 0 | M130: 74,200 | N130: =I130*SUIVI_REGION!$E$4 -> 4,787 | O130: -4,787 | Q130: =VLOOKUP(F130,Objectifs!D:K,8,0) -> 320,500 | R130: =(SUMIF(EMPRUNT_ASV!D:D,SUIVI_PDV!E130,EMPRUNT_ASV!J:J)) -> 0 | S130: 0% | T130: 320,500 | U130: =Q130*SUIVI_REGION!$E$4 -> 20,677 | V130: -20,677 | W130: =VLOOKUP(F130,Objectifs!D:L,9,0) -> 19,700 | X130: =(SUMIF(EMPRUNT_CTO!H:H,SUIVI_PDV!D130,EMPRUNT_CTO!N:N)) -> 0 | Y130: 0% | Z130: 19,700 | AA130: =W130*SUIVI_REGION!$E$4 -> 1,271 | AB130: -1,271 | AD130: =(SUMIF(EMPRUNT_ASV!D:D,E130,EMPRUNT_ASV!K:K)) -> 0 | AF130: 0 | AG130: =(SUMIFS(PILCOT_AVEN_DUR!P:P,PILCOT_AVEN_DUR!H:H,D130))-(SUMIFS('FAF AU 31 MAI'!D:D,'FAF AU 31 MAI'!A:A,D130)) -> 0 | AH130: =(SUMIFS(PILCOT_ALIZE!P:P,PILCOT_ALIZE!H:H,D130))-(SUMIFS('FAF AU 31 MAI'!E:E,'FAF AU 31 MAI'!A:A,D130)) -> 0 | AI130: =(SUMIFS(PILCOT_CORALIUM!P:P,PILCOT_CORALIUM!H:H,D130))-(SUMIFS('FAF AU 31 MAI'!C:C,'FAF AU 31 MAI'!A:A,D130)) -> 0 | AK130: 0 | AL130: =(SUMIF(GEDEL!F:F,E130,GEDEL!N:N)) -> 0 | AM130: =(SUMIF(GEDEL!F:F,E130,GEDEL!O:O)) -> 0
A131: 110 | C131: Total Territoire PONT A MOUSSON | I131: =SUBTOTAL(9,I115:I130) -> 1,008,500 | J131: =SUBTOTAL(9,J115:J130) -> 0 | K131: =IFERROR(J131/I131," ") -> 0% | L131: =SUBTOTAL(9,L121:L130) -> 0 | M131: =IF(J131>I131," ",I131-J131) -> 1,008,500 | N131: =I131*SUIVI_REGION!$E$4 -> 65,065 | O131: =J131-N131 -> -65,065 | Q131: =SUBTOTAL(9,Q115:Q130) -> 4,357,800 | R131: =SUBTOTAL(9,R115:R130) -> 68,398 | S131: =IFERROR(R131/Q131," ") -> 2% | T131: =IF(R131>Q131," ",Q131-R131) -> 4,289,402 | U131: =SUBTOTAL(9,U115:U130) -> 281,148 | V131: =SUBTOTAL(9,V115:V130) -> -212,750 | W131: =SUBTOTAL(9,W115:W130) -> 268,100 | X131: =SUBTOTAL(9,X115:X130) -> 0 | Y131: =IFERROR(X131/W131," ") -> 0% | Z131: =IF(X131>W131," ",W131-X131) -> 268,100 | AA131: =SUBTOTAL(9,AA115:AA130) -> 17,297 | AB131: =SUBTOTAL(9,AB115:AB130) -> -17,297 | AD131: =SUBTOTAL(9,AD115:AD130) -> 0 | AF131: =SUBTOTAL(9,AF115:AF130) -> 0 | AG131: =SUBTOTAL(9,AG115:AG130) -> 0 | AH131: 0 | AI131: 0 | AK131: =SUBTOTAL(9,AK115:AK130) -> 0 | AL131: =SUBTOTAL(9,AL115:AL130) -> 0 | AM131: 0
A132: 110 | B132: MEURTHE ET MOSELLE MEUSE | C132: VERDUN | D132: 508 | E132: =CONCATENATE(151350000,D132) -> 151350000508 | F132: 55151 | G132: =VLOOKUP(F132,Objectifs!D:E,2,FALSE) -> BAR LE DUC | I132: =VLOOKUP(F132,Objectifs!D:M,10,FALSE) -> 178,900 | J132: =(SUMIFS(SOURCE_PARTS_SOC!G:G,SOURCE_PARTS_SOC!E:E,F132)) -> 0 | K132: 0% | L132: =(SUMIFS(SOURCE_PARTS_SOC!H:H,SOURCE_PARTS_SOC!E:E,F132)) -> 0 | M132: 178,900 | N132: =I132*SUIVI_REGION!$E$4 -> 11,542 | O132: -11,542 | Q132: =VLOOKUP(F132,Objectifs!D:K,8,0) -> 773,000 | R132: =(SUMIF(EMPRUNT_ASV!D:D,SUIVI_PDV!E132,EMPRUNT_ASV!J:J)) -> 0 | S132: 0% | T132: 773,000 | U132: =Q132*SUIVI_REGION!$E$4 -> 49,871 | V132: =R132-U132 -> -49,871 | W132: =VLOOKUP(F132,Objectifs!D:L,9,0) -> 47,600 | X132: =(SUMIF(EMPRUNT_CTO!H:H,SUIVI_PDV!D132,EMPRUNT_CTO!N:N)) -> 0 | Y132: =IFERROR(X132/W132," ") -> 0% | Z132: =IF(X132>W132," ",W132-X132) -> 47,600 | AA132: =W132*SUIVI_REGION!$E$4 -> 3,071 | AB132: =X132-AA132 -> -3,071 | AD132: =(SUMIF(EMPRUNT_ASV!D:D,E132,EMPRUNT_ASV!K:K)) -> 0 | AF132: =AG132+AH132+AI132 -> 0 | AG132: =(SUMIFS(PILCOT_AVEN_DUR!P:P,PILCOT_AVEN_DUR!H:H,D132))-(SUMIFS('FAF AU 31 MAI'!D:D,'FAF AU 31 MAI'!A:A,D132)) -> 0 | AH132: =(SUMIFS(PILCOT_ALIZE!P:P,PILCOT_ALIZE!H:H,D132))-(SUMIFS('FAF AU 31 MAI'!E:E,'FAF AU 31 MAI'!A:A,D132)) -> 0 | AI132: =(SUMIFS(PILCOT_CORALIUM!P:P,PILCOT_CORALIUM!H:H,D132))-(SUMIFS('FAF AU 31 MAI'!C:C,'FAF AU 31 MAI'!A:A,D132)) -> 0 | AK132: =AL132+AM132 -> 0 | AL132: =(SUMIF(GEDEL!F:F,E132,GEDEL!N:N)) -> 0 | AM132: =(SUMIF(GEDEL!F:F,E132,GEDEL!O:O)) -> 0
A133: 110 | B133: MEURTHE ET MOSELLE MEUSE | C133: VERDUN | D133: 576 | E133: 151350000576 | F133: 55406 | G133: =VLOOKUP(F133,Objectifs!D:E,2,FALSE) -> LIGNY EN BARROIS | I133: =VLOOKUP(F133,Objectifs!D:M,10,FALSE) -> 44,100 | J133: =(SUMIFS(SOURCE_PARTS_SOC!G:G,SOURCE_PARTS_SOC!E:E,F133)) -> 0 | K133: 0% | L133: =(SUMIFS(SOURCE_PARTS_SOC!H:H,SOURCE_PARTS_SOC!E:E,F133)) -> 0 | M133: 44,100 | N133: =I133*SUIVI_REGION!$E$4 -> 2,845 | O133: -2,845 | Q133: =VLOOKUP(F133,Objectifs!D:K,8,0) -> 190,700 | R133: =(SUMIF(EMPRUNT_ASV!D:D,SUIVI_PDV!E133,EMPRUNT_ASV!J:J)) -> 0 | S133: 0% | T133: 190,700 | U133: =Q133*SUIVI_REGION!$E$4 -> 12,303 | V133: -12,303 | W133: =VLOOKUP(F133,Objectifs!D:L,9,0) -> 11,700 | X133: =(SUMIF(EMPRUNT_CTO!H:H,SUIVI_PDV!D133,EMPRUNT_CTO!N:N)) -> 0 | Y133: =IFERROR(X133/W133," ") -> 0% | Z133: =IF(X133>W133," ",W133-X133) -> 11,700 | AA133: =W133*SUIVI_REGION!$E$4 -> 755 | AB133: =X133-AA133 -> -755 | AD133: =(SUMIF(EMPRUNT_ASV!D:D,E133,EMPRUNT_ASV!K:K)) -> 0 | AF133: =AG133+AH133+AI133 -> 0 | AG133: =(SUMIFS(PILCOT_AVEN_DUR!P:P,PILCOT_AVEN_DUR!H:H,D133))-(SUMIFS('FAF AU 31 MAI'!D:D,'FAF AU 31 MAI'!A:A,D133)) -> 0 | AH133: =(SUMIFS(PILCOT_ALIZE!P:P,PILCOT_ALIZE!H:H,D133))-(SUMIFS('FAF AU 31 MAI'!E:E,'FAF AU 31 MAI'!A:A,D133)) -> 0 | AI133: =(SUMIFS(PILCOT_CORALIUM!P:P,PILCOT_CORALIUM!H:H,D133))-(SUMIFS('FAF AU 31 MAI'!C:C,'FAF AU 31 MAI'!A:A,D133)) -> 0 | AK133: =AL133+AM133 -> 0 | AL133: =(SUMIF(GEDEL!F:F,E133,GEDEL!N:N)) -> 0 | AM133: =(SUMIF(GEDEL!F:F,E133,GEDEL!O:O)) -> 0
A134: 110 | B134: MEURTHE ET MOSELLE MEUSE | C134: VERDUN | D134: 634 | E134: 151350000634 | F134: 55566 | G134: =VLOOKUP(F134,Objectifs!D:E,2,FALSE) -> REVIGNY SUR ORNAIN | I134: =VLOOKUP(F134,Objectifs!D:M,10,FALSE) -> 41,000 | J134: =(SUMIFS(SOURCE_PARTS_SOC!G:G,SOURCE_PARTS_SOC!E:E,F134)) -> 0 | K134: 0% | L134: =(SUMIFS(SOURCE_PARTS_SOC!H:H,SOURCE_PARTS_SOC!E:E,F134)) -> 0 | M134: 41,000 | N134: =I134*SUIVI_REGION!$E$4 -> 2,645 | O134: -2,645 | Q134: =VLOOKUP(F134,Objectifs!D:K,8,0) -> 177,200 | R134: =(SUMIF(EMPRUNT_ASV!D:D,SUIVI_PDV!E134,EMPRUNT_ASV!J:J)) -> 0 | S134: 0% | T134: 177,200 | U134: =Q134*SUIVI_REGION!$E$4 -> 11,432 | V134: -11,432 | W134: =VLOOKUP(F134,Objectifs!D:L,9,0) -> 10,900 | X134: =(SUMIF(EMPRUNT_CTO!H:H,SUIVI_PDV!D134,EMPRUNT_CTO!N:N)) -> 0 | Y134: 0% | Z134: 10,900 | AA134: =W134*SUIVI_REGION!$E$4 -> 703 | AB134: -703 | AD134: =(SUMIF(EMPRUNT_ASV!D:D,E134,EMPRUNT_ASV!K:K)) -> 0 | AF134: 5,000 | AG134: =(SUMIFS(PILCOT_AVEN_DUR!P:P,PILCOT_AVEN_DUR!H:H,D134))-(SUMIFS('FAF AU 31 MAI'!D:D,'FAF AU 31 MAI'!A:A,D134)) -> 5,000 | AH134: =(SUMIFS(PILCOT_ALIZE!P:P,PILCOT_ALIZE!H:H,D134))-(SUMIFS('FAF AU 31 MAI'!E:E,'FAF AU 31 MAI'!A:A,D134)) -> 0 | AI134: =(SUMIFS(PILCOT_CORALIUM!P:P,PILCOT_CORALIUM!H:H,D134))-(SUMIFS('FAF AU 31 MAI'!C:C,'FAF AU 31 MAI'!A:A,D134)) -> 0 | AK134: 0 | AL134: =(SUMIF(GEDEL!F:F,E134,GEDEL!N:N)) -> 0 | AM134: =(SUMIF(GEDEL!F:F,E134,GEDEL!O:O)) -> 0
A135: 110 | B135: MEURTHE ET MOSELLE MEUSE | C135: VERDUN | D135: 528 | E135: 151350000528 | F135: 55231 | G135: =VLOOKUP(F135,Objectifs!D:E,2,FALSE) -> COMMERCY | I135: =VLOOKUP(F135,Objectifs!D:M,10,FALSE) -> 55,200 | J135: =(SUMIFS(SOURCE_PARTS_SOC!G:G,SOURCE_PARTS_SOC!E:E,F135)) -> 0 | K135: 0% | L135: =(SUMIFS(SOURCE_PARTS_SOC!H:H,SOURCE_PARTS_SOC!E:E,F135)) -> 0 | M135: 55,200 | N135: =I135*SUIVI_REGION!$E$4 -> 3,561 | O135: -3,561 | Q135: =VLOOKUP(F135,Objectifs!D:K,8,0) -> 238,700 | R135: =(SUMIF(EMPRUNT_ASV!D:D,SUIVI_PDV!E135,EMPRUNT_ASV!J:J)) -> 0 | S135: 0% | T135: 238,700 | U135: =Q135*SUIVI_REGION!$E$4 -> 15,400 | V135: -15,400 | W135: =VLOOKUP(F135,Objectifs!D:L,9,0) -> 14,700 | X135: =(SUMIF(EMPRUNT_CTO!H:H,SUIVI_PDV!D135,EMPRUNT_CTO!N:N)) -> 0 | Y135: 0% | Z135: 14,700 | AA135: =W135*SUIVI_REGION!$E$4 -> 948 | AB135: -948 | AD135: =(SUMIF(EMPRUNT_ASV!D:D,E135,EMPRUNT_ASV!K:K)) -> 0 | AF135: 0 | AG135: =(SUMIFS(PILCOT_AVEN_DUR!P:P,PILCOT_AVEN_DUR!H:H,D135))-(SUMIFS('FAF AU 31 MAI'!D:D,'FAF AU 31 MAI'!A:A,D135)) -> 0 | AH135: =(SUMIFS(PILCOT_ALIZE!P:P,PILCOT_ALIZE!H:H,D135))-(SUMIFS('FAF AU 31 MAI'!E:E,'FAF AU 31 MAI'!A:A,D135)) -> 0 | AI135: =(SUMIFS(PILCOT_CORALIUM!P:P,PILCOT_CORALIUM!H:H,D135))-(SUMIFS('FAF AU 31 MAI'!C:C,'FAF AU 31 MAI'!A:A,D135)) -> 0 | AK135: 0 | AL135: =(SUMIF(GEDEL!F:F,E135,GEDEL!N:N)) -> 0 | AM135: =(SUMIF(GEDEL!F:F,E135,GEDEL!O:O)) -> 0
A136: 110 | B136: MEURTHE ET MOSELLE MEUSE | C136: VERDUN | D136: 641 | E136: 151350000641 | F136: 55606 | G136: =VLOOKUP(F136,Objectifs!D:E,2,FALSE) -> SAINT MIHIEL | I136: =VLOOKUP(F136,Objectifs!D:M,10,FALSE) -> 32,500 | J136: =(SUMIFS(SOURCE_PARTS_SOC!G:G,SOURCE_PARTS_SOC!E:E,F136)) -> 0 | K136: 0% | L136: =(SUMIFS(SOURCE_PARTS_SOC!H:H,SOURCE_PARTS_SOC!E:E,F136)) -> 0 | M136: 32,500 | N136: =I136*SUIVI_REGION!$E$4 -> 2,097 | O136: -2,097 | Q136: =VLOOKUP(F136,Objectifs!D:K,8,0) -> 140,800 | R136: =(SUMIF(EMPRUNT_ASV!D:D,SUIVI_PDV!E136,EMPRUNT_ASV!J:J)) -> 0 | S136: 0% | T136: 140,800 | U136: =Q136*SUIVI_REGION!$E$4 -> 9,084 | V136: -9,084 | W136: =VLOOKUP(F136,Objectifs!D:L,9,0) -> 8,700 | X136: =(SUMIF(EMPRUNT_CTO!H:H,SUIVI_PDV!D136,EMPRUNT_CTO!N:N)) -> 0 | Y136: 0% | Z136: 8,700 | AA136: =W136*SUIVI_REGION!$E$4 -> 561 | AB136: -561 | AD136: =(SUMIF(EMPRUNT_ASV!D:D,E136,EMPRUNT_ASV!K:K)) -> 0 | AF136: 0 | AG136: =(SUMIFS(PILCOT_AVEN_DUR!P:P,PILCOT_AVEN_DUR!H:H,D136))-(SUMIFS('FAF AU 31 MAI'!D:D,'FAF AU 31 MAI'!A:A,D136)) -> 0 | AH136: =(SUMIFS(PILCOT_ALIZE!P:P,PILCOT_ALIZE!H:H,D136))-(SUMIFS('FAF AU 31 MAI'!E:E,'FAF AU 31 MAI'!A:A,D136)) -> 0 | AI136: =(SUMIFS(PILCOT_CORALIUM!P:P,PILCOT_CORALIUM!H:H,D136))-(SUMIFS('FAF AU 31 MAI'!C:C,'FAF AU 31 MAI'!A:A,D136)) -> 0 | AK136: 0 | AL136: =(SUMIF(GEDEL!F:F,E136,GEDEL!N:N)) -> 0 | AM136: =(SUMIF(GEDEL!F:F,E136,GEDEL!O:O)) -> 0
A137: 110 | B137: MEURTHE ET MOSELLE MEUSE | C137: VERDUN | D137: 666 | E137: 151350000666 | F137: 55676 | G137: =VLOOKUP(F137,Objectifs!D:E,2,FALSE) -> VAUCOULEURS | I137: =VLOOKUP(F137,Objectifs!D:M,10,FALSE) -> 11,300 | J137: =(SUMIFS(SOURCE_PARTS_SOC!G:G,SOURCE_PARTS_SOC!E:E,F137)) -> 0 | K137: 0% | L137: =(SUMIFS(SOURCE_PARTS_SOC!H:H,SOURCE_PARTS_SOC!E:E,F137)) -> 0 | M137: 11,300 | N137: =I137*SUIVI_REGION!$E$4 -> 729 | O137: -729 | Q137: =VLOOKUP(F137,Objectifs!D:K,8,0) -> 49,400 | R137: =(SUMIF(EMPRUNT_ASV!D:D,SUIVI_PDV!E137,EMPRUNT_ASV!J:J)) -> 0 | S137: 0% | T137: 49,400 | U137: =Q137*SUIVI_REGION!$E$4 -> 3,187 | V137: -3,187 | W137: =VLOOKUP(F137,Objectifs!D:L,9,0) -> 3,000 | X137: =(SUMIF(EMPRUNT_CTO!H:H,SUIVI_PDV!D137,EMPRUNT_CTO!N:N)) -> 0 | Y137: 0% | Z137: 3,000 | AA137: =W137*SUIVI_REGION!$E$4 -> 194 | AB137: -194 | AD137: =(SUMIF(EMPRUNT_ASV!D:D,E137,EMPRUNT_ASV!K:K)) -> 0 | AF137: 0 | AG137: =(SUMIFS(PILCOT_AVEN_DUR!P:P,PILCOT_AVEN_DUR!H:H,D137))-(SUMIFS('FAF AU 31 MAI'!D:D,'FAF AU 31 MAI'!A:A,D137)) -> 0 | AH137: =(SUMIFS(PILCOT_ALIZE!P:P,PILCOT_ALIZE!H:H,D137))-(SUMIFS('FAF AU 31 MAI'!E:E,'FAF AU 31 MAI'!A:A,D137)) -> 0 | AI137: =(SUMIFS(PILCOT_CORALIUM!P:P,PILCOT_CORALIUM!H:H,D137))-(SUMIFS('FAF AU 31 MAI'!C:C,'FAF AU 31 MAI'!A:A,D137)) -> 0 | AK137: 0 | AL137: =(SUMIF(GEDEL!F:F,E137,GEDEL!N:N)) -> 0 | AM137: =(SUMIF(GEDEL!F:F,E137,GEDEL!O:O)) -> 0
A138: 110 | B138: MEURTHE ET MOSELLE MEUSE | C138: VERDUN | D138: 577 | E138: 151350000577 | F138: 54412 | G138: =VLOOKUP(F138,Objectifs!D:E,2,FALSE) -> LONGUYON | I138: =VLOOKUP(F138,Objectifs!D:M,10,FALSE) -> 44,500 | J138: =(SUMIFS(SOURCE_PARTS_SOC!G:G,SOURCE_PARTS_SOC!E:E,F138)) -> 0 | K138: 0% | L138: =(SUMIFS(SOURCE_PARTS_SOC!H:H,SOURCE_PARTS_SOC!E:E,F138)) -> 0 | M138: 44,500 | N138: =I138*SUIVI_REGION!$E$4 -> 2,871 | O138: -2,871 | Q138: =VLOOKUP(F138,Objectifs!D:K,8,0) -> 192,300 | R138: =(SUMIF(EMPRUNT_ASV!D:D,SUIVI_PDV!E138,EMPRUNT_ASV!J:J)) -> 0 | S138: 0% | T138: 192,300 | U138: =Q138*SUIVI_REGION!$E$4 -> 12,406 | V138: -12,406 | W138: =VLOOKUP(F138,Objectifs!D:L,9,0) -> 11,800 | X138: =(SUMIF(EMPRUNT_CTO!H:H,SUIVI_PDV!D138,EMPRUNT_CTO!N:N)) -> 0 | Y138: 0% | Z138: 11,800 | AA138: =W138*SUIVI_REGION!$E$4 -> 761 | AB138: -761 | AD138: =(SUMIF(EMPRUNT_ASV!D:D,E138,EMPRUNT_ASV!K:K)) -> 0 | AF138: 0 | AG138: =(SUMIFS(PILCOT_AVEN_DUR!P:P,PILCOT_AVEN_DUR!H:H,D138))-(SUMIFS('FAF AU 31 MAI'!D:D,'FAF AU 31 MAI'!A:A,D138)) -> 0 | AH138: =(SUMIFS(PILCOT_ALIZE!P:P,PILCOT_ALIZE!H:H,D138))-(SUMIFS('FAF AU 31 MAI'!E:E,'FAF AU 31 MAI'!A:A,D138)) -> 0 | AI138: =(SUMIFS(PILCOT_CORALIUM!P:P,PILCOT_CORALIUM!H:H,D138))-(SUMIFS('FAF AU 31 MAI'!C:C,'FAF AU 31 MAI'!A:A,D138)) -> 0 | AK138: 0 | AL138: =(SUMIF(GEDEL!F:F,E138,GEDEL!N:N)) -> 0 | AM138: =(SUMIF(GEDEL!F:F,E138,GEDEL!O:O)) -> 0
A139: 110 | B139: MEURTHE ET MOSELLE MEUSE | C139: VERDUN | D139: 578 | E139: 151350000578 | F139: 54413 | G139: =VLOOKUP(F139,Objectifs!D:E,2,FALSE) -> LONGWY BAS | I139: =VLOOKUP(F139,Objectifs!D:M,10,FALSE) -> 61,900 | J139: =(SUMIFS(SOURCE_PARTS_SOC!G:G,SOURCE_PARTS_SOC!E:E,F139)) -> 0 | K139: 0% | L139: =(SUMIFS(SOURCE_PARTS_SOC!H:H,SOURCE_PARTS_SOC!E:E,F139)) -> 0 | M139: 61,900 | N139: =I139*SUIVI_REGION!$E$4 -> 3,994 | O139: -3,994 | Q139: =VLOOKUP(F139,Objectifs!D:K,8,0) -> 267,300 | R139: =(SUMIF(EMPRUNT_ASV!D:D,SUIVI_PDV!E139,EMPRUNT_ASV!J:J)) -> 0 | S139: 0% | T139: 267,300 | U139: =Q139*SUIVI_REGION!$E$4 -> 17,245 | V139: -17,245 | W139: =VLOOKUP(F139,Objectifs!D:L,9,0) -> 16,500 | X139: =(SUMIF(EMPRUNT_CTO!H:H,SUIVI_PDV!D139,EMPRUNT_CTO!N:N)) -> 0 | Y139: 0% | Z139: 16,500 | AA139: =W139*SUIVI_REGION!$E$4 -> 1,065 | AB139: -1,065 | AD139: =(SUMIF(EMPRUNT_ASV!D:D,E139,EMPRUNT_ASV!K:K)) -> 0 | AF139: 0 | AG139: =(SUMIFS(PILCOT_AVEN_DUR!P:P,PILCOT_AVEN_DUR!H:H,D139))-(SUMIFS('FAF AU 31 MAI'!D:D,'FAF AU 31 MAI'!A:A,D139)) -> 0 | AH139: =(SUMIFS(PILCOT_ALIZE!P:P,PILCOT_ALIZE!H:H,D139))-(SUMIFS('FAF AU 31 MAI'!E:E,'FAF AU 31 MAI'!A:A,D139)) -> 0 | AI139: =(SUMIFS(PILCOT_CORALIUM!P:P,PILCOT_CORALIUM!H:H,D139))-(SUMIFS('FAF AU 31 MAI'!C:C,'FAF AU 31 MAI'!A:A,D139)) -> 0 | AK139: 0 | AL139: =(SUMIF(GEDEL!F:F,E139,GEDEL!N:N)) -> 0 | AM139: =(SUMIF(GEDEL!F:F,E139,GEDEL!O:O)) -> 0
A140: 110 | B140: MEURTHE ET MOSELLE MEUSE | C140: VERDUN | D140: 579 | E140: 151350000579 | F140: 54414 | G140: =VLOOKUP(F140,Objectifs!D:E,2,FALSE) -> LONGWY HAUT | I140: =VLOOKUP(F140,Objectifs!D:M,10,FALSE) -> 59,100 | J140: =(SUMIFS(SOURCE_PARTS_SOC!G:G,SOURCE_PARTS_SOC!E:E,F140)) -> 0 | K140: 0% | L140: =(SUMIFS(SOURCE_PARTS_SOC!H:H,SOURCE_PARTS_SOC!E:E,F140)) -> 0 | M140: 59,100 | N140: =I140*SUIVI_REGION!$E$4 -> 3,813 | O140: -3,813 | Q140: =VLOOKUP(F140,Objectifs!D:K,8,0) -> 255,500 | R140: =(SUMIF(EMPRUNT_ASV!D:D,SUIVI_PDV!E140,EMPRUNT_ASV!J:J)) -> 0 | S140: 0% | T140: 255,500 | U140: =Q140*SUIVI_REGION!$E$4 -> 16,484 | V140: -16,484 | W140: =VLOOKUP(F140,Objectifs!D:L,9,0) -> 15,700 | X140: =(SUMIF(EMPRUNT_CTO!H:H,SUIVI_PDV!D140,EMPRUNT_CTO!N:N)) -> 0 | Y140: 0% | Z140: 15,700 | AA140: =W140*SUIVI_REGION!$E$4 -> 1,013 | AB140: -1,013 | AD140: =(SUMIF(EMPRUNT_ASV!D:D,E140,EMPRUNT_ASV!K:K)) -> 0 | AF140: 0 | AG140: =(SUMIFS(PILCOT_AVEN_DUR!P:P,PILCOT_AVEN_DUR!H:H,D140))-(SUMIFS('FAF AU 31 MAI'!D:D,'FAF AU 31 MAI'!A:A,D140)) -> 0 | AH140: =(SUMIFS(PILCOT_ALIZE!P:P,PILCOT_ALIZE!H:H,D140))-(SUMIFS('FAF AU 31 MAI'!E:E,'FAF AU 31 MAI'!A:A,D140)) -> 0 | AI140: =(SUMIFS(PILCOT_CORALIUM!P:P,PILCOT_CORALIUM!H:H,D140))-(SUMIFS('FAF AU 31 MAI'!C:C,'FAF AU 31 MAI'!A:A,D140)) -> 0 | AK140: 0 | AL140: =(SUMIF(GEDEL!F:F,E140,GEDEL!N:N)) -> 0 | AM140: =(SUMIF(GEDEL!F:F,E140,GEDEL!O:O)) -> 0
A141: 110 | B141: MEURTHE ET MOSELLE MEUSE | C141: VERDUN | D141: 672 | E141: 151350000672 | F141: 54700 | G141: =VLOOKUP(F141,Objectifs!D:E,2,FALSE) -> VILLERUPT | I141: =VLOOKUP(F141,Objectifs!D:M,10,FALSE) -> 48,800 | J141: =(SUMIFS(SOURCE_PARTS_SOC!G:G,SOURCE_PARTS_SOC!E:E,F141)) -> 0 | K141: 0% | L141: =(SUMIFS(SOURCE_PARTS_SOC!H:H,SOURCE_PARTS_SOC!E:E,F141)) -> 0 | M141: 48,800 | N141: =I141*SUIVI_REGION!$E$4 -> 3,148 | O141: -3,148 | Q141: =VLOOKUP(F141,Objectifs!D:K,8,0) -> 210,600 | R141: =(SUMIF(EMPRUNT_ASV!D:D,SUIVI_PDV!E141,EMPRUNT_ASV!J:J)) -> 31,500 | S141: 15% | T141: 179,100 | U141: =Q141*SUIVI_REGION!$E$4 -> 13,587 | V141: 17,913 | W141: =VLOOKUP(F141,Objectifs!D:L,9,0) -> 13,000 | X141: =(SUMIF(EMPRUNT_CTO!H:H,SUIVI_PDV!D141,EMPRUNT_CTO!N:N)) -> 0 | Y141: 0% | Z141: 13,000 | AA141: =W141*SUIVI_REGION!$E$4 -> 839 | AB141: -839 | AD141: =(SUMIF(EMPRUNT_ASV!D:D,E141,EMPRUNT_ASV!K:K)) -> 0 | AF141: 0 | AG141: =(SUMIFS(PILCOT_AVEN_DUR!P:P,PILCOT_AVEN_DUR!H:H,D141))-(SUMIFS('FAF AU 31 MAI'!D:D,'FAF AU 31 MAI'!A:A,D141)) -> 0 | AH141: =(SUMIFS(PILCOT_ALIZE!P:P,PILCOT_ALIZE!H:H,D141))-(SUMIFS('FAF AU 31 MAI'!E:E,'FAF AU 31 MAI'!A:A,D141)) -> 0 | AI141: =(SUMIFS(PILCOT_CORALIUM!P:P,PILCOT_CORALIUM!H:H,D141))-(SUMIFS('FAF AU 31 MAI'!C:C,'FAF AU 31 MAI'!A:A,D141)) -> 0 | AK141: 0 | AL141: =(SUMIF(GEDEL!F:F,E141,GEDEL!N:N)) -> 0 | AM141: =(SUMIF(GEDEL!F:F,E141,GEDEL!O:O)) -> 0
A142: 110 | B142: MEURTHE ET MOSELLE MEUSE | C142: VERDUN | D142: 603 | E142: 151350000603 | F142: 55456 | G142: =VLOOKUP(F142,Objectifs!D:E,2,FALSE) -> MONTMEDY | I142: =VLOOKUP(F142,Objectifs!D:M,10,FALSE) -> 8,600 | J142: =(SUMIFS(SOURCE_PARTS_SOC!G:G,SOURCE_PARTS_SOC!E:E,F142)) -> 0 | K142: 0% | L142: =(SUMIFS(SOURCE_PARTS_SOC!H:H,SOURCE_PARTS_SOC!E:E,F142)) -> 0 | M142: 8,600 | N142: =I142*SUIVI_REGION!$E$4 -> 555 | O142: -555 | Q142: =VLOOKUP(F142,Objectifs!D:K,8,0) -> 37,000 | R142: =(SUMIF(EMPRUNT_ASV!D:D,SUIVI_PDV!E142,EMPRUNT_ASV!J:J)) -> 0 | S142: 0% | T142: 37,000 | U142: =Q142*SUIVI_REGION!$E$4 -> 2,387 | V142: -2,387 | W142: =VLOOKUP(F142,Objectifs!D:L,9,0) -> 2,100 | X142: =(SUMIF(EMPRUNT_CTO!H:H,SUIVI_PDV!D142,EMPRUNT_CTO!N:N)) -> 0 | Y142: 0% | Z142: 2,100 | AA142: =W142*SUIVI_REGION!$E$4 -> 135 | AB142: -135 | AD142: =(SUMIF(EMPRUNT_ASV!D:D,E142,EMPRUNT_ASV!K:K)) -> 0 | AF142: 0 | AG142: =(SUMIFS(PILCOT_AVEN_DUR!P:P,PILCOT_AVEN_DUR!H:H,D142))-(SUMIFS('FAF AU 31 MAI'!D:D,'FAF AU 31 MAI'!A:A,D142)) -> 0 | AH142: =(SUMIFS(PILCOT_ALIZE!P:P,PILCOT_ALIZE!H:H,D142))-(SUMIFS('FAF AU 31 MAI'!E:E,'FAF AU 31 MAI'!A:A,D142)) -> 0 | AI142: =(SUMIFS(PILCOT_CORALIUM!P:P,PILCOT_CORALIUM!H:H,D142))-(SUMIFS('FAF AU 31 MAI'!C:C,'FAF AU 31 MAI'!A:A,D142)) -> 0 | AK142: 0 | AL142: =(SUMIF(GEDEL!F:F,E142,GEDEL!N:N)) -> 0 | AM142: =(SUMIF(GEDEL!F:F,E142,GEDEL!O:O)) -> 0
A143: 110 | B143: MEURTHE ET MOSELLE MEUSE | C143: VERDUN | D143: 652 | E143: 151350000652 | F143: 55624 | G143: =VLOOKUP(F143,Objectifs!D:E,2,FALSE) -> STENAY | I143: =VLOOKUP(F143,Objectifs!D:M,10,FALSE) -> 43,900 | J143: =(SUMIFS(SOURCE_PARTS_SOC!G:G,SOURCE_PARTS_SOC!E:E,F143)) -> 0 | K143: 0% | L143: =(SUMIFS(SOURCE_PARTS_SOC!H:H,SOURCE_PARTS_SOC!E:E,F143)) -> 0 | M143: 43,900 | N143: =I143*SUIVI_REGION!$E$4 -> 2,832 | O143: -2,832 | Q143: =VLOOKUP(F143,Objectifs!D:K,8,0) -> 189,800 | R143: =(SUMIF(EMPRUNT_ASV!D:D,SUIVI_PDV!E143,EMPRUNT_ASV!J:J)) -> 0 | S143: 0% | T143: 189,800 | U143: =Q143*SUIVI_REGION!$E$4 -> 12,245 | V143: -12,245 | W143: =VLOOKUP(F143,Objectifs!D:L,9,0) -> 11,700 | X143: =(SUMIF(EMPRUNT_CTO!H:H,SUIVI_PDV!D143,EMPRUNT_CTO!N:N)) -> 0 | Y143: 0% | Z143: 11,700 | AA143: =W143*SUIVI_REGION!$E$4 -> 755 | AB143: -755 | AD143: =(SUMIF(EMPRUNT_ASV!D:D,E143,EMPRUNT_ASV!K:K)) -> 0 | AF143: 0 | AG143: =(SUMIFS(PILCOT_AVEN_DUR!P:P,PILCOT_AVEN_DUR!H:H,D143))-(SUMIFS('FAF AU 31 MAI'!D:D,'FAF AU 31 MAI'!A:A,D143)) -> 0 | AH143: =(SUMIFS(PILCOT_ALIZE!P:P,PILCOT_ALIZE!H:H,D143))-(SUMIFS('FAF AU 31 MAI'!E:E,'FAF AU 31 MAI'!A:A,D143)) -> 0 | AI143: =(SUMIFS(PILCOT_CORALIUM!P:P,PILCOT_CORALIUM!H:H,D143))-(SUMIFS('FAF AU 31 MAI'!C:C,'FAF AU 31 MAI'!A:A,D143)) -> 0 | AK143: 0 | AL143: =(SUMIF(GEDEL!F:F,E143,GEDEL!N:N)) -> 0 | AM143: =(SUMIF(GEDEL!F:F,E143,GEDEL!O:O)) -> 0
A144: 110 | B144: MEURTHE ET MOSELLE MEUSE | C144: VERDUN | D144: 543 | E144: 151350000543 | F144: 55298 | G144: =VLOOKUP(F144,Objectifs!D:E,2,FALSE) -> ETAIN | I144: =VLOOKUP(F144,Objectifs!D:M,10,FALSE) -> 32,500 | J144: =(SUMIFS(SOURCE_PARTS_SOC!G:G,SOURCE_PARTS_SOC!E:E,F144)) -> 0 | K144: 0% | L144: =(SUMIFS(SOURCE_PARTS_SOC!H:H,SOURCE_PARTS_SOC!E:E,F144)) -> 0 | M144: 32,500 | N144: =I144*SUIVI_REGION!$E$4 -> 2,097 | O144: -2,097 | Q144: =VLOOKUP(F144,Objectifs!D:K,8,0) -> 140,800 | R144: =(SUMIF(EMPRUNT_ASV!D:D,SUIVI_PDV!E144,EMPRUNT_ASV!J:J)) -> 0 | S144: 0% | T144: 140,800 | U144: =Q144*SUIVI_REGION!$E$4 -> 9,084 | V144: -9,084 | W144: =VLOOKUP(F144,Objectifs!D:L,9,0) -> 8,700 | X144: =(SUMIF(EMPRUNT_CTO!H:H,SUIVI_PDV!D144,EMPRUNT_CTO!N:N)) -> 0 | Y144: 0% | Z144: 8,700 | AA144: =W144*SUIVI_REGION!$E$4 -> 561 | AB144: -561 | AD144: =(SUMIF(EMPRUNT_ASV!D:D,E144,EMPRUNT_ASV!K:K)) -> 0 | AF144: 0 | AG144: =(SUMIFS(PILCOT_AVEN_DUR!P:P,PILCOT_AVEN_DUR!H:H,D144))-(SUMIFS('FAF AU 31 MAI'!D:D,'FAF AU 31 MAI'!A:A,D144)) -> 0 | AH144: =(SUMIFS(PILCOT_ALIZE!P:P,PILCOT_ALIZE!H:H,D144))-(SUMIFS('FAF AU 31 MAI'!E:E,'FAF AU 31 MAI'!A:A,D144)) -> 0 | AI144: =(SUMIFS(PILCOT_CORALIUM!P:P,PILCOT_CORALIUM!H:H,D144))-(SUMIFS('FAF AU 31 MAI'!C:C,'FAF AU 31 MAI'!A:A,D144)) -> 0 | AK144: 0 | AL144: =(SUMIF(GEDEL!F:F,E144,GEDEL!N:N)) -> 0 | AM144: =(SUMIF(GEDEL!F:F,E144,GEDEL!O:O)) -> 0
A145: 110 | B145: MEURTHE ET MOSELLE MEUSE | C145: VERDUN | D145: 667 | E145: 151350000667 | F145: 55678 | G145: =VLOOKUP(F145,Objectifs!D:E,2,FALSE) -> VERDUN CENTRALE | I145: =VLOOKUP(F145,Objectifs!D:M,10,FALSE) -> 130,700 | J145: =(SUMIFS(SOURCE_PARTS_SOC!G:G,SOURCE_PARTS_SOC!E:E,F145)) -> 0 | K145: 0% | L145: =(SUMIFS(SOURCE_PARTS_SOC!H:H,SOURCE_PARTS_SOC!E:E,F145)) -> 0 | M145: 130,700 | N145: =I145*SUIVI_REGION!$E$4 -> 8,432 | O145: -8,432 | Q145: =VLOOKUP(F145,Objectifs!D:K,8,0) -> 564,600 | R145: =(SUMIF(EMPRUNT_ASV!D:D,SUIVI_PDV!E145,EMPRUNT_ASV!J:J)) -> 0 | S145: 0% | T145: 564,600 | U145: =Q145*SUIVI_REGION!$E$4 -> 36,426 | V145: -36,426 | W145: =VLOOKUP(F145,Objectifs!D:L,9,0) -> 34,700 | X145: =(SUMIF(EMPRUNT_CTO!H:H,SUIVI_PDV!D145,EMPRUNT_CTO!N:N)) -> 0 | Y145: 0% | Z145: 34,700 | AA145: =W145*SUIVI_REGION!$E$4 -> 2,239 | AB145: -2,239 | AD145: =(SUMIF(EMPRUNT_ASV!D:D,E145,EMPRUNT_ASV!K:K)) -> 0 | AF145: 0 | AG145: =(SUMIFS(PILCOT_AVEN_DUR!P:P,PILCOT_AVEN_DUR!H:H,D145))-(SUMIFS('FAF AU 31 MAI'!D:D,'FAF AU 31 MAI'!A:A,D145)) -> 0 | AH145: =(SUMIFS(PILCOT_ALIZE!P:P,PILCOT_ALIZE!H:H,D145))-(SUMIFS('FAF AU 31 MAI'!E:E,'FAF AU 31 MAI'!A:A,D145)) -> 0 | AI145: =(SUMIFS(PILCOT_CORALIUM!P:P,PILCOT_CORALIUM!H:H,D145))-(SUMIFS('FAF AU 31 MAI'!C:C,'FAF AU 31 MAI'!A:A,D145)) -> 0 | AK145: 0 | AL145: =(SUMIF(GEDEL!F:F,E145,GEDEL!N:N)) -> 0 | AM145: =(SUMIF(GEDEL!F:F,E145,GEDEL!O:O)) -> 0
A146: 110 | B146: MEURTHE ET MOSELLE MEUSE | C146: VERDUN | D146: 668 | E146: 151350000668 | F146: 55679 | G146: =VLOOKUP(F146,Objectifs!D:E,2,FALSE) -> VERDUN MAZEL | I146: =VLOOKUP(F146,Objectifs!D:M,10,FALSE) -> 57,600 | J146: =(SUMIFS(SOURCE_PARTS_SOC!G:G,SOURCE_PARTS_SOC!E:E,F146)) -> 0 | K146: 0% | L146: =(SUMIFS(SOURCE_PARTS_SOC!H:H,SOURCE_PARTS_SOC!E:E,F146)) -> 0 | M146: 57,600 | N146: =I146*SUIVI_REGION!$E$4 -> 3,716 | O146: -3,716 | Q146: =VLOOKUP(F146,Objectifs!D:K,8,0) -> 248,700 | R146: =(SUMIF(EMPRUNT_ASV!D:D,SUIVI_PDV!E146,EMPRUNT_ASV!J:J)) -> 0 | S146: 0% | T146: 248,700 | U146: =Q146*SUIVI_REGION!$E$4 -> 16,045 | V146: -16,045 | W146: =VLOOKUP(F146,Objectifs!D:L,9,0) -> 15,300 | X146: =(SUMIF(EMPRUNT_CTO!H:H,SUIVI_PDV!D146,EMPRUNT_CTO!N:N)) -> 0 | Y146: 0% | Z146: 15,300 | AA146: =W146*SUIVI_REGION!$E$4 -> 987 | AB146: -987 | AD146: =(SUMIF(EMPRUNT_ASV!D:D,E146,EMPRUNT_ASV!K:K)) -> 0 | AF146: 0 | AG146: =(SUMIFS(PILCOT_AVEN_DUR!P:P,PILCOT_AVEN_DUR!H:H,D146))-(SUMIFS('FAF AU 31 MAI'!D:D,'FAF AU 31 MAI'!A:A,D146)) -> 0 | AH146: =(SUMIFS(PILCOT_ALIZE!P:P,PILCOT_ALIZE!H:H,D146))-(SUMIFS('FAF AU 31 MAI'!E:E,'FAF AU 31 MAI'!A:A,D146)) -> 0 | AI146: =(SUMIFS(PILCOT_CORALIUM!P:P,PILCOT_CORALIUM!H:H,D146))-(SUMIFS('FAF AU 31 MAI'!C:C,'FAF AU 31 MAI'!A:A,D146)) -> 0 | AK146: 0 | AL146: =(SUMIF(GEDEL!F:F,E146,GEDEL!N:N)) -> 0 | AM146: =(SUMIF(GEDEL!F:F,E146,GEDEL!O:O)) -> 0
A147: 110 | C147: Total Territoire VERDUN | I147: =SUBTOTAL(9,I132:I146) -> 850,600 | J147: =SUBTOTAL(9,J132:J146) -> 0 | K147: 0% | L147: =SUBTOTAL(9,L137:L146) -> 0 | M147: 850,600 | N147: =I147*SUIVI_REGION!$E$4 -> 54,877 | O147: -54,877 | Q147: =SUBTOTAL(9,Q132:Q146) -> 3,676,400 | R147: =SUBTOTAL(9,R132:R146) -> 31,500 | S147: 1% | T147: 3,644,900 | U147: =SUBTOTAL(9,U132:U146) -> 237,187 | V147: =SUBTOTAL(9,V132:V146) -> -205,687 | W147: =SUBTOTAL(9,W132:W146) -> 226,100 | X147: =SUBTOTAL(9,X132:X146) -> 0 | Y147: =IFERROR(X147/W147," ") -> 0% | Z147: =IF(X147>W147," ",W147-X147) -> 226,100 | AA147: =SUBTOTAL(9,AA132:AA146) -> 14,587 | AB147: =SUBTOTAL(9,AB132:AB146) -> -14,587 | AD147: =SUBTOTAL(9,AD132:AD146) -> 0 | AF147: =SUBTOTAL(9,AF132:AF146) -> 5,000 | AG147: =SUBTOTAL(9,AG132:AG146) -> 5,000 | AH147: 0 | AI147: 0 | AK147: =SUBTOTAL(9,AK132:AK146) -> 0 | AL147: =SUBTOTAL(9,AL132:AL146) -> 0 | AM147: 0
A148: 110 | B148: Total MEURTHE ET MOSELLE MEUSE | I148: =SUBTOTAL(9,I100:I147) -> 3,008,000 | J148: =SUBTOTAL(9,J100:J147) -> 0 | K148: 0% | L148: =SUBTOTAL(9,L100:L147) -> 0 | M148: 3,008,000 | N148: =I148*SUIVI_REGION!$E$4 -> 194,065 | O148: -194,065 | Q148: =SUBTOTAL(9,Q100:Q147) -> 13,000,000 | R148: =SUBTOTAL(9,R100:R147) -> 158,898 | S148: 1% | T148: 12,841,102 | U148: =SUBTOTAL(9,U100:U147) -> 838,710 | V148: =SUBTOTAL(9,V100:V147) -> -679,812 | W148: =SUBTOTAL(9,W100:W147) -> 800,000 | X148: =SUBTOTAL(9,X100:X147) -> 0 | Y148: =IFERROR(X148/W148," ") -> 0% | Z148: =IF(X148>W148," ",W148-X148) -> 800,000 | AA148: =SUBTOTAL(9,AA100:AA147) -> 51,613 | AB148: =X148-AA148 -> -51,613 | AD148: =SUBTOTAL(9,AD100:AD147) -> 0 | AF148: =SUBTOTAL(9,AF100:AF147) -> 5,000 | AG148: =SUBTOTAL(9,AG100:AG147) -> 5,000 | AH148: =SUBTOTAL(9,AH100:AH147) -> 0 | AI148: =SUBTOTAL(9,AI100:AI147) -> 0 | AK148: =SUBTOTAL(9,AK100:AK147) -> 0 | AL148: =SUBTOTAL(9,AL100:AL147) -> 0 | AM148: 0
A149: 160 | B149: MOSELLE | C149: METZ | D149: 518 | E149: =CONCATENATE(151350000,D149) -> 151350000518 | F149: 57182 | G149: =VLOOKUP(F149,Objectifs!D:E,2,FALSE) -> BOUZONVILLE | I149: =VLOOKUP(F149,Objectifs!D:M,10,FALSE) -> 28,500 | J149: =(SUMIFS(SOURCE_PARTS_SOC!G:G,SOURCE_PARTS_SOC!E:E,F149)) -> 0 | K149: 0% | L149: =(SUMIFS(SOURCE_PARTS_SOC!H:H,SOURCE_PARTS_SOC!E:E,F149)) -> 0 | M149: 28,500 | N149: =I149*SUIVI_REGION!$E$4 -> 1,839 | O149: -1,839 | Q149: =VLOOKUP(F149,Objectifs!D:K,8,0) -> 123,000 | R149: =(SUMIF(EMPRUNT_ASV!D:D,SUIVI_PDV!E149,EMPRUNT_ASV!J:J)) -> 0 | S149: 0% | T149: 123,000 | U149: =Q149*SUIVI_REGION!$E$4 -> 7,935 | V149: =R149-U149 -> -7,935 | W149: =VLOOKUP(F149,Objectifs!D:L,9,0) -> 8,200 | X149: =(SUMIF(EMPRUNT_CTO!H:H,SUIVI_PDV!D149,EMPRUNT_CTO!N:N)) -> 0 | Y149: =IFERROR(X149/W149," ") -> 0% | Z149: =IF(X149>W149," ",W149-X149) -> 8,200 | AA149: =W149*SUIVI_REGION!$E$4 -> 529 | AB149: =X149-AA149 -> -529 | AD149: =(SUMIF(EMPRUNT_ASV!D:D,E149,EMPRUNT_ASV!K:K)) -> 0 | AF149: =AG149+AH149+AI149 -> 0 | AG149: =(SUMIFS(PILCOT_AVEN_DUR!P:P,PILCOT_AVEN_DUR!H:H,D149))-(SUMIFS('FAF AU 31 MAI'!D:D,'FAF AU 31 MAI'!A:A,D149)) -> 0 | AH149: =(SUMIFS(PILCOT_ALIZE!P:P,PILCOT_ALIZE!H:H,D149))-(SUMIFS('FAF AU 31 MAI'!E:E,'FAF AU 31 MAI'!A:A,D149)) -> 0 | AI149: =(SUMIFS(PILCOT_CORALIUM!P:P,PILCOT_CORALIUM!H:H,D149))-(SUMIFS('FAF AU 31 MAI'!C:C,'FAF AU 31 MAI'!A:A,D149)) -> 0 | AK149: =AL149+AM149 -> 0 | AL149: =(SUMIF(GEDEL!F:F,E149,GEDEL!N:N)) -> 0 | AM149: =(SUMIF(GEDEL!F:F,E149,GEDEL!O:O)) -> 0
A150: 160 | B150: MOSELLE | C150: METZ | D150: 590 | E150: 151350000590 | F150: 57439 | G150: =VLOOKUP(F150,Objectifs!D:E,2,FALSE) -> METZ POMPIDOU | I150: =VLOOKUP(F150,Objectifs!D:M,10,FALSE) -> 56,000 | J150: =(SUMIFS(SOURCE_PARTS_SOC!G:G,SOURCE_PARTS_SOC!E:E,F150)) -> 0 | K150: 0% | L150: =(SUMIFS(SOURCE_PARTS_SOC!H:H,SOURCE_PARTS_SOC!E:E,F150)) -> 0 | M150: 56,000 | N150: =I150*SUIVI_REGION!$E$4 -> 3,613 | O150: -3,613 | Q150: =VLOOKUP(F150,Objectifs!D:K,8,0) -> 241,800 | R150: =(SUMIF(EMPRUNT_ASV!D:D,SUIVI_PDV!E150,EMPRUNT_ASV!J:J)) -> 0 | S150: 0% | T150: 241,800 | U150: =Q150*SUIVI_REGION!$E$4 -> 15,600 | V150: -15,600 | W150: =VLOOKUP(F150,Objectifs!D:L,9,0) -> 16,100 | X150: =(SUMIF(EMPRUNT_CTO!H:H,SUIVI_PDV!D150,EMPRUNT_CTO!N:N)) -> 0 | Y150: =IFERROR(X150/W150," ") -> 0% | Z150: =IF(X150>W150," ",W150-X150) -> 16,100 | AA150: =W150*SUIVI_REGION!$E$4 -> 1,039 | AB150: =X150-AA150 -> -1,039 | AD150: =(SUMIF(EMPRUNT_ASV!D:D,E150,EMPRUNT_ASV!K:K)) -> 0 | AF150: =AG150+AH150+AI150 -> 0 | AG150: =(SUMIFS(PILCOT_AVEN_DUR!P:P,PILCOT_AVEN_DUR!H:H,D150))-(SUMIFS('FAF AU 31 MAI'!D:D,'FAF AU 31 MAI'!A:A,D150)) -> 0 | AH150: =(SUMIFS(PILCOT_ALIZE!P:P,PILCOT_ALIZE!H:H,D150))-(SUMIFS('FAF AU 31 MAI'!E:E,'FAF AU 31 MAI'!A:A,D150)) -> 0 | AI150: =(SUMIFS(PILCOT_CORALIUM!P:P,PILCOT_CORALIUM!H:H,D150))-(SUMIFS('FAF AU 31 MAI'!C:C,'FAF AU 31 MAI'!A:A,D150)) -> 0 | AK150: =AL150+AM150 -> 0 | AL150: =(SUMIF(GEDEL!F:F,E150,GEDEL!N:N)) -> 0 | AM150: =(SUMIF(GEDEL!F:F,E150,GEDEL!O:O)) -> 0
A151: 160 | B151: MOSELLE | C151: METZ | D151: 591 | E151: 151350000591 | F151: 57440 | G151: =VLOOKUP(F151,Objectifs!D:E,2,FALSE) -> METZ MOZART | I151: =VLOOKUP(F151,Objectifs!D:M,10,FALSE) -> 50,400 | J151: =(SUMIFS(SOURCE_PARTS_SOC!G:G,SOURCE_PARTS_SOC!E:E,F151)) -> 0 | K151: 0% | L151: =(SUMIFS(SOURCE_PARTS_SOC!H:H,SOURCE_PARTS_SOC!E:E,F151)) -> 0 | M151: 50,400 | N151: =I151*SUIVI_REGION!$E$4 -> 3,252 | O151: -3,252 | Q151: =VLOOKUP(F151,Objectifs!D:K,8,0) -> 217,600 | R151: =(SUMIF(EMPRUNT_ASV!D:D,SUIVI_PDV!E151,EMPRUNT_ASV!J:J)) -> 0 | S151: 0% | T151: 217,600 | U151: =Q151*SUIVI_REGION!$E$4 -> 14,039 | V151: -14,039 | W151: =VLOOKUP(F151,Objectifs!D:L,9,0) -> 14,500 | X151: =(SUMIF(EMPRUNT_CTO!H:H,SUIVI_PDV!D151,EMPRUNT_CTO!N:N)) -> 0 | Y151: 0% | Z151: 14,500 | AA151: =W151*SUIVI_REGION!$E$4 -> 935 | AB151: -935 | AD151: =(SUMIF(EMPRUNT_ASV!D:D,E151,EMPRUNT_ASV!K:K)) -> 0 | AF151: 0 | AG151: =(SUMIFS(PILCOT_AVEN_DUR!P:P,PILCOT_AVEN_DUR!H:H,D151))-(SUMIFS('FAF AU 31 MAI'!D:D,'FAF AU 31 MAI'!A:A,D151)) -> 0 | AH151: =(SUMIFS(PILCOT_ALIZE!P:P,PILCOT_ALIZE!H:H,D151))-(SUMIFS('FAF AU 31 MAI'!E:E,'FAF AU 31 MAI'!A:A,D151)) -> 0 | AI151: =(SUMIFS(PILCOT_CORALIUM!P:P,PILCOT_CORALIUM!H:H,D151))-(SUMIFS('FAF AU 31 MAI'!C:C,'FAF AU 31 MAI'!A:A,D151)) -> 0 | AK151: 0 | AL151: =(SUMIF(GEDEL!F:F,E151,GEDEL!N:N)) -> 0 | AM151: =(SUMIF(GEDEL!F:F,E151,GEDEL!O:O)) -> 0
A152: 160 | B152: MOSELLE | C152: METZ | D152: 592 | E152: 151350000592 | F152: 57441 | G152: =VLOOKUP(F152,Objectifs!D:E,2,FALSE) -> METZ PLAPPEVILLE | I152: =VLOOKUP(F152,Objectifs!D:M,10,FALSE) -> 70,900 | J152: =(SUMIFS(SOURCE_PARTS_SOC!G:G,SOURCE_PARTS_SOC!E:E,F152)) -> 0 | K152: 0% | L152: =(SUMIFS(SOURCE_PARTS_SOC!H:H,SOURCE_PARTS_SOC!E:E,F152)) -> 0 | M152: 70,900 | N152: =I152*SUIVI_REGION!$E$4 -> 4,574 | O152: -4,574 | Q152: =VLOOKUP(F152,Objectifs!D:K,8,0) -> 306,200 | R152: =(SUMIF(EMPRUNT_ASV!D:D,SUIVI_PDV!E152,EMPRUNT_ASV!J:J)) -> 0 | S152: 0% | T152: 306,200 | U152: =Q152*SUIVI_REGION!$E$4 -> 19,755 | V152: -19,755 | W152: =VLOOKUP(F152,Objectifs!D:L,9,0) -> 20,400 | X152: =(SUMIF(EMPRUNT_CTO!H:H,SUIVI_PDV!D152,EMPRUNT_CTO!N:N)) -> 0 | Y152: 0% | Z152: 20,400 | AA152: =W152*SUIVI_REGION!$E$4 -> 1,316 | AB152: -1,316 | AD152: =(SUMIF(EMPRUNT_ASV!D:D,E152,EMPRUNT_ASV!K:K)) -> 0 | AF152: 0 | AG152: =(SUMIFS(PILCOT_AVEN_DUR!P:P,PILCOT_AVEN_DUR!H:H,D152))-(SUMIFS('FAF AU 31 MAI'!D:D,'FAF AU 31 MAI'!A:A,D152)) -> 0 | AH152: =(SUMIFS(PILCOT_ALIZE!P:P,PILCOT_ALIZE!H:H,D152))-(SUMIFS('FAF AU 31 MAI'!E:E,'FAF AU 31 MAI'!A:A,D152)) -> 0 | AI152: =(SUMIFS(PILCOT_CORALIUM!P:P,PILCOT_CORALIUM!H:H,D152))-(SUMIFS('FAF AU 31 MAI'!C:C,'FAF AU 31 MAI'!A:A,D152)) -> 0 | AK152: 0 | AL152: =(SUMIF(GEDEL!F:F,E152,GEDEL!N:N)) -> 0 | AM152: =(SUMIF(GEDEL!F:F,E152,GEDEL!O:O)) -> 0
A153: 160 | B153: MOSELLE | C153: METZ | D153: 596 | E153: 151350000596 | F153: 57445 | G153: =VLOOKUP(F153,Objectifs!D:E,2,FALSE) -> METZ SAINT LIVIER | I153: =VLOOKUP(F153,Objectifs!D:M,10,FALSE) -> 51,100 | J153: =(SUMIFS(SOURCE_PARTS_SOC!G:G,SOURCE_PARTS_SOC!E:E,F153)) -> 0 | K153: 0% | L153: =(SUMIFS(SOURCE_PARTS_SOC!H:H,SOURCE_PARTS_SOC!E:E,F153)) -> 0 | M153: 51,100 | N153: =I153*SUIVI_REGION!$E$4 -> 3,297 | O153: -3,297 | Q153: =VLOOKUP(F153,Objectifs!D:K,8,0) -> 221,000 | R153: =(SUMIF(EMPRUNT_ASV!D:D,SUIVI_PDV!E153,EMPRUNT_ASV!J:J)) -> 30,000 | S153: 14% | T153: 191,000 | U153: =Q153*SUIVI_REGION!$E$4 -> 14,258 | V153: 15,742 | W153: =VLOOKUP(F153,Objectifs!D:L,9,0) -> 14,700 | X153: =(SUMIF(EMPRUNT_CTO!H:H,SUIVI_PDV!D153,EMPRUNT_CTO!N:N)) -> 0 | Y153: 0% | Z153: 14,700 | AA153: =W153*SUIVI_REGION!$E$4 -> 948 | AB153: -948 | AD153: =(SUMIF(EMPRUNT_ASV!D:D,E153,EMPRUNT_ASV!K:K)) -> 0 | AF153: 0 | AG153: =(SUMIFS(PILCOT_AVEN_DUR!P:P,PILCOT_AVEN_DUR!H:H,D153))-(SUMIFS('FAF AU 31 MAI'!D:D,'FAF AU 31 MAI'!A:A,D153)) -> 0 | AH153: =(SUMIFS(PILCOT_ALIZE!P:P,PILCOT_ALIZE!H:H,D153))-(SUMIFS('FAF AU 31 MAI'!E:E,'FAF AU 31 MAI'!A:A,D153)) -> 0 | AI153: =(SUMIFS(PILCOT_CORALIUM!P:P,PILCOT_CORALIUM!H:H,D153))-(SUMIFS('FAF AU 31 MAI'!C:C,'FAF AU 31 MAI'!A:A,D153)) -> 0 | AK153: 0 | AL153: =(SUMIF(GEDEL!F:F,E153,GEDEL!N:N)) -> 0 | AM153: =(SUMIF(GEDEL!F:F,E153,GEDEL!O:O)) -> 0
A154: 160 | B154: MOSELLE | C154: METZ | D154: 675 | E154: 151350000675 | F154: 57712 | G154: =VLOOKUP(F154,Objectifs!D:E,2,FALSE) -> WOIPPY | I154: =VLOOKUP(F154,Objectifs!D:M,10,FALSE) -> 60,500 | J154: =(SUMIFS(SOURCE_PARTS_SOC!G:G,SOURCE_PARTS_SOC!E:E,F154)) -> 0 | K154: 0% | L154: =(SUMIFS(SOURCE_PARTS_SOC!H:H,SOURCE_PARTS_SOC!E:E,F154)) -> 0 | M154: 60,500 | N154: =I154*SUIVI_REGION!$E$4 -> 3,903 | O154: -3,903 | Q154: =VLOOKUP(F154,Objectifs!D:K,8,0) -> 261,200 | R154: =(SUMIF(EMPRUNT_ASV!D:D,SUIVI_PDV!E154,EMPRUNT_ASV!J:J)) -> 0 | S154: 0% | T154: 261,200 | U154: =Q154*SUIVI_REGION!$E$4 -> 16,852 | V154: -16,852 | W154: =VLOOKUP(F154,Objectifs!D:L,9,0) -> 17,400 | X154: =(SUMIF(EMPRUNT_CTO!H:H,SUIVI_PDV!D154,EMPRUNT_CTO!N:N)) -> 0 | Y154: 0% | Z154: 17,400 | AA154: =W154*SUIVI_REGION!$E$4 -> 1,123 | AB154: -1,123 | AD154: =(SUMIF(EMPRUNT_ASV!D:D,E154,EMPRUNT_ASV!K:K)) -> 0 | AF154: 0 | AG154: =(SUMIFS(PILCOT_AVEN_DUR!P:P,PILCOT_AVEN_DUR!H:H,D154))-(SUMIFS('FAF AU 31 MAI'!D:D,'FAF AU 31 MAI'!A:A,D154)) -> 0 | AH154: =(SUMIFS(PILCOT_ALIZE!P:P,PILCOT_ALIZE!H:H,D154))-(SUMIFS('FAF AU 31 MAI'!E:E,'FAF AU 31 MAI'!A:A,D154)) -> 0 | AI154: =(SUMIFS(PILCOT_CORALIUM!P:P,PILCOT_CORALIUM!H:H,D154))-(SUMIFS('FAF AU 31 MAI'!C:C,'FAF AU 31 MAI'!A:A,D154)) -> 0 | AK154: 0 | AL154: =(SUMIF(GEDEL!F:F,E154,GEDEL!N:N)) -> 0 | AM154: =(SUMIF(GEDEL!F:F,E154,GEDEL!O:O)) -> 0
A155: 160 | B155: MOSELLE | C155: METZ | D155: 516 | E155: 151350000516 | F155: 57178 | G155: =VLOOKUP(F155,Objectifs!D:E,2,FALSE) -> BOULAY | I155: =VLOOKUP(F155,Objectifs!D:M,10,FALSE) -> 30,100 | J155: =(SUMIFS(SOURCE_PARTS_SOC!G:G,SOURCE_PARTS_SOC!E:E,F155)) -> 0 | K155: 0% | L155: =(SUMIFS(SOURCE_PARTS_SOC!H:H,SOURCE_PARTS_SOC!E:E,F155)) -> 0 | M155: 30,100 | N155: =I155*SUIVI_REGION!$E$4 -> 1,942 | O155: -1,942 | Q155: =VLOOKUP(F155,Objectifs!D:K,8,0) -> 129,900 | R155: =(SUMIF(EMPRUNT_ASV!D:D,SUIVI_PDV!E155,EMPRUNT_ASV!J:J)) -> 0 | S155: 0% | T155: 129,900 | U155: =Q155*SUIVI_REGION!$E$4 -> 8,381 | V155: -8,381 | W155: =VLOOKUP(F155,Objectifs!D:L,9,0) -> 8,700 | X155: =(SUMIF(EMPRUNT_CTO!H:H,SUIVI_PDV!D155,EMPRUNT_CTO!N:N)) -> 0 | Y155: 0% | Z155: 8,700 | AA155: =W155*SUIVI_REGION!$E$4 -> 561 | AB155: -561 | AD155: =(SUMIF(EMPRUNT_ASV!D:D,E155,EMPRUNT_ASV!K:K)) -> 0 | AF155: 0 | AG155: =(SUMIFS(PILCOT_AVEN_DUR!P:P,PILCOT_AVEN_DUR!H:H,D155))-(SUMIFS('FAF AU 31 MAI'!D:D,'FAF AU 31 MAI'!A:A,D155)) -> 0 | AH155: =(SUMIFS(PILCOT_ALIZE!P:P,PILCOT_ALIZE!H:H,D155))-(SUMIFS('FAF AU 31 MAI'!E:E,'FAF AU 31 MAI'!A:A,D155)) -> 0 | AI155: =(SUMIFS(PILCOT_CORALIUM!P:P,PILCOT_CORALIUM!H:H,D155))-(SUMIFS('FAF AU 31 MAI'!C:C,'FAF AU 31 MAI'!A:A,D155)) -> 0 | AK155: 0 | AL155: =(SUMIF(GEDEL!F:F,E155,GEDEL!N:N)) -> 0 | AM155: =(SUMIF(GEDEL!F:F,E155,GEDEL!O:O)) -> 0
A156: 160 | B156: MOSELLE | C156: METZ | D156: 588 | E156: 151350000588 | F156: 57437 | G156: =VLOOKUP(F156,Objectifs!D:E,2,FALSE) -> METZ SARRE | I156: =VLOOKUP(F156,Objectifs!D:M,10,FALSE) -> 43,900 | J156: =(SUMIFS(SOURCE_PARTS_SOC!G:G,SOURCE_PARTS_SOC!E:E,F156)) -> 0 | K156: 0% | L156: =(SUMIFS(SOURCE_PARTS_SOC!H:H,SOURCE_PARTS_SOC!E:E,F156)) -> 0 | M156: 43,900 | N156: =I156*SUIVI_REGION!$E$4 -> 2,832 | O156: -2,832 | Q156: =VLOOKUP(F156,Objectifs!D:K,8,0) -> 189,500 | R156: =(SUMIF(EMPRUNT_ASV!D:D,SUIVI_PDV!E156,EMPRUNT_ASV!J:J)) -> 44,000 | S156: 23% | T156: 145,500 | U156: =Q156*SUIVI_REGION!$E$4 -> 12,226 | V156: 31,774 | W156: =VLOOKUP(F156,Objectifs!D:L,9,0) -> 12,600 | X156: =(SUMIF(EMPRUNT_CTO!H:H,SUIVI_PDV!D156,EMPRUNT_CTO!N:N)) -> 0 | Y156: 0% | Z156: 12,600 | AA156: =W156*SUIVI_REGION!$E$4 -> 813 | AB156: -813 | AD156: =(SUMIF(EMPRUNT_ASV!D:D,E156,EMPRUNT_ASV!K:K)) -> 0 | AF156: 0 | AG156: =(SUMIFS(PILCOT_AVEN_DUR!P:P,PILCOT_AVEN_DUR!H:H,D156))-(SUMIFS('FAF AU 31 MAI'!D:D,'FAF AU 31 MAI'!A:A,D156)) -> 0 | AH156: =(SUMIFS(PILCOT_ALIZE!P:P,PILCOT_ALIZE!H:H,D156))-(SUMIFS('FAF AU 31 MAI'!E:E,'FAF AU 31 MAI'!A:A,D156)) -> 0 | AI156: =(SUMIFS(PILCOT_CORALIUM!P:P,PILCOT_CORALIUM!H:H,D156))-(SUMIFS('FAF AU 31 MAI'!C:C,'FAF AU 31 MAI'!A:A,D156)) -> 0 | AK156: 0 | AL156: =(SUMIF(GEDEL!F:F,E156,GEDEL!N:N)) -> 0 | AM156: =(SUMIF(GEDEL!F:F,E156,GEDEL!O:O)) -> 0
A157: 160 | B157: MOSELLE | C157: METZ | D157: 595 | E157: 151350000595 | F157: 57444 | G157: =VLOOKUP(F157,Objectifs!D:E,2,FALSE) -> SAINT JULIEN LES METZ | I157: =VLOOKUP(F157,Objectifs!D:M,10,FALSE) -> 85,700 | J157: =(SUMIFS(SOURCE_PARTS_SOC!G:G,SOURCE_PARTS_SOC!E:E,F157)) -> 0 | K157: 0% | L157: =(SUMIFS(SOURCE_PARTS_SOC!H:H,SOURCE_PARTS_SOC!E:E,F157)) -> 0 | M157: 85,700 | N157: =I157*SUIVI_REGION!$E$4 -> 5,529 | O157: -5,529 | Q157: =VLOOKUP(F157,Objectifs!D:K,8,0) -> 370,700 | R157: =(SUMIF(EMPRUNT_ASV!D:D,SUIVI_PDV!E157,EMPRUNT_ASV!J:J)) -> 101,700 | S157: 27% | T157: 269,000 | U157: =Q157*SUIVI_REGION!$E$4 -> 23,916 | V157: 77,784 | W157: =VLOOKUP(F157,Objectifs!D:L,9,0) -> 24,700 | X157: =(SUMIF(EMPRUNT_CTO!H:H,SUIVI_PDV!D157,EMPRUNT_CTO!N:N)) -> 0 | Y157: 0% | Z157: 24,700 | AA157: =W157*SUIVI_REGION!$E$4 -> 1,594 | AB157: -1,594 | AD157: =(SUMIF(EMPRUNT_ASV!D:D,E157,EMPRUNT_ASV!K:K)) -> 0 | AF157: 0 | AG157: =(SUMIFS(PILCOT_AVEN_DUR!P:P,PILCOT_AVEN_DUR!H:H,D157))-(SUMIFS('FAF AU 31 MAI'!D:D,'FAF AU 31 MAI'!A:A,D157)) -> 0 | AH157: =(SUMIFS(PILCOT_ALIZE!P:P,PILCOT_ALIZE!H:H,D157))-(SUMIFS('FAF AU 31 MAI'!E:E,'FAF AU 31 MAI'!A:A,D157)) -> 0 | AI157: =(SUMIFS(PILCOT_CORALIUM!P:P,PILCOT_CORALIUM!H:H,D157))-(SUMIFS('FAF AU 31 MAI'!C:C,'FAF AU 31 MAI'!A:A,D157)) -> 0 | AK157: 0 | AL157: =(SUMIF(GEDEL!F:F,E157,GEDEL!N:N)) -> 0 | AM157: =(SUMIF(GEDEL!F:F,E157,GEDEL!O:O)) -> 0
A158: 160 | B158: MOSELLE | C158: METZ | D158: 597 | E158: 151350000597 | F158: 57446 | G158: =VLOOKUP(F158,Objectifs!D:E,2,FALSE) -> METZ SERPENOISE | I158: =VLOOKUP(F158,Objectifs!D:M,10,FALSE) -> 242,600 | J158: =(SUMIFS(SOURCE_PARTS_SOC!G:G,SOURCE_PARTS_SOC!E:E,F158)) -> 0 | K158: 0% | L158: =(SUMIFS(SOURCE_PARTS_SOC!H:H,SOURCE_PARTS_SOC!E:E,F158)) -> 0 | M158: 242,600 | N158: =I158*SUIVI_REGION!$E$4 -> 15,652 | O158: -15,652 | Q158: =VLOOKUP(F158,Objectifs!D:K,8,0) -> 1,047,600 | R158: =(SUMIF(EMPRUNT_ASV!D:D,SUIVI_PDV!E158,EMPRUNT_ASV!J:J)) -> 0 | S158: 0% | T158: 1,047,600 | U158: =Q158*SUIVI_REGION!$E$4 -> 67,587 | V158: -67,587 | W158: =VLOOKUP(F158,Objectifs!D:L,9,0) -> 70,000 | X158: =(SUMIF(EMPRUNT_CTO!H:H,SUIVI_PDV!D158,EMPRUNT_CTO!N:N)) -> 0 | Y158: 0% | Z158: 70,000 | AA158: =W158*SUIVI_REGION!$E$4 -> 4,516 | AB158: -4,516 | AD158: =(SUMIF(EMPRUNT_ASV!D:D,E158,EMPRUNT_ASV!K:K)) -> 0 | AF158: 0 | AG158: =(SUMIFS(PILCOT_AVEN_DUR!P:P,PILCOT_AVEN_DUR!H:H,D158))-(SUMIFS('FAF AU 31 MAI'!D:D,'FAF AU 31 MAI'!A:A,D158)) -> 0 | AH158: =(SUMIFS(PILCOT_ALIZE!P:P,PILCOT_ALIZE!H:H,D158))-(SUMIFS('FAF AU 31 MAI'!E:E,'FAF AU 31 MAI'!A:A,D158)) -> 0 | AI158: =(SUMIFS(PILCOT_CORALIUM!P:P,PILCOT_CORALIUM!H:H,D158))-(SUMIFS('FAF AU 31 MAI'!C:C,'FAF AU 31 MAI'!A:A,D158)) -> 0 | AK158: 0 | AL158: =(SUMIF(GEDEL!F:F,E158,GEDEL!N:N)) -> 0 | AM158: =(SUMIF(GEDEL!F:F,E158,GEDEL!O:O)) -> 0
A159: 160 | B159: MOSELLE | C159: METZ | D159: 598 | E159: 151350000598 | F159: 57447 | G159: =VLOOKUP(F159,Objectifs!D:E,2,FALSE) -> METZ SAINT MAXIMIN | I159: =VLOOKUP(F159,Objectifs!D:M,10,FALSE) -> 54,000 | J159: =(SUMIFS(SOURCE_PARTS_SOC!G:G,SOURCE_PARTS_SOC!E:E,F159)) -> 0 | K159: 0% | L159: =(SUMIFS(SOURCE_PARTS_SOC!H:H,SOURCE_PARTS_SOC!E:E,F159)) -> 0 | M159: 54,000 | N159: =I159*SUIVI_REGION!$E$4 -> 3,484 | O159: -3,484 | Q159: =VLOOKUP(F159,Objectifs!D:K,8,0) -> 233,700 | R159: =(SUMIF(EMPRUNT_ASV!D:D,SUIVI_PDV!E159,EMPRUNT_ASV!J:J)) -> 0 | S159: 0% | T159: 233,700 | U159: =Q159*SUIVI_REGION!$E$4 -> 15,077 | V159: -15,077 | W159: =VLOOKUP(F159,Objectifs!D:L,9,0) -> 15,600 | X159: =(SUMIF(EMPRUNT_CTO!H:H,SUIVI_PDV!D159,EMPRUNT_CTO!N:N)) -> 0 | Y159: 0% | Z159: 15,600 | AA159: =W159*SUIVI_REGION!$E$4 -> 1,006 | AB159: -1,006 | AD159: =(SUMIF(EMPRUNT_ASV!D:D,E159,EMPRUNT_ASV!K:K)) -> 0 | AF159: 0 | AG159: =(SUMIFS(PILCOT_AVEN_DUR!P:P,PILCOT_AVEN_DUR!H:H,D159))-(SUMIFS('FAF AU 31 MAI'!D:D,'FAF AU 31 MAI'!A:A,D159)) -> 0 | AH159: =(SUMIFS(PILCOT_ALIZE!P:P,PILCOT_ALIZE!H:H,D159))-(SUMIFS('FAF AU 31 MAI'!E:E,'FAF AU 31 MAI'!A:A,D159)) -> 0 | AI159: =(SUMIFS(PILCOT_CORALIUM!P:P,PILCOT_CORALIUM!H:H,D159))-(SUMIFS('FAF AU 31 MAI'!C:C,'FAF AU 31 MAI'!A:A,D159)) -> 0 | AK159: 0 | AL159: =(SUMIF(GEDEL!F:F,E159,GEDEL!N:N)) -> 0 | AM159: =(SUMIF(GEDEL!F:F,E159,GEDEL!O:O)) -> 0
A160: 160 | B160: MOSELLE | C160: METZ | D160: 632 | E160: 151350000632 | F160: 57559 | G160: =VLOOKUP(F160,Objectifs!D:E,2,FALSE) -> REMILLY | I160: =VLOOKUP(F160,Objectifs!D:M,10,FALSE) -> 52,200 | J160: =(SUMIFS(SOURCE_PARTS_SOC!G:G,SOURCE_PARTS_SOC!E:E,F160)) -> 0 | K160: 0% | L160: =(SUMIFS(SOURCE_PARTS_SOC!H:H,SOURCE_PARTS_SOC!E:E,F160)) -> 0 | M160: 52,200 | N160: =I160*SUIVI_REGION!$E$4 -> 3,368 | O160: -3,368 | Q160: =VLOOKUP(F160,Objectifs!D:K,8,0) -> 225,700 | R160: =(SUMIF(EMPRUNT_ASV!D:D,SUIVI_PDV!E160,EMPRUNT_ASV!J:J)) -> 0 | S160: 0% | T160: 225,700 | U160: =Q160*SUIVI_REGION!$E$4 -> 14,561 | V160: -14,561 | W160: =VLOOKUP(F160,Objectifs!D:L,9,0) -> 15,000 | X160: =(SUMIF(EMPRUNT_CTO!H:H,SUIVI_PDV!D160,EMPRUNT_CTO!N:N)) -> 0 | Y160: 0% | Z160: 15,000 | AA160: =W160*SUIVI_REGION!$E$4 -> 968 | AB160: -968 | AD160: =(SUMIF(EMPRUNT_ASV!D:D,E160,EMPRUNT_ASV!K:K)) -> 0 | AF160: 0 | AG160: =(SUMIFS(PILCOT_AVEN_DUR!P:P,PILCOT_AVEN_DUR!H:H,D160))-(SUMIFS('FAF AU 31 MAI'!D:D,'FAF AU 31 MAI'!A:A,D160)) -> 0 | AH160: =(SUMIFS(PILCOT_ALIZE!P:P,PILCOT_ALIZE!H:H,D160))-(SUMIFS('FAF AU 31 MAI'!E:E,'FAF AU 31 MAI'!A:A,D160)) -> 0 | AI160: =(SUMIFS(PILCOT_CORALIUM!P:P,PILCOT_CORALIUM!H:H,D160))-(SUMIFS('FAF AU 31 MAI'!C:C,'FAF AU 31 MAI'!A:A,D160)) -> 0 | AK160: 0 | AL160: =(SUMIF(GEDEL!F:F,E160,GEDEL!N:N)) -> 0 | AM160: =(SUMIF(GEDEL!F:F,E160,GEDEL!O:O)) -> 0
A161: 160 | B161: MOSELLE | C161: METZ | D161: 503 | E161: 151350000503 | F161: 57105 | G161: =VLOOKUP(F161,Objectifs!D:E,2,FALSE) -> ARS SUR MOSELLE | I161: =VLOOKUP(F161,Objectifs!D:M,10,FALSE) -> 54,000 | J161: =(SUMIFS(SOURCE_PARTS_SOC!G:G,SOURCE_PARTS_SOC!E:E,F161)) -> 0 | K161: 0% | L161: =(SUMIFS(SOURCE_PARTS_SOC!H:H,SOURCE_PARTS_SOC!E:E,F161)) -> 0 | M161: 54,000 | N161: =I161*SUIVI_REGION!$E$4 -> 3,484 | O161: -3,484 | Q161: =VLOOKUP(F161,Objectifs!D:K,8,0) -> 233,700 | R161: =(SUMIF(EMPRUNT_ASV!D:D,SUIVI_PDV!E161,EMPRUNT_ASV!J:J)) -> 11,000 | S161: 5% | T161: 222,700 | U161: =Q161*SUIVI_REGION!$E$4 -> 15,077 | V161: -4,077 | W161: =VLOOKUP(F161,Objectifs!D:L,9,0) -> 15,600 | X161: =(SUMIF(EMPRUNT_CTO!H:H,SUIVI_PDV!D161,EMPRUNT_CTO!N:N)) -> 0 | Y161: 0% | Z161: 15,600 | AA161: =W161*SUIVI_REGION!$E$4 -> 1,006 | AB161: -1,006 | AD161: =(SUMIF(EMPRUNT_ASV!D:D,E161,EMPRUNT_ASV!K:K)) -> 0 | AF161: 0 | AG161: =(SUMIFS(PILCOT_AVEN_DUR!P:P,PILCOT_AVEN_DUR!H:H,D161))-(SUMIFS('FAF AU 31 MAI'!D:D,'FAF AU 31 MAI'!A:A,D161)) -> 0 | AH161: =(SUMIFS(PILCOT_ALIZE!P:P,PILCOT_ALIZE!H:H,D161))-(SUMIFS('FAF AU 31 MAI'!E:E,'FAF AU 31 MAI'!A:A,D161)) -> 0 | AI161: =(SUMIFS(PILCOT_CORALIUM!P:P,PILCOT_CORALIUM!H:H,D161))-(SUMIFS('FAF AU 31 MAI'!C:C,'FAF AU 31 MAI'!A:A,D161)) -> 0 | AK161: 0 | AL161: =(SUMIF(GEDEL!F:F,E161,GEDEL!N:N)) -> 0 | AM161: =(SUMIF(GEDEL!F:F,E161,GEDEL!O:O)) -> 0
A162: 160 | B162: MOSELLE | C162: METZ | D162: 585 | E162: 151350000585 | F162: 57434 | G162: =VLOOKUP(F162,Objectifs!D:E,2,FALSE) -> MARLY | I162: =VLOOKUP(F162,Objectifs!D:M,10,FALSE) -> 61,500 | J162: =(SUMIFS(SOURCE_PARTS_SOC!G:G,SOURCE_PARTS_SOC!E:E,F162)) -> 0 | K162: 0% | L162: =(SUMIFS(SOURCE_PARTS_SOC!H:H,SOURCE_PARTS_SOC!E:E,F162)) -> 0 | M162: 61,500 | N162: =I162*SUIVI_REGION!$E$4 -> 3,968 | O162: -3,968 | Q162: =VLOOKUP(F162,Objectifs!D:K,8,0) -> 265,900 | R162: =(SUMIF(EMPRUNT_ASV!D:D,SUIVI_PDV!E162,EMPRUNT_ASV!J:J)) -> 0 | S162: 0% | T162: 265,900 | U162: =Q162*SUIVI_REGION!$E$4 -> 17,155 | V162: -17,155 | W162: =VLOOKUP(F162,Objectifs!D:L,9,0) -> 17,700 | X162: =(SUMIF(EMPRUNT_CTO!H:H,SUIVI_PDV!D162,EMPRUNT_CTO!N:N)) -> 0 | Y162: 0% | Z162: 17,700 | AA162: =W162*SUIVI_REGION!$E$4 -> 1,142 | AB162: -1,142 | AD162: =(SUMIF(EMPRUNT_ASV!D:D,E162,EMPRUNT_ASV!K:K)) -> 0 | AF162: 0 | AG162: =(SUMIFS(PILCOT_AVEN_DUR!P:P,PILCOT_AVEN_DUR!H:H,D162))-(SUMIFS('FAF AU 31 MAI'!D:D,'FAF AU 31 MAI'!A:A,D162)) -> 0 | AH162: =(SUMIFS(PILCOT_ALIZE!P:P,PILCOT_ALIZE!H:H,D162))-(SUMIFS('FAF AU 31 MAI'!E:E,'FAF AU 31 MAI'!A:A,D162)) -> 0 | AI162: =(SUMIFS(PILCOT_CORALIUM!P:P,PILCOT_CORALIUM!H:H,D162))-(SUMIFS('FAF AU 31 MAI'!C:C,'FAF AU 31 MAI'!A:A,D162)) -> 0 | AK162: 0 | AL162: =(SUMIF(GEDEL!F:F,E162,GEDEL!N:N)) -> 0 | AM162: =(SUMIF(GEDEL!F:F,E162,GEDEL!O:O)) -> 0
A163: 160 | B163: MOSELLE | C163: METZ | D163: 601 | E163: 151350000601 | F163: 57453 | G163: =VLOOKUP(F163,Objectifs!D:E,2,FALSE) -> MONTIGNY LES METZ | I163: =VLOOKUP(F163,Objectifs!D:M,10,FALSE) -> 121,200 | J163: =(SUMIFS(SOURCE_PARTS_SOC!G:G,SOURCE_PARTS_SOC!E:E,F163)) -> 0 | K163: 0% | L163: =(SUMIFS(SOURCE_PARTS_SOC!H:H,SOURCE_PARTS_SOC!E:E,F163)) -> 0 | M163: 121,200 | N163: =I163*SUIVI_REGION!$E$4 -> 7,819 | O163: -7,819 | Q163: =VLOOKUP(F163,Objectifs!D:K,8,0) -> 523,800 | R163: =(SUMIF(EMPRUNT_ASV!D:D,SUIVI_PDV!E163,EMPRUNT_ASV!J:J)) -> 0 | S163: 0% | T163: 523,800 | U163: =Q163*SUIVI_REGION!$E$4 -> 33,794 | V163: -33,794 | W163: =VLOOKUP(F163,Objectifs!D:L,9,0) -> 34,900 | X163: =(SUMIF(EMPRUNT_CTO!H:H,SUIVI_PDV!D163,EMPRUNT_CTO!N:N)) -> 0 | Y163: 0% | Z163: 34,900 | AA163: =W163*SUIVI_REGION!$E$4 -> 2,252 | AB163: -2,252 | AD163: =(SUMIF(EMPRUNT_ASV!D:D,E163,EMPRUNT_ASV!K:K)) -> 0 | AF163: 0 | AG163: =(SUMIFS(PILCOT_AVEN_DUR!P:P,PILCOT_AVEN_DUR!H:H,D163))-(SUMIFS('FAF AU 31 MAI'!D:D,'FAF AU 31 MAI'!A:A,D163)) -> 0 | AH163: =(SUMIFS(PILCOT_ALIZE!P:P,PILCOT_ALIZE!H:H,D163))-(SUMIFS('FAF AU 31 MAI'!E:E,'FAF AU 31 MAI'!A:A,D163)) -> 0 | AI163: =(SUMIFS(PILCOT_CORALIUM!P:P,PILCOT_CORALIUM!H:H,D163))-(SUMIFS('FAF AU 31 MAI'!C:C,'FAF AU 31 MAI'!A:A,D163)) -> 0 | AK163: 0 | AL163: =(SUMIF(GEDEL!F:F,E163,GEDEL!N:N)) -> 0 | AM163: =(SUMIF(GEDEL!F:F,E163,GEDEL!O:O)) -> 0
A164: 160 | B164: MOSELLE | C164: METZ | D164: 605 | E164: 151350000605 | F164: 57459 | G164: =VLOOKUP(F164,Objectifs!D:E,2,FALSE) -> MOULINS LES METZ | I164: =VLOOKUP(F164,Objectifs!D:M,10,FALSE) -> 52,200 | J164: =(SUMIFS(SOURCE_PARTS_SOC!G:G,SOURCE_PARTS_SOC!E:E,F164)) -> 0 | K164: 0% | L164: =(SUMIFS(SOURCE_PARTS_SOC!H:H,SOURCE_PARTS_SOC!E:E,F164)) -> 0 | M164: 52,200 | N164: =I164*SUIVI_REGION!$E$4 -> 3,368 | O164: -3,368 | Q164: =VLOOKUP(F164,Objectifs!D:K,8,0) -> 225,600 | R164: =(SUMIF(EMPRUNT_ASV!D:D,SUIVI_PDV!E164,EMPRUNT_ASV!J:J)) -> 0 | S164: 0% | T164: 225,600 | U164: =Q164*SUIVI_REGION!$E$4 -> 14,555 | V164: -14,555 | W164: =VLOOKUP(F164,Objectifs!D:L,9,0) -> 15,000 | X164: =(SUMIF(EMPRUNT_CTO!H:H,SUIVI_PDV!D164,EMPRUNT_CTO!N:N)) -> 0 | Y164: 0% | Z164: 15,000 | AA164: =W164*SUIVI_REGION!$E$4 -> 968 | AB164: -968 | AD164: =(SUMIF(EMPRUNT_ASV!D:D,E164,EMPRUNT_ASV!K:K)) -> 0 | AF164: 0 | AG164: =(SUMIFS(PILCOT_AVEN_DUR!P:P,PILCOT_AVEN_DUR!H:H,D164))-(SUMIFS('FAF AU 31 MAI'!D:D,'FAF AU 31 MAI'!A:A,D164)) -> 0 | AH164: =(SUMIFS(PILCOT_ALIZE!P:P,PILCOT_ALIZE!H:H,D164))-(SUMIFS('FAF AU 31 MAI'!E:E,'FAF AU 31 MAI'!A:A,D164)) -> 0 | AI164: =(SUMIFS(PILCOT_CORALIUM!P:P,PILCOT_CORALIUM!H:H,D164))-(SUMIFS('FAF AU 31 MAI'!C:C,'FAF AU 31 MAI'!A:A,D164)) -> 0 | AK164: 0 | AL164: =(SUMIF(GEDEL!F:F,E164,GEDEL!N:N)) -> 0 | AM164: =(SUMIF(GEDEL!F:F,E164,GEDEL!O:O)) -> 0
A165: 160 | B165: MOSELLE | C165: METZ | D165: 527 | E165: 151350000527 | F165: 57224 | G165: =VLOOKUP(F165,Objectifs!D:E,2,FALSE) -> CLOUANGE | I165: =VLOOKUP(F165,Objectifs!D:M,10,FALSE) -> 43,000 | J165: =(SUMIFS(SOURCE_PARTS_SOC!G:G,SOURCE_PARTS_SOC!E:E,F165)) -> 0 | K165: 0% | L165: =(SUMIFS(SOURCE_PARTS_SOC!H:H,SOURCE_PARTS_SOC!E:E,F165)) -> 0 | M165: 43,000 | N165: =I165*SUIVI_REGION!$E$4 -> 2,774 | O165: -2,774 | Q165: =VLOOKUP(F165,Objectifs!D:K,8,0) -> 185,600 | R165: =(SUMIF(EMPRUNT_ASV!D:D,SUIVI_PDV!E165,EMPRUNT_ASV!J:J)) -> 0 | S165: 0% | T165: 185,600 | U165: =Q165*SUIVI_REGION!$E$4 -> 11,974 | V165: -11,974 | W165: =VLOOKUP(F165,Objectifs!D:L,9,0) -> 12,400 | X165: =(SUMIF(EMPRUNT_CTO!H:H,SUIVI_PDV!D165,EMPRUNT_CTO!N:N)) -> 0 | Y165: 0% | Z165: 12,400 | AA165: =W165*SUIVI_REGION!$E$4 -> 800 | AB165: -800 | AD165: =(SUMIF(EMPRUNT_ASV!D:D,E165,EMPRUNT_ASV!K:K)) -> 0 | AF165: 0 | AG165: =(SUMIFS(PILCOT_AVEN_DUR!P:P,PILCOT_AVEN_DUR!H:H,D165))-(SUMIFS('FAF AU 31 MAI'!D:D,'FAF AU 31 MAI'!A:A,D165)) -> 0 | AH165: =(SUMIFS(PILCOT_ALIZE!P:P,PILCOT_ALIZE!H:H,D165))-(SUMIFS('FAF AU 31 MAI'!E:E,'FAF AU 31 MAI'!A:A,D165)) -> 0 | AI165: =(SUMIFS(PILCOT_CORALIUM!P:P,PILCOT_CORALIUM!H:H,D165))-(SUMIFS('FAF AU 31 MAI'!C:C,'FAF AU 31 MAI'!A:A,D165)) -> 0 | AK165: 0 | AL165: =(SUMIF(GEDEL!F:F,E165,GEDEL!N:N)) -> 0 | AM165: =(SUMIF(GEDEL!F:F,E165,GEDEL!O:O)) -> 0
A166: 160 | B166: MOSELLE | C166: METZ | D166: 583 | E166: 151350000583 | F166: 57432 | G166: =VLOOKUP(F166,Objectifs!D:E,2,FALSE) -> MAIZIERES LES METZ | I166: =VLOOKUP(F166,Objectifs!D:M,10,FALSE) -> 68,400 | J166: =(SUMIFS(SOURCE_PARTS_SOC!G:G,SOURCE_PARTS_SOC!E:E,F166)) -> 0 | K166: 0% | L166: =(SUMIFS(SOURCE_PARTS_SOC!H:H,SOURCE_PARTS_SOC!E:E,F166)) -> 0 | M166: 68,400 | N166: =I166*SUIVI_REGION!$E$4 -> 4,413 | O166: -4,413 | Q166: =VLOOKUP(F166,Objectifs!D:K,8,0) -> 295,900 | R166: =(SUMIF(EMPRUNT_ASV!D:D,SUIVI_PDV!E166,EMPRUNT_ASV!J:J)) -> 0 | S166: 0% | T166: 295,900 | U166: =Q166*SUIVI_REGION!$E$4 -> 19,090 | V166: -19,090 | W166: =VLOOKUP(F166,Objectifs!D:L,9,0) -> 19,700 | X166: =(SUMIF(EMPRUNT_CTO!H:H,SUIVI_PDV!D166,EMPRUNT_CTO!N:N)) -> 0 | Y166: 0% | Z166: 19,700 | AA166: =W166*SUIVI_REGION!$E$4 -> 1,271 | AB166: -1,271 | AD166: =(SUMIF(EMPRUNT_ASV!D:D,E166,EMPRUNT_ASV!K:K)) -> 0 | AF166: 0 | AG166: =(SUMIFS(PILCOT_AVEN_DUR!P:P,PILCOT_AVEN_DUR!H:H,D166))-(SUMIFS('FAF AU 31 MAI'!D:D,'FAF AU 31 MAI'!A:A,D166)) -> 0 | AH166: =(SUMIFS(PILCOT_ALIZE!P:P,PILCOT_ALIZE!H:H,D166))-(SUMIFS('FAF AU 31 MAI'!E:E,'FAF AU 31 MAI'!A:A,D166)) -> 0 | AI166: =(SUMIFS(PILCOT_CORALIUM!P:P,PILCOT_CORALIUM!H:H,D166))-(SUMIFS('FAF AU 31 MAI'!C:C,'FAF AU 31 MAI'!A:A,D166)) -> 0 | AK166: 0 | AL166: =(SUMIF(GEDEL!F:F,E166,GEDEL!N:N)) -> 0 | AM166: =(SUMIF(GEDEL!F:F,E166,GEDEL!O:O)) -> 0
A167: 160 | B167: MOSELLE | C167: METZ | D167: 584 | E167: 151350000584 | F167: 57433 | G167: =VLOOKUP(F167,Objectifs!D:E,2,FALSE) -> MARANGE SILVANGE | I167: =VLOOKUP(F167,Objectifs!D:M,10,FALSE) -> 44,300 | J167: =(SUMIFS(SOURCE_PARTS_SOC!G:G,SOURCE_PARTS_SOC!E:E,F167)) -> 0 | K167: 0% | L167: =(SUMIFS(SOURCE_PARTS_SOC!H:H,SOURCE_PARTS_SOC!E:E,F167)) -> 0 | M167: 44,300 | N167: =I167*SUIVI_REGION!$E$4 -> 2,858 | O167: -2,858 | Q167: =VLOOKUP(F167,Objectifs!D:K,8,0) -> 191,800 | R167: =(SUMIF(EMPRUNT_ASV!D:D,SUIVI_PDV!E167,EMPRUNT_ASV!J:J)) -> 0 | S167: 0% | T167: 191,800 | U167: =Q167*SUIVI_REGION!$E$4 -> 12,374 | V167: -12,374 | W167: =VLOOKUP(F167,Objectifs!D:L,9,0) -> 12,800 | X167: =(SUMIF(EMPRUNT_CTO!H:H,SUIVI_PDV!D167,EMPRUNT_CTO!N:N)) -> 0 | Y167: 0% | Z167: 12,800 | AA167: =W167*SUIVI_REGION!$E$4 -> 826 | AB167: -826 | AD167: =(SUMIF(EMPRUNT_ASV!D:D,E167,EMPRUNT_ASV!K:K)) -> 0 | AF167: 0 | AG167: =(SUMIFS(PILCOT_AVEN_DUR!P:P,PILCOT_AVEN_DUR!H:H,D167))-(SUMIFS('FAF AU 31 MAI'!D:D,'FAF AU 31 MAI'!A:A,D167)) -> 0 | AH167: =(SUMIFS(PILCOT_ALIZE!P:P,PILCOT_ALIZE!H:H,D167))-(SUMIFS('FAF AU 31 MAI'!E:E,'FAF AU 31 MAI'!A:A,D167)) -> 0 | AI167: =(SUMIFS(PILCOT_CORALIUM!P:P,PILCOT_CORALIUM!H:H,D167))-(SUMIFS('FAF AU 31 MAI'!C:C,'FAF AU 31 MAI'!A:A,D167)) -> 0 | AK167: 0 | AL167: =(SUMIF(GEDEL!F:F,E167,GEDEL!N:N)) -> 0 | AM167: =(SUMIF(GEDEL!F:F,E167,GEDEL!O:O)) -> 0
A168: 160 | B168: MOSELLE | C168: METZ | D168: 636 | E168: 151350000636 | F168: 57574 | G168: =VLOOKUP(F168,Objectifs!D:E,2,FALSE) -> ROMBAS | I168: =VLOOKUP(F168,Objectifs!D:M,10,FALSE) -> 54,000 | J168: =(SUMIFS(SOURCE_PARTS_SOC!G:G,SOURCE_PARTS_SOC!E:E,F168)) -> 0 | K168: 0% | L168: =(SUMIFS(SOURCE_PARTS_SOC!H:H,SOURCE_PARTS_SOC!E:E,F168)) -> 0 | M168: 54,000 | N168: =I168*SUIVI_REGION!$E$4 -> 3,484 | O168: -3,484 | Q168: =VLOOKUP(F168,Objectifs!D:K,8,0) -> 233,700 | R168: =(SUMIF(EMPRUNT_ASV!D:D,SUIVI_PDV!E168,EMPRUNT_ASV!J:J)) -> 0 | S168: 0% | T168: 233,700 | U168: =Q168*SUIVI_REGION!$E$4 -> 15,077 | V168: -15,077 | W168: =VLOOKUP(F168,Objectifs!D:L,9,0) -> 15,600 | X168: =(SUMIF(EMPRUNT_CTO!H:H,SUIVI_PDV!D168,EMPRUNT_CTO!N:N)) -> 0 | Y168: 0% | Z168: 15,600 | AA168: =W168*SUIVI_REGION!$E$4 -> 1,006 | AB168: -1,006 | AD168: =(SUMIF(EMPRUNT_ASV!D:D,E168,EMPRUNT_ASV!K:K)) -> 0 | AF168: 0 | AG168: =(SUMIFS(PILCOT_AVEN_DUR!P:P,PILCOT_AVEN_DUR!H:H,D168))-(SUMIFS('FAF AU 31 MAI'!D:D,'FAF AU 31 MAI'!A:A,D168)) -> 0 | AH168: =(SUMIFS(PILCOT_ALIZE!P:P,PILCOT_ALIZE!H:H,D168))-(SUMIFS('FAF AU 31 MAI'!E:E,'FAF AU 31 MAI'!A:A,D168)) -> 0 | AI168: =(SUMIFS(PILCOT_CORALIUM!P:P,PILCOT_CORALIUM!H:H,D168))-(SUMIFS('FAF AU 31 MAI'!C:C,'FAF AU 31 MAI'!A:A,D168)) -> 0 | AK168: 0 | AL168: =(SUMIF(GEDEL!F:F,E168,GEDEL!N:N)) -> 0 | AM168: =(SUMIF(GEDEL!F:F,E168,GEDEL!O:O)) -> 0
A169: 160 | B169: MOSELLE | C169: METZ | D169: 643 | E169: 151350000643 | F169: 57612 | G169: =VLOOKUP(F169,Objectifs!D:E,2,FALSE) -> SAINTE MARIE AUX CHENES | I169: =VLOOKUP(F169,Objectifs!D:M,10,FALSE) -> 68,300 | J169: =(SUMIFS(SOURCE_PARTS_SOC!G:G,SOURCE_PARTS_SOC!E:E,F169)) -> 0 | K169: 0% | L169: =(SUMIFS(SOURCE_PARTS_SOC!H:H,SOURCE_PARTS_SOC!E:E,F169)) -> 0 | M169: 68,300 | N169: =I169*SUIVI_REGION!$E$4 -> 4,406 | O169: -4,406 | Q169: =VLOOKUP(F169,Objectifs!D:K,8,0) -> 295,100 | R169: =(SUMIF(EMPRUNT_ASV!D:D,SUIVI_PDV!E169,EMPRUNT_ASV!J:J)) -> 15,075 | S169: 5% | T169: 280,025 | U169: =Q169*SUIVI_REGION!$E$4 -> 19,039 | V169: -3,964 | W169: =VLOOKUP(F169,Objectifs!D:L,9,0) -> 19,700 | X169: =(SUMIF(EMPRUNT_CTO!H:H,SUIVI_PDV!D169,EMPRUNT_CTO!N:N)) -> 0 | Y169: 0% | Z169: 19,700 | AA169: =W169*SUIVI_REGION!$E$4 -> 1,271 | AB169: -1,271 | AD169: =(SUMIF(EMPRUNT_ASV!D:D,E169,EMPRUNT_ASV!K:K)) -> 0 | AF169: 0 | AG169: =(SUMIFS(PILCOT_AVEN_DUR!P:P,PILCOT_AVEN_DUR!H:H,D169))-(SUMIFS('FAF AU 31 MAI'!D:D,'FAF AU 31 MAI'!A:A,D169)) -> 0 | AH169: =(SUMIFS(PILCOT_ALIZE!P:P,PILCOT_ALIZE!H:H,D169))-(SUMIFS('FAF AU 31 MAI'!E:E,'FAF AU 31 MAI'!A:A,D169)) -> 0 | AI169: =(SUMIFS(PILCOT_CORALIUM!P:P,PILCOT_CORALIUM!H:H,D169))-(SUMIFS('FAF AU 31 MAI'!C:C,'FAF AU 31 MAI'!A:A,D169)) -> 0 | AK169: 0 | AL169: =(SUMIF(GEDEL!F:F,E169,GEDEL!N:N)) -> 0 | AM169: =(SUMIF(GEDEL!F:F,E169,GEDEL!O:O)) -> 0
A170: 160 | C170: Total Territoire METZ | I170: =SUBTOTAL(9,I149:I169) -> 1,392,800 | J170: =SUBTOTAL(9,J149:J169) -> 0 | K170: 0% | L170: =SUBTOTAL(9,L160:L169) -> 0 | M170: 1,392,800 | N170: =I170*SUIVI_REGION!$E$4 -> 89,858 | O170: -89,858 | Q170: =SUBTOTAL(9,Q149:Q169) -> 6,019,000 | R170: =SUBTOTAL(9,R149:R169) -> 201,775 | S170: 3% | T170: 5,817,225 | U170: =SUBTOTAL(9,U149:U169) -> 388,323 | V170: =SUBTOTAL(9,V149:V169) -> -186,548 | W170: =SUBTOTAL(9,W149:W169) -> 401,300 | X170: =SUBTOTAL(9,X149:X169) -> 0 | Y170: =IFERROR(X170/W170," ") -> 0% | Z170: =IF(X170>W170," ",W170-X170) -> 401,300 | AA170: =SUBTOTAL(9,AA149:AA169) -> 25,890 | AB170: =SUBTOTAL(9,AB149:AB169) -> -25,890 | AD170: =SUBTOTAL(9,AD149:AD169) -> 0 | AF170: =SUBTOTAL(9,AF149:AF169) -> 0 | AG170: =SUBTOTAL(9,AG149:AG169) -> 0 | AH170: 0 | AI170: 0 | AK170: =SUBTOTAL(9,AK149:AK169) -> 0 | AL170: =SUBTOTAL(9,AL149:AL169) -> 0 | AM170: 0
A171: 160 | B171: MOSELLE | C171: MOSELLE EST | D171: 525 | E171: =CONCATENATE(151350000,D171) -> 151350000525 | F171: 57210 | G171: =VLOOKUP(F171,Objectifs!D:E,2,FALSE) -> CHATEAU SALINS | I171: =VLOOKUP(F171,Objectifs!D:M,10,FALSE) -> 40,000 | J171: =(SUMIFS(SOURCE_PARTS_SOC!G:G,SOURCE_PARTS_SOC!E:E,F171)) -> 0 | K171: 0% | L171: =(SUMIFS(SOURCE_PARTS_SOC!H:H,SOURCE_PARTS_SOC!E:E,F171)) -> 0 | M171: 40,000 | N171: =I171*SUIVI_REGION!$E$4 -> 2,581 | O171: -2,581 | Q171: =VLOOKUP(F171,Objectifs!D:K,8,0) -> 172,700 | R171: =(SUMIF(EMPRUNT_ASV!D:D,SUIVI_PDV!E171,EMPRUNT_ASV!J:J)) -> 5,964 | S171: 3% | T171: 166,736 | U171: =Q171*SUIVI_REGION!$E$4 -> 11,142 | V171: =R171-U171 -> -5,178 | W171: =VLOOKUP(F171,Objectifs!D:L,9,0) -> 11,500 | X171: =(SUMIF(EMPRUNT_CTO!H:H,SUIVI_PDV!D171,EMPRUNT_CTO!N:N)) -> 0 | Y171: =IFERROR(X171/W171," ") -> 0% | Z171: =IF(X171>W171," ",W171-X171) -> 11,500 | AA171: =W171*SUIVI_REGION!$E$4 -> 742 | AB171: =X171-AA171 -> -742 | AD171: =(SUMIF(EMPRUNT_ASV!D:D,E171,EMPRUNT_ASV!K:K)) -> 0 | AF171: =AG171+AH171+AI171 -> 996 | AG171: =(SUMIFS(PILCOT_AVEN_DUR!P:P,PILCOT_AVEN_DUR!H:H,D171))-(SUMIFS('FAF AU 31 MAI'!D:D,'FAF AU 31 MAI'!A:A,D171)) -> 996 | AH171: =(SUMIFS(PILCOT_ALIZE!P:P,PILCOT_ALIZE!H:H,D171))-(SUMIFS('FAF AU 31 MAI'!E:E,'FAF AU 31 MAI'!A:A,D171)) -> 0 | AI171: =(SUMIFS(PILCOT_CORALIUM!P:P,PILCOT_CORALIUM!H:H,D171))-(SUMIFS('FAF AU 31 MAI'!C:C,'FAF AU 31 MAI'!A:A,D171)) -> 0 | AK171: =AL171+AM171 -> 0 | AL171: =(SUMIF(GEDEL!F:F,E171,GEDEL!N:N)) -> 0 | AM171: =(SUMIF(GEDEL!F:F,E171,GEDEL!O:O)) -> 0
A172: 160 | B172: MOSELLE | C172: MOSELLE EST | D172: 535 | E172: 151350000535 | F172: 57258 | G172: =VLOOKUP(F172,Objectifs!D:E,2,FALSE) -> DIEUZE | I172: =VLOOKUP(F172,Objectifs!D:M,10,FALSE) -> 49,500 | J172: =(SUMIFS(SOURCE_PARTS_SOC!G:G,SOURCE_PARTS_SOC!E:E,F172)) -> 0 | K172: 0% | L172: =(SUMIFS(SOURCE_PARTS_SOC!H:H,SOURCE_PARTS_SOC!E:E,F172)) -> 0 | M172: 49,500 | N172: =I172*SUIVI_REGION!$E$4 -> 3,194 | O172: -3,194 | Q172: =VLOOKUP(F172,Objectifs!D:K,8,0) -> 214,000 | R172: =(SUMIF(EMPRUNT_ASV!D:D,SUIVI_PDV!E172,EMPRUNT_ASV!J:J)) -> 12,000 | S172: 6% | T172: 202,000 | U172: =Q172*SUIVI_REGION!$E$4 -> 13,806 | V172: -1,806 | W172: =VLOOKUP(F172,Objectifs!D:L,9,0) -> 14,300 | X172: =(SUMIF(EMPRUNT_CTO!H:H,SUIVI_PDV!D172,EMPRUNT_CTO!N:N)) -> 0 | Y172: =IFERROR(X172/W172," ") -> 0% | Z172: =IF(X172>W172," ",W172-X172) -> 14,300 | AA172: =W172*SUIVI_REGION!$E$4 -> 923 | AB172: =X172-AA172 -> -923 | AD172: =(SUMIF(EMPRUNT_ASV!D:D,E172,EMPRUNT_ASV!K:K)) -> 0 | AF172: =AG172+AH172+AI172 -> 0 | AG172: =(SUMIFS(PILCOT_AVEN_DUR!P:P,PILCOT_AVEN_DUR!H:H,D172))-(SUMIFS('FAF AU 31 MAI'!D:D,'FAF AU 31 MAI'!A:A,D172)) -> 0 | AH172: =(SUMIFS(PILCOT_ALIZE!P:P,PILCOT_ALIZE!H:H,D172))-(SUMIFS('FAF AU 31 MAI'!E:E,'FAF AU 31 MAI'!A:A,D172)) -> 0 | AI172: =(SUMIFS(PILCOT_CORALIUM!P:P,PILCOT_CORALIUM!H:H,D172))-(SUMIFS('FAF AU 31 MAI'!C:C,'FAF AU 31 MAI'!A:A,D172)) -> 0 | AK172: =AL172+AM172 -> 0 | AL172: =(SUMIF(GEDEL!F:F,E172,GEDEL!N:N)) -> 0 | AM172: =(SUMIF(GEDEL!F:F,E172,GEDEL!O:O)) -> 0
A173: 160 | B173: MOSELLE | C173: MOSELLE EST | D173: 546 | E173: 151350000546 | F173: 57305 | G173: =VLOOKUP(F173,Objectifs!D:E,2,FALSE) -> FAULQUEMONT | I173: =VLOOKUP(F173,Objectifs!D:M,10,FALSE) -> 26,000 | J173: =(SUMIFS(SOURCE_PARTS_SOC!G:G,SOURCE_PARTS_SOC!E:E,F173)) -> 0 | K173: 0% | L173: =(SUMIFS(SOURCE_PARTS_SOC!H:H,SOURCE_PARTS_SOC!E:E,F173)) -> 0 | M173: 26,000 | N173: =I173*SUIVI_REGION!$E$4 -> 1,677 | O173: -1,677 | Q173: =VLOOKUP(F173,Objectifs!D:K,8,0) -> 112,400 | R173: =(SUMIF(EMPRUNT_ASV!D:D,SUIVI_PDV!E173,EMPRUNT_ASV!J:J)) -> 0 | S173: 0% | T173: 112,400 | U173: =Q173*SUIVI_REGION!$E$4 -> 7,252 | V173: -7,252 | W173: =VLOOKUP(F173,Objectifs!D:L,9,0) -> 7,500 | X173: =(SUMIF(EMPRUNT_CTO!H:H,SUIVI_PDV!D173,EMPRUNT_CTO!N:N)) -> 0 | Y173: 0% | Z173: 7,500 | AA173: =W173*SUIVI_REGION!$E$4 -> 484 | AB173: -484 | AD173: =(SUMIF(EMPRUNT_ASV!D:D,E173,EMPRUNT_ASV!K:K)) -> 0 | AF173: 0 | AG173: =(SUMIFS(PILCOT_AVEN_DUR!P:P,PILCOT_AVEN_DUR!H:H,D173))-(SUMIFS('FAF AU 31 MAI'!D:D,'FAF AU 31 MAI'!A:A,D173)) -> 0 | AH173: =(SUMIFS(PILCOT_ALIZE!P:P,PILCOT_ALIZE!H:H,D173))-(SUMIFS('FAF AU 31 MAI'!E:E,'FAF AU 31 MAI'!A:A,D173)) -> 0 | AI173: =(SUMIFS(PILCOT_CORALIUM!P:P,PILCOT_CORALIUM!H:H,D173))-(SUMIFS('FAF AU 31 MAI'!C:C,'FAF AU 31 MAI'!A:A,D173)) -> 0 | AK173: 0 | AL173: =(SUMIF(GEDEL!F:F,E173,GEDEL!N:N)) -> 0 | AM173: =(SUMIF(GEDEL!F:F,E173,GEDEL!O:O)) -> 0
A174: 160 | B174: MOSELLE | C174: MOSELLE EST | D174: 604 | E174: 151350000604 | F174: 57458 | G174: =VLOOKUP(F174,Objectifs!D:E,2,FALSE) -> MORHANGE | I174: =VLOOKUP(F174,Objectifs!D:M,10,FALSE) -> 28,100 | J174: =(SUMIFS(SOURCE_PARTS_SOC!G:G,SOURCE_PARTS_SOC!E:E,F174)) -> 0 | K174: 0% | L174: =(SUMIFS(SOURCE_PARTS_SOC!H:H,SOURCE_PARTS_SOC!E:E,F174)) -> 0 | M174: 28,100 | N174: =I174*SUIVI_REGION!$E$4 -> 1,813 | O174: -1,813 | Q174: =VLOOKUP(F174,Objectifs!D:K,8,0) -> 121,500 | R174: =(SUMIF(EMPRUNT_ASV!D:D,SUIVI_PDV!E174,EMPRUNT_ASV!J:J)) -> 0 | S174: 0% | T174: 121,500 | U174: =Q174*SUIVI_REGION!$E$4 -> 7,839 | V174: -7,839 | W174: =VLOOKUP(F174,Objectifs!D:L,9,0) -> 8,100 | X174: =(SUMIF(EMPRUNT_CTO!H:H,SUIVI_PDV!D174,EMPRUNT_CTO!N:N)) -> 0 | Y174: 0% | Z174: 8,100 | AA174: =W174*SUIVI_REGION!$E$4 -> 523 | AB174: -523 | AD174: =(SUMIF(EMPRUNT_ASV!D:D,E174,EMPRUNT_ASV!K:K)) -> 0 | AF174: 0 | AG174: =(SUMIFS(PILCOT_AVEN_DUR!P:P,PILCOT_AVEN_DUR!H:H,D174))-(SUMIFS('FAF AU 31 MAI'!D:D,'FAF AU 31 MAI'!A:A,D174)) -> 0 | AH174: =(SUMIFS(PILCOT_ALIZE!P:P,PILCOT_ALIZE!H:H,D174))-(SUMIFS('FAF AU 31 MAI'!E:E,'FAF AU 31 MAI'!A:A,D174)) -> 0 | AI174: =(SUMIFS(PILCOT_CORALIUM!P:P,PILCOT_CORALIUM!H:H,D174))-(SUMIFS('FAF AU 31 MAI'!C:C,'FAF AU 31 MAI'!A:A,D174)) -> 0 | AK174: 0 | AL174: =(SUMIF(GEDEL!F:F,E174,GEDEL!N:N)) -> 0 | AM174: =(SUMIF(GEDEL!F:F,E174,GEDEL!O:O)) -> 0
A175: 160 | B175: MOSELLE | C175: MOSELLE EST | D175: 511 | E175: 151350000511 | F175: 57163 | G175: =VLOOKUP(F175,Objectifs!D:E,2,FALSE) -> BEHREN LES FORBACH | I175: =VLOOKUP(F175,Objectifs!D:M,10,FALSE) -> 23,400 | J175: =(SUMIFS(SOURCE_PARTS_SOC!G:G,SOURCE_PARTS_SOC!E:E,F175)) -> 0 | K175: 0% | L175: =(SUMIFS(SOURCE_PARTS_SOC!H:H,SOURCE_PARTS_SOC!E:E,F175)) -> 0 | M175: 23,400 | N175: =I175*SUIVI_REGION!$E$4 -> 1,510 | O175: -1,510 | Q175: =VLOOKUP(F175,Objectifs!D:K,8,0) -> 101,000 | R175: =(SUMIF(EMPRUNT_ASV!D:D,SUIVI_PDV!E175,EMPRUNT_ASV!J:J)) -> 0 | S175: 0% | T175: 101,000 | U175: =Q175*SUIVI_REGION!$E$4 -> 6,516 | V175: -6,516 | W175: =VLOOKUP(F175,Objectifs!D:L,9,0) -> 6,700 | X175: =(SUMIF(EMPRUNT_CTO!H:H,SUIVI_PDV!D175,EMPRUNT_CTO!N:N)) -> 0 | Y175: 0% | Z175: 6,700 | AA175: =W175*SUIVI_REGION!$E$4 -> 432 | AB175: -432 | AD175: =(SUMIF(EMPRUNT_ASV!D:D,E175,EMPRUNT_ASV!K:K)) -> 0 | AF175: 0 | AG175: =(SUMIFS(PILCOT_AVEN_DUR!P:P,PILCOT_AVEN_DUR!H:H,D175))-(SUMIFS('FAF AU 31 MAI'!D:D,'FAF AU 31 MAI'!A:A,D175)) -> 0 | AH175: =(SUMIFS(PILCOT_ALIZE!P:P,PILCOT_ALIZE!H:H,D175))-(SUMIFS('FAF AU 31 MAI'!E:E,'FAF AU 31 MAI'!A:A,D175)) -> 0 | AI175: =(SUMIFS(PILCOT_CORALIUM!P:P,PILCOT_CORALIUM!H:H,D175))-(SUMIFS('FAF AU 31 MAI'!C:C,'FAF AU 31 MAI'!A:A,D175)) -> 0 | AK175: 0 | AL175: =(SUMIF(GEDEL!F:F,E175,GEDEL!N:N)) -> 0 | AM175: =(SUMIF(GEDEL!F:F,E175,GEDEL!O:O)) -> 0
A176: 160 | B176: MOSELLE | C176: MOSELLE EST | D176: 549 | E176: 151350000549 | F176: 57308 | G176: =VLOOKUP(F176,Objectifs!D:E,2,FALSE) -> FORBACH CENTRALE | I176: =VLOOKUP(F176,Objectifs!D:M,10,FALSE) -> 127,800 | J176: =(SUMIFS(SOURCE_PARTS_SOC!G:G,SOURCE_PARTS_SOC!E:E,F176)) -> 0 | K176: 0% | L176: =(SUMIFS(SOURCE_PARTS_SOC!H:H,SOURCE_PARTS_SOC!E:E,F176)) -> 0 | M176: 127,800 | N176: =I176*SUIVI_REGION!$E$4 -> 8,245 | O176: -8,245 | Q176: =VLOOKUP(F176,Objectifs!D:K,8,0) -> 552,000 | R176: =(SUMIF(EMPRUNT_ASV!D:D,SUIVI_PDV!E176,EMPRUNT_ASV!J:J)) -> 3,706 | S176: 1% | T176: 548,294 | U176: =Q176*SUIVI_REGION!$E$4 -> 35,613 | V176: -31,907 | W176: =VLOOKUP(F176,Objectifs!D:L,9,0) -> 36,800 | X176: =(SUMIF(EMPRUNT_CTO!H:H,SUIVI_PDV!D176,EMPRUNT_CTO!N:N)) -> 0 | Y176: 0% | Z176: 36,800 | AA176: =W176*SUIVI_REGION!$E$4 -> 2,374 | AB176: -2,374 | AD176: =(SUMIF(EMPRUNT_ASV!D:D,E176,EMPRUNT_ASV!K:K)) -> 0 | AF176: 0 | AG176: =(SUMIFS(PILCOT_AVEN_DUR!P:P,PILCOT_AVEN_DUR!H:H,D176))-(SUMIFS('FAF AU 31 MAI'!D:D,'FAF AU 31 MAI'!A:A,D176)) -> 0 | AH176: =(SUMIFS(PILCOT_ALIZE!P:P,PILCOT_ALIZE!H:H,D176))-(SUMIFS('FAF AU 31 MAI'!E:E,'FAF AU 31 MAI'!A:A,D176)) -> 0 | AI176: =(SUMIFS(PILCOT_CORALIUM!P:P,PILCOT_CORALIUM!H:H,D176))-(SUMIFS('FAF AU 31 MAI'!C:C,'FAF AU 31 MAI'!A:A,D176)) -> 0 | AK176: 0 | AL176: =(SUMIF(GEDEL!F:F,E176,GEDEL!N:N)) -> 0 | AM176: =(SUMIF(GEDEL!F:F,E176,GEDEL!O:O)) -> 0
A177: 160 | B177: MOSELLE | C177: MOSELLE EST | D177: 653 | E177: 151350000653 | F177: 57626 | G177: =VLOOKUP(F177,Objectifs!D:E,2,FALSE) -> STIRING WENDEL | I177: =VLOOKUP(F177,Objectifs!D:M,10,FALSE) -> 23,400 | J177: =(SUMIFS(SOURCE_PARTS_SOC!G:G,SOURCE_PARTS_SOC!E:E,F177)) -> 0 | K177: 0% | L177: =(SUMIFS(SOURCE_PARTS_SOC!H:H,SOURCE_PARTS_SOC!E:E,F177)) -> 0 | M177: 23,400 | N177: =I177*SUIVI_REGION!$E$4 -> 1,510 | O177: -1,510 | Q177: =VLOOKUP(F177,Objectifs!D:K,8,0) -> 101,000 | R177: =(SUMIF(EMPRUNT_ASV!D:D,SUIVI_PDV!E177,EMPRUNT_ASV!J:J)) -> 0 | S177: 0% | T177: 101,000 | U177: =Q177*SUIVI_REGION!$E$4 -> 6,516 | V177: -6,516 | W177: =VLOOKUP(F177,Objectifs!D:L,9,0) -> 6,700 | X177: =(SUMIF(EMPRUNT_CTO!H:H,SUIVI_PDV!D177,EMPRUNT_CTO!N:N)) -> 0 | Y177: 0% | Z177: 6,700 | AA177: =W177*SUIVI_REGION!$E$4 -> 432 | AB177: -432 | AD177: =(SUMIF(EMPRUNT_ASV!D:D,E177,EMPRUNT_ASV!K:K)) -> 0 | AF177: 0 | AG177: =(SUMIFS(PILCOT_AVEN_DUR!P:P,PILCOT_AVEN_DUR!H:H,D177))-(SUMIFS('FAF AU 31 MAI'!D:D,'FAF AU 31 MAI'!A:A,D177)) -> 0 | AH177: =(SUMIFS(PILCOT_ALIZE!P:P,PILCOT_ALIZE!H:H,D177))-(SUMIFS('FAF AU 31 MAI'!E:E,'FAF AU 31 MAI'!A:A,D177)) -> 0 | AI177: =(SUMIFS(PILCOT_CORALIUM!P:P,PILCOT_CORALIUM!H:H,D177))-(SUMIFS('FAF AU 31 MAI'!C:C,'FAF AU 31 MAI'!A:A,D177)) -> 0 | AK177: 0 | AL177: =(SUMIF(GEDEL!F:F,E177,GEDEL!N:N)) -> 0 | AM177: =(SUMIF(GEDEL!F:F,E177,GEDEL!O:O)) -> 0
A178: 160 | B178: MOSELLE | C178: MOSELLE EST | D178: 531 | E178: 151350000531 | F178: 57250 | G178: =VLOOKUP(F178,Objectifs!D:E,2,FALSE) -> CREUTZWALD | I178: =VLOOKUP(F178,Objectifs!D:M,10,FALSE) -> 46,800 | J178: =(SUMIFS(SOURCE_PARTS_SOC!G:G,SOURCE_PARTS_SOC!E:E,F178)) -> 0 | K178: 0% | L178: =(SUMIFS(SOURCE_PARTS_SOC!H:H,SOURCE_PARTS_SOC!E:E,F178)) -> 0 | M178: 46,800 | N178: =I178*SUIVI_REGION!$E$4 -> 3,019 | O178: -3,019 | Q178: =VLOOKUP(F178,Objectifs!D:K,8,0) -> 202,400 | R178: =(SUMIF(EMPRUNT_ASV!D:D,SUIVI_PDV!E178,EMPRUNT_ASV!J:J)) -> 21,343 | S178: 11% | T178: 181,057 | U178: =Q178*SUIVI_REGION!$E$4 -> 13,058 | V178: 8,285 | W178: =VLOOKUP(F178,Objectifs!D:L,9,0) -> 13,500 | X178: =(SUMIF(EMPRUNT_CTO!H:H,SUIVI_PDV!D178,EMPRUNT_CTO!N:N)) -> 0 | Y178: 0% | Z178: 13,500 | AA178: =W178*SUIVI_REGION!$E$4 -> 871 | AB178: -871 | AD178: =(SUMIF(EMPRUNT_ASV!D:D,E178,EMPRUNT_ASV!K:K)) -> 0 | AF178: 0 | AG178: =(SUMIFS(PILCOT_AVEN_DUR!P:P,PILCOT_AVEN_DUR!H:H,D178))-(SUMIFS('FAF AU 31 MAI'!D:D,'FAF AU 31 MAI'!A:A,D178)) -> 0 | AH178: =(SUMIFS(PILCOT_ALIZE!P:P,PILCOT_ALIZE!H:H,D178))-(SUMIFS('FAF AU 31 MAI'!E:E,'FAF AU 31 MAI'!A:A,D178)) -> 0 | AI178: =(SUMIFS(PILCOT_CORALIUM!P:P,PILCOT_CORALIUM!H:H,D178))-(SUMIFS('FAF AU 31 MAI'!C:C,'FAF AU 31 MAI'!A:A,D178)) -> 0 | AK178: 0 | AL178: =(SUMIF(GEDEL!F:F,E178,GEDEL!N:N)) -> 0 | AM178: =(SUMIF(GEDEL!F:F,E178,GEDEL!O:O)) -> 0
A179: 160 | B179: MOSELLE | C179: MOSELLE EST | D179: 586 | E179: 151350000586 | F179: 57435 | G179: =VLOOKUP(F179,Objectifs!D:E,2,FALSE) -> MERLEBACH | I179: =VLOOKUP(F179,Objectifs!D:M,10,FALSE) -> 51,500 | J179: =(SUMIFS(SOURCE_PARTS_SOC!G:G,SOURCE_PARTS_SOC!E:E,F179)) -> 0 | K179: 0% | L179: =(SUMIFS(SOURCE_PARTS_SOC!H:H,SOURCE_PARTS_SOC!E:E,F179)) -> 0 | M179: 51,500 | N179: =I179*SUIVI_REGION!$E$4 -> 3,323 | O179: -3,323 | Q179: =VLOOKUP(F179,Objectifs!D:K,8,0) -> 222,900 | R179: =(SUMIF(EMPRUNT_ASV!D:D,SUIVI_PDV!E179,EMPRUNT_ASV!J:J)) -> 0 | S179: 0% | T179: 222,900 | U179: =Q179*SUIVI_REGION!$E$4 -> 14,381 | V179: -14,381 | W179: =VLOOKUP(F179,Objectifs!D:L,9,0) -> 14,900 | X179: =(SUMIF(EMPRUNT_CTO!H:H,SUIVI_PDV!D179,EMPRUNT_CTO!N:N)) -> 0 | Y179: 0% | Z179: 14,900 | AA179: =W179*SUIVI_REGION!$E$4 -> 961 | AB179: -961 | AD179: =(SUMIF(EMPRUNT_ASV!D:D,E179,EMPRUNT_ASV!K:K)) -> 0 | AF179: 0 | AG179: =(SUMIFS(PILCOT_AVEN_DUR!P:P,PILCOT_AVEN_DUR!H:H,D179))-(SUMIFS('FAF AU 31 MAI'!D:D,'FAF AU 31 MAI'!A:A,D179)) -> 0 | AH179: =(SUMIFS(PILCOT_ALIZE!P:P,PILCOT_ALIZE!H:H,D179))-(SUMIFS('FAF AU 31 MAI'!E:E,'FAF AU 31 MAI'!A:A,D179)) -> 0 | AI179: =(SUMIFS(PILCOT_CORALIUM!P:P,PILCOT_CORALIUM!H:H,D179))-(SUMIFS('FAF AU 31 MAI'!C:C,'FAF AU 31 MAI'!A:A,D179)) -> 0 | AK179: 0 | AL179: =(SUMIF(GEDEL!F:F,E179,GEDEL!N:N)) -> 0 | AM179: =(SUMIF(GEDEL!F:F,E179,GEDEL!O:O)) -> 0
A180: 160 | B180: MOSELLE | C180: MOSELLE EST | D180: 629 | E180: 151350000629 | F180: 57543 | G180: =VLOOKUP(F180,Objectifs!D:E,2,FALSE) -> PUTTELANGE AUX LACS | I180: =VLOOKUP(F180,Objectifs!D:M,10,FALSE) -> 48,300 | J180: =(SUMIFS(SOURCE_PARTS_SOC!G:G,SOURCE_PARTS_SOC!E:E,F180)) -> 0 | K180: 0% | L180: =(SUMIFS(SOURCE_PARTS_SOC!H:H,SOURCE_PARTS_SOC!E:E,F180)) -> 0 | M180: 48,300 | N180: =I180*SUIVI_REGION!$E$4 -> 3,116 | O180: -3,116 | Q180: =VLOOKUP(F180,Objectifs!D:K,8,0) -> 208,800 | R180: =(SUMIF(EMPRUNT_ASV!D:D,SUIVI_PDV!E180,EMPRUNT_ASV!J:J)) -> 24,500 | S180: 12% | T180: 184,300 | U180: =Q180*SUIVI_REGION!$E$4 -> 13,471 | V180: 11,029 | W180: =VLOOKUP(F180,Objectifs!D:L,9,0) -> 13,900 | X180: =(SUMIF(EMPRUNT_CTO!H:H,SUIVI_PDV!D180,EMPRUNT_CTO!N:N)) -> 0 | Y180: 0% | Z180: 13,900 | AA180: =W180*SUIVI_REGION!$E$4 -> 897 | AB180: -897 | AD180: =(SUMIF(EMPRUNT_ASV!D:D,E180,EMPRUNT_ASV!K:K)) -> 0 | AF180: 0 | AG180: =(SUMIFS(PILCOT_AVEN_DUR!P:P,PILCOT_AVEN_DUR!H:H,D180))-(SUMIFS('FAF AU 31 MAI'!D:D,'FAF AU 31 MAI'!A:A,D180)) -> 0 | AH180: =(SUMIFS(PILCOT_ALIZE!P:P,PILCOT_ALIZE!H:H,D180))-(SUMIFS('FAF AU 31 MAI'!E:E,'FAF AU 31 MAI'!A:A,D180)) -> 0 | AI180: =(SUMIFS(PILCOT_CORALIUM!P:P,PILCOT_CORALIUM!H:H,D180))-(SUMIFS('FAF AU 31 MAI'!C:C,'FAF AU 31 MAI'!A:A,D180)) -> 0 | AK180: 0 | AL180: =(SUMIF(GEDEL!F:F,E180,GEDEL!N:N)) -> 0 | AM180: =(SUMIF(GEDEL!F:F,E180,GEDEL!O:O)) -> 0
A181: 160 | B181: MOSELLE | C181: MOSELLE EST | D181: 637 | E181: 151350000637 | F181: 57583 | G181: =VLOOKUP(F181,Objectifs!D:E,2,FALSE) -> SAINT AVOLD | I181: =VLOOKUP(F181,Objectifs!D:M,10,FALSE) -> 100,800 | J181: =(SUMIFS(SOURCE_PARTS_SOC!G:G,SOURCE_PARTS_SOC!E:E,F181)) -> 0 | K181: 0% | L181: =(SUMIFS(SOURCE_PARTS_SOC!H:H,SOURCE_PARTS_SOC!E:E,F181)) -> 0 | M181: 100,800 | N181: =I181*SUIVI_REGION!$E$4 -> 6,503 | O181: -6,503 | Q181: =VLOOKUP(F181,Objectifs!D:K,8,0) -> 435,400 | R181: =(SUMIF(EMPRUNT_ASV!D:D,SUIVI_PDV!E181,EMPRUNT_ASV!J:J)) -> 0 | S181: 0% | T181: 435,400 | U181: =Q181*SUIVI_REGION!$E$4 -> 28,090 | V181: -28,090 | W181: =VLOOKUP(F181,Objectifs!D:L,9,0) -> 29,000 | X181: =(SUMIF(EMPRUNT_CTO!H:H,SUIVI_PDV!D181,EMPRUNT_CTO!N:N)) -> 0 | Y181: 0% | Z181: 29,000 | AA181: =W181*SUIVI_REGION!$E$4 -> 1,871 | AB181: -1,871 | AD181: =(SUMIF(EMPRUNT_ASV!D:D,E181,EMPRUNT_ASV!K:K)) -> 0 | AF181: 0 | AG181: =(SUMIFS(PILCOT_AVEN_DUR!P:P,PILCOT_AVEN_DUR!H:H,D181))-(SUMIFS('FAF AU 31 MAI'!D:D,'FAF AU 31 MAI'!A:A,D181)) -> 0 | AH181: =(SUMIFS(PILCOT_ALIZE!P:P,PILCOT_ALIZE!H:H,D181))-(SUMIFS('FAF AU 31 MAI'!E:E,'FAF AU 31 MAI'!A:A,D181)) -> 0 | AI181: =(SUMIFS(PILCOT_CORALIUM!P:P,PILCOT_CORALIUM!H:H,D181))-(SUMIFS('FAF AU 31 MAI'!C:C,'FAF AU 31 MAI'!A:A,D181)) -> 0 | AK181: 0 | AL181: =(SUMIF(GEDEL!F:F,E181,GEDEL!N:N)) -> 0 | AM181: =(SUMIF(GEDEL!F:F,E181,GEDEL!O:O)) -> 0
A182: 160 | B182: MOSELLE | C182: MOSELLE EST | D182: 664 | E182: 151350000664 | F182: 57668 | G182: =VLOOKUP(F182,Objectifs!D:E,2,FALSE) -> VALMONT | I182: =VLOOKUP(F182,Objectifs!D:M,10,FALSE) -> 48,400 | J182: =(SUMIFS(SOURCE_PARTS_SOC!G:G,SOURCE_PARTS_SOC!E:E,F182)) -> 0 | K182: 0% | L182: =(SUMIFS(SOURCE_PARTS_SOC!H:H,SOURCE_PARTS_SOC!E:E,F182)) -> 0 | M182: 48,400 | N182: =I182*SUIVI_REGION!$E$4 -> 3,123 | O182: -3,123 | Q182: =VLOOKUP(F182,Objectifs!D:K,8,0) -> 209,200 | R182: =(SUMIF(EMPRUNT_ASV!D:D,SUIVI_PDV!E182,EMPRUNT_ASV!J:J)) -> 0 | S182: 0% | T182: 209,200 | U182: =Q182*SUIVI_REGION!$E$4 -> 13,497 | V182: -13,497 | W182: =VLOOKUP(F182,Objectifs!D:L,9,0) -> 13,900 | X182: =(SUMIF(EMPRUNT_CTO!H:H,SUIVI_PDV!D182,EMPRUNT_CTO!N:N)) -> 0 | Y182: 0% | Z182: 13,900 | AA182: =W182*SUIVI_REGION!$E$4 -> 897 | AB182: -897 | AD182: =(SUMIF(EMPRUNT_ASV!D:D,E182,EMPRUNT_ASV!K:K)) -> 0 | AF182: 0 | AG182: =(SUMIFS(PILCOT_AVEN_DUR!P:P,PILCOT_AVEN_DUR!H:H,D182))-(SUMIFS('FAF AU 31 MAI'!D:D,'FAF AU 31 MAI'!A:A,D182)) -> 0 | AH182: =(SUMIFS(PILCOT_ALIZE!P:P,PILCOT_ALIZE!H:H,D182))-(SUMIFS('FAF AU 31 MAI'!E:E,'FAF AU 31 MAI'!A:A,D182)) -> 0 | AI182: =(SUMIFS(PILCOT_CORALIUM!P:P,PILCOT_CORALIUM!H:H,D182))-(SUMIFS('FAF AU 31 MAI'!C:C,'FAF AU 31 MAI'!A:A,D182)) -> 0 | AK182: 0 | AL182: =(SUMIF(GEDEL!F:F,E182,GEDEL!N:N)) -> 0 | AM182: =(SUMIF(GEDEL!F:F,E182,GEDEL!O:O)) -> 0
A183: 160 | B183: MOSELLE | C183: MOSELLE EST | D183: 645 | E183: 151350000645 | F183: 57614 | G183: =VLOOKUP(F183,Objectifs!D:E,2,FALSE) -> SARREBOURG | I183: =VLOOKUP(F183,Objectifs!D:M,10,FALSE) -> 133,200 | J183: =(SUMIFS(SOURCE_PARTS_SOC!G:G,SOURCE_PARTS_SOC!E:E,F183)) -> 0 | K183: 0% | L183: =(SUMIFS(SOURCE_PARTS_SOC!H:H,SOURCE_PARTS_SOC!E:E,F183)) -> 0 | M183: 133,200 | N183: =I183*SUIVI_REGION!$E$4 -> 8,594 | O183: -8,594 | Q183: =VLOOKUP(F183,Objectifs!D:K,8,0) -> 576,000 | R183: =(SUMIF(EMPRUNT_ASV!D:D,SUIVI_PDV!E183,EMPRUNT_ASV!J:J)) -> 90,164 | S183: 16% | T183: 485,836 | U183: =Q183*SUIVI_REGION!$E$4 -> 37,161 | V183: 53,003 | W183: =VLOOKUP(F183,Objectifs!D:L,9,0) -> 38,400 | X183: =(SUMIF(EMPRUNT_CTO!H:H,SUIVI_PDV!D183,EMPRUNT_CTO!N:N)) -> 0 | Y183: 0% | Z183: 38,400 | AA183: =W183*SUIVI_REGION!$E$4 -> 2,477 | AB183: -2,477 | AD183: =(SUMIF(EMPRUNT_ASV!D:D,E183,EMPRUNT_ASV!K:K)) -> 0 | AF183: 0 | AG183: =(SUMIFS(PILCOT_AVEN_DUR!P:P,PILCOT_AVEN_DUR!H:H,D183))-(SUMIFS('FAF AU 31 MAI'!D:D,'FAF AU 31 MAI'!A:A,D183)) -> 0 | AH183: =(SUMIFS(PILCOT_ALIZE!P:P,PILCOT_ALIZE!H:H,D183))-(SUMIFS('FAF AU 31 MAI'!E:E,'FAF AU 31 MAI'!A:A,D183)) -> 0 | AI183: =(SUMIFS(PILCOT_CORALIUM!P:P,PILCOT_CORALIUM!H:H,D183))-(SUMIFS('FAF AU 31 MAI'!C:C,'FAF AU 31 MAI'!A:A,D183)) -> 0 | AK183: 0 | AL183: =(SUMIF(GEDEL!F:F,E183,GEDEL!N:N)) -> 0 | AM183: =(SUMIF(GEDEL!F:F,E183,GEDEL!O:O)) -> 0
A184: 160 | B184: MOSELLE | C184: MOSELLE EST | D184: 624 | E184: 151350000624 | F184: 57523 | G184: =VLOOKUP(F184,Objectifs!D:E,2,FALSE) -> PHALSBOURG | I184: =VLOOKUP(F184,Objectifs!D:M,10,FALSE) -> 44,300 | J184: =(SUMIFS(SOURCE_PARTS_SOC!G:G,SOURCE_PARTS_SOC!E:E,F184)) -> 0 | K184: 0% | L184: =(SUMIFS(SOURCE_PARTS_SOC!H:H,SOURCE_PARTS_SOC!E:E,F184)) -> 0 | M184: 44,300 | N184: =I184*SUIVI_REGION!$E$4 -> 2,858 | O184: -2,858 | Q184: =VLOOKUP(F184,Objectifs!D:K,8,0) -> 191,400 | R184: =(SUMIF(EMPRUNT_ASV!D:D,SUIVI_PDV!E184,EMPRUNT_ASV!J:J)) -> 2,500 | S184: 1% | T184: 188,900 | U184: =Q184*SUIVI_REGION!$E$4 -> 12,348 | V184: -9,848 | W184: =VLOOKUP(F184,Objectifs!D:L,9,0) -> 12,800 | X184: =(SUMIF(EMPRUNT_CTO!H:H,SUIVI_PDV!D184,EMPRUNT_CTO!N:N)) -> 15,000 | Y184: 117% | AA184: =W184*SUIVI_REGION!$E$4 -> 826 | AB184: 14,174 | AD184: =(SUMIF(EMPRUNT_ASV!D:D,E184,EMPRUNT_ASV!K:K)) -> 0 | AF184: 4,171 | AG184: =(SUMIFS(PILCOT_AVEN_DUR!P:P,PILCOT_AVEN_DUR!H:H,D184))-(SUMIFS('FAF AU 31 MAI'!D:D,'FAF AU 31 MAI'!A:A,D184)) -> 0 | AH184: =(SUMIFS(PILCOT_ALIZE!P:P,PILCOT_ALIZE!H:H,D184))-(SUMIFS('FAF AU 31 MAI'!E:E,'FAF AU 31 MAI'!A:A,D184)) -> 0 | AI184: =(SUMIFS(PILCOT_CORALIUM!P:P,PILCOT_CORALIUM!H:H,D184))-(SUMIFS('FAF AU 31 MAI'!C:C,'FAF AU 31 MAI'!A:A,D184)) -> 4,171 | AK184: 0 | AL184: =(SUMIF(GEDEL!F:F,E184,GEDEL!N:N)) -> 0 | AM184: =(SUMIF(GEDEL!F:F,E184,GEDEL!O:O)) -> 0
A185: 160 | B185: MOSELLE | C185: MOSELLE EST | D185: 512 | E185: 151350000512 | F185: 57165 | G185: =VLOOKUP(F185,Objectifs!D:E,2,FALSE) -> BITCHE | I185: =VLOOKUP(F185,Objectifs!D:M,10,FALSE) -> 44,600 | J185: =(SUMIFS(SOURCE_PARTS_SOC!G:G,SOURCE_PARTS_SOC!E:E,F185)) -> 0 | K185: 0% | L185: =(SUMIFS(SOURCE_PARTS_SOC!H:H,SOURCE_PARTS_SOC!E:E,F185)) -> 0 | M185: 44,600 | N185: =I185*SUIVI_REGION!$E$4 -> 2,877 | O185: -2,877 | Q185: =VLOOKUP(F185,Objectifs!D:K,8,0) -> 192,700 | R185: =(SUMIF(EMPRUNT_ASV!D:D,SUIVI_PDV!E185,EMPRUNT_ASV!J:J)) -> 47,503 | S185: 25% | T185: 145,198 | U185: =Q185*SUIVI_REGION!$E$4 -> 12,432 | V185: 35,070 | W185: =VLOOKUP(F185,Objectifs!D:L,9,0) -> 12,800 | X185: =(SUMIF(EMPRUNT_CTO!H:H,SUIVI_PDV!D185,EMPRUNT_CTO!N:N)) -> 0 | Y185: 0% | Z185: 12,800 | AA185: =W185*SUIVI_REGION!$E$4 -> 826 | AB185: -826 | AD185: =(SUMIF(EMPRUNT_ASV!D:D,E185,EMPRUNT_ASV!K:K)) -> 0 | AF185: 0 | AG185: =(SUMIFS(PILCOT_AVEN_DUR!P:P,PILCOT_AVEN_DUR!H:H,D185))-(SUMIFS('FAF AU 31 MAI'!D:D,'FAF AU 31 MAI'!A:A,D185)) -> 0 | AH185: =(SUMIFS(PILCOT_ALIZE!P:P,PILCOT_ALIZE!H:H,D185))-(SUMIFS('FAF AU 31 MAI'!E:E,'FAF AU 31 MAI'!A:A,D185)) -> 0 | AI185: =(SUMIFS(PILCOT_CORALIUM!P:P,PILCOT_CORALIUM!H:H,D185))-(SUMIFS('FAF AU 31 MAI'!C:C,'FAF AU 31 MAI'!A:A,D185)) -> 0 | AK185: 0 | AL185: =(SUMIF(GEDEL!F:F,E185,GEDEL!N:N)) -> 0 | AM185: =(SUMIF(GEDEL!F:F,E185,GEDEL!O:O)) -> 0
A186: 160 | B186: MOSELLE | C186: MOSELLE EST | D186: 617 | E186: 151350000617 | F186: 57503 | G186: =VLOOKUP(F186,Objectifs!D:E,2,FALSE) -> NEUNKIRCH | I186: =VLOOKUP(F186,Objectifs!D:M,10,FALSE) -> 33,300 | J186: =(SUMIFS(SOURCE_PARTS_SOC!G:G,SOURCE_PARTS_SOC!E:E,F186)) -> 0 | K186: 0% | L186: =(SUMIFS(SOURCE_PARTS_SOC!H:H,SOURCE_PARTS_SOC!E:E,F186)) -> 0 | M186: 33,300 | N186: =I186*SUIVI_REGION!$E$4 -> 2,148 | O186: -2,148 | Q186: =VLOOKUP(F186,Objectifs!D:K,8,0) -> 144,300 | R186: =(SUMIF(EMPRUNT_ASV!D:D,SUIVI_PDV!E186,EMPRUNT_ASV!J:J)) -> 0 | S186: 0% | T186: 144,300 | U186: =Q186*SUIVI_REGION!$E$4 -> 9,310 | V186: -9,310 | W186: =VLOOKUP(F186,Objectifs!D:L,9,0) -> 9,600 | X186: =(SUMIF(EMPRUNT_CTO!H:H,SUIVI_PDV!D186,EMPRUNT_CTO!N:N)) -> 0 | Y186: 0% | Z186: 9,600 | AA186: =W186*SUIVI_REGION!$E$4 -> 619 | AB186: -619 | AD186: =(SUMIF(EMPRUNT_ASV!D:D,E186,EMPRUNT_ASV!K:K)) -> 0 | AF186: 0 | AG186: =(SUMIFS(PILCOT_AVEN_DUR!P:P,PILCOT_AVEN_DUR!H:H,D186))-(SUMIFS('FAF AU 31 MAI'!D:D,'FAF AU 31 MAI'!A:A,D186)) -> 0 | AH186: =(SUMIFS(PILCOT_ALIZE!P:P,PILCOT_ALIZE!H:H,D186))-(SUMIFS('FAF AU 31 MAI'!E:E,'FAF AU 31 MAI'!A:A,D186)) -> 0 | AI186: =(SUMIFS(PILCOT_CORALIUM!P:P,PILCOT_CORALIUM!H:H,D186))-(SUMIFS('FAF AU 31 MAI'!C:C,'FAF AU 31 MAI'!A:A,D186)) -> 0 | AK186: 0 | AL186: =(SUMIF(GEDEL!F:F,E186,GEDEL!N:N)) -> 0 | AM186: =(SUMIF(GEDEL!F:F,E186,GEDEL!O:O)) -> 0
A187: 160 | B187: MOSELLE | C187: MOSELLE EST | D187: 647 | E187: 151350000647 | F187: 57618 | G187: =VLOOKUP(F187,Objectifs!D:E,2,FALSE) -> SARREGUEMINES | I187: =VLOOKUP(F187,Objectifs!D:M,10,FALSE) -> 135,700 | J187: =(SUMIFS(SOURCE_PARTS_SOC!G:G,SOURCE_PARTS_SOC!E:E,F187)) -> 0 | K187: 0% | L187: =(SUMIFS(SOURCE_PARTS_SOC!H:H,SOURCE_PARTS_SOC!E:E,F187)) -> 0 | M187: 135,700 | N187: =I187*SUIVI_REGION!$E$4 -> 8,755 | O187: -8,755 | Q187: =VLOOKUP(F187,Objectifs!D:K,8,0) -> 586,500 | R187: =(SUMIF(EMPRUNT_ASV!D:D,SUIVI_PDV!E187,EMPRUNT_ASV!J:J)) -> 0 | S187: 0% | T187: 586,500 | U187: =Q187*SUIVI_REGION!$E$4 -> 37,839 | V187: -37,839 | W187: =VLOOKUP(F187,Objectifs!D:L,9,0) -> 39,100 | X187: =(SUMIF(EMPRUNT_CTO!H:H,SUIVI_PDV!D187,EMPRUNT_CTO!N:N)) -> 0 | Y187: 0% | Z187: 39,100 | AA187: =W187*SUIVI_REGION!$E$4 -> 2,523 | AB187: -2,523 | AD187: =(SUMIF(EMPRUNT_ASV!D:D,E187,EMPRUNT_ASV!K:K)) -> 0 | AF187: 0 | AG187: =(SUMIFS(PILCOT_AVEN_DUR!P:P,PILCOT_AVEN_DUR!H:H,D187))-(SUMIFS('FAF AU 31 MAI'!D:D,'FAF AU 31 MAI'!A:A,D187)) -> 0 | AH187: =(SUMIFS(PILCOT_ALIZE!P:P,PILCOT_ALIZE!H:H,D187))-(SUMIFS('FAF AU 31 MAI'!E:E,'FAF AU 31 MAI'!A:A,D187)) -> 0 | AI187: =(SUMIFS(PILCOT_CORALIUM!P:P,PILCOT_CORALIUM!H:H,D187))-(SUMIFS('FAF AU 31 MAI'!C:C,'FAF AU 31 MAI'!A:A,D187)) -> 0 | AK187: 0 | AL187: =(SUMIF(GEDEL!F:F,E187,GEDEL!N:N)) -> 0 | AM187: =(SUMIF(GEDEL!F:F,E187,GEDEL!O:O)) -> 0
A188: 160 | C188: Total Territoire MOSELLE EST | I188: =SUBTOTAL(9,I171:I187) -> 1,005,100 | J188: =SUBTOTAL(9,J171:J187) -> 0 | K188: 0% | L188: =SUBTOTAL(9,L178:L187) -> 0 | M188: 1,005,100 | N188: =I188*SUIVI_REGION!$E$4 -> 64,845 | O188: -64,845 | Q188: =SUBTOTAL(9,Q171:Q187) -> 4,344,200 | R188: =SUBTOTAL(9,R171:R187) -> 207,680 | S188: 5% | T188: 4,136,520 | U188: =SUBTOTAL(9,U171:U187) -> 280,271 | V188: =SUBTOTAL(9,V171:V187) -> -72,591 | W188: =SUBTOTAL(9,W171:W187) -> 289,500 | X188: =SUBTOTAL(9,X171:X187) -> 15,000 | Y188: =IFERROR(X188/W188," ") -> 5% | Z188: =IF(X188>W188," ",W188-X188) -> 274,500 | AA188: =SUBTOTAL(9,AA171:AA187) -> 18,677 | AB188: =SUBTOTAL(9,AB171:AB187) -> -3,677 | AD188: =SUBTOTAL(9,AD171:AD187) -> 0 | AF188: =SUBTOTAL(9,AF171:AF187) -> 5,166 | AG188: =SUBTOTAL(9,AG171:AG187) -> 996 | AH188: 0 | AI188: 4,171 | AK188: =SUBTOTAL(9,AK171:AK187) -> 0 | AL188: =SUBTOTAL(9,AL171:AL187) -> 0 | AM188: 0
A189: 160 | B189: MOSELLE | C189: MOSELLE NORD | D189: 509 | E189: =CONCATENATE(151350000,D189) -> 151350000509 | F189: 57158 | G189: =VLOOKUP(F189,Objectifs!D:E,2,FALSE) -> YUTZ | I189: =VLOOKUP(F189,Objectifs!D:M,10,FALSE) -> 80,100 | J189: =(SUMIFS(SOURCE_PARTS_SOC!G:G,SOURCE_PARTS_SOC!E:E,F189)) -> 0 | K189: 0% | L189: =(SUMIFS(SOURCE_PARTS_SOC!H:H,SOURCE_PARTS_SOC!E:E,F189)) -> 0 | M189: 80,100 | N189: =I189*SUIVI_REGION!$E$4 -> 5,168 | O189: -5,168 | Q189: =VLOOKUP(F189,Objectifs!D:K,8,0) -> 346,500 | R189: =(SUMIF(EMPRUNT_ASV!D:D,SUIVI_PDV!E189,EMPRUNT_ASV!J:J)) -> 72,000 | S189: 21% | T189: 274,500 | U189: =Q189*SUIVI_REGION!$E$4 -> 22,355 | V189: =R189-U189 -> 49,645 | W189: =VLOOKUP(F189,Objectifs!D:L,9,0) -> 23,100 | X189: =(SUMIF(EMPRUNT_CTO!H:H,SUIVI_PDV!D189,EMPRUNT_CTO!N:N)) -> 0 | Y189: =IFERROR(X189/W189," ") -> 0% | Z189: =IF(X189>W189," ",W189-X189) -> 23,100 | AA189: =W189*SUIVI_REGION!$E$4 -> 1,490 | AB189: =X189-AA189 -> -1,490 | AD189: =(SUMIF(EMPRUNT_ASV!D:D,E189,EMPRUNT_ASV!K:K)) -> 0 | AF189: =AG189+AH189+AI189 -> 0 | AG189: =(SUMIFS(PILCOT_AVEN_DUR!P:P,PILCOT_AVEN_DUR!H:H,D189))-(SUMIFS('FAF AU 31 MAI'!D:D,'FAF AU 31 MAI'!A:A,D189)) -> 0 | AH189: =(SUMIFS(PILCOT_ALIZE!P:P,PILCOT_ALIZE!H:H,D189))-(SUMIFS('FAF AU 31 MAI'!E:E,'FAF AU 31 MAI'!A:A,D189)) -> 0 | AI189: =(SUMIFS(PILCOT_CORALIUM!P:P,PILCOT_CORALIUM!H:H,D189))-(SUMIFS('FAF AU 31 MAI'!C:C,'FAF AU 31 MAI'!A:A,D189)) -> 0 | AK189: =AL189+AM189 -> 0 | AL189: =(SUMIF(GEDEL!F:F,E189,GEDEL!N:N)) -> 0 | AM189: =(SUMIF(GEDEL!F:F,E189,GEDEL!O:O)) -> 0
A190: 160 | B190: MOSELLE | C190: MOSELLE NORD | D190: 521 | E190: 151350000521 | F190: 57192 | G190: =VLOOKUP(F190,Objectifs!D:E,2,FALSE) -> CATTENOM | I190: =VLOOKUP(F190,Objectifs!D:M,10,FALSE) -> 50,400 | J190: =(SUMIFS(SOURCE_PARTS_SOC!G:G,SOURCE_PARTS_SOC!E:E,F190)) -> 0 | K190: 0% | L190: =(SUMIFS(SOURCE_PARTS_SOC!H:H,SOURCE_PARTS_SOC!E:E,F190)) -> 0 | M190: 50,400 | N190: =I190*SUIVI_REGION!$E$4 -> 3,252 | O190: -3,252 | Q190: =VLOOKUP(F190,Objectifs!D:K,8,0) -> 217,600 | R190: =(SUMIF(EMPRUNT_ASV!D:D,SUIVI_PDV!E190,EMPRUNT_ASV!J:J)) -> 30,800 | S190: 14% | T190: 186,800 | U190: =Q190*SUIVI_REGION!$E$4 -> 14,039 | V190: 16,761 | W190: =VLOOKUP(F190,Objectifs!D:L,9,0) -> 14,500 | X190: =(SUMIF(EMPRUNT_CTO!H:H,SUIVI_PDV!D190,EMPRUNT_CTO!N:N)) -> 0 | Y190: =IFERROR(X190/W190," ") -> 0% | Z190: =IF(X190>W190," ",W190-X190) -> 14,500 | AA190: =W190*SUIVI_REGION!$E$4 -> 935 | AB190: =X190-AA190 -> -935 | AD190: =(SUMIF(EMPRUNT_ASV!D:D,E190,EMPRUNT_ASV!K:K)) -> 0 | AF190: =AG190+AH190+AI190 -> 2,388 | AG190: =(SUMIFS(PILCOT_AVEN_DUR!P:P,PILCOT_AVEN_DUR!H:H,D190))-(SUMIFS('FAF AU 31 MAI'!D:D,'FAF AU 31 MAI'!A:A,D190)) -> 2,388 | AH190: =(SUMIFS(PILCOT_ALIZE!P:P,PILCOT_ALIZE!H:H,D190))-(SUMIFS('FAF AU 31 MAI'!E:E,'FAF AU 31 MAI'!A:A,D190)) -> 0 | AI190: =(SUMIFS(PILCOT_CORALIUM!P:P,PILCOT_CORALIUM!H:H,D190))-(SUMIFS('FAF AU 31 MAI'!C:C,'FAF AU 31 MAI'!A:A,D190)) -> 0 | AK190: =AL190+AM190 -> 0 | AL190: =(SUMIF(GEDEL!F:F,E190,GEDEL!N:N)) -> 0 | AM190: =(SUMIF(GEDEL!F:F,E190,GEDEL!O:O)) -> 0
A191: 160 | B191: MOSELLE | C191: MOSELLE NORD | D191: 563 | E191: 151350000563 | F191: 57352 | G191: =VLOOKUP(F191,Objectifs!D:E,2,FALSE) -> HETTANGE GRANDE | I191: =VLOOKUP(F191,Objectifs!D:M,10,FALSE) -> 54,000 | J191: =(SUMIFS(SOURCE_PARTS_SOC!G:G,SOURCE_PARTS_SOC!E:E,F191)) -> 0 | K191: 0% | L191: =(SUMIFS(SOURCE_PARTS_SOC!H:H,SOURCE_PARTS_SOC!E:E,F191)) -> 0 | M191: 54,000 | N191: =I191*SUIVI_REGION!$E$4 -> 3,484 | O191: -3,484 | Q191: =VLOOKUP(F191,Objectifs!D:K,8,0) -> 233,700 | R191: =(SUMIF(EMPRUNT_ASV!D:D,SUIVI_PDV!E191,EMPRUNT_ASV!J:J)) -> 43,000 | S191: 18% | T191: 190,700 | U191: =Q191*SUIVI_REGION!$E$4 -> 15,077 | V191: 27,923 | W191: =VLOOKUP(F191,Objectifs!D:L,9,0) -> 15,600 | X191: =(SUMIF(EMPRUNT_CTO!H:H,SUIVI_PDV!D191,EMPRUNT_CTO!N:N)) -> 0 | Y191: 0% | Z191: 15,600 | AA191: =W191*SUIVI_REGION!$E$4 -> 1,006 | AB191: -1,006 | AD191: =(SUMIF(EMPRUNT_ASV!D:D,E191,EMPRUNT_ASV!K:K)) -> 0 | AF191: 0 | AG191: =(SUMIFS(PILCOT_AVEN_DUR!P:P,PILCOT_AVEN_DUR!H:H,D191))-(SUMIFS('FAF AU 31 MAI'!D:D,'FAF AU 31 MAI'!A:A,D191)) -> 0 | AH191: =(SUMIFS(PILCOT_ALIZE!P:P,PILCOT_ALIZE!H:H,D191))-(SUMIFS('FAF AU 31 MAI'!E:E,'FAF AU 31 MAI'!A:A,D191)) -> 0 | AI191: =(SUMIFS(PILCOT_CORALIUM!P:P,PILCOT_CORALIUM!H:H,D191))-(SUMIFS('FAF AU 31 MAI'!C:C,'FAF AU 31 MAI'!A:A,D191)) -> 0 | AK191: 0 | AL191: =(SUMIF(GEDEL!F:F,E191,GEDEL!N:N)) -> 0 | AM191: =(SUMIF(GEDEL!F:F,E191,GEDEL!O:O)) -> 0
A192: 160 | B192: MOSELLE | C192: MOSELLE NORD | D192: 651 | E192: 151350000651 | F192: 57622 | G192: =VLOOKUP(F192,Objectifs!D:E,2,FALSE) -> SIERCK LES BAINS | I192: =VLOOKUP(F192,Objectifs!D:M,10,FALSE) -> 27,900 | J192: =(SUMIFS(SOURCE_PARTS_SOC!G:G,SOURCE_PARTS_SOC!E:E,F192)) -> 0 | K192: 0% | L192: =(SUMIFS(SOURCE_PARTS_SOC!H:H,SOURCE_PARTS_SOC!E:E,F192)) -> 0 | M192: 27,900 | N192: =I192*SUIVI_REGION!$E$4 -> 1,800 | O192: -1,800 | Q192: =VLOOKUP(F192,Objectifs!D:K,8,0) -> 120,900 | R192: =(SUMIF(EMPRUNT_ASV!D:D,SUIVI_PDV!E192,EMPRUNT_ASV!J:J)) -> 202,820 | S192: 168% | U192: =Q192*SUIVI_REGION!$E$4 -> 7,800 | V192: 195,020 | W192: =VLOOKUP(F192,Objectifs!D:L,9,0) -> 8,100 | X192: =(SUMIF(EMPRUNT_CTO!H:H,SUIVI_PDV!D192,EMPRUNT_CTO!N:N)) -> 0 | Y192: 0% | Z192: 8,100 | AA192: =W192*SUIVI_REGION!$E$4 -> 523 | AB192: -523 | AD192: =(SUMIF(EMPRUNT_ASV!D:D,E192,EMPRUNT_ASV!K:K)) -> 0 | AF192: 0 | AG192: =(SUMIFS(PILCOT_AVEN_DUR!P:P,PILCOT_AVEN_DUR!H:H,D192))-(SUMIFS('FAF AU 31 MAI'!D:D,'FAF AU 31 MAI'!A:A,D192)) -> 0 | AH192: =(SUMIFS(PILCOT_ALIZE!P:P,PILCOT_ALIZE!H:H,D192))-(SUMIFS('FAF AU 31 MAI'!E:E,'FAF AU 31 MAI'!A:A,D192)) -> 0 | AI192: =(SUMIFS(PILCOT_CORALIUM!P:P,PILCOT_CORALIUM!H:H,D192))-(SUMIFS('FAF AU 31 MAI'!C:C,'FAF AU 31 MAI'!A:A,D192)) -> 0 | AK192: 0 | AL192: =(SUMIF(GEDEL!F:F,E192,GEDEL!N:N)) -> 0 | AM192: =(SUMIF(GEDEL!F:F,E192,GEDEL!O:O)) -> 0
A193: 160 | B193: MOSELLE | C193: MOSELLE NORD | D193: 544 | E193: 151350000544 | F193: 57303 | G193: =VLOOKUP(F193,Objectifs!D:E,2,FALSE) -> FAMECK | I193: =VLOOKUP(F193,Objectifs!D:M,10,FALSE) -> 60,000 | J193: =(SUMIFS(SOURCE_PARTS_SOC!G:G,SOURCE_PARTS_SOC!E:E,F193)) -> 0 | K193: 0% | L193: =(SUMIFS(SOURCE_PARTS_SOC!H:H,SOURCE_PARTS_SOC!E:E,F193)) -> 0 | M193: 60,000 | N193: =I193*SUIVI_REGION!$E$4 -> 3,871 | O193: -3,871 | Q193: =VLOOKUP(F193,Objectifs!D:K,8,0) -> 259,300 | R193: =(SUMIF(EMPRUNT_ASV!D:D,SUIVI_PDV!E193,EMPRUNT_ASV!J:J)) -> 0 | S193: 0% | T193: 259,300 | U193: =Q193*SUIVI_REGION!$E$4 -> 16,729 | V193: -16,729 | W193: =VLOOKUP(F193,Objectifs!D:L,9,0) -> 17,300 | X193: =(SUMIF(EMPRUNT_CTO!H:H,SUIVI_PDV!D193,EMPRUNT_CTO!N:N)) -> 0 | Y193: 0% | Z193: 17,300 | AA193: =W193*SUIVI_REGION!$E$4 -> 1,116 | AB193: -1,116 | AD193: =(SUMIF(EMPRUNT_ASV!D:D,E193,EMPRUNT_ASV!K:K)) -> 0 | AF193: 0 | AG193: =(SUMIFS(PILCOT_AVEN_DUR!P:P,PILCOT_AVEN_DUR!H:H,D193))-(SUMIFS('FAF AU 31 MAI'!D:D,'FAF AU 31 MAI'!A:A,D193)) -> 0 | AH193: =(SUMIFS(PILCOT_ALIZE!P:P,PILCOT_ALIZE!H:H,D193))-(SUMIFS('FAF AU 31 MAI'!E:E,'FAF AU 31 MAI'!A:A,D193)) -> 0 | AI193: =(SUMIFS(PILCOT_CORALIUM!P:P,PILCOT_CORALIUM!H:H,D193))-(SUMIFS('FAF AU 31 MAI'!C:C,'FAF AU 31 MAI'!A:A,D193)) -> 0 | AK193: 0 | AL193: =(SUMIF(GEDEL!F:F,E193,GEDEL!N:N)) -> 0 | AM193: =(SUMIF(GEDEL!F:F,E193,GEDEL!O:O)) -> 0
A194: 160 | B194: MOSELLE | C194: MOSELLE NORD | D194: 547 | E194: 151350000547 | F194: 57306 | G194: =VLOOKUP(F194,Objectifs!D:E,2,FALSE) -> FLORANGE | I194: =VLOOKUP(F194,Objectifs!D:M,10,FALSE) -> 47,800 | J194: =(SUMIFS(SOURCE_PARTS_SOC!G:G,SOURCE_PARTS_SOC!E:E,F194)) -> 0 | K194: 0% | L194: =(SUMIFS(SOURCE_PARTS_SOC!H:H,SOURCE_PARTS_SOC!E:E,F194)) -> 0 | M194: 47,800 | N194: =I194*SUIVI_REGION!$E$4 -> 3,084 | O194: -3,084 | Q194: =VLOOKUP(F194,Objectifs!D:K,8,0) -> 206,600 | R194: =(SUMIF(EMPRUNT_ASV!D:D,SUIVI_PDV!E194,EMPRUNT_ASV!J:J)) -> 0 | S194: 0% | T194: 206,600 | U194: =Q194*SUIVI_REGION!$E$4 -> 13,329 | V194: -13,329 | W194: =VLOOKUP(F194,Objectifs!D:L,9,0) -> 13,800 | X194: =(SUMIF(EMPRUNT_CTO!H:H,SUIVI_PDV!D194,EMPRUNT_CTO!N:N)) -> 0 | Y194: 0% | Z194: 13,800 | AA194: =W194*SUIVI_REGION!$E$4 -> 890 | AB194: -890 | AD194: =(SUMIF(EMPRUNT_ASV!D:D,E194,EMPRUNT_ASV!K:K)) -> 0 | AF194: 0 | AG194: =(SUMIFS(PILCOT_AVEN_DUR!P:P,PILCOT_AVEN_DUR!H:H,D194))-(SUMIFS('FAF AU 31 MAI'!D:D,'FAF AU 31 MAI'!A:A,D194)) -> 0 | AH194: =(SUMIFS(PILCOT_ALIZE!P:P,PILCOT_ALIZE!H:H,D194))-(SUMIFS('FAF AU 31 MAI'!E:E,'FAF AU 31 MAI'!A:A,D194)) -> 0 | AI194: =(SUMIFS(PILCOT_CORALIUM!P:P,PILCOT_CORALIUM!H:H,D194))-(SUMIFS('FAF AU 31 MAI'!C:C,'FAF AU 31 MAI'!A:A,D194)) -> 0 | AK194: 0 | AL194: =(SUMIF(GEDEL!F:F,E194,GEDEL!N:N)) -> 0 | AM194: =(SUMIF(GEDEL!F:F,E194,GEDEL!O:O)) -> 0
A195: 160 | B195: MOSELLE | C195: MOSELLE NORD | D195: 654 | E195: 151350000654 | F195: 57628 | G195: =VLOOKUP(F195,Objectifs!D:E,2,FALSE) -> TERVILLE | I195: =VLOOKUP(F195,Objectifs!D:M,10,FALSE) -> 33,600 | J195: =(SUMIFS(SOURCE_PARTS_SOC!G:G,SOURCE_PARTS_SOC!E:E,F195)) -> 0 | K195: =IFERROR(J195/I195," ") -> 0% | L195: =(SUMIFS(SOURCE_PARTS_SOC!H:H,SOURCE_PARTS_SOC!E:E,F195)) -> 0 | M195: =IF(J195>I195," ",I195-J195) -> 33,600 | N195: =I195*SUIVI_REGION!$E$4 -> 2,168 | O195: =J195-N195 -> -2,168 | Q195: =VLOOKUP(F195,Objectifs!D:K,8,0) -> 145,400 | R195: =(SUMIF(EMPRUNT_ASV!D:D,SUIVI_PDV!E195,EMPRUNT_ASV!J:J)) -> 5,504 | S195: =IFERROR(R195/Q195," ") -> 4% | T195: =IF(R195>Q195," ",Q195-R195) -> 139,896 | U195: =Q195*SUIVI_REGION!$E$4 -> 9,381 | V195: -3,876 | W195: =VLOOKUP(F195,Objectifs!D:L,9,0) -> 9,700 | X195: =(SUMIF(EMPRUNT_CTO!H:H,SUIVI_PDV!D195,EMPRUNT_CTO!N:N)) -> 0 | Y195: 0% | Z195: 9,700 | AA195: =W195*SUIVI_REGION!$E$4 -> 626 | AB195: -626 | AD195: =(SUMIF(EMPRUNT_ASV!D:D,E195,EMPRUNT_ASV!K:K)) -> 0 | AF195: 0 | AG195: =(SUMIFS(PILCOT_AVEN_DUR!P:P,PILCOT_AVEN_DUR!H:H,D195))-(SUMIFS('FAF AU 31 MAI'!D:D,'FAF AU 31 MAI'!A:A,D195)) -> 0 | AH195: =(SUMIFS(PILCOT_ALIZE!P:P,PILCOT_ALIZE!H:H,D195))-(SUMIFS('FAF AU 31 MAI'!E:E,'FAF AU 31 MAI'!A:A,D195)) -> 0 | AI195: =(SUMIFS(PILCOT_CORALIUM!P:P,PILCOT_CORALIUM!H:H,D195))-(SUMIFS('FAF AU 31 MAI'!C:C,'FAF AU 31 MAI'!A:A,D195)) -> 0 | AK195: 0 | AL195: =(SUMIF(GEDEL!F:F,E195,GEDEL!N:N)) -> 0 | AM195: =(SUMIF(GEDEL!F:F,E195,GEDEL!O:O)) -> 0
A196: 160 | B196: MOSELLE | C196: MOSELLE NORD | D196: 662 | E196: 151350000662 | F196: 57660 | G196: =VLOOKUP(F196,Objectifs!D:E,2,FALSE) -> UCKANGE | I196: =VLOOKUP(F196,Objectifs!D:M,10,FALSE) -> 30,600 | J196: =(SUMIFS(SOURCE_PARTS_SOC!G:G,SOURCE_PARTS_SOC!E:E,F196)) -> 0 | K196: 0% | L196: =(SUMIFS(SOURCE_PARTS_SOC!H:H,SOURCE_PARTS_SOC!E:E,F196)) -> 0 | M196: 30,600 | N196: =I196*SUIVI_REGION!$E$4 -> 1,974 | O196: -1,974 | Q196: =VLOOKUP(F196,Objectifs!D:K,8,0) -> 132,100 | R196: =(SUMIF(EMPRUNT_ASV!D:D,SUIVI_PDV!E196,EMPRUNT_ASV!J:J)) -> 0 | S196: 0% | T196: 132,100 | U196: =Q196*SUIVI_REGION!$E$4 -> 8,523 | V196: -8,523 | W196: =VLOOKUP(F196,Objectifs!D:L,9,0) -> 8,800 | X196: =(SUMIF(EMPRUNT_CTO!H:H,SUIVI_PDV!D196,EMPRUNT_CTO!N:N)) -> 0 | Y196: 0% | Z196: 8,800 | AA196: =W196*SUIVI_REGION!$E$4 -> 568 | AB196: -568 | AD196: =(SUMIF(EMPRUNT_ASV!D:D,E196,EMPRUNT_ASV!K:K)) -> 0 | AF196: 0 | AG196: =(SUMIFS(PILCOT_AVEN_DUR!P:P,PILCOT_AVEN_DUR!H:H,D196))-(SUMIFS('FAF AU 31 MAI'!D:D,'FAF AU 31 MAI'!A:A,D196)) -> 0 | AH196: =(SUMIFS(PILCOT_ALIZE!P:P,PILCOT_ALIZE!H:H,D196))-(SUMIFS('FAF AU 31 MAI'!E:E,'FAF AU 31 MAI'!A:A,D196)) -> 0 | AI196: =(SUMIFS(PILCOT_CORALIUM!P:P,PILCOT_CORALIUM!H:H,D196))-(SUMIFS('FAF AU 31 MAI'!C:C,'FAF AU 31 MAI'!A:A,D196)) -> 0 | AK196: 0 | AL196: =(SUMIF(GEDEL!F:F,E196,GEDEL!N:N)) -> 0 | AM196: =(SUMIF(GEDEL!F:F,E196,GEDEL!O:O)) -> 0
A197: 160 | B197: MOSELLE | C197: MOSELLE NORD | D197: 517 | E197: 151350000517 | F197: 57180 | G197: =VLOOKUP(F197,Objectifs!D:E,2,FALSE) -> BOUSSE | I197: =VLOOKUP(F197,Objectifs!D:M,10,FALSE) -> 31,600 | J197: =(SUMIFS(SOURCE_PARTS_SOC!G:G,SOURCE_PARTS_SOC!E:E,F197)) -> 0 | K197: 0% | L197: =(SUMIFS(SOURCE_PARTS_SOC!H:H,SOURCE_PARTS_SOC!E:E,F197)) -> 0 | M197: 31,600 | N197: =I197*SUIVI_REGION!$E$4 -> 2,039 | O197: -2,039 | Q197: =VLOOKUP(F197,Objectifs!D:K,8,0) -> 137,000 | R197: =(SUMIF(EMPRUNT_ASV!D:D,SUIVI_PDV!E197,EMPRUNT_ASV!J:J)) -> 30,000 | S197: 22% | T197: 107,000 | U197: =Q197*SUIVI_REGION!$E$4 -> 8,839 | V197: 21,161 | W197: =VLOOKUP(F197,Objectifs!D:L,9,0) -> 9,100 | X197: =(SUMIF(EMPRUNT_CTO!H:H,SUIVI_PDV!D197,EMPRUNT_CTO!N:N)) -> 0 | Y197: 0% | Z197: 9,100 | AA197: =W197*SUIVI_REGION!$E$4 -> 587 | AB197: -587 | AD197: =(SUMIF(EMPRUNT_ASV!D:D,E197,EMPRUNT_ASV!K:K)) -> 0 | AF197: 0 | AG197: =(SUMIFS(PILCOT_AVEN_DUR!P:P,PILCOT_AVEN_DUR!H:H,D197))-(SUMIFS('FAF AU 31 MAI'!D:D,'FAF AU 31 MAI'!A:A,D197)) -> 0 | AH197: =(SUMIFS(PILCOT_ALIZE!P:P,PILCOT_ALIZE!H:H,D197))-(SUMIFS('FAF AU 31 MAI'!E:E,'FAF AU 31 MAI'!A:A,D197)) -> 0 | AI197: =(SUMIFS(PILCOT_CORALIUM!P:P,PILCOT_CORALIUM!H:H,D197))-(SUMIFS('FAF AU 31 MAI'!C:C,'FAF AU 31 MAI'!A:A,D197)) -> 0 | AK197: 0 | AL197: =(SUMIF(GEDEL!F:F,E197,GEDEL!N:N)) -> 0 | AM197: =(SUMIF(GEDEL!F:F,E197,GEDEL!O:O)) -> 0
A198: 160 | B198: MOSELLE | C198: MOSELLE NORD | D198: 558 | E198: 151350000558 | F198: 57347 | G198: =VLOOKUP(F198,Objectifs!D:E,2,FALSE) -> GUENANGE | I198: =VLOOKUP(F198,Objectifs!D:M,10,FALSE) -> 61,100 | J198: =(SUMIFS(SOURCE_PARTS_SOC!G:G,SOURCE_PARTS_SOC!E:E,F198)) -> 0 | K198: 0% | L198: =(SUMIFS(SOURCE_PARTS_SOC!H:H,SOURCE_PARTS_SOC!E:E,F198)) -> 0 | M198: 61,100 | N198: =I198*SUIVI_REGION!$E$4 -> 3,942 | O198: -3,942 | Q198: =VLOOKUP(F198,Objectifs!D:K,8,0) -> 264,100 | R198: =(SUMIF(EMPRUNT_ASV!D:D,SUIVI_PDV!E198,EMPRUNT_ASV!J:J)) -> 0 | S198: 0% | T198: 264,100 | U198: =Q198*SUIVI_REGION!$E$4 -> 17,039 | V198: -17,039 | W198: =VLOOKUP(F198,Objectifs!D:L,9,0) -> 17,600 | X198: =(SUMIF(EMPRUNT_CTO!H:H,SUIVI_PDV!D198,EMPRUNT_CTO!N:N)) -> 0 | Y198: 0% | Z198: 17,600 | AA198: =W198*SUIVI_REGION!$E$4 -> 1,135 | AB198: -1,135 | AD198: =(SUMIF(EMPRUNT_ASV!D:D,E198,EMPRUNT_ASV!K:K)) -> 0 | AF198: 0 | AG198: =(SUMIFS(PILCOT_AVEN_DUR!P:P,PILCOT_AVEN_DUR!H:H,D198))-(SUMIFS('FAF AU 31 MAI'!D:D,'FAF AU 31 MAI'!A:A,D198)) -> 0 | AH198: =(SUMIFS(PILCOT_ALIZE!P:P,PILCOT_ALIZE!H:H,D198))-(SUMIFS('FAF AU 31 MAI'!E:E,'FAF AU 31 MAI'!A:A,D198)) -> 0 | AI198: =(SUMIFS(PILCOT_CORALIUM!P:P,PILCOT_CORALIUM!H:H,D198))-(SUMIFS('FAF AU 31 MAI'!C:C,'FAF AU 31 MAI'!A:A,D198)) -> 0 | AK198: 0 | AL198: =(SUMIF(GEDEL!F:F,E198,GEDEL!N:N)) -> 0 | AM198: =(SUMIF(GEDEL!F:F,E198,GEDEL!O:O)) -> 0
A199: 160 | B199: MOSELLE | C199: MOSELLE NORD | D199: 559 | E199: 151350000559 | F199: 57348 | G199: =VLOOKUP(F199,Objectifs!D:E,2,FALSE) -> HAGONDANGE | I199: =VLOOKUP(F199,Objectifs!D:M,10,FALSE) -> 137,900 | J199: =(SUMIFS(SOURCE_PARTS_SOC!G:G,SOURCE_PARTS_SOC!E:E,F199)) -> 0 | K199: 0% | L199: =(SUMIFS(SOURCE_PARTS_SOC!H:H,SOURCE_PARTS_SOC!E:E,F199)) -> 0 | M199: 137,900 | N199: =I199*SUIVI_REGION!$E$4 -> 8,897 | O199: -8,897 | Q199: =VLOOKUP(F199,Objectifs!D:K,8,0) -> 596,100 | R199: =(SUMIF(EMPRUNT_ASV!D:D,SUIVI_PDV!E199,EMPRUNT_ASV!J:J)) -> 68,125 | S199: 11% | T199: 527,975 | U199: =Q199*SUIVI_REGION!$E$4 -> 38,458 | V199: 29,667 | W199: =VLOOKUP(F199,Objectifs!D:L,9,0) -> 39,700 | X199: =(SUMIF(EMPRUNT_CTO!H:H,SUIVI_PDV!D199,EMPRUNT_CTO!N:N)) -> 0 | Y199: 0% | Z199: 39,700 | AA199: =W199*SUIVI_REGION!$E$4 -> 2,561 | AB199: -2,561 | AD199: =(SUMIF(EMPRUNT_ASV!D:D,E199,EMPRUNT_ASV!K:K)) -> 0 | AF199: 0 | AG199: =(SUMIFS(PILCOT_AVEN_DUR!P:P,PILCOT_AVEN_DUR!H:H,D199))-(SUMIFS('FAF AU 31 MAI'!D:D,'FAF AU 31 MAI'!A:A,D199)) -> 0 | AH199: =(SUMIFS(PILCOT_ALIZE!P:P,PILCOT_ALIZE!H:H,D199))-(SUMIFS('FAF AU 31 MAI'!E:E,'FAF AU 31 MAI'!A:A,D199)) -> 0 | AI199: =(SUMIFS(PILCOT_CORALIUM!P:P,PILCOT_CORALIUM!H:H,D199))-(SUMIFS('FAF AU 31 MAI'!C:C,'FAF AU 31 MAI'!A:A,D199)) -> 0 | AK199: 0 | AL199: =(SUMIF(GEDEL!F:F,E199,GEDEL!N:N)) -> 0 | AM199: =(SUMIF(GEDEL!F:F,E199,GEDEL!O:O)) -> 0
A200: 160 | B200: MOSELLE | C200: MOSELLE NORD | D200: 599 | E200: 151350000599 | F200: 57449 | G200: =VLOOKUP(F200,Objectifs!D:E,2,FALSE) -> METZERVISSE | I200: =VLOOKUP(F200,Objectifs!D:M,10,FALSE) -> 37,100 | J200: =(SUMIFS(SOURCE_PARTS_SOC!G:G,SOURCE_PARTS_SOC!E:E,F200)) -> 0 | K200: 0% | L200: =(SUMIFS(SOURCE_PARTS_SOC!H:H,SOURCE_PARTS_SOC!E:E,F200)) -> 0 | M200: 37,100 | N200: =I200*SUIVI_REGION!$E$4 -> 2,394 | O200: -2,394 | Q200: =VLOOKUP(F200,Objectifs!D:K,8,0) -> 160,000 | R200: =(SUMIF(EMPRUNT_ASV!D:D,SUIVI_PDV!E200,EMPRUNT_ASV!J:J)) -> 10,000 | S200: 6% | T200: 150,000 | U200: =Q200*SUIVI_REGION!$E$4 -> 10,323 | V200: -323 | W200: =VLOOKUP(F200,Objectifs!D:L,9,0) -> 10,700 | X200: =(SUMIF(EMPRUNT_CTO!H:H,SUIVI_PDV!D200,EMPRUNT_CTO!N:N)) -> 0 | Y200: 0% | Z200: 10,700 | AA200: =W200*SUIVI_REGION!$E$4 -> 690 | AB200: -690 | AD200: =(SUMIF(EMPRUNT_ASV!D:D,E200,EMPRUNT_ASV!K:K)) -> 0 | AF200: 14,185 | AG200: =(SUMIFS(PILCOT_AVEN_DUR!P:P,PILCOT_AVEN_DUR!H:H,D200))-(SUMIFS('FAF AU 31 MAI'!D:D,'FAF AU 31 MAI'!A:A,D200)) -> 0 | AH200: =(SUMIFS(PILCOT_ALIZE!P:P,PILCOT_ALIZE!H:H,D200))-(SUMIFS('FAF AU 31 MAI'!E:E,'FAF AU 31 MAI'!A:A,D200)) -> 0 | AI200: =(SUMIFS(PILCOT_CORALIUM!P:P,PILCOT_CORALIUM!H:H,D200))-(SUMIFS('FAF AU 31 MAI'!C:C,'FAF AU 31 MAI'!A:A,D200)) -> 14,185 | AK200: 0 | AL200: =(SUMIF(GEDEL!F:F,E200,GEDEL!N:N)) -> 0 | AM200: =(SUMIF(GEDEL!F:F,E200,GEDEL!O:O)) -> 0
... 107 more rows

Sheet EMPRUNT_ASV (hidden)
A2: =[1]DATA_meta!B2 -> Données au 20230602
A3: =[1]DATA_meta!B2 -> Données au 20230602
A4: Sources CRE & FCP manuel
A5: * : CA : Versements Initiaux (hors souscriptions manuelles Nuances Privilège), Versements Libres et arbitrages | K5: nouveau pour le 1er juin (c'est certain) | L5: nouveau pour le 1er juin (probable)
A6: Groupe | B6: Secteur | C6: Agence | D6: Identifiant agence | E6: Id opérateur | F6: Identifiant client | G6: Date de l'opération | H6: Origine de l'opération | I6: Numéro de contrat | J6: CA (€) sur le fonds * | K6: CA en UC autres | L6: % d'UC | M6: Montant des frais
A7: =IF([1]DATA!A2="","",[1]DATA!A2) -> AUBE HAUTE MARNE | B7: =IF([1]DATA!B2="","",[1]DATA!B2) -> TROYES | C7: =IF([1]DATA!C2="","",[1]DATA!C2) -> ARCIS SUR AUBE | D7: =IF([1]DATA!D2="","",[1]DATA!D2) -> 151350000430 | E7: =IF([1]DATA!E2="","",[1]DATA!E2) -> 0051337 | F7: =IF([1]DATA!F2="","",[1]DATA!F2) -> 15135000257376 | G7: =IF([1]DATA!G2="","",[1]DATA!G2) -> 20230601 | H7: =IF([1]DATA!H2="","",[1]DATA!H2) -> VI | I7: =IF([1]DATA!I2="","",[1]DATA!I2) -> 122132915 | J7: =IF([1]DATA!J2="","",[1]DATA!J2) -> 49000 | M7: =IF([1]DATA!K2="","",[1]DATA!K2) -> 245
A8: =IF([1]DATA!A3="","",[1]DATA!A3) -> AUBE HAUTE MARNE | B8: =IF([1]DATA!B3="","",[1]DATA!B3) -> CHAUMONT | C8: =IF([1]DATA!C3="","",[1]DATA!C3) -> JOINVILLE | D8: =IF([1]DATA!D3="","",[1]DATA!D3) -> 151350000254 | E8: =IF([1]DATA!E3="","",[1]DATA!E3) -> 5702854 | F8: =IF([1]DATA!F3="","",[1]DATA!F3) -> 15135000031720 | G8: =IF([1]DATA!G3="","",[1]DATA!G3) -> 20230601 | H8: =IF([1]DATA!H3="","",[1]DATA!H3) -> VI | I8: =IF([1]DATA!I3="","",[1]DATA!I3) -> 122133064 | J8: =IF([1]DATA!J3="","",[1]DATA!J3) -> 7500 | M8: =IF([1]DATA!K3="","",[1]DATA!K3) -> 75
A9: =IF([1]DATA!A4="","",[1]DATA!A4) -> AUBE HAUTE MARNE | B9: =IF([1]DATA!B4="","",[1]DATA!B4) -> TROYES | C9: =IF([1]DATA!C4="","",[1]DATA!C4) -> ROMILLY ORMES | D9: =IF([1]DATA!D4="","",[1]DATA!D4) -> 151350000471 | E9: =IF([1]DATA!E4="","",[1]DATA!E4) -> 0051090 | F9: =IF([1]DATA!F4="","",[1]DATA!F4) -> 15135000721178 | G9: =IF([1]DATA!G4="","",[1]DATA!G4) -> 20230601 | H9: =IF([1]DATA!H4="","",[1]DATA!H4) -> VL | I9: =IF([1]DATA!I4="","",[1]DATA!I4) -> 102161824 | J9: =IF([1]DATA!J4="","",[1]DATA!J4) -> 5000 | M9: =IF([1]DATA!K4="","",[1]DATA!K4) -> 25
A10: =IF([1]DATA!A5="","",[1]DATA!A5) -> AUBE HAUTE MARNE | B10: =IF([1]DATA!B5="","",[1]DATA!B5) -> TROYES | C10: =IF([1]DATA!C5="","",[1]DATA!C5) -> SAINT JULIEN LES VILLAS | D10: =IF([1]DATA!D5="","",[1]DATA!D5) -> 151350000424 | E10: =IF([1]DATA!E5="","",[1]DATA!E5) -> 0051331 | F10: =IF([1]DATA!F5="","",[1]DATA!F5) -> 15135000030554 | G10: =IF([1]DATA!G5="","",[1]DATA!G5) -> 20230601 | H10: =IF([1]DATA!H5="","",[1]DATA!H5) -> VI | I10: =IF([1]DATA!I5="","",[1]DATA!I5) -> 120035845 | J10: =IF([1]DATA!J5="","",[1]DATA!J5) -> 40000 | M10: =IF([1]DATA!K5="","",[1]DATA!K5) -> 0
A11: =IF([1]DATA!A6="","",[1]DATA!A6) -> AUBE HAUTE MARNE | B11: =IF([1]DATA!B6="","",[1]DATA!B6) -> TROYES | C11: =IF([1]DATA!C6="","",[1]DATA!C6) -> TROYES GAMBETTA | D11: =IF([1]DATA!D6="","",[1]DATA!D6) -> 151350000410 | E11: =IF([1]DATA!E6="","",[1]DATA!E6) -> 5707521 | F11: =IF([1]DATA!F6="","",[1]DATA!F6) -> 15135000894894 | G11: =IF([1]DATA!G6="","",[1]DATA!G6) -> 20230601 | H11: =IF([1]DATA!H6="","",[1]DATA!H6) -> VI | I11: =IF([1]DATA!I6="","",[1]DATA!I6) -> 122132890 | J11: =IF([1]DATA!J6="","",[1]DATA!J6) -> 30499 | M11: =IF([1]DATA!K6="","",[1]DATA!K6) -> 350
A12: =IF([1]DATA!A7="","",[1]DATA!A7) -> BAS-RHIN | B12: =IF([1]DATA!B7="","",[1]DATA!B7) -> SELESTAT | C12: =IF([1]DATA!C7="","",[1]DATA!C7) -> BARR | D12: =IF([1]DATA!D7="","",[1]DATA!D7) -> 151350000113 | E12: =IF([1]DATA!E7="","",[1]DATA!E7) -> 6702491 | F12: =IF([1]DATA!F7="","",[1]DATA!F7) -> 15135082796941 | G12: =IF([1]DATA!G7="","",[1]DATA!G7) -> 20230601 | H12: =IF([1]DATA!H7="","",[1]DATA!H7) -> VL | I12: =IF([1]DATA!I7="","",[1]DATA!I7) -> 656077538 | J12: =IF([1]DATA!J7="","",[1]DATA!J7) -> 10000 | M12: =IF([1]DATA!K7="","",[1]DATA!K7) -> 50
A13: =IF([1]DATA!A8="","",[1]DATA!A8) -> BAS-RHIN | B13: =IF([1]DATA!B8="","",[1]DATA!B8) -> HAGUENAU | C13: =IF([1]DATA!C8="","",[1]DATA!C8) -> BISCHWILLER | D13: =IF([1]DATA!D8="","",[1]DATA!D8) -> 151350000057 | E13: =IF([1]DATA!E8="","",[1]DATA!E8) -> 5707047 | F13: =IF([1]DATA!F8="","",[1]DATA!F8) -> 15135082746810 | G13: =IF([1]DATA!G8="","",[1]DATA!G8) -> 20230601 | H13: =IF([1]DATA!H8="","",[1]DATA!H8) -> AR | I13: =IF([1]DATA!I8="","",[1]DATA!I8) -> 984965400 | J13: =IF([1]DATA!J8="","",[1]DATA!J8) -> 4975 | M13: =IF([1]DATA!K8="","",[1]DATA!K8) -> 25
A14: =IF([1]DATA!A9="","",[1]DATA!A9) -> BAS-RHIN | B14: =IF([1]DATA!B9="","",[1]DATA!B9) -> HAGUENAU | C14: =IF([1]DATA!C9="","",[1]DATA!C9) -> BISCHWILLER | D14: =IF([1]DATA!D9="","",[1]DATA!D9) -> 151350000057 | E14: =IF([1]DATA!E9="","",[1]DATA!E9) -> 5707047 | F14: =IF([1]DATA!F9="","",[1]DATA!F9) -> 15135082746810 | G14: =IF([1]DATA!G9="","",[1]DATA!G9) -> 20230601 | H14: =IF([1]DATA!H9="","",[1]DATA!H9) -> VI | I14: =IF([1]DATA!I9="","",[1]DATA!I9) -> 122132570 | J14: =IF([1]DATA!J9="","",[1]DATA!J9) -> 15000 | M14: =IF([1]DATA!K9="","",[1]DATA!K9) -> 125
A15: =IF([1]DATA!A10="","",[1]DATA!A10) -> BAS-RHIN | B15: =IF([1]DATA!B10="","",[1]DATA!B10) -> HAGUENAU | C15: =IF([1]DATA!C10="","",[1]DATA!C10) -> BRUMATH | D15: =IF([1]DATA!D10="","",[1]DATA!D10) -> 151350000030 | E15: =IF([1]DATA!E10="","",[1]DATA!E10) -> 6702670 | F15: =IF([1]DATA!F10="","",[1]DATA!F10) -> 15135083402786 | G15: =IF([1]DATA!G10="","",[1]DATA!G10) -> 20230601 | H15: =IF([1]DATA!H10="","",[1]DATA!H10) -> VI | I15: =IF([1]DATA!I10="","",[1]DATA!I10) -> 122132552 | J15: =IF([1]DATA!J10="","",[1]DATA!J10) -> 10000 | M15: =IF([1]DATA!K10="","",[1]DATA!K10) -> 100
A16: =IF([1]DATA!A11="","",[1]DATA!A11) -> BAS-RHIN | B16: =IF([1]DATA!B11="","",[1]DATA!B11) -> HAGUENAU | C16: =IF([1]DATA!C11="","",[1]DATA!C11) -> HAGUENAU HOUBLON | D16: =IF([1]DATA!D11="","",[1]DATA!D11) -> 151350000060 | E16: =IF([1]DATA!E11="","",[1]DATA!E11) -> 6704788 | F16: =IF([1]DATA!F11="","",[1]DATA!F11) -> 15135082595579 | G16: =IF([1]DATA!G11="","",[1]DATA!G11) -> 20230601 | H16: =IF([1]DATA!H11="","",[1]DATA!H11) -> VI | I16: =IF([1]DATA!I11="","",[1]DATA!I11) -> 123266129 | J16: =IF([1]DATA!J11="","",[1]DATA!J11) -> 8800 | M16: =IF([1]DATA!K11="","",[1]DATA!K11) -> 110
A17: =IF([1]DATA!A12="","",[1]DATA!A12) -> BAS-RHIN | B17: =IF([1]DATA!B12="","",[1]DATA!B12) -> SELESTAT | C17: =IF([1]DATA!C12="","",[1]DATA!C12) -> MARLENHEIM | D17: =IF([1]DATA!D12="","",[1]DATA!D12) -> 151350000129 | E17: =IF([1]DATA!E12="","",[1]DATA!E12) -> 6702878 | F17: =IF([1]DATA!F12="","",[1]DATA!F12) -> 15135082947934 | G17: =IF([1]DATA!G12="","",[1]DATA!G12) -> 20230601 | H17: =IF([1]DATA!H12="","",[1]DATA!H12) -> AR | I17: =IF([1]DATA!I12="","",[1]DATA!I12) -> 718008834 | J17: =IF([1]DATA!J12="","",[1]DATA!J12) -> 25000 | M17: =IF([1]DATA!K12="","",[1]DATA!K12) -> 0
A18: =IF([1]DATA!A13="","",[1]DATA!A13) -> BAS-RHIN | B18: =IF([1]DATA!B13="","",[1]DATA!B13) -> SELESTAT | C18: =IF([1]DATA!C13="","",[1]DATA!C13) -> MOLSHEIM | D18: =IF([1]DATA!D13="","",[1]DATA!D13) -> 151350000116 | E18: =IF([1]DATA!E13="","",[1]DATA!E13) -> 6701377 | F18: =IF([1]DATA!F13="","",[1]DATA!F13) -> 15135082478714 | G18: =IF([1]DATA!G13="","",[1]DATA!G13) -> 20230601 | H18: =IF([1]DATA!H13="","",[1]DATA!H13) -> VL | I18: =IF([1]DATA!I13="","",[1]DATA!I13) -> 617551037 | J18: =IF([1]DATA!J13="","",[1]DATA!J13) -> 16000 | M18: =IF([1]DATA!K13="","",[1]DATA!K13) -> 80
A19: =IF([1]DATA!A14="","",[1]DATA!A14) -> BAS-RHIN | B19: =IF([1]DATA!B14="","",[1]DATA!B14) -> STRASBOURG | C19: =IF([1]DATA!C14="","",[1]DATA!C14) -> MUNDOLSHEIM | D19: =IF([1]DATA!D14="","",[1]DATA!D14) -> 151350000037 | E19: =IF([1]DATA!E14="","",[1]DATA!E14) -> 6706519 | F19: =IF([1]DATA!F14="","",[1]DATA!F14) -> 15135082773249 | G19: =IF([1]DATA!G14="","",[1]DATA!G14) -> 20230601 | H19: =IF([1]DATA!H14="","",[1]DATA!H14) -> VL | I19: =IF([1]DATA!I14="","",[1]DATA!I14) -> 858107822 | J19: =IF([1]DATA!J14="","",[1]DATA!J14) -> 3000 | M19: =IF([1]DATA!K14="","",[1]DATA!K14) -> 15
A20: =IF([1]DATA!A15="","",[1]DATA!A15) -> BAS-RHIN | B20: =IF([1]DATA!B15="","",[1]DATA!B15) -> STRASBOURG | C20: =IF([1]DATA!C15="","",[1]DATA!C15) -> MUNDOLSHEIM | D20: =IF([1]DATA!D15="","",[1]DATA!D15) -> 151350000037 | E20: =IF([1]DATA!E15="","",[1]DATA!E15) -> 6706519 | F20: =IF([1]DATA!F15="","",[1]DATA!F15) -> 15135082798132 | G20: =IF([1]DATA!G15="","",[1]DATA!G15) -> 20230601 | H20: =IF([1]DATA!H15="","",[1]DATA!H15) -> VI | I20: =IF([1]DATA!I15="","",[1]DATA!I15) -> 123266645 | J20: =IF([1]DATA!J15="","",[1]DATA!J15) -> 11000.4 | M20: =IF([1]DATA!K15="","",[1]DATA!K15) -> 36
A21: =IF([1]DATA!A16="","",[1]DATA!A16) -> BAS-RHIN | B21: =IF([1]DATA!B16="","",[1]DATA!B16) -> HAGUENAU | C21: =IF([1]DATA!C16="","",[1]DATA!C16) -> NIEDERBRONN LES BAINS | D21: =IF([1]DATA!D16="","",[1]DATA!D16) -> 151350000066 | E21: =IF([1]DATA!E16="","",[1]DATA!E16) -> 6702133 | F21: =IF([1]DATA!F16="","",[1]DATA!F16) -> 15135083136399 | G21: =IF([1]DATA!G16="","",[1]DATA!G16) -> 20230601 | H21: =IF([1]DATA!H16="","",[1]DATA!H16) -> VL | I21: =IF([1]DATA!I16="","",[1]DATA!I16) -> 617404485 | J21: =IF([1]DATA!J16="","",[1]DATA!J16) -> 6000 | M21: =IF([1]DATA!K16="","",[1]DATA!K16) -> 30
A22: =IF([1]DATA!A17="","",[1]DATA!A17) -> BAS-RHIN | B22: =IF([1]DATA!B17="","",[1]DATA!B17) -> HAGUENAU | C22: =IF([1]DATA!C17="","",[1]DATA!C17) -> NIEDERBRONN LES BAINS | D22: =IF([1]DATA!D17="","",[1]DATA!D17) -> 151350000066 | E22: =IF([1]DATA!E17="","",[1]DATA!E17) -> 6702133 | F22: =IF([1]DATA!F17="","",[1]DATA!F17) -> 15135082894789 | G22: =IF([1]DATA!G17="","",[1]DATA!G17) -> 20230601 | H22: =IF([1]DATA!H17="","",[1]DATA!H17) -> VL | I22: =IF([1]DATA!I17="","",[1]DATA!I17) -> 617725691 | J22: =IF([1]DATA!J17="","",[1]DATA!J17) -> 10000 | M22: =IF([1]DATA!K17="","",[1]DATA!K17) -> 50
A23: =IF([1]DATA!A18="","",[1]DATA!A18) -> BAS-RHIN | B23: =IF([1]DATA!B18="","",[1]DATA!B18) -> HAGUENAU | C23: =IF([1]DATA!C18="","",[1]DATA!C18) -> NIEDERBRONN LES BAINS | D23: =IF([1]DATA!D18="","",[1]DATA!D18) -> 151350000066 | E23: =IF([1]DATA!E18="","",[1]DATA!E18) -> 6702133 | F23: =IF([1]DATA!F18="","",[1]DATA!F18) -> 15135082750727 | G23: =IF([1]DATA!G18="","",[1]DATA!G18) -> 20230601 | H23: =IF([1]DATA!H18="","",[1]DATA!H18) -> VL | I23: =IF([1]DATA!I18="","",[1]DATA!I18) -> 656773835 | J23: =IF([1]DATA!J18="","",[1]DATA!J18) -> 6000 | M23: =IF([1]DATA!K18="","",[1]DATA!K18) -> 210
A24: =IF([1]DATA!A19="","",[1]DATA!A19) -> BAS-RHIN | B24: =IF([1]DATA!B19="","",[1]DATA!B19) -> HAGUENAU | C24: =IF([1]DATA!C19="","",[1]DATA!C19) -> NIEDERBRONN LES BAINS | D24: =IF([1]DATA!D19="","",[1]DATA!D19) -> 151350000066 | E24: =IF([1]DATA!E19="","",[1]DATA!E19) -> 6702137 | F24: =IF([1]DATA!F19="","",[1]DATA!F19) -> 15135083217652 | G24: =IF([1]DATA!G19="","",[1]DATA!G19) -> 20230601 | H24: =IF([1]DATA!H19="","",[1]DATA!H19) -> VL | I24: =IF([1]DATA!I19="","",[1]DATA!I19) -> 123265773 | J24: =IF([1]DATA!J19="","",[1]DATA!J19) -> 10000 | M24: =IF([1]DATA!K19="","",[1]DATA!K19) -> 50
A25: =IF([1]DATA!A20="","",[1]DATA!A20) -> BAS-RHIN | B25: =IF([1]DATA!B20="","",[1]DATA!B20) -> STRASBOURG | C25: =IF([1]DATA!C20="","",[1]DATA!C20) -> OBERHAUSBERGEN | D25: =IF([1]DATA!D20="","",[1]DATA!D20) -> 151350000038 | E25: =IF([1]DATA!E20="","",[1]DATA!E20) -> 6702635 | F25: =IF([1]DATA!F20="","",[1]DATA!F20) -> 15135083274298 | G25: =IF([1]DATA!G20="","",[1]DATA!G20) -> 20230601 | H25: =IF([1]DATA!H20="","",[1]DATA!H20) -> VL | I25: =IF([1]DATA!I20="","",[1]DATA!I20) -> 859213415 | J25: =IF([1]DATA!J20="","",[1]DATA!J20) -> 20000 | M25: =IF([1]DATA!K20="","",[1]DATA!K20) -> 100
A26: =IF([1]DATA!A21="","",[1]DATA!A21) -> BAS-RHIN | B26: =IF([1]DATA!B21="","",[1]DATA!B21) -> STRASBOURG | C26: =IF([1]DATA!C21="","",[1]DATA!C21) -> OBERHAUSBERGEN | D26: =IF([1]DATA!D21="","",[1]DATA!D21) -> 151350000038 | E26: =IF([1]DATA!E21="","",[1]DATA!E21) -> 6706039 | F26: =IF([1]DATA!F21="","",[1]DATA!F21) -> 15135082969898 | G26: =IF([1]DATA!G21="","",[1]DATA!G21) -> 20230601 | H26: =IF([1]DATA!H21="","",[1]DATA!H21) -> VL | I26: =IF([1]DATA!I21="","",[1]DATA!I21) -> 859668723 | J26: =IF([1]DATA!J21="","",[1]DATA!J21) -> 8116 | M26: =IF([1]DATA!K21="","",[1]DATA!K21) -> 0
A27: =IF([1]DATA!A22="","",[1]DATA!A22) -> BAS-RHIN | B27: =IF([1]DATA!B22="","",[1]DATA!B22) -> SELESTAT | C27: =IF([1]DATA!C22="","",[1]DATA!C22) -> ROSHEIM | D27: =IF([1]DATA!D22="","",[1]DATA!D22) -> 151350000127 | E27: =IF([1]DATA!E22="","",[1]DATA!E22) -> 6706225 | F27: =IF([1]DATA!F22="","",[1]DATA!F22) -> 15135082725108 | G27: =IF([1]DATA!G22="","",[1]DATA!G22) -> 20230601 | H27: =IF([1]DATA!H22="","",[1]DATA!H22) -> VI | I27: =IF([1]DATA!I22="","",[1]DATA!I22) -> 122132687 | J27: =IF([1]DATA!J22="","",[1]DATA!J22) -> 9000 | M27: =IF([1]DATA!K22="","",[1]DATA!K22) -> 90
A28: =IF([1]DATA!A23="","",[1]DATA!A23) -> BAS-RHIN | B28: =IF([1]DATA!B23="","",[1]DATA!B23) -> SELESTAT | C28: =IF([1]DATA!C23="","",[1]DATA!C23) -> ROSHEIM | D28: =IF([1]DATA!D23="","",[1]DATA!D23) -> 151350000127 | E28: =IF([1]DATA!E23="","",[1]DATA!E23) -> 6706225 | F28: =IF([1]DATA!F23="","",[1]DATA!F23) -> 15135082831434 | G28: =IF([1]DATA!G23="","",[1]DATA!G23) -> 20230601 | H28: =IF([1]DATA!H23="","",[1]DATA!H23) -> VI | I28: =IF([1]DATA!I23="","",[1]DATA!I23) -> 122132619 | J28: =IF([1]DATA!J23="","",[1]DATA!J23) -> 38500 | M28: =IF([1]DATA!K23="","",[1]DATA!K23) -> 350
A29: =IF([1]DATA!A24="","",[1]DATA!A24) -> BAS-RHIN | B29: =IF([1]DATA!B24="","",[1]DATA!B24) -> HAGUENAU | C29: =IF([1]DATA!C24="","",[1]DATA!C24) -> SARRE UNION | D29: =IF([1]DATA!D24="","",[1]DATA!D24) -> 151350000095 | E29: =IF([1]DATA!E24="","",[1]DATA!E24) -> 6702878 | F29: =IF([1]DATA!F24="","",[1]DATA!F24) -> 15135083121736 | G29: =IF([1]DATA!G24="","",[1]DATA!G24) -> 20230601 | H29: =IF([1]DATA!H24="","",[1]DATA!H24) -> AR | I29: =IF([1]DATA!I24="","",[1]DATA!I24) -> 103164485 | J29: =IF([1]DATA!J24="","",[1]DATA!J24) -> 4874.23 | M29: =IF([1]DATA!K24="","",[1]DATA!K24) -> 0
A30: =IF([1]DATA!A25="","",[1]DATA!A25) -> BAS-RHIN | B30: =IF([1]DATA!B25="","",[1]DATA!B25) -> HAGUENAU | C30: =IF([1]DATA!C25="","",[1]DATA!C25) -> SARRE UNION | D30: =IF([1]DATA!D25="","",[1]DATA!D25) -> 151350000095 | E30: =IF([1]DATA!E25="","",[1]DATA!E25) -> 6702878 | F30: =IF([1]DATA!F25="","",[1]DATA!F25) -> 15135091966675 | G30: =IF([1]DATA!G25="","",[1]DATA!G25) -> 20230601 | H30: =IF([1]DATA!H25="","",[1]DATA!H25) -> AR | I30: =IF([1]DATA!I25="","",[1]DATA!I25) -> 103376165 | J30: =IF([1]DATA!J25="","",[1]DATA!J25) -> 15000 | M30: =IF([1]DATA!K25="","",[1]DATA!K25) -> 0
A31: =IF([1]DATA!A26="","",[1]DATA!A26) -> BAS-RHIN | B31: =IF([1]DATA!B26="","",[1]DATA!B26) -> HAGUENAU | C31: =IF([1]DATA!C26="","",[1]DATA!C26) -> SAVERNE | D31: =IF([1]DATA!D26="","",[1]DATA!D26) -> 151350000087 | E31: =IF([1]DATA!E26="","",[1]DATA!E26) -> 6702878 | F31: =IF([1]DATA!F26="","",[1]DATA!F26) -> 15135083108137 | G31: =IF([1]DATA!G26="","",[1]DATA!G26) -> 20230601 | H31: =IF([1]DATA!H26="","",[1]DATA!H26) -> AR | I31: =IF([1]DATA!I26="","",[1]DATA!I26) -> 859485211 | J31: =IF([1]DATA!J26="","",[1]DATA!J26) -> 15000 | M31: =IF([1]DATA!K26="","",[1]DATA!K26) -> 0
A32: =IF([1]DATA!A27="","",[1]DATA!A27) -> BAS-RHIN | B32: =IF([1]DATA!B27="","",[1]DATA!B27) -> SELESTAT | C32: =IF([1]DATA!C27="","",[1]DATA!C27) -> SELESTAT CENTRE | D32: =IF([1]DATA!D27="","",[1]DATA!D27) -> 151350000123 | E32: =IF([1]DATA!E27="","",[1]DATA!E27) -> 6701883 | F32: =IF([1]DATA!F27="","",[1]DATA!F27) -> 15135082853581 | G32: =IF([1]DATA!G27="","",[1]DATA!G27) -> 20230601 | H32: =IF([1]DATA!H27="","",[1]DATA!H27) -> VL | I32: =IF([1]DATA!I27="","",[1]DATA!I27) -> 102263349 | J32: =IF([1]DATA!J27="","",[1]DATA!J27) -> 7500 | M32: =IF([1]DATA!K27="","",[1]DATA!K27) -> 75
A33: =IF([1]DATA!A28="","",[1]DATA!A28) -> BAS-RHIN | B33: =IF([1]DATA!B28="","",[1]DATA!B28) -> STRASBOURG | C33: =IF([1]DATA!C28="","",[1]DATA!C28) -> STRASBOURG ANVERS | D33: =IF([1]DATA!D28="","",[1]DATA!D28) -> 151350000019 | E33: =IF([1]DATA!E28="","",[1]DATA!E28) -> 5707115 | F33: =IF([1]DATA!F28="","",[1]DATA!F28) -> 15135082479871 | G33: =IF([1]DATA!G28="","",[1]DATA!G28) -> 20230601 | H33: =IF([1]DATA!H28="","",[1]DATA!H28) -> VL | I33: =IF([1]DATA!I28="","",[1]DATA!I28) -> 656828079 | J33: =IF([1]DATA!J28="","",[1]DATA!J28) -> 4950 | M33: =IF([1]DATA!K28="","",[1]DATA!K28) -> 75
A34: =IF([1]DATA!A29="","",[1]DATA!A29) -> BAS-RHIN | B34: =IF([1]DATA!B29="","",[1]DATA!B29) -> STRASBOURG | C34: =IF([1]DATA!C29="","",[1]DATA!C29) -> STRASBOURG CRONENBOURG | D34: =IF([1]DATA!D29="","",[1]DATA!D29) -> 151350000047 | E34: =IF([1]DATA!E29="","",[1]DATA!E29) -> 6709109 | F34: =IF([1]DATA!F29="","",[1]DATA!F29) -> 15135083003699 | G34: =IF([1]DATA!G29="","",[1]DATA!G29) -> 20230601 | H34: =IF([1]DATA!H29="","",[1]DATA!H29) -> VL | I34: =IF([1]DATA!I29="","",[1]DATA!I29) -> 656081350 | J34: =IF([1]DATA!J29="","",[1]DATA!J29) -> 10050 | M34: =IF([1]DATA!K29="","",[1]DATA!K29) -> 75
A35: =IF([1]DATA!A30="","",[1]DATA!A30) -> BAS-RHIN | B35: =IF([1]DATA!B30="","",[1]DATA!B30) -> STRASBOURG | C35: =IF([1]DATA!C30="","",[1]DATA!C30) -> STRASBOURG DANUBE | D35: =IF([1]DATA!D30="","",[1]DATA!D30) -> 151350000026 | E35: =IF([1]DATA!E30="","",[1]DATA!E30) -> 6702588 | F35: =IF([1]DATA!F30="","",[1]DATA!F30) -> 15135082908886 | G35: =IF([1]DATA!G30="","",[1]DATA!G30) -> 20230601 | H35: =IF([1]DATA!H30="","",[1]DATA!H30) -> VL | I35: =IF([1]DATA!I30="","",[1]DATA!I30) -> 984370688 | J35: =IF([1]DATA!J30="","",[1]DATA!J30) -> 10000 | M35: =IF([1]DATA!K30="","",[1]DATA!K30) -> 50
A36: =IF([1]DATA!A31="","",[1]DATA!A31) -> BAS-RHIN | B36: =IF([1]DATA!B31="","",[1]DATA!B31) -> STRASBOURG | C36: =IF([1]DATA!C31="","",[1]DATA!C31) -> STRASBOURG DANUBE | D36: =IF([1]DATA!D31="","",[1]DATA!D31) -> 151350000026 | E36: =IF([1]DATA!E31="","",[1]DATA!E31) -> 6702588 | F36: =IF([1]DATA!F31="","",[1]DATA!F31) -> 15135083074560 | G36: =IF([1]DATA!G31="","",[1]DATA!G31) -> 20230601 | H36: =IF([1]DATA!H31="","",[1]DATA!H31) -> VL | I36: =IF([1]DATA!I31="","",[1]DATA!I31) -> 102119176 | J36: =IF([1]DATA!J31="","",[1]DATA!J31) -> 18000 | M36: =IF([1]DATA!K31="","",[1]DATA!K31) -> 90
A37: =IF([1]DATA!A32="","",[1]DATA!A32) -> BAS-RHIN | B37: =IF([1]DATA!B32="","",[1]DATA!B32) -> STRASBOURG | C37: =IF([1]DATA!C32="","",[1]DATA!C32) -> STRASBOURG DANUBE | D37: =IF([1]DATA!D32="","",[1]DATA!D32) -> 151350000026 | E37: =IF([1]DATA!E32="","",[1]DATA!E32) -> 6702588 | F37: =IF([1]DATA!F32="","",[1]DATA!F32) -> 15135082881230 | G37: =IF([1]DATA!G32="","",[1]DATA!G32) -> 20230601 | H37: =IF([1]DATA!H32="","",[1]DATA!H32) -> VI | I37: =IF([1]DATA!I32="","",[1]DATA!I32) -> 122133007 | J37: =IF([1]DATA!J32="","",[1]DATA!J32) -> 70000 | M37: =IF([1]DATA!K32="","",[1]DATA!K32) -> 350
A38: =IF([1]DATA!A33="","",[1]DATA!A33) -> BAS-RHIN | B38: =IF([1]DATA!B33="","",[1]DATA!B33) -> STRASBOURG | C38: =IF([1]DATA!C33="","",[1]DATA!C33) -> STRASBOURG DANUBE | D38: =IF([1]DATA!D33="","",[1]DATA!D33) -> 151350000026 | E38: =IF([1]DATA!E33="","",[1]DATA!E33) -> 6702588 | F38: =IF([1]DATA!F33="","",[1]DATA!F33) -> 15135082794461 | G38: =IF([1]DATA!G33="","",[1]DATA!G33) -> 20230601 | H38: =IF([1]DATA!H33="","",[1]DATA!H33) -> VI | I38: =IF([1]DATA!I33="","",[1]DATA!I33) -> 122133052 | J38: =IF([1]DATA!J33="","",[1]DATA!J33) -> 23000 | M38: =IF([1]DATA!K33="","",[1]DATA!K33) -> 115
A39: =IF([1]DATA!A34="","",[1]DATA!A34) -> BAS-RHIN | B39: =IF([1]DATA!B34="","",[1]DATA!B34) -> STRASBOURG | C39: =IF([1]DATA!C34="","",[1]DATA!C34) -> STRASBOURG FRANCS BOURGEOIS | D39: =IF([1]DATA!D34="","",[1]DATA!D34) -> 151350000045 | E39: =IF([1]DATA!E34="","",[1]DATA!E34) -> 6706251 | F39: =IF([1]DATA!F34="","",[1]DATA!F34) -> 15135082591312 | G39: =IF([1]DATA!G34="","",[1]DATA!G34) -> 20230601 | H39: =IF([1]DATA!H34="","",[1]DATA!H34) -> VL | I39: =IF([1]DATA!I34="","",[1]DATA!I34) -> 166035374 | J39: =IF([1]DATA!J34="","",[1]DATA!J34) -> 25000 | M39: =IF([1]DATA!K34="","",[1]DATA!K34) -> 125
A40: =IF([1]DATA!A35="","",[1]DATA!A35) -> BAS-RHIN | B40: =IF([1]DATA!B35="","",[1]DATA!B35) -> STRASBOURG | C40: =IF([1]DATA!C35="","",[1]DATA!C35) -> STRASBOURG FRANCS BOURGEOIS | D40: =IF([1]DATA!D35="","",[1]DATA!D35) -> 151350000045 | E40: =IF([1]DATA!E35="","",[1]DATA!E35) -> 6706251 | F40: =IF([1]DATA!F35="","",[1]DATA!F35) -> 15135083225535 | G40: =IF([1]DATA!G35="","",[1]DATA!G35) -> 20230601 | H40: =IF([1]DATA!H35="","",[1]DATA!H35) -> VI | I40: =IF([1]DATA!I35="","",[1]DATA!I35) -> 123266635 | J40: =IF([1]DATA!J35="","",[1]DATA!J35) -> 6000 | M40: =IF([1]DATA!K35="","",[1]DATA!K35) -> 30
A41: =IF([1]DATA!A36="","",[1]DATA!A36) -> BAS-RHIN | B41: =IF([1]DATA!B36="","",[1]DATA!B36) -> STRASBOURG | C41: =IF([1]DATA!C36="","",[1]DATA!C36) -> STRASBOURG KOENIGSHOFFEN | D41: =IF([1]DATA!D36="","",[1]DATA!D36) -> 151350000048 | E41: =IF([1]DATA!E36="","",[1]DATA!E36) -> 6706132 | F41: =IF([1]DATA!F36="","",[1]DATA!F36) -> 15135082527216 | G41: =IF([1]DATA!G36="","",[1]DATA!G36) -> 20230601 | H41: =IF([1]DATA!H36="","",[1]DATA!H36) -> VL | I41: =IF([1]DATA!I36="","",[1]DATA!I36) -> 656706137 | J41: =IF([1]DATA!J36="","",[1]DATA!J36) -> 5000 | M41: =IF([1]DATA!K36="","",[1]DATA!K36) -> 25
A42: =IF([1]DATA!A37="","",[1]DATA!A37) -> BAS-RHIN | B42: =IF([1]DATA!B37="","",[1]DATA!B37) -> STRASBOURG | C42: =IF([1]DATA!C37="","",[1]DATA!C37) -> STRASBOURG MONTAGNE VERTE | D42: =IF([1]DATA!D37="","",[1]DATA!D37) -> 151350000054 | E42: =IF([1]DATA!E37="","",[1]DATA!E37) -> 6706475 | F42: =IF([1]DATA!F37="","",[1]DATA!F37) -> 15135095637322 | G42: =IF([1]DATA!G37="","",[1]DATA!G37) -> 20230601 | H42: =IF([1]DATA!H37="","",[1]DATA!H37) -> VI | I42: =IF([1]DATA!I37="","",[1]DATA!I37) -> 122133124 | J42: =IF([1]DATA!J37="","",[1]DATA!J37) -> 24010 | M42: =IF([1]DATA!K37="","",[1]DATA!K37) -> 245
A43: =IF([1]DATA!A38="","",[1]DATA!A38) -> BAS-RHIN | B43: =IF([1]DATA!B38="","",[1]DATA!B38) -> STRASBOURG | C43: =IF([1]DATA!C38="","",[1]DATA!C38) -> STRASBOURG VOSGES | D43: =IF([1]DATA!D38="","",[1]DATA!D38) -> 151350000023 | E43: =IF([1]DATA!E38="","",[1]DATA!E38) -> 6706127 | F43: =IF([1]DATA!F38="","",[1]DATA!F38) -> 15135083410120 | G43: =IF([1]DATA!G38="","",[1]DATA!G38) -> 20230601 | H43: =IF([1]DATA!H38="","",[1]DATA!H38) -> AR | I43: =IF([1]DATA!I38="","",[1]DATA!I38) -> 859134647 | J43: =IF([1]DATA!J38="","",[1]DATA!J38) -> 30095.4096 | M43: =IF([1]DATA!K38="","",[1]DATA!K38) -> 337
A44: =IF([1]DATA!A39="","",[1]DATA!A39) -> BAS-RHIN | B44: =IF([1]DATA!B39="","",[1]DATA!B39) -> STRASBOURG | C44: =IF([1]DATA!C39="","",[1]DATA!C39) -> STRASBOURG VOSGES | D44: =IF([1]DATA!D39="","",[1]DATA!D39) -> 151350000023 | E44: =IF([1]DATA!E39="","",[1]DATA!E39) -> 6702790 | F44: =IF([1]DATA!F39="","",[1]DATA!F39) -> 15135083230040 | G44: =IF([1]DATA!G39="","",[1]DATA!G39) -> 20230601 | H44: =IF([1]DATA!H39="","",[1]DATA!H39) -> VI | I44: =IF([1]DATA!I39="","",[1]DATA!I39) -> 120035765 | J44: =IF([1]DATA!J39="","",[1]DATA!J39) -> 122000 | M44: =IF([1]DATA!K39="","",[1]DATA!K39) -> 610
A45: =IF([1]DATA!A40="","",[1]DATA!A40) -> BAS-RHIN | B45: =IF([1]DATA!B40="","",[1]DATA!B40) -> HAGUENAU | C45: =IF([1]DATA!C40="","",[1]DATA!C40) -> TRUCHTERSHEIM | D45: =IF([1]DATA!D40="","",[1]DATA!D40) -> 151350000031 | E45: =IF([1]DATA!E40="","",[1]DATA!E40) -> 6702878 | F45: =IF([1]DATA!F40="","",[1]DATA!F40) -> 15135083286791 | G45: =IF([1]DATA!G40="","",[1]DATA!G40) -> 20230601 | H45: =IF([1]DATA!H40="","",[1]DATA!H40) -> AR | I45: =IF([1]DATA!I40="","",[1]DATA!I40) -> 102327510 | J45: =IF([1]DATA!J40="","",[1]DATA!J40) -> 41634.02136 | M45: =IF([1]DATA!K40="","",[1]DATA!K40) -> 210
